Workbook

Sheet Front
I5: Offshore gas model for Tanzania
I6: Last updated 8 May 2021
B10: Purpose
B21: Table of contents
B23: Dashboard | C23: Presents the main results of the model.
B24: Inputs | C24: Sets out the inputs for the model, which can be changed by the user.
B25: Demand and Production | C25: Calculates the volume of gas produced and where it is supplied (either to the LNG plant for export overseas, the domestic market or the regional market).
B26: Blocks 1&4 | C26: Calculates investor returns and government revenues from Blocks 1 and 4, the blocks licensed to one of the joint ventures expected to be part of the offshore project.
B27: Blocks 1&4 (wellhead) | C27: Calculates the wellhead price for Blocks 1 and 4 (hidden).
B28: Blocks 1&4 LNG & DSO plants | C28: Calculates investor returns and government revenues from Blocks 1 and 4's part of the LNG plant and DSO processing plant.
B29: Block 2 | C29: Calculates investor returns and government revenues from Block 2, the block licensed to the other joint venture expected to be part of the offshore project.
B30: Block 2 (wellhead) | C30: Calculates the wellhead price for Block 2 (hidden).
B31: Block 2 LNG & DSO plants | C31: Calculates investor returns and government revenues from Block 2's part of the LNG plant and DSO processing plant.
B32: Offshore Project | C32: Calculates investor returns and government revenues from the offshore project as a whole.
B33: Sector Results | C33: Calculates government revenues from the gas sector as a whole.
B34: Public Finances | C34: Calculates the impact on the public finances of government revenues from the gas sector.
B36: Colour code for cells
B38: X | C38: Cell can be changed by the user.
B39: X | C39: Cell cannot be changed by the user.
B41: Sources
B45: Disclaimer
J52: This work is licensed under the Creative Commons Attribution 4.0 International License.
J53: To view a copy of this license, visit http://creativecommons.org/licenses/by/4.0/

Sheet Dashboard
B2: ="Investor and government returns from offshore project ("&Inputs!C3&" USD)" -> Investor and government returns from offshore project (2020 USD)
B4: Blocks 1 and 4 part of proposed project: | C4: =IF(Inputs!C17=1,"Yes","No") -> Yes
B5: Block 2 part of proposed project: | C5: =IF(Inputs!D17=1,"Yes","No") -> Yes
B7: LNG price (per mmbtu) | C7: =Inputs!E364 -> 9
B8: DSO price (per mmbtu) | C8: =Inputs!F364 -> 4
D10: Block 1&4 project | E10: Block 2 project | F10: Overall offshore project
B11: ="Investment decision with "&(Inputs!C344*100)&"% hurdle rate" -> Investment decision with 13% hurdle rate | D11: =IF(C4 = "No","-",IF(D16>0,"Investment","No investment")) -> Investment | E11: =IF(C5 = "No","-",IF(E16>0,"Investment","No investment")) -> No investment | F11: =IF(AND(D11 <> "No investment",E11 <> "No investment"),"Investment","No investment") -> No investment
B12: Investor pre-tax returns | C12: NPV0 | D12: ='Offshore project'!H43 -> 7.745920298e+10 | E12: ='Offshore project'!H80 -> 6.627282087e+10 | F12: ='Offshore project'!H119 -> 1.437320238e+11
C13: ="NPV"&Inputs!C344*100 -> NPV13 | D13: ='Offshore project'!H46 -> 3487528458 | E13: ='Offshore project'!H83 -> 2941480638 | F13: ='Offshore project'!H122 -> 6429009096
C14: IRR | D14: ='Offshore project'!H51 -> 0.1770939142 | E14: ='Offshore project'!H88 -> 0.1687752943 | F14: ='Offshore project'!H127 -> 0.1728622693
B15: Investor post-tax returns | C15: NPV0 | D15: ='Offshore project'!H247 -> 3.96278506e+10 | E15: ='Offshore project'!H263 -> 3.476986124e+10 | F15: ='Offshore project'!H279 -> 7.439771184e+10
C16: ="NPV"&Inputs!C344*100 -> NPV13 | D16: ='Offshore project'!H250 -> 183084309.4 | E16: ='Offshore project'!H266 -> -235995040.7 | F16: ='Offshore project'!H282 -> -52910731.23
C17: IRR | D17: ='Offshore project'!H255 -> 0.1330663288 | E17: ='Offshore project'!H271 -> 0.1261827353 | F17: ='Offshore project'!H287 -> 0.1295648241
B18: Government revenues | C18: NPV0 | D18: ='Offshore project'!H456 -> 3.785300324e+10 | E18: ='Offshore project'!H555 -> 3.170661222e+10 | F18: ='Offshore project'!H651 -> 6.955961546e+10
C19: ="NPV"&Inputs!C482*100 -> NPV10 | D19: ='Offshore project'!H475 -> 5152975303 | E19: ='Offshore project'!H574 -> 4888245794 | F19: ='Offshore project'!H670 -> 1.00412211e+10
B20: Government AETR | C20: NPV0 | D20: ='Offshore project'!H459 -> 0.482304778 | E20: ='Offshore project'!H538 -> 0.4819521865 | F20: ='Offshore project'!H654 -> 0.4770958346
C21: ="NPV"&Inputs!C482*100 -> NPV10 | D21: ='Offshore project'!H478 -> 0.6376000101 | E21: ='Offshore project'!H577 -> 0.6691163981 | F21: ='Offshore project'!H673 -> 0.6525470623
B22: TPDC Equity Costs | C22: NPV0 | D22: ='Offshore project'!H311 -> 0 | E22: ='Offshore project'!H337 -> 0 | F22: ='Offshore project'!H362 -> 0
C23: ="NPV"&Inputs!C482*100 -> NPV10 | D23: ='Offshore project'!H314 -> 0 | E23: ='Offshore project'!H340 -> 0 | F23: ='Offshore project'!H365 -> 0
B25: Reporting of public finance results
B27: Include revenue and GDP from potential projects irrespective of estimated investment decision? | F27: Yes
B29: ="Contribution of gas revenues to public finances ("&Inputs!C3&" USD)" -> Contribution of gas revenues to public finances (2020 USD)
D31: Annual average
D32: Revenue | E32: Revenue per capita | F32: % of total govt revenue | G32: % of GDP
B33: Current year to end of sector production
B34: Onshore | D34: ='Dashboard Inputs'!H32 -> 46583388.95 | E34: ='Dashboard Inputs'!H33 -> 0.7013788649 | F34: ='Dashboard Inputs'!H34 -> 0.003682787899 | G34: ='Dashboard Inputs'!H35 -> 0.0005271079042
B35: Offshore project | D35: ='Dashboard Inputs'!H39 -> 1545801284 | E35: ='Dashboard Inputs'!H40 -> 13.27210359 | F35: ='Dashboard Inputs'!H41 -> 0.03806058956 | G35: ='Dashboard Inputs'!H42 -> 0.005554934707
B36: Sector | D36: ='Dashboard Inputs'!H32 + 'Dashboard Inputs'!H39 -> 1592384673 | E36: ='Dashboard Inputs'!H33 + 'Dashboard Inputs'!H40 -> 13.97348245 | F36: ='Dashboard Inputs'!H34 + 'Dashboard Inputs'!H41 -> 0.04174337746 | G36: ='Dashboard Inputs'!H35 + 'Dashboard Inputs'!H42 -> 0.006082042611
B37: Offshore production phase
B38: Onshore | D38: ='Dashboard Inputs'!I32 -> 24427035 | E38: ='Dashboard Inputs'!I33 -> 0.3020240399 | F38: ='Dashboard Inputs'!I34 -> 0.001228761275 | G38: ='Dashboard Inputs'!I35 -> 0.0001775152697
B39: Offshore project | D39: ='Dashboard Inputs'!I39 -> 1986943740 | E39: ='Dashboard Inputs'!I40 -> 17.05650961 | F39: ='Dashboard Inputs'!I41 -> 0.048895815 | G39: ='Dashboard Inputs'!I42 -> 0.007136485652
B40: Sector | D40: ='Dashboard Inputs'!I32 + 'Dashboard Inputs'!I39 -> 2011370775 | E40: ='Dashboard Inputs'!I33 + 'Dashboard Inputs'!I40 -> 17.35853365 | F40: ='Dashboard Inputs'!I34 + 'Dashboard Inputs'!I41 -> 0.05012457627 | G40: ='Dashboard Inputs'!I35 + 'Dashboard Inputs'!I42 -> 0.007314000922
B60: ="Domestic gas demand and supply, and take or pay penalties ("&Inputs!C3&" USD)" -> Domestic gas demand and supply, and take or pay penalties (2020 USD)
B62: Take-or-pay agreement in place? | C62: =IF(Inputs!C144 > 0%,"Yes","No") -> Yes
C64: Untaken gas at end of LNG production (mmcf) | D64: Take or pay penalty NPV0
D65: Cost | E65: % of Govt gas revenue
B67: Offshore project | C67: ='Demand & production'!F280 -> 1.273292582e-09 | D67: ='Sector results'!H73 -> 0 | E67: =D67 / 'Offshore project'!H651 -> 0
B68: Onshore | C68: ='Demand & production'!F53 -> 0 | D68: ='Sector results'!H72 -> 117824142.2 | E68: =D68 / 'Sector results'!H47 -> 0.08961844765
B90: Error checks
B92: All Error Checks | C92: =IF(COUNTIF(C93:C99,"Error") > 0, "Error","Ok") -> Ok
B93: Demand & production | C93: =IF(AND('Demand & production'!F1291<0.1,'Demand & production'!F1291>-0.1), "Ok", "Error") -> Ok
B94: Sector results | C94: =IF(AND('Sector results'!F85<0.1, 'Sector results'!F85>-0.1), "Ok", "Error") -> Ok
B95: Offshore project | C95: =IF(AND('Offshore project'!F779<0.1,'Offshore project'!F779>-0.1), "Ok", "Error") -> Ok
B96: Blocks 1 & 4 | C96: =IF(AND('Blocks 1&4'!F1057<0.1,'Blocks 1&4'!F1057>-0.1), "Ok","Error") -> Ok
B97: Block 2 | C97: =IF(AND('Block 2'!F1057<0.1,'Block 2'!F1057>-0.1), "Ok","Error") -> Ok
B98: LNG & DSO plant - Blocks 1 & 4 | C98: =IF(AND(' Blocks 1&4 LNG & DSO plants'!F749<0.1,' Blocks 1&4 LNG & DSO plants'!F749>-0.1), "Ok", "Error") -> Ok
B99: LNG & DSO plant - Block 2 | C99: =IF(AND(' Block 2 LNG & DSO plants'!F749<0.1,' Block 2 LNG & DSO plants'!F749>-0.1), "Ok", "Error") -> Ok

Sheet Dashboard Inputs (hidden)
A1: Dashboard Inputs
J4: =K4-1 -> 2010 | K4: =L4-1 -> 2011 | L4: =M4-1 -> 2012 | M4: =N4-1 -> 2013 | N4: =O4-1 -> 2014 | O4: =P4-1 -> 2015 | P4: 2016 | Q4: =P4+1 -> 2017 | R4: =Q4+1 -> 2018 | S4: =R4+1 -> 2019 | T4: =S4+1 -> 2020 | U4: =T4+1 -> 2021 | V4: =U4+1 -> 2022 | W4: =V4+1 -> 2023 | X4: =W4+1 -> 2024 | Y4: =X4+1 -> 2025 | Z4: =Y4+1 -> 2026 | AA4: =Z4+1 -> 2027 | AB4: =AA4+1 -> 2028 | AC4: =AB4+1 -> 2029 | AD4: =AC4+1 -> 2030 | AE4: =AD4+1 -> 2031 | AF4: =AE4+1 -> 2032 | AG4: =AF4+1 -> 2033 | AH4: =AG4+1 -> 2034 | AI4: =AH4+1 -> 2035 | AJ4: =AI4+1 -> 2036 | AK4: =AJ4+1 -> 2037 | AL4: =AK4+1 -> 2038 | AM4: =AL4+1 -> 2039 | AN4: =AM4+1 -> 2040 | AO4: =AN4+1 -> 2041 | AP4: =AO4+1 -> 2042 | AQ4: =AP4+1 -> 2043 | AR4: =AQ4+1 -> 2044 | AS4: =AR4+1 -> 2045 | AT4: =AS4+1 -> 2046 | AU4: =AT4+1 -> 2047 | AV4: =AU4+1 -> 2048 | AW4: =AV4+1 -> 2049 | AX4: =AW4+1 -> 2050 | AY4: =AX4+1 -> 2051 | AZ4: =AY4+1 -> 2052 | BA4: =AZ4+1 -> 2053 | BB4: =BA4+1 -> 2054 | BC4: =BB4+1 -> 2055 | BD4: =BC4+1 -> 2056 | BE4: =BD4+1 -> 2057 | BF4: =BE4+1 -> 2058 | BG4: =BF4+1 -> 2059 | BH4: =BG4+1 -> 2060 | BI4: =BH4+1 -> 2061 | BJ4: =BI4+1 -> 2062 | BK4: =BJ4+1 -> 2063 | BL4: =BK4+1 -> 2064 | BM4: =BL4+1 -> 2065 | BN4: =BM4+1 -> 2066 | BO4: =BN4+1 -> 2067 | BP4: =BO4+1 -> 2068 | BQ4: =BP4+1 -> 2069 | BR4: =BQ4+1 -> 2070 | BS4: =BR4+1 -> 2071 | BT4: =BS4+1 -> 2072 | BU4: =BT4+1 -> 2073 | BV4: =BU4+1 -> 2074 | BW4: =BV4+1 -> 2075 | BX4: =BW4+1 -> 2076 | BY4: =BX4+1 -> 2077 | BZ4: =BY4+1 -> 2078 | CA4: =BZ4+1 -> 2079 | CB4: =CA4+1 -> 2080 | CC4: =CB4+1 -> 2081 | CD4: =CC4+1 -> 2082 | CE4: =CD4+1 -> 2083 | CF4: =CE4+1 -> 2084 | CG4: =CF4+1 -> 2085 | CH4: =CG4+1 -> 2086 | CI4: =CH4+1 -> 2087 | CJ4: =CI4+1 -> 2088 | CK4: =CJ4+1 -> 2089 | CL4: =CK4+1 -> 2090 | CM4: =CL4+1 -> 2091 | CN4: =CM4+1 -> 2092 | CO4: =CN4+1 -> 2093 | CP4: =CO4+1 -> 2094 | CQ4: =CP4+1 -> 2095 | CR4: =CQ4+1 -> 2096 | CS4: =CR4+1 -> 2097 | CT4: =CS4+1 -> 2098 | CU4: =CT4+1 -> 2099 | CV4: =CU4+1 -> 2100
A5: LNG project returns
F7: Offshore project returns chart
I8: Government | J8: ='Offshore project'!J633 - 'Offshore project'!J630 -> 365698.326 | K8: ='Offshore project'!K633 - 'Offshore project'!K630 -> 358527.7706 | L8: ='Offshore project'!L633 - 'Offshore project'!L630 -> 351497.8143 | M8: ='Offshore project'!M633 - 'Offshore project'!M630 -> 344605.7003 | N8: ='Offshore project'!N633 - 'Offshore project'!N630 -> 337848.7258 | O8: ='Offshore project'!O633 - 'Offshore project'!O630 -> 331224.241 | P8: ='Offshore project'!P633 - 'Offshore project'!P630 -> 324729.648 | Q8: ='Offshore project'!Q633 - 'Offshore project'!Q630 -> 318362.4 | R8: ='Offshore project'!R633 - 'Offshore project'!R630 -> 312120 | S8: ='Offshore project'!S633 - 'Offshore project'!S630 -> 306000 | T8: ='Offshore project'!T633 - 'Offshore project'!T630 -> 300000 | U8: ='Offshore project'!U633 - 'Offshore project'!U630 -> 294117.6471 | V8: ='Offshore project'!V633 - 'Offshore project'!V630 -> 288350.6344 | W8: ='Offshore project'!W633 - 'Offshore project'!W630 -> 282696.7004 | X8: ='Offshore project'!X633 - 'Offshore project'!X630 -> 277153.6278 | Y8: ='Offshore project'!Y633 - 'Offshore project'!Y630 -> 3449566.362 | Z8: ='Offshore project'!Z633 - 'Offshore project'!Z630 -> 3381927.806 | AA8: ='Offshore project'!AA633 - 'Offshore project'!AA630 -> 3315615.496 | AB8: ='Offshore project'!AB633 - 'Offshore project'!AB630 -> 3250603.428 | AC8: ='Offshore project'!AC633 - 'Offshore project'!AC630 -> 3186866.106 | AD8: ='Offshore project'!AD633 - 'Offshore project'!AD630 -> 282262103 | AE8: ='Offshore project'!AE633 - 'Offshore project'!AE630 -> 553840213.1 | AF8: ='Offshore project'!AF633 - 'Offshore project'!AF630 -> 707550505.5 | AG8: ='Offshore project'!AG633 - 'Offshore project'!AG630 -> 831898263.7 | AH8: ='Offshore project'!AH633 - 'Offshore project'!AH630 -> 874218121.2 | AI8: ='Offshore project'!AI633 - 'Offshore project'!AI630 -> 968667388.4 | AJ8: ='Offshore project'!AJ633 - 'Offshore project'!AJ630 -> 1403192691 | AK8: ='Offshore project'!AK633 - 'Offshore project'!AK630 -> 1404577892 | AL8: ='Offshore project'!AL633 - 'Offshore project'!AL630 -> 1512714928 | AM8: ='Offshore project'!AM633 - 'Offshore project'!AM630 -> 1570792024 | AN8: ='Offshore project'!AN633 - 'Offshore project'!AN630 -> 1632697964 | AO8: ='Offshore project'!AO633 - 'Offshore project'!AO630 -> 1654576872 | AP8: ='Offshore project'!AP633 - 'Offshore project'!AP630 -> 1757128929 | AQ8: ='Offshore project'!AQ633 - 'Offshore project'!AQ630 -> 2003439418 | AR8: ='Offshore project'!AR633 - 'Offshore project'!AR630 -> 2079928264 | AS8: ='Offshore project'!AS633 - 'Offshore project'!AS630 -> 2221415452 | AT8: ='Offshore project'!AT633 - 'Offshore project'!AT630 -> 2303354121 | AU8: ='Offshore project'!AU633 - 'Offshore project'!AU630 -> 2324446654 | AV8: ='Offshore project'!AV633 - 'Offshore project'!AV630 -> 2023123393 | AW8: ='Offshore project'!AW633 - 'Offshore project'!AW630 -> 1977241361 | AX8: ='Offshore project'!AX633 - 'Offshore project'!AX630 -> 1925906006 | AY8: ='Offshore project'!AY633 - 'Offshore project'!AY630 -> 1884597229 | AZ8: ='Offshore project'!AZ633 - 'Offshore project'!AZ630 -> 2145408511 | BA8: ='Offshore project'!BA633 - 'Offshore project'!BA630 -> 2189492767 | BB8: ='Offshore project'!BB633 - 'Offshore project'!BB630 -> 2236021253 | BC8: ='Offshore project'!BC633 - 'Offshore project'!BC630 -> 2291251612 | BD8: ='Offshore project'!BD633 - 'Offshore project'!BD630 -> 2338360977 | BE8: ='Offshore project'!BE633 - 'Offshore project'!BE630 -> 2341852982 | BF8: ='Offshore project'!BF633 - 'Offshore project'!BF630 -> 2345485060 | BG8: ='Offshore project'!BG633 - 'Offshore project'!BG630 -> 2227462731 | BH8: ='Offshore project'!BH633 - 'Offshore project'!BH630 -> 1537515131 | BI8: ='Offshore project'!BI633 - 'Offshore project'!BI630 -> 1239628966 | BJ8: ='Offshore project'!BJ633 - 'Offshore project'!BJ630 -> 1248619208 | BK8: ='Offshore project'!BK633 - 'Offshore project'!BK630 -> 1256240176 | BL8: ='Offshore project'!BL633 - 'Offshore project'!BL630 -> 628457955.6 | BM8: ='Offshore project'!BM633 - 'Offshore project'!BM630 -> 0 | BN8: ='Offshore project'!BN633 - 'Offshore project'!BN630 -> 0 | BO8: ='Offshore project'!BO633 - 'Offshore project'!BO630 -> 0 | BP8: ='Offshore project'!BP633 - 'Offshore project'!BP630 -> 0 | BQ8: ='Offshore project'!BQ633 - 'Offshore project'!BQ630 -> 0 | BR8: ='Offshore project'!BR633 - 'Offshore project'!BR630 -> 0 | BS8: ='Offshore project'!BS633 - 'Offshore project'!BS630 -> 0 | BT8: ='Offshore project'!BT633 - 'Offshore project'!BT630 -> 0 | BU8: ='Offshore project'!BU633 - 'Offshore project'!BU630 -> 0 | BV8: ='Offshore project'!BV633 - 'Offshore project'!BV630 -> 0 | BW8: ='Offshore project'!BW633 - 'Offshore project'!BW630 -> 0 | BX8: ='Offshore project'!BX633 - 'Offshore project'!BX630 -> 0 | BY8: ='Offshore project'!BY633 - 'Offshore project'!BY630 -> 0 | BZ8: ='Offshore project'!BZ633 - 'Offshore project'!BZ630 -> 0 | CA8: ='Offshore project'!CA633 - 'Offshore project'!CA630 -> 0 | CB8: ='Offshore project'!CB633 - 'Offshore project'!CB630 -> 0 | CC8: ='Offshore project'!CC633 - 'Offshore project'!CC630 -> 0 | CD8: ='Offshore project'!CD633 - 'Offshore project'!CD630 -> 0 | CE8: ='Offshore project'!CE633 - 'Offshore project'!CE630 -> 0 | CF8: ='Offshore project'!CF633 - 'Offshore project'!CF630 -> 0 | CG8: ='Offshore project'!CG633 - 'Offshore project'!CG630 -> 0 | CH8: ='Offshore project'!CH633 - 'Offshore project'!CH630 -> 0 | CI8: ='Offshore project'!CI633 - 'Offshore project'!CI630 -> 0 | CJ8: ='Offshore project'!CJ633 - 'Offshore project'!CJ630 -> 0 | CK8: ='Offshore project'!CK633 - 'Offshore project'!CK630 -> 0 | CL8: ='Offshore project'!CL633 - 'Offshore project'!CL630 -> 0 | CM8: ='Offshore project'!CM633 - 'Offshore project'!CM630 -> 0 | CN8: ='Offshore project'!CN633 - 'Offshore project'!CN630 -> 0 | CO8: ='Offshore project'!CO633 - 'Offshore project'!CO630 -> 0 | CP8: ='Offshore project'!CP633 - 'Offshore project'!CP630 -> 0 | CQ8: ='Offshore project'!CQ633 - 'Offshore project'!CQ630 -> 0 | CR8: ='Offshore project'!CR633 - 'Offshore project'!CR630 -> 0 | CS8: ='Offshore project'!CS633 - 'Offshore project'!CS630 -> 0 | CT8: ='Offshore project'!CT633 - 'Offshore project'!CT630 -> 0 | CU8: ='Offshore project'!CU633 - 'Offshore project'!CU630 -> 0 | CV8: ='Offshore project'!CV633 - 'Offshore project'!CV630 -> 0
I9: Contractor & Lender | J9: ='Offshore project'!J278 -> -825365698.3 | K9: ='Offshore project'!K278 -> -825358527.8 | L9: ='Offshore project'!L278 -> -495351497.8 | M9: ='Offshore project'!M278 -> -495344605.7 | N9: ='Offshore project'!N278 -> -330337848.7 | O9: ='Offshore project'!O278 -> -165331224.2 | P9: ='Offshore project'!P278 -> -165324729.6 | Q9: ='Offshore project'!Q278 -> -318362.4 | R9: ='Offshore project'!R278 -> -312120 | S9: ='Offshore project'!S278 -> -306000 | T9: ='Offshore project'!T278 -> -300000 | U9: ='Offshore project'!U278 -> -294117.6471 | V9: ='Offshore project'!V278 -> -288350.6344 | W9: ='Offshore project'!W278 -> -282696.7004 | X9: ='Offshore project'!X278 -> -277153.6278 | Y9: ='Offshore project'!Y278 -> -1166177789 | Z9: ='Offshore project'!Z278 -> -2333672237 | AA9: ='Offshore project'!AA278 -> -4638296314 | AB9: ='Offshore project'!AB278 -> -5778324574 | AC9: ='Offshore project'!AC278 -> -6284496352 | AD9: ='Offshore project'!AD278 -> -753055149.7 | AE9: ='Offshore project'!AE278 -> 4747735682 | AF9: ='Offshore project'!AF278 -> 4791615620 | AG9: ='Offshore project'!AG278 -> 4451066587 | AH9: ='Offshore project'!AH278 -> 4406988826 | AI9: ='Offshore project'!AI278 -> 4245389040 | AJ9: ='Offshore project'!AJ278 -> 3809174096 | AK9: ='Offshore project'!AK278 -> 3317326446 | AL9: ='Offshore project'!AL278 -> 2729955062 | AM9: ='Offshore project'!AM278 -> 2655798920 | AN9: ='Offshore project'!AN278 -> 2572863957 | AO9: ='Offshore project'!AO278 -> 3049121022 | AP9: ='Offshore project'!AP278 -> 3193419803 | AQ9: ='Offshore project'!AQ278 -> 3176124599 | AR9: ='Offshore project'!AR278 -> 3101468595 | AS9: ='Offshore project'!AS278 -> 2774690886 | AT9: ='Offshore project'!AT278 -> 2692749289 | AU9: ='Offshore project'!AU278 -> 2671653884 | AV9: ='Offshore project'!AV278 -> 2004970683 | AW9: ='Offshore project'!AW278 -> 2050849955 | AX9: ='Offshore project'!AX278 -> 2086386628 | AY9: ='Offshore project'!AY278 -> 2136628869 | AZ9: ='Offshore project'!AZ278 -> 2850678494 | BA9: ='Offshore project'!BA278 -> 2802158691 | BB9: ='Offshore project'!BB278 -> 2760060704 | BC9: ='Offshore project'!BC278 -> 2772327894 | BD9: ='Offshore project'!BD278 -> 2725216126 | BE9: ='Offshore project'!BE278 -> 2721721766 | BF9: ='Offshore project'!BF278 -> 2718087379 | BG9: ='Offshore project'!BG278 -> 2467324790 | BH9: ='Offshore project'!BH278 -> 1820727260 | BI9: ='Offshore project'!BI278 -> 1460416224 | BJ9: ='Offshore project'!BJ278 -> 1458242631 | BK9: ='Offshore project'!BK278 -> 1452836009 | BL9: ='Offshore project'!BL278 -> 675957834.4 | BM9: ='Offshore project'!BM278 -> 0 | BN9: ='Offshore project'!BN278 -> 0 | BO9: ='Offshore project'!BO278 -> 0 | BP9: ='Offshore project'!BP278 -> 0 | BQ9: ='Offshore project'!BQ278 -> 0 | BR9: ='Offshore project'!BR278 -> 0 | BS9: ='Offshore project'!BS278 -> 0 | BT9: ='Offshore project'!BT278 -> 0 | BU9: ='Offshore project'!BU278 -> 0 | BV9: ='Offshore project'!BV278 -> 0 | BW9: ='Offshore project'!BW278 -> 0 | BX9: ='Offshore project'!BX278 -> 0 | BY9: ='Offshore project'!BY278 -> 0 | BZ9: ='Offshore project'!BZ278 -> 0 | CA9: ='Offshore project'!CA278 -> 0 | CB9: ='Offshore project'!CB278 -> 0 | CC9: ='Offshore project'!CC278 -> 0 | CD9: ='Offshore project'!CD278 -> 0 | CE9: ='Offshore project'!CE278 -> 0 | CF9: ='Offshore project'!CF278 -> 0 | CG9: ='Offshore project'!CG278 -> 0 | CH9: ='Offshore project'!CH278 -> 0 | CI9: ='Offshore project'!CI278 -> 0 | CJ9: ='Offshore project'!CJ278 -> 0 | CK9: ='Offshore project'!CK278 -> 0 | CL9: ='Offshore project'!CL278 -> 0 | CM9: ='Offshore project'!CM278 -> 0 | CN9: ='Offshore project'!CN278 -> 0 | CO9: ='Offshore project'!CO278 -> 0 | CP9: ='Offshore project'!CP278 -> 0 | CQ9: ='Offshore project'!CQ278 -> 0 | CR9: ='Offshore project'!CR278 -> 0 | CS9: ='Offshore project'!CS278 -> 0 | CT9: ='Offshore project'!CT278 -> 0 | CU9: ='Offshore project'!CU278 -> 0 | CV9: ='Offshore project'!CV278 -> 0
I10: TPDC | J10: ='Offshore project'!J348 -> 0 | K10: ='Offshore project'!K348 -> 0 | L10: ='Offshore project'!L348 -> 0 | M10: ='Offshore project'!M348 -> 0 | N10: ='Offshore project'!N348 -> 0 | O10: ='Offshore project'!O348 -> 0 | P10: ='Offshore project'!P348 -> 0 | Q10: ='Offshore project'!Q348 -> 0 | R10: ='Offshore project'!R348 -> 0 | S10: ='Offshore project'!S348 -> 0 | T10: ='Offshore project'!T348 -> 0 | U10: ='Offshore project'!U348 -> 0 | V10: ='Offshore project'!V348 -> 0 | W10: ='Offshore project'!W348 -> 0 | X10: ='Offshore project'!X348 -> 0 | Y10: ='Offshore project'!Y348 -> 0 | Z10: ='Offshore project'!Z348 -> 0 | AA10: ='Offshore project'!AA348 -> 0 | AB10: ='Offshore project'!AB348 -> 0 | AC10: ='Offshore project'!AC348 -> 0 | AD10: ='Offshore project'!AD348 -> 0 | AE10: ='Offshore project'!AE348 -> 0 | AF10: ='Offshore project'!AF348 -> 39291755.94 | AG10: ='Offshore project'!AG348 -> 255493030.8 | AH10: ='Offshore project'!AH348 -> 257250933.9 | AI10: ='Offshore project'!AI348 -> 253564141.7 | AJ10: ='Offshore project'!AJ348 -> 255253783.3 | AK10: ='Offshore project'!AK348 -> 256910294.6 | AL10: ='Offshore project'!AL348 -> 262380670.9 | AM10: ='Offshore project'!AM348 -> 278459717.1 | AN10: ='Offshore project'!AN348 -> 280237341.3 | AO10: ='Offshore project'!AO348 -> 280382586.2 | AP10: ='Offshore project'!AP348 -> 280189851.7 | AQ10: ='Offshore project'!AQ348 -> 280950093.3 | AR10: ='Offshore project'!AR348 -> 286223711.1 | AS10: ='Offshore project'!AS348 -> 471514232 | AT10: ='Offshore project'!AT348 -> 471517160.5 | AU10: ='Offshore project'!AU348 -> 471520031.7 | AV10: ='Offshore project'!AV348 -> 476956584.8 | AW10: ='Offshore project'!AW348 -> 476959344.4 | AX10: ='Offshore project'!AX348 -> 475875448.1 | AY10: ='Offshore project'!AY348 -> 476492473.8 | AZ10: ='Offshore project'!AZ348 -> 471533564.5 | BA10: ='Offshore project'!BA348 -> 471231471.5 | BB10: ='Offshore project'!BB348 -> 471538613.5 | BC10: ='Offshore project'!BC348 -> 479041063.9 | BD10: ='Offshore project'!BD348 -> 479043466.4 | BE10: ='Offshore project'!BE348 -> 479045821.7 | BF10: ='Offshore project'!BF348 -> 479048130.8 | BG10: ='Offshore project'!BG348 -> 491895846.5 | BH10: ='Offshore project'!BH348 -> 314344037.6 | BI10: ='Offshore project'!BI348 -> 251351503.1 | BJ10: ='Offshore project'!BJ348 -> 251866944.2 | BK10: ='Offshore project'!BK348 -> 252021417.2 | BL10: ='Offshore project'!BL348 -> 140278691.4 | BM10: ='Offshore project'!BM348 -> 0 | BN10: ='Offshore project'!BN348 -> 0 | BO10: ='Offshore project'!BO348 -> 0 | BP10: ='Offshore project'!BP348 -> 0 | BQ10: ='Offshore project'!BQ348 -> 0 | BR10: ='Offshore project'!BR348 -> 0 | BS10: ='Offshore project'!BS348 -> 0 | BT10: ='Offshore project'!BT348 -> 0 | BU10: ='Offshore project'!BU348 -> 0 | BV10: ='Offshore project'!BV348 -> 0 | BW10: ='Offshore project'!BW348 -> 0 | BX10: ='Offshore project'!BX348 -> 0 | BY10: ='Offshore project'!BY348 -> 0 | BZ10: ='Offshore project'!BZ348 -> 0 | CA10: ='Offshore project'!CA348 -> 0 | CB10: ='Offshore project'!CB348 -> 0 | CC10: ='Offshore project'!CC348 -> 0 | CD10: ='Offshore project'!CD348 -> 0 | CE10: ='Offshore project'!CE348 -> 0 | CF10: ='Offshore project'!CF348 -> 0 | CG10: ='Offshore project'!CG348 -> 0 | CH10: ='Offshore project'!CH348 -> 0 | CI10: ='Offshore project'!CI348 -> 0 | CJ10: ='Offshore project'!CJ348 -> 0 | CK10: ='Offshore project'!CK348 -> 0 | CL10: ='Offshore project'!CL348 -> 0 | CM10: ='Offshore project'!CM348 -> 0 | CN10: ='Offshore project'!CN348 -> 0 | CO10: ='Offshore project'!CO348 -> 0 | CP10: ='Offshore project'!CP348 -> 0 | CQ10: ='Offshore project'!CQ348 -> 0 | CR10: ='Offshore project'!CR348 -> 0 | CS10: ='Offshore project'!CS348 -> 0 | CT10: ='Offshore project'!CT348 -> 0 | CU10: ='Offshore project'!CU348 -> 0 | CV10: ='Offshore project'!CV348 -> 0
F12: Revenue share over offshore project life chart
F13: Government | G13: ='Offshore project'!H633 -> 6.95644084e+10 | H13: =G13 / SUM(G13:G15) -> 0.3234145216
F14: Contractor & Lender | G14: ='Offshore project'!H278 -> 7.10929189e+10 | H14: =G14 / SUM(G13:G15) -> 0.3305207776
F15: Costs | G15: ='Offshore project'!H111 -> 7.443631803e+10 | H15: =G15 / SUM(G13:G15) -> 0.3460647009
A17: Contribution of gas revenue to public finances
F19: Gas revenues chart
H20: Onshore | I20: =SUM(J20:CV20) -> 1314730899 | J20: ='Sector results'!J47 -> 28876500 | K20: ='Sector results'!K47 -> 31774500 | L20: ='Sector results'!L47 -> 36271575 | M20: ='Sector results'!M47 -> 36364725 | N20: ='Sector results'!N47 -> 33969735 | O20: ='Sector results'!O47 -> 38583661.5 | P20: ='Sector results'!P47 -> 47285010 | Q20: ='Sector results'!Q47 -> 49597717.5 | R20: ='Sector results'!R47 -> 61416900 | S20: ='Sector results'!S47 -> 65506185 | T20: ='Sector results'!T47 -> 72705127.5 | U20: ='Sector results'!U47 -> 80940622.5 | V20: ='Sector results'!V47 -> 84151710 | W20: ='Sector results'!W47 -> 84907260 | X20: ='Sector results'!X47 -> 90498330 | Y20: ='Sector results'!Y47 -> 93784972.5 | Z20: ='Sector results'!Z47 -> 78580305 | AA20: ='Sector results'!AA47 -> 26557582.5 | AB20: ='Sector results'!AB47 -> 26557582.5 | AC20: ='Sector results'!AC47 -> 26557582.5 | AD20: ='Sector results'!AD47 -> 26557582.5 | AE20: ='Sector results'!AE47 -> 26557582.5 | AF20: ='Sector results'!AF47 -> 26557582.5 | AG20: ='Sector results'!AG47 -> 26557582.5 | AH20: ='Sector results'!AH47 -> 27303300 | AI20: ='Sector results'!AI47 -> 27304335 | AJ20: ='Sector results'!AJ47 -> 27305370 | AK20: ='Sector results'!AK47 -> 27306405 | AL20: ='Sector results'!AL47 -> 4393575 | AM20: ='Sector results'!AM47 -> 0 | AN20: ='Sector results'!AN47 -> 0 | AO20: ='Sector results'!AO47 -> 0 | AP20: ='Sector results'!AP47 -> 0 | AQ20: ='Sector results'!AQ47 -> 0 | AR20: ='Sector results'!AR47 -> 0 | AS20: ='Sector results'!AS47 -> 0 | AT20: ='Sector results'!AT47 -> 0 | AU20: ='Sector results'!AU47 -> 0 | AV20: ='Sector results'!AV47 -> 0 | AW20: ='Sector results'!AW47 -> 0 | AX20: ='Sector results'!AX47 -> 0 | AY20: ='Sector results'!AY47 -> 0 | AZ20: ='Sector results'!AZ47 -> 0 | BA20: ='Sector results'!BA47 -> 0 | BB20: ='Sector results'!BB47 -> 0 | BC20: ='Sector results'!BC47 -> 0 | BD20: ='Sector results'!BD47 -> 0 | BE20: ='Sector results'!BE47 -> 0 | BF20: ='Sector results'!BF47 -> 0 | BG20: ='Sector results'!BG47 -> 0 | BH20: ='Sector results'!BH47 -> 0 | BI20: ='Sector results'!BI47 -> 0 | BJ20: ='Sector results'!BJ47 -> 0 | BK20: ='Sector results'!BK47 -> 0 | BL20: ='Sector results'!BL47 -> 0 | BM20: ='Sector results'!BM47 -> 0 | BN20: ='Sector results'!BN47 -> 0 | BO20: ='Sector results'!BO47 -> 0 | BP20: ='Sector results'!BP47 -> 0 | BQ20: ='Sector results'!BQ47 -> 0 | BR20: ='Sector results'!BR47 -> 0 | BS20: ='Sector results'!BS47 -> 0 | BT20: ='Sector results'!BT47 -> 0 | BU20: ='Sector results'!BU47 -> 0 | BV20: ='Sector results'!BV47 -> 0 | BW20: ='Sector results'!BW47 -> 0 | BX20: ='Sector results'!BX47 -> 0 | BY20: ='Sector results'!BY47 -> 0 | BZ20: ='Sector results'!BZ47 -> 0 | CA20: ='Sector results'!CA47 -> 0 | CB20: ='Sector results'!CB47 -> 0 | CC20: ='Sector results'!CC47 -> 0 | CD20: ='Sector results'!CD47 -> 0 | CE20: ='Sector results'!CE47 -> 0 | CF20: ='Sector results'!CF47 -> 0 | CG20: ='Sector results'!CG47 -> 0 | CH20: ='Sector results'!CH47 -> 0 | CI20: ='Sector results'!CI47 -> 0 | CJ20: ='Sector results'!CJ47 -> 0 | CK20: ='Sector results'!CK47 -> 0 | CL20: ='Sector results'!CL47 -> 0 | CM20: ='Sector results'!CM47 -> 0 | CN20: ='Sector results'!CN47 -> 0 | CO20: ='Sector results'!CO47 -> 0 | CP20: ='Sector results'!CP47 -> 0 | CQ20: ='Sector results'!CQ47 -> 0 | CR20: ='Sector results'!CR47 -> 0 | CS20: ='Sector results'!CS47 -> 0 | CT20: ='Sector results'!CT47 -> 0 | CU20: ='Sector results'!CU47 -> 0 | CV20: ='Sector results'!CV47 -> 0
H21: Offshore project | I21: =SUM(J21:CV21) -> 6.95644084e+10 | J21: ='Sector results'!J48 -> 365698.326 | K21: ='Sector results'!K48 -> 358527.7706 | L21: ='Sector results'!L48 -> 351497.8143 | M21: ='Sector results'!M48 -> 344605.7003 | N21: ='Sector results'!N48 -> 337848.7258 | O21: ='Sector results'!O48 -> 331224.241 | P21: ='Sector results'!P48 -> 324729.648 | Q21: ='Sector results'!Q48 -> 318362.4 | R21: ='Sector results'!R48 -> 312120 | S21: ='Sector results'!S48 -> 306000 | T21: ='Sector results'!T48 -> 300000 | U21: ='Sector results'!U48 -> 294117.6471 | V21: ='Sector results'!V48 -> 288350.6344 | W21: ='Sector results'!W48 -> 282696.7004 | X21: ='Sector results'!X48 -> 277153.6278 | Y21: ='Sector results'!Y48 -> 3449566.362 | Z21: ='Sector results'!Z48 -> 3381927.806 | AA21: ='Sector results'!AA48 -> 3315615.496 | AB21: ='Sector results'!AB48 -> 3250603.428 | AC21: ='Sector results'!AC48 -> 3186866.106 | AD21: ='Sector results'!AD48 -> 282262103 | AE21: ='Sector results'!AE48 -> 553840213.1 | AF21: ='Sector results'!AF48 -> 746842261.5 | AG21: ='Sector results'!AG48 -> 1087391294 | AH21: ='Sector results'!AH48 -> 1131469055 | AI21: ='Sector results'!AI48 -> 1222231530 | AJ21: ='Sector results'!AJ48 -> 1658446474 | AK21: ='Sector results'!AK48 -> 1661488186 | AL21: ='Sector results'!AL48 -> 1775095599 | AM21: ='Sector results'!AM48 -> 1849251741 | AN21: ='Sector results'!AN48 -> 1912935305 | AO21: ='Sector results'!AO48 -> 1934959458 | AP21: ='Sector results'!AP48 -> 2037318781 | AQ21: ='Sector results'!AQ48 -> 2284389511 | AR21: ='Sector results'!AR48 -> 2366151975 | AS21: ='Sector results'!AS48 -> 2692929684 | AT21: ='Sector results'!AT48 -> 2774871281 | AU21: ='Sector results'!AU48 -> 2795966686 | AV21: ='Sector results'!AV48 -> 2500079978 | AW21: ='Sector results'!AW48 -> 2454200706 | AX21: ='Sector results'!AX48 -> 2401781455 | AY21: ='Sector results'!AY48 -> 2361089703 | AZ21: ='Sector results'!AZ48 -> 2616942076 | BA21: ='Sector results'!BA48 -> 2660724239 | BB21: ='Sector results'!BB48 -> 2707559866 | BC21: ='Sector results'!BC48 -> 2770292676 | BD21: ='Sector results'!BD48 -> 2817404444 | BE21: ='Sector results'!BE48 -> 2820898804 | BF21: ='Sector results'!BF48 -> 2824533191 | BG21: ='Sector results'!BG48 -> 2719358578 | BH21: ='Sector results'!BH48 -> 1851859168 | BI21: ='Sector results'!BI48 -> 1490980469 | BJ21: ='Sector results'!BJ48 -> 1500486152 | BK21: ='Sector results'!BK48 -> 1508261593 | BL21: ='Sector results'!BL48 -> 768736647 | BM21: ='Sector results'!BM48 -> 0 | BN21: ='Sector results'!BN48 -> 0 | BO21: ='Sector results'!BO48 -> 0 | BP21: ='Sector results'!BP48 -> 0 | BQ21: ='Sector results'!BQ48 -> 0 | BR21: ='Sector results'!BR48 -> 0 | BS21: ='Sector results'!BS48 -> 0 | BT21: ='Sector results'!BT48 -> 0 | BU21: ='Sector results'!BU48 -> 0 | BV21: ='Sector results'!BV48 -> 0 | BW21: ='Sector results'!BW48 -> 0 | BX21: ='Sector results'!BX48 -> 0 | BY21: ='Sector results'!BY48 -> 0 | BZ21: ='Sector results'!BZ48 -> 0 | CA21: ='Sector results'!CA48 -> 0 | CB21: ='Sector results'!CB48 -> 0 | CC21: ='Sector results'!CC48 -> 0 | CD21: ='Sector results'!CD48 -> 0 | CE21: ='Sector results'!CE48 -> 0 | CF21: ='Sector results'!CF48 -> 0 | CG21: ='Sector results'!CG48 -> 0 | CH21: ='Sector results'!CH48 -> 0 | CI21: ='Sector results'!CI48 -> 0 | CJ21: ='Sector results'!CJ48 -> 0 | CK21: ='Sector results'!CK48 -> 0 | CL21: ='Sector results'!CL48 -> 0 | CM21: ='Sector results'!CM48 -> 0 | CN21: ='Sector results'!CN48 -> 0 | CO21: ='Sector results'!CO48 -> 0 | CP21: ='Sector results'!CP48 -> 0 | CQ21: ='Sector results'!CQ48 -> 0 | CR21: ='Sector results'!CR48 -> 0 | CS21: ='Sector results'!CS48 -> 0 | CT21: ='Sector results'!CT48 -> 0 | CU21: ='Sector results'!CU48 -> 0 | CV21: ='Sector results'!CV48 -> 0
F23: Table
I24: Current Year to End of Production | J24: =1*AND(J4>=Inputs!$C$3,J4<=MAX('Demand & production'!$F$317:$F$323)) -> 0 | K24: =1*AND(K4>=Inputs!$C$3,K4<=MAX('Demand & production'!$F$317:$F$323)) -> 0 | L24: =1*AND(L4>=Inputs!$C$3,L4<=MAX('Demand & production'!$F$317:$F$323)) -> 0 | M24: =1*AND(M4>=Inputs!$C$3,M4<=MAX('Demand & production'!$F$317:$F$323)) -> 0 | N24: =1*AND(N4>=Inputs!$C$3,N4<=MAX('Demand & production'!$F$317:$F$323)) -> 0 | O24: =1*AND(O4>=Inputs!$C$3,O4<=MAX('Demand & production'!$F$317:$F$323)) -> 0 | P24: =1*AND(P4>=Inputs!$C$3,P4<=MAX('Demand & production'!$F$317:$F$323)) -> 0 | Q24: =1*AND(Q4>=Inputs!$C$3,Q4<=MAX('Demand & production'!$F$317:$F$323)) -> 0 | R24: =1*AND(R4>=Inputs!$C$3,R4<=MAX('Demand & production'!$F$317:$F$323)) -> 0 | S24: =1*AND(S4>=Inputs!$C$3,S4<=MAX('Demand & production'!$F$317:$F$323)) -> 0 | T24: =1*AND(T4>=Inputs!$C$3,T4<=MAX('Demand & production'!$F$317:$F$323)) -> 1 | U24: =1*AND(U4>=Inputs!$C$3,U4<=MAX('Demand & production'!$F$317:$F$323)) -> 1 | V24: =1*AND(V4>=Inputs!$C$3,V4<=MAX('Demand & production'!$F$317:$F$323)) -> 1 | W24: =1*AND(W4>=Inputs!$C$3,W4<=MAX('Demand & production'!$F$317:$F$323)) -> 1 | X24: =1*AND(X4>=Inputs!$C$3,X4<=MAX('Demand & production'!$F$317:$F$323)) -> 1 | Y24: =1*AND(Y4>=Inputs!$C$3,Y4<=MAX('Demand & production'!$F$317:$F$323)) -> 1 | Z24: =1*AND(Z4>=Inputs!$C$3,Z4<=MAX('Demand & production'!$F$317:$F$323)) -> 1 | AA24: =1*AND(AA4>=Inputs!$C$3,AA4<=MAX('Demand & production'!$F$317:$F$323)) -> 1 | AB24: =1*AND(AB4>=Inputs!$C$3,AB4<=MAX('Demand & production'!$F$317:$F$323)) -> 1 | AC24: =1*AND(AC4>=Inputs!$C$3,AC4<=MAX('Demand & production'!$F$317:$F$323)) -> 1 | AD24: =1*AND(AD4>=Inputs!$C$3,AD4<=MAX('Demand & production'!$F$317:$F$323)) -> 1 | AE24: =1*AND(AE4>=Inputs!$C$3,AE4<=MAX('Demand & production'!$F$317:$F$323)) -> 1 | AF24: =1*AND(AF4>=Inputs!$C$3,AF4<=MAX('Demand & production'!$F$317:$F$323)) -> 1 | AG24: =1*AND(AG4>=Inputs!$C$3,AG4<=MAX('Demand & production'!$F$317:$F$323)) -> 1 | AH24: =1*AND(AH4>=Inputs!$C$3,AH4<=MAX('Demand & production'!$F$317:$F$323)) -> 1 | AI24: =1*AND(AI4>=Inputs!$C$3,AI4<=MAX('Demand & production'!$F$317:$F$323)) -> 1 | AJ24: =1*AND(AJ4>=Inputs!$C$3,AJ4<=MAX('Demand & production'!$F$317:$F$323)) -> 1 | AK24: =1*AND(AK4>=Inputs!$C$3,AK4<=MAX('Demand & production'!$F$317:$F$323)) -> 1 | AL24: =1*AND(AL4>=Inputs!$C$3,AL4<=MAX('Demand & production'!$F$317:$F$323)) -> 1 | AM24: =1*AND(AM4>=Inputs!$C$3,AM4<=MAX('Demand & production'!$F$317:$F$323)) -> 1 | AN24: =1*AND(AN4>=Inputs!$C$3,AN4<=MAX('Demand & production'!$F$317:$F$323)) -> 1 | AO24: =1*AND(AO4>=Inputs!$C$3,AO4<=MAX('Demand & production'!$F$317:$F$323)) -> 1 | AP24: =1*AND(AP4>=Inputs!$C$3,AP4<=MAX('Demand & production'!$F$317:$F$323)) -> 1 | AQ24: =1*AND(AQ4>=Inputs!$C$3,AQ4<=MAX('Demand & production'!$F$317:$F$323)) -> 1 | AR24: =1*AND(AR4>=Inputs!$C$3,AR4<=MAX('Demand & production'!$F$317:$F$323)) -> 1 | AS24: =1*AND(AS4>=Inputs!$C$3,AS4<=MAX('Demand & production'!$F$317:$F$323)) -> 1 | AT24: =1*AND(AT4>=Inputs!$C$3,AT4<=MAX('Demand & production'!$F$317:$F$323)) -> 1 | AU24: =1*AND(AU4>=Inputs!$C$3,AU4<=MAX('Demand & production'!$F$317:$F$323)) -> 1 | AV24: =1*AND(AV4>=Inputs!$C$3,AV4<=MAX('Demand & production'!$F$317:$F$323)) -> 1 | AW24: =1*AND(AW4>=Inputs!$C$3,AW4<=MAX('Demand & production'!$F$317:$F$323)) -> 1 | AX24: =1*AND(AX4>=Inputs!$C$3,AX4<=MAX('Demand & production'!$F$317:$F$323)) -> 1 | AY24: =1*AND(AY4>=Inputs!$C$3,AY4<=MAX('Demand & production'!$F$317:$F$323)) -> 1 | AZ24: =1*AND(AZ4>=Inputs!$C$3,AZ4<=MAX('Demand & production'!$F$317:$F$323)) -> 1 | BA24: =1*AND(BA4>=Inputs!$C$3,BA4<=MAX('Demand & production'!$F$317:$F$323)) -> 1 | BB24: =1*AND(BB4>=Inputs!$C$3,BB4<=MAX('Demand & production'!$F$317:$F$323)) -> 1 | BC24: =1*AND(BC4>=Inputs!$C$3,BC4<=MAX('Demand & production'!$F$317:$F$323)) -> 1 | BD24: =1*AND(BD4>=Inputs!$C$3,BD4<=MAX('Demand & production'!$F$317:$F$323)) -> 1 | BE24: =1*AND(BE4>=Inputs!$C$3,BE4<=MAX('Demand & production'!$F$317:$F$323)) -> 1 | BF24: =1*AND(BF4>=Inputs!$C$3,BF4<=MAX('Demand & production'!$F$317:$F$323)) -> 1 | BG24: =1*AND(BG4>=Inputs!$C$3,BG4<=MAX('Demand & production'!$F$317:$F$323)) -> 1 | BH24: =1*AND(BH4>=Inputs!$C$3,BH4<=MAX('Demand & production'!$F$317:$F$323)) -> 1 | BI24: =1*AND(BI4>=Inputs!$C$3,BI4<=MAX('Demand & production'!$F$317:$F$323)) -> 1 | BJ24: =1*AND(BJ4>=Inputs!$C$3,BJ4<=MAX('Demand & production'!$F$317:$F$323)) -> 1 | BK24: =1*AND(BK4>=Inputs!$C$3,BK4<=MAX('Demand & production'!$F$317:$F$323)) -> 1 | BL24: =1*AND(BL4>=Inputs!$C$3,BL4<=MAX('Demand & production'!$F$317:$F$323)) -> 1 | BM24: =1*AND(BM4>=Inputs!$C$3,BM4<=MAX('Demand & production'!$F$317:$F$323)) -> 0 | BN24: =1*AND(BN4>=Inputs!$C$3,BN4<=MAX('Demand & production'!$F$317:$F$323)) -> 0 | BO24: =1*AND(BO4>=Inputs!$C$3,BO4<=MAX('Demand & production'!$F$317:$F$323)) -> 0 | BP24: =1*AND(BP4>=Inputs!$C$3,BP4<=MAX('Demand & production'!$F$317:$F$323)) -> 0 | BQ24: =1*AND(BQ4>=Inputs!$C$3,BQ4<=MAX('Demand & production'!$F$317:$F$323)) -> 0 | BR24: =1*AND(BR4>=Inputs!$C$3,BR4<=MAX('Demand & production'!$F$317:$F$323)) -> 0 | BS24: =1*AND(BS4>=Inputs!$C$3,BS4<=MAX('Demand & production'!$F$317:$F$323)) -> 0 | BT24: =1*AND(BT4>=Inputs!$C$3,BT4<=MAX('Demand & production'!$F$317:$F$323)) -> 0 | BU24: =1*AND(BU4>=Inputs!$C$3,BU4<=MAX('Demand & production'!$F$317:$F$323)) -> 0 | BV24: =1*AND(BV4>=Inputs!$C$3,BV4<=MAX('Demand & production'!$F$317:$F$323)) -> 0 | BW24: =1*AND(BW4>=Inputs!$C$3,BW4<=MAX('Demand & production'!$F$317:$F$323)) -> 0 | BX24: =1*AND(BX4>=Inputs!$C$3,BX4<=MAX('Demand & production'!$F$317:$F$323)) -> 0 | BY24: =1*AND(BY4>=Inputs!$C$3,BY4<=MAX('Demand & production'!$F$317:$F$323)) -> 0 | BZ24: =1*AND(BZ4>=Inputs!$C$3,BZ4<=MAX('Demand & production'!$F$317:$F$323)) -> 0 | CA24: =1*AND(CA4>=Inputs!$C$3,CA4<=MAX('Demand & production'!$F$317:$F$323)) -> 0 | CB24: =1*AND(CB4>=Inputs!$C$3,CB4<=MAX('Demand & production'!$F$317:$F$323)) -> 0 | CC24: =1*AND(CC4>=Inputs!$C$3,CC4<=MAX('Demand & production'!$F$317:$F$323)) -> 0 | CD24: =1*AND(CD4>=Inputs!$C$3,CD4<=MAX('Demand & production'!$F$317:$F$323)) -> 0 | CE24: =1*AND(CE4>=Inputs!$C$3,CE4<=MAX('Demand & production'!$F$317:$F$323)) -> 0 | CF24: =1*AND(CF4>=Inputs!$C$3,CF4<=MAX('Demand & production'!$F$317:$F$323)) -> 0 | CG24: =1*AND(CG4>=Inputs!$C$3,CG4<=MAX('Demand & production'!$F$317:$F$323)) -> 0 | CH24: =1*AND(CH4>=Inputs!$C$3,CH4<=MAX('Demand & production'!$F$317:$F$323)) -> 0 | CI24: =1*AND(CI4>=Inputs!$C$3,CI4<=MAX('Demand & production'!$F$317:$F$323)) -> 0 | CJ24: =1*AND(CJ4>=Inputs!$C$3,CJ4<=MAX('Demand & production'!$F$317:$F$323)) -> 0 | CK24: =1*AND(CK4>=Inputs!$C$3,CK4<=MAX('Demand & production'!$F$317:$F$323)) -> 0 | CL24: =1*AND(CL4>=Inputs!$C$3,CL4<=MAX('Demand & production'!$F$317:$F$323)) -> 0 | CM24: =1*AND(CM4>=Inputs!$C$3,CM4<=MAX('Demand & production'!$F$317:$F$323)) -> 0 | CN24: =1*AND(CN4>=Inputs!$C$3,CN4<=MAX('Demand & production'!$F$317:$F$323)) -> 0 | CO24: =1*AND(CO4>=Inputs!$C$3,CO4<=MAX('Demand & production'!$F$317:$F$323)) -> 0 | CP24: =1*AND(CP4>=Inputs!$C$3,CP4<=MAX('Demand & production'!$F$317:$F$323)) -> 0 | CQ24: =1*AND(CQ4>=Inputs!$C$3,CQ4<=MAX('Demand & production'!$F$317:$F$323)) -> 0 | CR24: =1*AND(CR4>=Inputs!$C$3,CR4<=MAX('Demand & production'!$F$317:$F$323)) -> 0 | CS24: =1*AND(CS4>=Inputs!$C$3,CS4<=MAX('Demand & production'!$F$317:$F$323)) -> 0 | CT24: =1*AND(CT4>=Inputs!$C$3,CT4<=MAX('Demand & production'!$F$317:$F$323)) -> 0 | CU24: =1*AND(CU4>=Inputs!$C$3,CU4<=MAX('Demand & production'!$F$317:$F$323)) -> 0 | CV24: =1*AND(CV4>=Inputs!$C$3,CV4<=MAX('Demand & production'!$F$317:$F$323)) -> 0
I25: LNG Production Phase | J25: ='Offshore project'!J97 -> 0 | K25: ='Offshore project'!K97 -> 0 | L25: ='Offshore project'!L97 -> 0 | M25: ='Offshore project'!M97 -> 0 | N25: ='Offshore project'!N97 -> 0 | O25: ='Offshore project'!O97 -> 0 | P25: ='Offshore project'!P97 -> 0 | Q25: ='Offshore project'!Q97 -> 0 | R25: ='Offshore project'!R97 -> 0 | S25: ='Offshore project'!S97 -> 0 | T25: ='Offshore project'!T97 -> 0 | U25: ='Offshore project'!U97 -> 0 | V25: ='Offshore project'!V97 -> 0 | W25: ='Offshore project'!W97 -> 0 | X25: ='Offshore project'!X97 -> 0 | Y25: ='Offshore project'!Y97 -> 0 | Z25: ='Offshore project'!Z97 -> 0 | AA25: ='Offshore project'!AA97 -> 0 | AB25: ='Offshore project'!AB97 -> 0 | AC25: ='Offshore project'!AC97 -> 0 | AD25: ='Offshore project'!AD97 -> 1 | AE25: ='Offshore project'!AE97 -> 1 | AF25: ='Offshore project'!AF97 -> 1 | AG25: ='Offshore project'!AG97 -> 1 | AH25: ='Offshore project'!AH97 -> 1 | AI25: ='Offshore project'!AI97 -> 1 | AJ25: ='Offshore project'!AJ97 -> 1 | AK25: ='Offshore project'!AK97 -> 1 | AL25: ='Offshore project'!AL97 -> 1 | AM25: ='Offshore project'!AM97 -> 1 | AN25: ='Offshore project'!AN97 -> 1 | AO25: ='Offshore project'!AO97 -> 1 | AP25: ='Offshore project'!AP97 -> 1 | AQ25: ='Offshore project'!AQ97 -> 1 | AR25: ='Offshore project'!AR97 -> 1 | AS25: ='Offshore project'!AS97 -> 1 | AT25: ='Offshore project'!AT97 -> 1 | AU25: ='Offshore project'!AU97 -> 1 | AV25: ='Offshore project'!AV97 -> 1 | AW25: ='Offshore project'!AW97 -> 1 | AX25: ='Offshore project'!AX97 -> 1 | AY25: ='Offshore project'!AY97 -> 1 | AZ25: ='Offshore project'!AZ97 -> 1 | BA25: ='Offshore project'!BA97 -> 1 | BB25: ='Offshore project'!BB97 -> 1 | BC25: ='Offshore project'!BC97 -> 1 | BD25: ='Offshore project'!BD97 -> 1 | BE25: ='Offshore project'!BE97 -> 1 | BF25: ='Offshore project'!BF97 -> 1 | BG25: ='Offshore project'!BG97 -> 1 | BH25: ='Offshore project'!BH97 -> 1 | BI25: ='Offshore project'!BI97 -> 1 | BJ25: ='Offshore project'!BJ97 -> 1 | BK25: ='Offshore project'!BK97 -> 1 | BL25: ='Offshore project'!BL97 -> 1 | BM25: ='Offshore project'!BM97 -> 0 | BN25: ='Offshore project'!BN97 -> 0 | BO25: ='Offshore project'!BO97 -> 0 | BP25: ='Offshore project'!BP97 -> 0 | BQ25: ='Offshore project'!BQ97 -> 0 | BR25: ='Offshore project'!BR97 -> 0 | BS25: ='Offshore project'!BS97 -> 0 | BT25: ='Offshore project'!BT97 -> 0 | BU25: ='Offshore project'!BU97 -> 0 | BV25: ='Offshore project'!BV97 -> 0 | BW25: ='Offshore project'!BW97 -> 0 | BX25: ='Offshore project'!BX97 -> 0 | BY25: ='Offshore project'!BY97 -> 0 | BZ25: ='Offshore project'!BZ97 -> 0 | CA25: ='Offshore project'!CA97 -> 0 | CB25: ='Offshore project'!CB97 -> 0 | CC25: ='Offshore project'!CC97 -> 0 | CD25: ='Offshore project'!CD97 -> 0 | CE25: ='Offshore project'!CE97 -> 0 | CF25: ='Offshore project'!CF97 -> 0 | CG25: ='Offshore project'!CG97 -> 0 | CH25: ='Offshore project'!CH97 -> 0 | CI25: ='Offshore project'!CI97 -> 0 | CJ25: ='Offshore project'!CJ97 -> 0 | CK25: ='Offshore project'!CK97 -> 0 | CL25: ='Offshore project'!CL97 -> 0 | CM25: ='Offshore project'!CM97 -> 0 | CN25: ='Offshore project'!CN97 -> 0 | CO25: ='Offshore project'!CO97 -> 0 | CP25: ='Offshore project'!CP97 -> 0 | CQ25: ='Offshore project'!CQ97 -> 0 | CR25: ='Offshore project'!CR97 -> 0 | CS25: ='Offshore project'!CS97 -> 0 | CT25: ='Offshore project'!CT97 -> 0 | CU25: ='Offshore project'!CU97 -> 0 | CV25: ='Offshore project'!CV97 -> 0
I26: Population | J26: ='Public finances'!J9 -> 44294084.58 | K26: ='Public finances'!K9 -> 45441301.37 | L26: ='Public finances'!L9 -> 46618231.08 | M26: ='Public finances'!M9 -> 47825643.26 | N26: ='Public finances'!N9 -> 49064327.42 | O26: ='Public finances'!O9 -> 50335093.5 | P26: ='Public finances'!P9 -> 51638772.43 | Q26: ='Public finances'!Q9 -> 52976216.63 | R26: ='Public finances'!R9 -> 54348300.64 | S26: ='Public finances'!S9 -> 55755921.63 | T26: ='Public finances'!T9 -> 57200000 | U26: ='Public finances'!U9 -> 58681480 | V26: ='Public finances'!V9 -> 60201330.33 | W26: ='Public finances'!W9 -> 61760544.79 | X26: ='Public finances'!X9 -> 63360142.9 | Y26: ='Public finances'!Y9 -> 65001170.6 | Z26: ='Public finances'!Z9 -> 66684700.92 | AA26: ='Public finances'!AA9 -> 68411834.67 | AB26: ='Public finances'!AB9 -> 70183701.19 | AC26: ='Public finances'!AC9 -> 72001459.05 | AD26: ='Public finances'!AD9 -> 73866296.84 | AE26: ='Public finances'!AE9 -> 75779433.93 | AF26: ='Public finances'!AF9 -> 77742121.27 | AG26: ='Public finances'!AG9 -> 79755642.21 | AH26: ='Public finances'!AH9 -> 81821313.34 | AI26: ='Public finances'!AI9 -> 83940485.36 | AJ26: ='Public finances'!AJ9 -> 86114543.93 | AK26: ='Public finances'!AK9 -> 88344910.61 | AL26: ='Public finances'!AL9 -> 90633043.8 | AM26: ='Public finances'!AM9 -> 92980439.63 | AN26: ='Public finances'!AN9 -> 95388633.02 | AO26: ='Public finances'!AO9 -> 97859198.61 | AP26: ='Public finances'!AP9 -> 100393751.9 | AQ26: ='Public finances'!AQ9 -> 102993950 | AR26: ='Public finances'!AR9 -> 105661493.3 | AS26: ='Public finances'!AS9 -> 108398126 | AT26: ='Public finances'!AT9 -> 111205637.5 | AU26: ='Public finances'!AU9 -> 114085863.5 | AV26: ='Public finances'!AV9 -> 117040687.4 | AW26: ='Public finances'!AW9 -> 120072041.2 | AX26: ='Public finances'!AX9 -> 123181907 | AY26: ='Public finances'!AY9 -> 126372318.4 | AZ26: ='Public finances'!AZ9 -> 129645361.5 | BA26: ='Public finances'!BA9 -> 133003176.3 | BB26: ='Public finances'!BB9 -> 136447958.6 | BC26: ='Public finances'!BC9 -> 139981960.7 | BD26: ='Public finances'!BD9 -> 143607493.5 | BE26: ='Public finances'!BE9 -> 147326927.6 | BF26: ='Public finances'!BF9 -> 151142695 | BG26: ='Public finances'!BG9 -> 155057290.8 | BH26: ='Public finances'!BH9 -> 159073274.6 | BI26: ='Public finances'!BI9 -> 163193272.5 | BJ26: ='Public finances'!BJ9 -> 167419978.2 | BK26: ='Public finances'!BK9 -> 171756155.6 | BL26: ='Public finances'!BL9 -> 176204640.1 | BM26: ='Public finances'!BM9 -> 180768340.3 | BN26: ='Public finances'!BN9 -> 185450240.3 | BO26: ='Public finances'!BO9 -> 190253401.5 | BP26: ='Public finances'!BP9 -> 195180964.6 | BQ26: ='Public finances'!BQ9 -> 200236151.6 | BR26: ='Public finances'!BR9 -> 205422267.9 | BS26: ='Public finances'!BS9 -> 210742704.6 | BT26: ='Public finances'!BT9 -> 216200940.7 | BU26: ='Public finances'!BU9 -> 221800545 | BV26: ='Public finances'!BV9 -> 227545179.2 | BW26: ='Public finances'!BW9 -> 233438599.3 | BX26: ='Public finances'!BX9 -> 239484659 | BY26: ='Public finances'!BY9 -> 245687311.7 | BZ26: ='Public finances'!BZ9 -> 252050613.1 | CA26: ='Public finances'!CA9 -> 258578723.9 | CB26: ='Public finances'!CB9 -> 265275912.9 | CC26: ='Public finances'!CC9 -> 272146559 | CD26: ='Public finances'!CD9 -> 279195154.9 | CE26: ='Public finances'!CE9 -> 286426309.4 | CF26: ='Public finances'!CF9 -> 293844750.8 | CG26: ='Public finances'!CG9 -> 301455329.9 | CH26: ='Public finances'!CH9 -> 309263022.9 | CI26: ='Public finances'!CI9 -> 317272935.2 | CJ26: ='Public finances'!CJ9 -> 325490304.3 | CK26: ='Public finances'!CK9 -> 333920503.1 | CL26: ='Public finances'!CL9 -> 342569044.2 | CM26: ='Public finances'!CM9 -> 351441582.4 | CN26: ='Public finances'!CN9 -> 360543919.4 | CO26: ='Public finances'!CO9 -> 369882006.9 | CP26: ='Public finances'!CP9 -> 379461950.9 | CQ26: ='Public finances'!CQ9 -> 389290015.4 | CR26: ='Public finances'!CR9 -> 399372626.8 | CS26: ='Public finances'!CS9 -> 409716377.8 | CT26: ='Public finances'!CT9 -> 420328032 | CU26: ='Public finances'!CU9 -> 431214528.1 | CV26: ='Public finances'!CV9 -> 442382984.3
I27: Total Government Revenue | J27: =('Public finances'!J53 * 10^9) + 'Sector results'!J50 -> 5184263249 | K27: =('Public finances'!K53 * 10^9) + 'Sector results'!K50 -> 5521570944 | L27: =('Public finances'!L53 * 10^9) + 'Sector results'!L50 -> 6152282587 | M27: =('Public finances'!M53 * 10^9) + 'Sector results'!M50 -> 6274168972 | N27: =('Public finances'!N53 * 10^9) + 'Sector results'!N50 -> 6826919432 | O27: =('Public finances'!O53 * 10^9) + 'Sector results'!O50 -> 6459347087 | P27: =('Public finances'!P53 * 10^9) + 'Sector results'!P50 -> 7253305644 | Q27: =('Public finances'!Q53 * 10^9) + 'Sector results'!Q50 -> 8720346631 | R27: =('Public finances'!R53 * 10^9) + 'Sector results'!R50 -> 9082747786 | S27: =('Public finances'!S53 * 10^9) + 'Sector results'!S50 -> 8699011798 | T27: =('Public finances'!T53 * 10^9) + 'Sector results'!T50 -> 9407759127 | U27: =('Public finances'!U53 * 10^9) + 'Sector results'!U50 -> 9912427930 | V27: =('Public finances'!V53 * 10^9) + 'Sector results'!V50 -> 1.043954632e+10 | W27: =('Public finances'!W53 * 10^9) + 'Sector results'!W50 -> 1.099319253e+10 | X27: =('Public finances'!X53 * 10^9) + 'Sector results'!X50 -> 1.158225001e+10 | Y27: =('Public finances'!Y53 * 10^9) + 'Sector results'!Y50 -> 1.220443666e+10 | Z27: =('Public finances'!Z53 * 10^9) + 'Sector results'!Z50 -> 1.283892e+10 | AA27: =('Public finances'!AA53 * 10^9) + 'Sector results'!AA50 -> 1.347248458e+10 | AB27: =('Public finances'!AB53 * 10^9) + 'Sector results'!AB50 -> 1.419594392e+10 | AC27: =('Public finances'!AC53 * 10^9) + 'Sector results'!AC50 -> 1.495935656e+10 | AD27: =('Public finances'!AD53 * 10^9) + 'Sector results'!AD50 -> 1.6044056e+10 | AE27: =('Public finances'!AE53 * 10^9) + 'Sector results'!AE50 -> 1.716572268e+10 | AF27: =('Public finances'!AF53 * 10^9) + 'Sector results'!AF50 -> 1.825572166e+10 | AG27: =('Public finances'!AG53 * 10^9) + 'Sector results'!AG50 -> 1.954275442e+10 | AH27: =('Public finances'!AH53 * 10^9) + 'Sector results'!AH50 -> 2.058626868e+10 | AI27: =('Public finances'!AI53 * 10^9) + 'Sector results'!AI50 -> 2.173079989e+10 | AJ27: =('Public finances'!AJ53 * 10^9) + 'Sector results'!AJ50 -> 2.327888824e+10 | AK27: =('Public finances'!AK53 * 10^9) + 'Sector results'!AK50 -> 2.44551023e+10 | AL27: =('Public finances'!AL53 * 10^9) + 'Sector results'!AL50 -> 2.578363714e+10 | AM27: =('Public finances'!AM53 * 10^9) + 'Sector results'!AM50 -> 2.715946425e+10 | AN27: =('Public finances'!AN53 * 10^9) + 'Sector results'!AN50 -> 2.860118753e+10 | AO27: =('Public finances'!AO53 * 10^9) + 'Sector results'!AO50 -> 3.007718381e+10 | AP27: =('Public finances'!AP53 * 10^9) + 'Sector results'!AP50 -> 3.171362255e+10 | AQ27: =('Public finances'!AQ53 * 10^9) + 'Sector results'!AQ50 -> 3.357928449e+10 | AR27: =('Public finances'!AR53 * 10^9) + 'Sector results'!AR50 -> 3.536879673e+10 | AS27: =('Public finances'!AS53 * 10^9) + 'Sector results'!AS50 -> 3.749738515e+10 | AT27: =('Public finances'!AT53 * 10^9) + 'Sector results'!AT50 -> 3.94803704e+10 | AU27: =('Public finances'!AU53 * 10^9) + 'Sector results'!AU50 -> 4.150719887e+10 | AV27: =('Public finances'!AV53 * 10^9) + 'Sector results'!AV50 -> 4.332749123e+10 | AW27: =('Public finances'!AW53 * 10^9) + 'Sector results'!AW50 -> 4.551431027e+10 | AX27: =('Public finances'!AX53 * 10^9) + 'Sector results'!AX50 -> 4.781751583e+10 | AY27: =('Public finances'!AY53 * 10^9) + 'Sector results'!AY50 -> 5.026213507e+10 | AZ27: =('Public finances'!AZ53 * 10^9) + 'Sector results'!AZ50 -> 5.314011608e+10 | BA27: =('Public finances'!BA53 * 10^9) + 'Sector results'!BA50 -> 5.595036825e+10 | BB27: =('Public finances'!BB53 * 10^9) + 'Sector results'!BB50 -> 5.891595277e+10 | BC27: =('Public finances'!BC53 * 10^9) + 'Sector results'!BC50 -> 6.205808748e+10 | BD27: =('Public finances'!BD53 * 10^9) + 'Sector results'!BD50 -> 6.535408885e+10 | BE27: =('Public finances'!BE53 * 10^9) + 'Sector results'!BE50 -> 6.878528114e+10 | BF27: =('Public finances'!BF53 * 10^9) + 'Sector results'!BF50 -> 7.240525503e+10 | BG27: =('Public finances'!BG53 * 10^9) + 'Sector results'!BG50 -> 7.611543561e+10 | BH27: =('Public finances'!BH53 * 10^9) + 'Sector results'!BH50 -> 7.927325177e+10 | BI27: =('Public finances'!BI53 * 10^9) + 'Sector results'!BI50 -> 8.315919569e+10 | BJ27: =('Public finances'!BJ53 * 10^9) + 'Sector results'!BJ50 -> 8.764921277e+10 | BK27: =('Public finances'!BK53 * 10^9) + 'Sector results'!BK50 -> 9.238404015e+10 | BL27: =('Public finances'!BL53 * 10^9) + 'Sector results'!BL50 -> 9.663166627e+10 | BM27: =('Public finances'!BM53 * 10^9) + 'Sector results'!BM50 -> 1.011244842e+11 | BN27: =('Public finances'!BN53 * 10^9) + 'Sector results'!BN50 -> 1.066755333e+11 | BO27: =('Public finances'!BO53 * 10^9) + 'Sector results'!BO50 -> 1.125319981e+11 | BP27: =('Public finances'!BP53 * 10^9) + 'Sector results'!BP50 -> 1.187106753e+11 | BQ27: =('Public finances'!BQ53 * 10^9) + 'Sector results'!BQ50 -> 1.252292856e+11 | BR27: =('Public finances'!BR53 * 10^9) + 'Sector results'!BR50 -> 1.321065243e+11 | BS27: =('Public finances'!BS53 * 10^9) + 'Sector results'!BS50 -> 1.393621148e+11 | BT27: =('Public finances'!BT53 * 10^9) + 'Sector results'!BT50 -> 1.470168655e+11 | BU27: =('Public finances'!BU53 * 10^9) + 'Sector results'!BU50 -> 1.550927291e+11 | BV27: =('Public finances'!BV53 * 10^9) + 'Sector results'!BV50 -> 1.636128658e+11 | BW27: =('Public finances'!BW53 * 10^9) + 'Sector results'!BW50 -> 1.726017097e+11 | BX27: =('Public finances'!BX53 * 10^9) + 'Sector results'!BX50 -> 1.820850387e+11 | BY27: =('Public finances'!BY53 * 10^9) + 'Sector results'!BY50 -> 1.920900484e+11 | BZ27: =('Public finances'!BZ53 * 10^9) + 'Sector results'!BZ50 -> 2.026454303e+11 | CA27: =('Public finances'!CA53 * 10^9) + 'Sector results'!CA50 -> 2.137814539e+11 | CB27: =('Public finances'!CB53 * 10^9) + 'Sector results'!CB50 -> 2.255300535e+11 | CC27: =('Public finances'!CC53 * 10^9) + 'Sector results'!CC50 -> 2.3792492e+11 | CD27: =('Public finances'!CD53 * 10^9) + 'Sector results'!CD50 -> 2.51001597e+11 | CE27: =('Public finances'!CE53 * 10^9) + 'Sector results'!CE50 -> 2.647975831e+11 | CF27: =('Public finances'!CF53 * 10^9) + 'Sector results'!CF50 -> 2.793524395e+11 | CG27: =('Public finances'!CG53 * 10^9) + 'Sector results'!CG50 -> 2.947079031e+11 | CH27: =('Public finances'!CH53 * 10^9) + 'Sector results'!CH50 -> 3.109080064e+11 | CI27: =('Public finances'!CI53 * 10^9) + 'Sector results'!CI50 -> 3.279992037e+11 | CJ27: =('Public finances'!CJ53 * 10^9) + 'Sector results'!CJ50 -> 3.460305043e+11 | CK27: =('Public finances'!CK53 * 10^9) + 'Sector results'!CK50 -> 3.65053613e+11 | CL27: =('Public finances'!CL53 * 10^9) + 'Sector results'!CL50 -> 3.851230783e+11 | CM27: =('Public finances'!CM53 * 10^9) + 'Sector results'!CM50 -> 4.062964491e+11 | CN27: =('Public finances'!CN53 * 10^9) + 'Sector results'!CN50 -> 4.286344392e+11 | CO27: =('Public finances'!CO53 * 10^9) + 'Sector results'!CO50 -> 4.52201102e+11 | CP27: =('Public finances'!CP53 * 10^9) + 'Sector results'!CP50 -> 4.770640135e+11 | CQ27: =('Public finances'!CQ53 * 10^9) + 'Sector results'!CQ50 -> 5.032944666e+11 | CR27: =('Public finances'!CR53 * 10^9) + 'Sector results'!CR50 -> 5.309676753e+11 | CS27: =('Public finances'!CS53 * 10^9) + 'Sector results'!CS50 -> 5.601629904e+11 | CT27: =('Public finances'!CT53 * 10^9) + 'Sector results'!CT50 -> 5.909641269e+11 | CU27: =('Public finances'!CU53 * 10^9) + 'Sector results'!CU50 -> 6.234594042e+11 | CV27: =('Public finances'!CV53 * 10^9) + 'Sector results'!CV50 -> 6.577419992e+11
I28: GDP | J28: ='Public finances'!J21*10^9 -> 2.514644415e+10 | K28: ='Public finances'!K21*10^9 -> 2.601629344e+10 | L28: ='Public finances'!L21*10^9 -> 2.767266748e+10 | M28: ='Public finances'!M21*10^9 -> 4.024167511e+10 | N28: ='Public finances'!N21*10^9 -> 4.326504362e+10 | O28: ='Public finances'!O21*10^9 -> 4.586023001e+10 | P28: ='Public finances'!P21*10^9 -> 4.868713449e+10 | Q28: ='Public finances'!Q21*10^9 -> 5.557968302e+10 | R28: ='Public finances'!R21*10^9 -> 5.934880767e+10 | S28: ='Public finances'!S21*10^9 -> 6.255941748e+10 | T28: ='Public finances'!T21*10^9 -> 6.5278e+10 | U28: ='Public finances'!U21*10^9 -> 6.914348812e+10 | V28: ='Public finances'!V21*10^9 -> 7.294216176e+10 | W28: ='Public finances'!W21*10^9 -> 7.694081316e+10 | X28: ='Public finances'!X21*10^9 -> 8.117568987e+10 | Y28: ='Public finances'!Y21*10^9 -> 8.56346042e+10 | Z28: ='Public finances'!Z21*10^9 -> 9.027527378e+10 | AA28: ='Public finances'!AA21*10^9 -> 9.504884206e+10 | AB28: ='Public finances'!AB21*10^9 -> 1.002715621e+11 | AC28: ='Public finances'!AC21*10^9 -> 1.057815318e+11 | AD28: ='Public finances'!AD21*10^9 -> 1.117277612e+11 | AE28: ='Public finances'!AE21*10^9 -> 1.214704418e+11 | AF28: ='Public finances'!AF21*10^9 -> 1.28165514e+11 | AG28: ='Public finances'!AG21*10^9 -> 1.349914002e+11 | AH28: ='Public finances'!AH21*10^9 -> 1.421952456e+11 | AI28: ='Public finances'!AI21*10^9 -> 1.497592783e+11 | AJ28: ='Public finances'!AJ21*10^9 -> 1.577745198e+11 | AK28: ='Public finances'!AK21*10^9 -> 1.657662338e+11 | AL28: ='Public finances'!AL21*10^9 -> 1.741594147e+11 | AM28: ='Public finances'!AM21*10^9 -> 1.835563007e+11 | AN28: ='Public finances'!AN21*10^9 -> 1.934674863e+11 | AO28: ='Public finances'!AO21*10^9 -> 2.04416449e+11 | AP28: ='Public finances'!AP21*10^9 -> 2.157025275e+11 | AQ28: ='Public finances'!AQ21*10^9 -> 2.27580414e+11 | AR28: ='Public finances'!AR21*10^9 -> 2.398880428e+11 | AS28: ='Public finances'!AS21*10^9 -> 2.528654688e+11 | AT28: ='Public finances'!AT21*10^9 -> 2.665566532e+11 | AU28: ='Public finances'!AU21*10^9 -> 2.810008528e+11 | AV28: ='Public finances'!AV21*10^9 -> 2.953250419e+11 | AW28: ='Public finances'!AW21*10^9 -> 3.114017971e+11 | AX28: ='Public finances'!AX21*10^9 -> 3.283467354e+11 | AY28: ='Public finances'!AY21*10^9 -> 3.462496389e+11 | AZ28: ='Public finances'!AZ21*10^9 -> 3.660490369e+11 | BA28: ='Public finances'!BA21*10^9 -> 3.859608168e+11 | BB28: ='Public finances'!BB21*10^9 -> 4.069769937e+11 | BC28: ='Public finances'!BC21*10^9 -> 4.291443119e+11 | BD28: ='Public finances'!BD21*10^9 -> 4.525308327e+11 | BE28: ='Public finances'!BE21*10^9 -> 4.772036122e+11 | BF28: ='Public finances'!BF21*10^9 -> 5.032333945e+11 | BG28: ='Public finances'!BG21*10^9 -> 5.303583543e+11 | BH28: ='Public finances'!BH21*10^9 -> 5.591147273e+11 | BI28: ='Public finances'!BI21*10^9 -> 5.893802584e+11 | BJ28: ='Public finances'!BJ21*10^9 -> 6.216335599e+11 | BK28: ='Public finances'!BK21*10^9 -> 6.556556947e+11 | BL28: ='Public finances'!BL21*10^9 -> 6.899001964e+11 | BM28: ='Public finances'!BM21*10^9 -> 7.263191979e+11 | BN28: ='Public finances'!BN21*10^9 -> 7.662667538e+11 | BO28: ='Public finances'!BO21*10^9 -> 8.084114252e+11 | BP28: ='Public finances'!BP21*10^9 -> 8.528740536e+11 | BQ28: ='Public finances'!BQ21*10^9 -> 8.997821265e+11 | BR28: ='Public finances'!BR21*10^9 -> 9.492701435e+11 | BS28: ='Public finances'!BS21*10^9 -> 1.001480001e+12 | BT28: ='Public finances'!BT21*10^9 -> 1.056561401e+12 | BU28: ='Public finances'!BU21*10^9 -> 1.114672279e+12 | BV28: ='Public finances'!BV21*10^9 -> 1.175979254e+12 | BW28: ='Public finances'!BW21*10^9 -> 1.240658113e+12 | BX28: ='Public finances'!BX21*10^9 -> 1.308894309e+12 | BY28: ='Public finances'!BY21*10^9 -> 1.380883496e+12 | BZ28: ='Public finances'!BZ21*10^9 -> 1.456832088e+12 | CA28: ='Public finances'!CA21*10^9 -> 1.536957853e+12 | CB28: ='Public finances'!CB21*10^9 -> 1.621490535e+12 | CC28: ='Public finances'!CC21*10^9 -> 1.710672515e+12 | CD28: ='Public finances'!CD21*10^9 -> 1.804759503e+12 | CE28: ='Public finances'!CE21*10^9 -> 1.904021276e+12 | CF28: ='Public finances'!CF21*10^9 -> 2.008742446e+12 | CG28: ='Public finances'!CG21*10^9 -> 2.11922328e+12 | CH28: ='Public finances'!CH21*10^9 -> 2.235780561e+12 | CI28: ='Public finances'!CI21*10^9 -> 2.358748491e+12 | CJ28: ='Public finances'!CJ21*10^9 -> 2.488479658e+12 | CK28: ='Public finances'!CK21*10^9 -> 2.62534604e+12 | CL28: ='Public finances'!CL21*10^9 -> 2.769740072e+12 | CM28: ='Public finances'!CM21*10^9 -> 2.922075776e+12 | CN28: ='Public finances'!CN21*10^9 -> 3.082789943e+12 | CO28: ='Public finances'!CO21*10^9 -> 3.25234339e+12 | CP28: ='Public finances'!CP21*10^9 -> 3.431222277e+12 | CQ28: ='Public finances'!CQ21*10^9 -> 3.619939502e+12 | CR28: ='Public finances'!CR21*10^9 -> 3.819036175e+12 | CS28: ='Public finances'!CS21*10^9 -> 4.029083164e+12 | CT28: ='Public finances'!CT21*10^9 -> 4.250682738e+12 | CU28: ='Public finances'!CU21*10^9 -> 4.484470289e+12 | CV28: ='Public finances'!CV21*10^9 -> 4.731116155e+12
F30: Onshore
H31: Average: Current Year to End of Production | I31: Average: LNG Production Phase
G32: Revenue | H32: =AVERAGEIFS(J32:CV32,J24:CV24,1,J32:CV32,"<>0") -> 46583388.95 | I32: =IFERROR(AVERAGEIFS(J32:CV32,$J$25:$CV$25,1,J32:CV32,"<>0"), 0) -> 24427035 | J32: =J20 -> 28876500 | K32: 31774500 | L32: 36271575 | M32: 36364725 | N32: 33969735 | O32: 38583661.5 | P32: 47285010 | Q32: 49597717.5 | R32: 61416900 | S32: 65506185 | T32: 72705127.5 | U32: 80940622.5 | V32: 84151710 | W32: 84907260 | X32: 90498330 | Y32: 93784972.5 | Z32: 78580305 | AA32: 26557582.5 | AB32: 26557582.5 | AC32: 26557582.5 | AD32: 26557582.5 | AE32: 26557582.5 | AF32: 26557582.5 | AG32: 26557582.5 | AH32: 27303300 | AI32: 27304335 | AJ32: 27305370 | AK32: 27306405 | AL32: 4393575 | AM32: 0 | AN32: 0 | AO32: 0 | AP32: =AP20 -> 0 | AQ32: 0 | AR32: 0 | AS32: 0 | AT32: 0 | AU32: 0 | AV32: 0 | AW32: 0 | AX32: 0 | AY32: 0 | AZ32: 0 | BA32: 0 | BB32: 0 | BC32: 0 | BD32: 0 | BE32: 0 | BF32: 0 | BG32: 0 | BH32: 0 | BI32: 0 | BJ32: 0 | BK32: 0 | BL32: 0 | BM32: 0 | BN32: 0 | BO32: 0 | BP32: 0 | BQ32: 0 | BR32: 0 | BS32: 0 | BT32: 0 | BU32: 0 | BV32: =BV20 -> 0 | BW32: 0 | BX32: 0 | BY32: 0 | BZ32: 0 | CA32: 0 | CB32: 0 | CC32: 0 | CD32: 0 | CE32: 0 | CF32: 0 | CG32: 0 | CH32: 0 | CI32: 0 | CJ32: 0 | CK32: 0 | CL32: 0 | CM32: 0 | CN32: 0 | CO32: 0 | CP32: 0 | CQ32: 0 | CR32: 0 | CS32: 0 | CT32: 0 | CU32: 0 | CV32: 0
G33: Revenue per Capita | H33: =IFERROR(AVERAGEIFS(J33:CV33,$J$24:$CV$24,1,J33:CV33,"<>0"),0) -> 0.7013788649 | I33: =IFERROR(AVERAGEIFS(J33:CV33,$J$25:$CV$25,1,J33:CV33,"<>0"), 0) -> 0.3020240399 | J33: =J32 / J26 -> 0.6519267815 | K33: 0.6992427382 | L33: 0.7780555838 | M33: 0.7603603949 | N33: 0.6923509764 | O33: 0.7665360053 | P33: 0.9156881114 | Q33: 0.9362261153 | R33: 1.130061092 | S33: 1.174874042 | T33: 1.271068663 | U33: 1.379321423 | V33: 1.397838047 | W33: 1.374781591 | X33: 1.428316381 | Y33: 1.442819747 | Z33: 1.178385805 | AA33: 0.3882015828 | AB33: 0.378400997 | AC33: 0.368847838 | AD33: 0.3595358592 | AE33: 0.3504589718 | AF33: 0.3416112407 | AG33: 0.3329868805 | AH33: 0.3336942281 | AI33: 0.325282072 | AJ33: 0.3170819789 | AK33: 0.309088603 | AL33: 0.04847652485 | AM33: 0 | AN33: 0 | AO33: 0 | AP33: 0 | AQ33: 0 | AR33: 0 | AS33: 0 | AT33: 0 | AU33: 0 | AV33: 0 | AW33: 0 | AX33: 0 | AY33: 0 | AZ33: 0 | BA33: 0 | BB33: 0 | BC33: 0 | BD33: 0 | BE33: 0 | BF33: 0 | BG33: 0 | BH33: 0 | BI33: 0 | BJ33: 0 | BK33: 0 | BL33: =BL32 / BL26 -> 0 | BM33: 0 | BN33: 0 | BO33: 0 | BP33: 0 | BQ33: 0 | BR33: 0 | BS33: 0 | BT33: 0 | BU33: 0 | BV33: 0 | BW33: 0 | BX33: 0 | BY33: 0 | BZ33: 0 | CA33: 0 | CB33: 0 | CC33: =CC32 / CC26 -> 0 | CD33: 0 | CE33: 0 | CF33: 0 | CG33: 0 | CH33: 0 | CI33: 0 | CJ33: 0 | CK33: 0 | CL33: 0 | CM33: 0 | CN33: 0 | CO33: 0 | CP33: 0 | CQ33: 0 | CR33: 0 | CS33: 0 | CT33: 0 | CU33: 0 | CV33: 0
G34: % of Govt Revenue | H34: =AVERAGEIFS(J34:CV34,$J$24:$CV$24,1,J34:CV34,"<>0") -> 0.003682787899 | I34: =AVERAGEIFS(J34:CV34,$J$25:$CV$25,1,J34:CV34,"<>0") -> 0.001228761275 | J34: =J32 / J27 -> 0.005570029648 | K34: 0.005754612287 | L34: 0.005895628897 | M34: 0.005795942883 | N34: 0.004975851164 | O34: 0.005973306742 | P34: 0.006519097956 | Q34: 0.005687585551 | R34: 0.006761929478 | S34: 0.007530301892 | T34: 0.007728208866 | U34: 0.008165569835 | V34: 0.008060858914 | W34: 0.007723621667 | X34: 0.007813536224 | Y34: 0.007684498279 | Z34: 0.006120476255 | AA34: 0.001971246086 | AB34: 0.001870786659 | AC34: 0.001775315829 | AD34: 0.001655291063 | AE34: 0.001547128717 | AF34: 0.001454753912 | AG34: 0.001358947768 | AH34: 0.001326286975 | AI34: 0.0012564809 | AJ34: 0.001172967099 | AK34: 0.001116593366 | AL34: 0.0001704016767 | AM34: 0 | AN34: 0 | AO34: 0 | AP34: 0 | AQ34: 0 | AR34: 0 | AS34: 0 | AT34: 0 | AU34: 0 | AV34: 0 | AW34: 0 | AX34: 0 | AY34: 0 | AZ34: 0 | BA34: 0 | BB34: 0 | BC34: 0 | BD34: 0 | BE34: 0 | BF34: 0 | BG34: 0 | BH34: 0 | BI34: 0 | BJ34: 0 | BK34: 0 | BL34: =BL32 / BL27 -> 0 | BM34: 0 | BN34: 0 | BO34: 0 | BP34: 0 | BQ34: 0 | BR34: 0 | BS34: 0 | BT34: 0 | BU34: 0 | BV34: 0 | BW34: 0 | BX34: 0 | BY34: 0 | BZ34: 0 | CA34: 0 | CB34: 0 | CC34: =CC32 / CC27 -> 0 | CD34: 0 | CE34: 0 | CF34: 0 | CG34: 0 | CH34: 0 | CI34: 0 | CJ34: 0 | CK34: 0 | CL34: 0 | CM34: 0 | CN34: 0 | CO34: 0 | CP34: 0 | CQ34: 0 | CR34: 0 | CS34: 0 | CT34: 0 | CU34: 0 | CV34: 0
G35: % of GDP | H35: =AVERAGEIFS(J35:CV35,$J$24:$CV$24,1,J35:CV35,"<>0") -> 0.0005271079042 | I35: =AVERAGEIFS(J35:CV35,$J$25:$CV$25,1,J35:CV35,"<>0") -> 0.0001775152697 | J35: =J32 / J28 -> 0.001148333332 | K35: 0.001221330781 | L35: 0.001310736488 | M35: 0.0009036583319 | N35: 0.0007851542992 | O35: 0.0008413316177 | P35: 0.0009712013347 | Q35: 0.0008923713631 | R35: 0.001034846401 | S35: 0.0010471035 | T35: 0.001113776885 | U35: 0.001170618155 | V35: 0.001153677214 | W35: 0.001103539936 | X35: 0.001114845222 | Y35: 0.001095176107 | Z35: 0.0008704521373 | AA35: 0.0002794098479 | AB35: 0.0002648565749 | AC35: 0.0002510606725 | AD35: 0.0002376990483 | AE35: 0.0002186341147 | AF35: 0.0002072131705 | AG35: 0.0001967353658 | AH35: 0.0001920127489 | AI35: 0.0001823214916 | AJ35: 0.0001730657779 | AK35: 0.0001647283911 | AL35: 2.522731836e-05 | AM35: 0 | AN35: 0 | AO35: 0 | AP35: 0 | AQ35: 0 | AR35: 0 | AS35: 0 | AT35: 0 | AU35: 0 | AV35: 0 | AW35: 0 | AX35: 0 | AY35: 0 | AZ35: 0 | BA35: 0 | BB35: 0 | BC35: 0 | BD35: 0 | BE35: 0 | BF35: 0 | BG35: 0 | BH35: 0 | BI35: 0 | BJ35: 0 | BK35: 0 | BL35: =BL32 / BL28 -> 0 | BM35: 0 | BN35: 0 | BO35: 0 | BP35: 0 | BQ35: 0 | BR35: 0 | BS35: 0 | BT35: 0 | BU35: 0 | BV35: 0 | BW35: 0 | BX35: 0 | BY35: 0 | BZ35: 0 | CA35: 0 | CB35: 0 | CC35: =CC32 / CC28 -> 0 | CD35: 0 | CE35: 0 | CF35: 0 | CG35: 0 | CH35: 0 | CI35: 0 | CJ35: 0 | CK35: 0 | CL35: 0 | CM35: 0 | CN35: 0 | CO35: 0 | CP35: 0 | CQ35: 0 | CR35: 0 | CS35: 0 | CT35: 0 | CU35: 0 | CV35: 0
F37: LNG Project
H38: Average: Current Year to End of Production | I38: Average: LNG Production Phase
G39: Revenue | H39: =AVERAGEIF($J$24:$CV$24,1,J39:CV39) -> 1545801284 | I39: =IFERROR(AVERAGEIFS(J39:CV39,$J$25:$CV$25,1,J39:CV39,"<>0"), 0) -> 1986943740 | J39: =J21 -> 365698.326 | K39: 358527.7706 | L39: 351497.8143 | M39: 344605.7003 | N39: 337848.7258 | O39: 331224.241 | P39: 324729.648 | Q39: 318362.4 | R39: 312120 | S39: 306000 | T39: 300000 | U39: 294117.6471 | V39: 288350.6344 | W39: 282696.7004 | X39: 277153.6278 | Y39: 3449566.362 | Z39: 3381927.806 | AA39: 3315615.496 | AB39: 3250603.428 | AC39: 3186866.106 | AD39: 282262103 | AE39: 553840213.1 | AF39: 746842261.5 | AG39: 1087391294 | AH39: 1131469055 | AI39: 1222231530 | AJ39: 1658446474 | AK39: 1661488186 | AL39: 1775095599 | AM39: 1849251741 | AN39: 1912935305 | AO39: 1934959458 | AP39: =AP21 -> 2037318781 | AQ39: 2284389511 | AR39: 2366151975 | AS39: 2692929684 | AT39: 2774871281 | AU39: 2795966686 | AV39: 2500079978 | AW39: 2454200706 | AX39: 2401781455 | AY39: 2361089703 | AZ39: 2616942076 | BA39: 2660724239 | BB39: 2707559866 | BC39: 2770292676 | BD39: 2817404444 | BE39: 2820898804 | BF39: 2824533191 | BG39: 2719358578 | BH39: 1851859168 | BI39: 1490980469 | BJ39: 1500486152 | BK39: 1508261593 | BL39: 768736647 | BM39: 0 | BN39: 0 | BO39: 0 | BP39: 0 | BQ39: 0 | BR39: 0 | BS39: 0 | BT39: 0 | BU39: 0 | BV39: =BV21 -> 0 | BW39: 0 | BX39: 0 | BY39: 0 | BZ39: 0 | CA39: 0 | CB39: 0 | CC39: 0 | CD39: 0 | CE39: 0 | CF39: 0 | CG39: 0 | CH39: 0 | CI39: 0 | CJ39: 0 | CK39: 0 | CL39: 0 | CM39: 0 | CN39: 0 | CO39: 0 | CP39: 0 | CQ39: 0 | CR39: 0 | CS39: 0 | CT39: 0 | CU39: 0 | CV39: 0
G40: Revenue per Capita | H40: =IFERROR(AVERAGEIFS(J40:CV40,$J$24:$CV$24,1,J40:CV40,"<>0"),0) -> 13.27210359 | I40: =IFERROR(AVERAGEIFS(J40:CV40,$J$25:$CV$25,1,J40:CV40,"<>0"), 0) -> 17.05650961 | J40: =J39 / J26 -> 0.008256143669 | K40: 0.007889909834 | L40: 0.007539921747 | M40: 0.007205458762 | N40: 0.006885832203 | O40: 0.006580383941 | P40: 0.006288485042 | Q40: 0.006009534471 | R40: =R39 / R26 -> 0.005742957853 | S40: 0.005488206294 | T40: 0.005244755245 | U40: 0.005012103428 | V40: 0.0047897718 | W40: 0.00457730257 | X40: 0.00437425825 | Y40: 0.05306929599 | Z40: 0.05071519793 | AA40: 0.04846552519 | AB40: 0.04631564555 | AC40: 0.04426113231 | AD40: 3.821256989 | AE40: 7.308582084 | AF40: 9.606661734 | AG40: 13.63403597 | AH40: 13.82853695 | AI40: 14.56069172 | AJ40: 19.25861066 | AK40: 18.80683533 | AL40: 19.58552339 | AM40: 19.88861042 | AN40: 20.05412222 | AO40: 19.77289295 | AP40: 20.29328263 | AQ40: 22.17984173 | AR40: 22.39370182 | AS40: 24.84295424 | AT40: 24.95261341 | AU40: 24.50756475 | AV40: 21.36077662 | AW40: 20.4394019 | AX40: 19.49784276 | AY40: 18.68359885 | AZ40: 20.18538917 | BA40: 20.00496764 | BB40: 19.84316874 | BC40: 19.79035485 | BD40: 19.61878433 | BE40: 19.14720445 | BF40: 18.68785779 | BG40: 17.53776661 | BH40: 11.64154804 | BI40: 9.136286361 | BJ40: 8.962407999 | BK40: 8.781412159 | BL40: 4.362749169 | BM40: =BM39 / BM26 -> 0 | BN40: 0 | BO40: 0 | BP40: 0 | BQ40: 0 | BR40: 0 | BS40: 0 | BT40: 0 | BU40: 0 | BV40: 0 | BW40: 0 | BX40: 0 | BY40: 0 | BZ40: 0 | CA40: 0 | CB40: 0 | CC40: =CC39 / CC26 -> 0 | CD40: 0 | CE40: 0 | CF40: 0 | CG40: 0 | CH40: 0 | CI40: 0 | CJ40: 0 | CK40: 0 | CL40: 0 | CM40: 0 | CN40: 0 | CO40: 0 | CP40: 0 | CQ40: 0 | CR40: 0 | CS40: 0 | CT40: 0 | CU40: 0 | CV40: 0
G41: % of Govt Revenue | H41: =IFERROR(AVERAGEIFS(J41:CV41,$J$24:$CV$24,1,J41:CV41,"<>0"),0) -> 0.03806058956 | I41: =IFERROR(AVERAGEIFS(J41:CV41,$J$25:$CV$25,1,J41:CV41,"<>0"),0) -> 0.048895815 | J41: =J39 / J27 -> 7.054007646e-05 | K41: 6.493220393e-05 | L41: 5.713291114e-05 | M41: 5.492451699e-05 | N41: 4.94877271e-05 | O41: 5.127828502e-05 | P41: 4.476988341e-05 | Q41: 3.65079983e-05 | R41: 3.43640501e-05 | S41: 3.517640936e-05 | T41: 3.188857154e-05 | U41: 2.967160509e-05 | V41: 2.762099286e-05 | W41: 2.571561443e-05 | X41: 2.392916986e-05 | Y41: 0.000282648553 | Z41: 0.0002634121722 | AA41: 0.0002461027494 | AB41: 0.0002289811404 | AC41: 0.0002130349719 | AD41: 0.01759293928 | AE41: 0.03226431089 | AF41: 0.0409100377 | AG41: 0.05564165986 | AH41: 0.05496231847 | AI41: 0.05624420346 | AJ41: 0.07124251198 | AK41: 0.06794034904 | AL41: 0.06884581835 | AM41: 0.06808866788 | AN41: 0.06688307271 | AO41: 0.06433313272 | AP41: 0.06424112471 | AQ41: 0.06802972565 | AR41: 0.06689941966 | AS41: 0.07181646595 | AT41: 0.07028483404 | AU41: 0.06736100634 | AV41: 0.05770193258 | AW41: 0.05392151811 | AX41: 0.05022806837 | AY41: 0.04697551546 | AZ41: 0.04924607375 | BA41: 0.04755508002 | BB41: 0.0459563113 | BC41: 0.04464031665 | BD41: 0.04310984199 | BE41: 0.0410102097 | BF41: 0.0390100579 | BG41: 0.0357267689 | BH41: 0.02336045421 | BI41: 0.01792923148 | BJ41: 0.01711921995 | BK41: 0.01632599734 | BL41: 0.007955328483 | BM41: =BM39 / BM27 -> 0 | BN41: 0 | BO41: 0 | BP41: 0 | BQ41: 0 | BR41: 0 | BS41: 0 | BT41: 0 | BU41: 0 | BV41: 0 | BW41: 0 | BX41: 0 | BY41: 0 | BZ41: 0 | CA41: 0 | CB41: 0 | CC41: =CC39 / CC27 -> 0 | CD41: 0 | CE41: 0 | CF41: 0 | CG41: 0 | CH41: 0 | CI41: 0 | CJ41: 0 | CK41: 0 | CL41: 0 | CM41: 0 | CN41: 0 | CO41: 0 | CP41: 0 | CQ41: 0 | CR41: 0 | CS41: 0 | CT41: 0 | CU41: 0 | CV41: 0
G42: % of GDP | H42: =IFERROR(AVERAGEIFS(J42:CV42,$J$24:$CV$24,1,J42:CV42,"<>0"),0) -> 0.005554934707 | I42: =IFERROR(AVERAGEIFS(J42:CV42,$J$25:$CV$25,1,J42:CV42,"<>0"),0) -> 0.007136485652 | J42: =J39 / J28 -> 1.454274504e-05 | K42: =K39 / K28 -> 1.378089355e-05 | L42: 1.270198525e-05 | M42: 8.563403471e-06 | N42: 7.808815097e-06 | O42: 7.222472301e-06 | P42: 6.669721917e-06 | Q42: 5.728035546e-06 | R42: 5.259077852e-06 | S42: 4.891349893e-06 | T42: 4.595729036e-06 | U42: 4.253728805e-06 | V42: 3.953140782e-06 | W42: 3.674209938e-06 | X42: 3.414244194e-06 | Y42: 4.028238811e-05 | Z42: 3.746239324e-05 | AA42: 3.488328131e-05 | AB42: 3.241799928e-05 | AC42: 3.012686669e-05 | AD42: 0.002526338128 | AE42: 0.004559464879 | AF42: 0.005827170181 | AG42: 0.008055263466 | AH42: 0.007957151099 | AI42: 0.008161307561 | AJ42: 0.01051149752 | AK42: 0.01002307978 | AL42: 0.01019236084 | AM42: 0.01007457512 | AN42: 0.009887631984 | AO42: 0.009465771798 | AP42: 0.009445038984 | AQ42: 0.01003772456 | AR42: 0.009863567802 | AS42: 0.01064965373 | AT42: 0.01041006198 | AU42: 0.009950029184 | AV42: 0.00846551976 | AW42: 0.007881138543 | AX42: 0.007314771842 | AY42: 0.006819038745 | AZ42: 0.007149157112 | BA42: 0.006893767769 | BB42: 0.006652857307 | BC42: 0.006455387148 | BD42: 0.00622588394 | BE42: 0.005911310669 | BF42: 0.005612769784 | BG42: 0.005127398401 | BH42: 0.003312127329 | BI42: 0.002529742807 | BJ42: 0.002413779192 | BK42: 0.002300386629 | BL42: 0.001114272254 | BM42: =BM39 / BM28 -> 0 | BN42: 0 | BO42: 0 | BP42: 0 | BQ42: 0 | BR42: 0 | BS42: 0 | BT42: 0 | BU42: 0 | BV42: 0 | BW42: 0 | BX42: 0 | BY42: 0 | BZ42: 0 | CA42: 0 | CB42: 0 | CC42: =CC39 / CC28 -> 0 | CD42: 0 | CE42: 0 | CF42: 0 | CG42: 0 | CH42: 0 | CI42: 0 | CJ42: 0 | CK42: 0 | CL42: 0 | CM42: 0 | CN42: 0 | CO42: 0 | CP42: 0 | CQ42: 0 | CR42: 0 | CS42: 0 | CT42: 0 | CU42: 0 | CV42: 0
F44: Government revenues charts
I45: Real GDP | J45: ='Public finances'!J21 -> 25.14644415 | K45: ='Public finances'!K21 -> 26.01629344 | L45: ='Public finances'!L21 -> 27.67266748 | M45: ='Public finances'!M21 -> 40.24167511 | N45: ='Public finances'!N21 -> 43.26504362 | O45: ='Public finances'!O21 -> 45.86023001 | P45: ='Public finances'!P21 -> 48.68713449 | Q45: ='Public finances'!Q21 -> 55.57968302 | R45: ='Public finances'!R21 -> 59.34880767 | S45: ='Public finances'!S21 -> 62.55941748 | T45: ='Public finances'!T21 -> 65.278 | U45: ='Public finances'!U21 -> 69.14348812 | V45: ='Public finances'!V21 -> 72.94216176 | W45: ='Public finances'!W21 -> 76.94081316 | X45: ='Public finances'!X21 -> 81.17568987 | Y45: ='Public finances'!Y21 -> 85.6346042 | Z45: ='Public finances'!Z21 -> 90.27527378 | AA45: ='Public finances'!AA21 -> 95.04884206 | AB45: ='Public finances'!AB21 -> 100.2715621 | AC45: ='Public finances'!AC21 -> 105.7815318 | AD45: ='Public finances'!AD21 -> 111.7277612 | AE45: ='Public finances'!AE21 -> 121.4704418 | AF45: ='Public finances'!AF21 -> 128.165514 | AG45: ='Public finances'!AG21 -> 134.9914002 | AH45: ='Public finances'!AH21 -> 142.1952456 | AI45: ='Public finances'!AI21 -> 149.7592783 | AJ45: ='Public finances'!AJ21 -> 157.7745198 | AK45: ='Public finances'!AK21 -> 165.7662338 | AL45: ='Public finances'!AL21 -> 174.1594147 | AM45: ='Public finances'!AM21 -> 183.5563007 | AN45: ='Public finances'!AN21 -> 193.4674863 | AO45: ='Public finances'!AO21 -> 204.416449 | AP45: ='Public finances'!AP21 -> 215.7025275 | AQ45: ='Public finances'!AQ21 -> 227.580414 | AR45: ='Public finances'!AR21 -> 239.8880428 | AS45: ='Public finances'!AS21 -> 252.8654688 | AT45: ='Public finances'!AT21 -> 266.5566532 | AU45: ='Public finances'!AU21 -> 281.0008528 | AV45: ='Public finances'!AV21 -> 295.3250419 | AW45: ='Public finances'!AW21 -> 311.4017971 | AX45: ='Public finances'!AX21 -> 328.3467354 | AY45: ='Public finances'!AY21 -> 346.2496389 | AZ45: ='Public finances'!AZ21 -> 366.0490369 | BA45: ='Public finances'!BA21 -> 385.9608168 | BB45: ='Public finances'!BB21 -> 406.9769937 | BC45: ='Public finances'!BC21 -> 429.1443119 | BD45: ='Public finances'!BD21 -> 452.5308327 | BE45: ='Public finances'!BE21 -> 477.2036122 | BF45: ='Public finances'!BF21 -> 503.2333945 | BG45: ='Public finances'!BG21 -> 530.3583543 | BH45: ='Public finances'!BH21 -> 559.1147273 | BI45: ='Public finances'!BI21 -> 589.3802584 | BJ45: ='Public finances'!BJ21 -> 621.6335599 | BK45: ='Public finances'!BK21 -> 655.6556947 | BL45: ='Public finances'!BL21 -> 689.9001964 | BM45: ='Public finances'!BM21 -> 726.3191979 | BN45: ='Public finances'!BN21 -> 766.2667538 | BO45: ='Public finances'!BO21 -> 808.4114252 | BP45: ='Public finances'!BP21 -> 852.8740536 | BQ45: ='Public finances'!BQ21 -> 899.7821265 | BR45: ='Public finances'!BR21 -> 949.2701435 | BS45: ='Public finances'!BS21 -> 1001.480001 | BT45: ='Public finances'!BT21 -> 1056.561401 | BU45: ='Public finances'!BU21 -> 1114.672279 | BV45: ='Public finances'!BV21 -> 1175.979254 | BW45: ='Public finances'!BW21 -> 1240.658113 | BX45: ='Public finances'!BX21 -> 1308.894309 | BY45: ='Public finances'!BY21 -> 1380.883496 | BZ45: ='Public finances'!BZ21 -> 1456.832088 | CA45: ='Public finances'!CA21 -> 1536.957853 | CB45: ='Public finances'!CB21 -> 1621.490535 | CC45: ='Public finances'!CC21 -> 1710.672515 | CD45: ='Public finances'!CD21 -> 1804.759503 | CE45: ='Public finances'!CE21 -> 1904.021276 | CF45: ='Public finances'!CF21 -> 2008.742446 | CG45: ='Public finances'!CG21 -> 2119.22328 | CH45: ='Public finances'!CH21 -> 2235.780561 | CI45: ='Public finances'!CI21 -> 2358.748491 | CJ45: ='Public finances'!CJ21 -> 2488.479658 | CK45: ='Public finances'!CK21 -> 2625.34604 | CL45: ='Public finances'!CL21 -> 2769.740072 | CM45: ='Public finances'!CM21 -> 2922.075776 | CN45: ='Public finances'!CN21 -> 3082.789943 | CO45: ='Public finances'!CO21 -> 3252.34339 | CP45: ='Public finances'!CP21 -> 3431.222277 | CQ45: ='Public finances'!CQ21 -> 3619.939502 | CR45: ='Public finances'!CR21 -> 3819.036175 | CS45: ='Public finances'!CS21 -> 4029.083164 | CT45: ='Public finances'!CT21 -> 4250.682738 | CU45: ='Public finances'!CU21 -> 4484.470289 | CV45: ='Public finances'!CV21 -> 4731.116155
H47: As $ Value | I47: Non-Gas Tax Revenue | J47: ='Public finances'!J38 -> 3.99828462 | K47: ='Public finances'!K38 -> 4.266672125 | L47: ='Public finances'!L38 -> 4.870389477 | M47: ='Public finances'!M38 -> 5.191176089 | N47: ='Public finances'!N38 -> 5.884045932 | O47: ='Public finances'!O38 -> 5.870109441 | P47: ='Public finances'!P38 -> 6.962260232 | Q47: ='Public finances'!Q38 -> 8.114633721 | R47: ='Public finances'!R38 -> 8.546228305 | S47: ='Public finances'!S38 -> 8.44552136 | T47: ='Public finances'!T38 -> 9.073642 | U47: ='Public finances'!U38 -> 9.57269231 | V47: ='Public finances'!V38 -> 10.09919039 | W47: ='Public finances'!W38 -> 10.65464586 | X47: ='Public finances'!X38 -> 11.24065138 | Y47: ='Public finances'!Y38 -> 11.85888721 | Z47: ='Public finances'!Z38 -> 12.511126 | AA47: ='Public finances'!AA38 -> 13.19923793 | AB47: ='Public finances'!AB38 -> 13.92519602 | AC47: ='Public finances'!AC38 -> 14.6910818 | AD47: ='Public finances'!AD38 -> 15.4990913 | AE47: ='Public finances'!AE38 -> 16.35154132 | AF47: ='Public finances'!AF38 -> 17.25087609 | AG47: ='Public finances'!AG38 -> 18.19967428 | AH47: ='Public finances'!AH38 -> 19.20065636 | AI47: ='Public finances'!AI38 -> 20.25669246 | AJ47: ='Public finances'!AJ38 -> 21.37081055 | AK47: ='Public finances'!AK38 -> 22.54620513 | AL47: ='Public finances'!AL38 -> 23.78624641 | AM47: ='Public finances'!AM38 -> 25.09448996 | AN47: ='Public finances'!AN38 -> 26.47468691 | AO47: ='Public finances'!AO38 -> 27.93079469 | AP47: ='Public finances'!AP38 -> 29.4669884 | AQ47: ='Public finances'!AQ38 -> 31.08767276 | AR47: ='Public finances'!AR38 -> 32.79749476 | AS47: ='Public finances'!AS38 -> 34.60135698 | AT47: ='Public finances'!AT38 -> 36.50443161 | AU47: ='Public finances'!AU38 -> 38.51217535 | AV47: ='Public finances'!AV38 -> 40.63034499 | AW47: ='Public finances'!AW38 -> 42.86501397 | AX47: ='Public finances'!AX38 -> 45.22258974 | AY47: ='Public finances'!AY38 -> 47.70983217 | AZ47: ='Public finances'!AZ38 -> 50.33387294 | BA47: ='Public finances'!BA38 -> 53.10223595 | BB47: ='Public finances'!BB38 -> 56.02285893 | BC47: ='Public finances'!BC38 -> 59.10411617 | BD47: ='Public finances'!BD38 -> 62.35484256 | BE47: ='Public finances'!BE38 -> 65.7843589 | BF47: ='Public finances'!BF38 -> 69.40249864 | BG47: ='Public finances'!BG38 -> 73.21963607 | BH47: ='Public finances'!BH38 -> 77.24671605 | BI47: ='Public finances'!BI38 -> 81.49528543 | BJ47: ='Public finances'!BJ38 -> 85.97752613 | BK47: ='Public finances'!BK38 -> 90.70629007 | BL47: ='Public finances'!BL38 -> 95.69513602 | BM47: ='Public finances'!BM38 -> 100.9583685 | BN47: ='Public finances'!BN38 -> 106.5110788 | BO47: ='Public finances'!BO38 -> 112.3691881 | BP47: ='Public finances'!BP38 -> 118.5494935 | BQ47: ='Public finances'!BQ38 -> 125.0697156 | BR47: ='Public finances'!BR38 -> 131.9485499 | BS47: ='Public finances'!BS38 -> 139.2057202 | BT47: ='Public finances'!BT38 -> 146.8620348 | BU47: ='Public finances'!BU38 -> 154.9394467 | BV47: ='Public finances'!BV38 -> 163.4611163 | BW47: ='Public finances'!BW38 -> 172.4514777 | BX47: ='Public finances'!BX38 -> 181.936309 | BY47: ='Public finances'!BY38 -> 191.942806 | BZ47: ='Public finances'!BZ38 -> 202.4996603 | CA47: ='Public finances'!CA38 -> 213.6371416 | CB47: ='Public finances'!CB38 -> 225.3871844 | CC47: ='Public finances'!CC38 -> 237.7834795 | CD47: ='Public finances'!CD38 -> 250.8615709 | CE47: ='Public finances'!CE38 -> 264.6589573 | CF47: ='Public finances'!CF38 -> 279.2151999 | CG47: ='Public finances'!CG38 -> 294.5720359 | CH47: ='Public finances'!CH38 -> 310.7734979 | CI47: ='Public finances'!CI38 -> 327.8660403 | CJ47: ='Public finances'!CJ38 -> 345.8986725 | CK47: ='Public finances'!CK38 -> 364.9230995 | CL47: ='Public finances'!CL38 -> 384.99387 | CM47: ='Public finances'!CM38 -> 406.1685328 | CN47: ='Public finances'!CN38 -> 428.5078021 | CO47: ='Public finances'!CO38 -> 452.0757313 | CP47: ='Public finances'!CP38 -> 476.9398965 | CQ47: ='Public finances'!CQ38 -> 503.1715908 | CR47: ='Public finances'!CR38 -> 530.8460283 | CS47: ='Public finances'!CS38 -> 560.0425598 | CT47: ='Public finances'!CT38 -> 590.8449006 | CU47: ='Public finances'!CU38 -> 623.3413702 | CV47: ='Public finances'!CV38 -> 657.6251455
I48: Grants | J48: ='Public finances'!J50 -> 1.156736431 | K48: ='Public finances'!K50 -> 1.222765792 | L48: ='Public finances'!L50 -> 1.245270037 | M48: ='Public finances'!M50 -> 1.046283553 | N48: ='Public finances'!N50 -> 0.908565916 | O48: ='Public finances'!O50 -> 0.5503227601 | P48: ='Public finances'!P50 -> 0.2434356724 | Q48: ='Public finances'!Q50 -> 0.5557968302 | R48: ='Public finances'!R50 -> 0.4747904614 | S48: ='Public finances'!S50 -> 0.1876782524 | T48: ='Public finances'!T50 -> 0.261112 | U48: ='Public finances'!U50 -> 0.25850088 | V48: ='Public finances'!V50 -> 0.2559158712 | W48: ='Public finances'!W50 -> 0.2533567125 | X48: ='Public finances'!X50 -> 0.2508231454 | Y48: ='Public finances'!Y50 -> 0.2483149139 | Z48: ='Public finances'!Z50 -> 0.2458317648 | AA48: ='Public finances'!AA50 -> 0.2433734471 | AB48: ='Public finances'!AB50 -> 0.2409397127 | AC48: ='Public finances'!AC50 -> 0.2385303155 | AD48: ='Public finances'!AD50 -> 0.2361450124 | AE48: ='Public finances'!AE50 -> 0.2337835622 | AF48: ='Public finances'!AF50 -> 0.2314457266 | AG48: ='Public finances'!AG50 -> 0.2291312694 | AH48: ='Public finances'!AH50 -> 0.2268399567 | AI48: ='Public finances'!AI50 -> 0.2245715571 | AJ48: ='Public finances'!AJ50 -> 0.2223258415 | AK48: ='Public finances'!AK50 -> 0.2201025831 | AL48: ='Public finances'!AL50 -> 0.2179015573 | AM48: ='Public finances'!AM50 -> 0.2157225417 | AN48: ='Public finances'!AN50 -> 0.2135653163 | AO48: ='Public finances'!AO50 -> 0.2114296631 | AP48: ='Public finances'!AP50 -> 0.2093153665 | AQ48: ='Public finances'!AQ50 -> 0.2072222128 | AR48: ='Public finances'!AR50 -> 0.2051499907 | AS48: ='Public finances'!AS50 -> 0.2030984908 | AT48: ='Public finances'!AT50 -> 0.2010675059 | AU48: ='Public finances'!AU50 -> 0.1990568308 | AV48: ='Public finances'!AV50 -> 0.1970662625 | AW48: ='Public finances'!AW50 -> 0.1950955999 | AX48: ='Public finances'!AX50 -> 0.1931446439 | AY48: ='Public finances'!AY50 -> 0.1912131975 | AZ48: ='Public finances'!AZ50 -> 0.1893010655 | BA48: ='Public finances'!BA50 -> 0.1874080548 | BB48: ='Public finances'!BB50 -> 0.1855339743 | BC48: ='Public finances'!BC50 -> 0.1836786345 | BD48: ='Public finances'!BD50 -> 0.1818418482 | BE48: ='Public finances'!BE50 -> 0.1800234297 | BF48: ='Public finances'!BF50 -> 0.1782231954 | BG48: ='Public finances'!BG50 -> 0.1764409635 | BH48: ='Public finances'!BH50 -> 0.1746765538 | BI48: ='Public finances'!BI50 -> 0.1729297883 | BJ48: ='Public finances'!BJ50 -> 0.1712004904 | BK48: ='Public finances'!BK50 -> 0.1694884855 | BL48: ='Public finances'!BL50 -> 0.1677936006 | BM48: ='Public finances'!BM50 -> 0.1661156646 | BN48: ='Public finances'!BN50 -> 0.164454508 | BO48: ='Public finances'!BO50 -> 0.1628099629 | BP48: ='Public finances'!BP50 -> 0.1611818633 | BQ48: ='Public finances'!BQ50 -> 0.1595700446 | BR48: ='Public finances'!BR50 -> 0.1579743442 | BS48: ='Public finances'!BS50 -> 0.1563946008 | BT48: ='Public finances'!BT50 -> 0.1548306548 | BU48: ='Public finances'!BU50 -> 0.1532823482 | BV48: ='Public finances'!BV50 -> 0.1517495247 | BW48: ='Public finances'!BW50 -> 0.1502320295 | BX48: ='Public finances'!BX50 -> 0.1487297092 | BY48: ='Public finances'!BY50 -> 0.1472424121 | BZ48: ='Public finances'!BZ50 -> 0.145769988 | CA48: ='Public finances'!CA50 -> 0.1443122881 | CB48: ='Public finances'!CB50 -> 0.1428691652 | CC48: ='Public finances'!CC50 -> 0.1414404736 | CD48: ='Public finances'!CD50 -> 0.1400260688 | CE48: ='Public finances'!CE50 -> 0.1386258081 | CF48: ='Public finances'!CF50 -> 0.1372395501 | CG48: ='Public finances'!CG50 -> 0.1358671546 | CH48: ='Public finances'!CH50 -> 0.134508483 | CI48: ='Public finances'!CI50 -> 0.1331633982 | CJ48: ='Public finances'!CJ50 -> 0.1318317642 | CK48: ='Public finances'!CK50 -> 0.1305134466 | CL48: ='Public finances'!CL50 -> 0.1292083121 | CM48: ='Public finances'!CM50 -> 0.127916229 | CN48: ='Public finances'!CN50 -> 0.1266370667 | CO48: ='Public finances'!CO50 -> 0.125370696 | CP48: ='Public finances'!CP50 -> 0.124116989 | CQ48: ='Public finances'!CQ50 -> 0.1228758192 | CR48: ='Public finances'!CR50 -> 0.121647061 | CS48: ='Public finances'!CS50 -> 0.1204305904 | CT48: ='Public finances'!CT50 -> 0.1192262845 | CU48: ='Public finances'!CU50 -> 0.1180340216 | CV48: ='Public finances'!CV50 -> 0.1168536814
I49: Gas Revenues | J49: =SUM(J20:J21)/1000000000 -> 0.02924219833 | K49: 0.03213302777 | L49: 0.03662307281 | M49: 0.0367093307 | N49: 0.03430758373 | O49: 0.03891488574 | P49: 0.04760973965 | Q49: 0.0499160799 | R49: 0.06172902 | S49: 0.065812185 | T49: 0.0730051275 | U49: 0.08123474015 | V49: 0.08444006063 | W49: 0.0851899567 | X49: 0.09077548363 | Y49: 0.09723453886 | Z49: 0.08196223281 | AA49: 0.029873198 | AB49: 0.02980818593 | AC49: 0.02974444861 | AD49: 0.3088196855 | AE49: 0.5803977956 | AF49: 0.773399844 | AG49: 1.113948877 | AH49: 1.158772355 | AI49: 1.249535865 | AJ49: 1.685751844 | AK49: 1.688794591 | AL49: 1.779489174 | AM49: 1.849251741 | AN49: 1.912935305 | AO49: 1.934959458 | AP49: =SUM(AP20:AP21)/1000000000 -> 2.037318781 | AQ49: 2.284389511 | AR49: 2.366151975 | AS49: 2.692929684 | AT49: 2.774871281 | AU49: 2.795966686 | AV49: 2.500079978 | AW49: 2.454200706 | AX49: 2.401781455 | AY49: 2.361089703 | AZ49: 2.616942076 | BA49: 2.660724239 | BB49: 2.707559866 | BC49: 2.770292676 | BD49: 2.817404444 | BE49: 2.820898804 | BF49: 2.824533191 | BG49: 2.719358578 | BH49: 1.851859168 | BI49: 1.490980469 | BJ49: 1.500486152 | BK49: 1.508261593 | BL49: 0.768736647 | BM49: 0 | BN49: 0 | BO49: 0 | BP49: 0 | BQ49: 0 | BR49: 0 | BS49: 0 | BT49: 0 | BU49: 0 | BV49: =SUM(BV20:BV21)/1000000000 -> 0 | BW49: 0 | BX49: 0 | BY49: 0 | BZ49: 0 | CA49: 0 | CB49: 0 | CC49: 0 | CD49: 0 | CE49: 0 | CF49: 0 | CG49: 0 | CH49: 0 | CI49: 0 | CJ49: 0 | CK49: 0 | CL49: 0 | CM49: 0 | CN49: 0 | CO49: 0 | CP49: 0 | CQ49: 0 | CR49: 0 | CS49: 0 | CT49: 0 | CU49: 0 | CV49: 0
H51: as % of GDP | I51: Non-Gas Tax Revenue | J51: =J47 / J$45 -> 0.159 | K51: 0.164 | L51: 0.176 | M51: 0.129 | N51: 0.136 | O51: 0.128 | P51: 0.143 | Q51: 0.146 | R51: 0.144 | S51: 0.135 | T51: 0.139 | U51: 0.1384467659 | V51: 0.1384547721 | W51: 0.138478467 | X51: 0.1384731241 | Y51: 0.1384824198 | Z51: 0.1385886243 | AA51: 0.1388679509 | AB51: 0.1388748288 | AC51: 0.1388813487 | AD51: 0.1387219357 | AE51: 0.1346133354 | AF51: =AF47 / AF$45 -> 0.1345984232 | AG51: 0.1348209904 | AH51: 0.1350302275 | AI51: 0.1352616859 | AJ51: 0.1354515962 | AK51: 0.1360120491 | AL51: 0.1365774365 | AM51: 0.1367127681 | AN51: 0.1368430811 | AO51: 0.1366367278 | AP51: 0.1366093793 | AQ51: 0.136600827 | AR51: 0.1367200065 | AS51: 0.1368370191 | AT51: 0.1369481165 | AU51: 0.1370535889 | AV51: 0.1375783941 | AW51: 0.1376517874 | AX51: 0.137728154 | AY51: 0.1377902727 | AZ51: 0.1375058199 | BA51: 0.1375845258 | BB51: 0.1376560833 | BC51: 0.1377255029 | BD51: 0.1377913681 | BE51: 0.1378538578 | BF51: 0.1379131421 | BG51: 0.1380569109 | BH51: 0.1381589722 | BI51: 0.1382728455 | BJ51: 0.1383090162 | BK51: 0.1383443945 | BL51: =BL47 / BL$45 -> 0.1387086662 | BM51: 0.139 | BN51: 0.139 | BO51: 0.139 | BP51: 0.139 | BQ51: 0.139 | BR51: 0.139 | BS51: 0.139 | BT51: 0.139 | BU51: 0.139 | BV51: 0.139 | BW51: 0.139 | BX51: 0.139 | BY51: 0.139 | BZ51: 0.139 | CA51: 0.139 | CB51: 0.139 | CC51: =CC47 / CC$45 -> 0.139 | CD51: 0.139 | CE51: 0.139 | CF51: 0.139 | CG51: 0.139 | CH51: 0.139 | CI51: 0.139 | CJ51: 0.139 | CK51: 0.139 | CL51: 0.139 | CM51: 0.139 | CN51: 0.139 | CO51: 0.139 | CP51: 0.139 | CQ51: 0.139 | CR51: 0.139 | CS51: 0.139 | CT51: 0.139 | CU51: 0.139 | CV51: 0.139
I52: Grants | J52: =J48 / J$45 -> 0.046 | K52: 0.047 | L52: 0.045 | M52: 0.026 | N52: 0.021 | O52: 0.012 | P52: 0.005 | Q52: 0.01 | R52: 0.008 | S52: 0.003 | T52: 0.004 | U52: 0.003738614974 | V52: 0.003508476648 | W52: 0.00329287802 | X52: 0.003089880059 | Y52: 0.002899702944 | Z52: 0.002723135079 | AA52: 0.002560509332 | AB52: 0.002402871837 | AC52: 0.002254933461 | AD52: 0.002113575085 | AE52: 0.00192461276 | AF52: =AF48 / AF$45 -> 0.001805834654 | AG52: 0.001697376788 | AH52: 0.001595271035 | AI52: 0.001499550209 | AJ52: 0.001409136544 | AK52: 0.001327789008 | AL52: 0.001251161516 | AM52: 0.0011752391 | AN52: 0.00110388221 | AO52: 0.001034308463 | AP52: 0.0009703890303 | AQ52: 0.000910545021 | AR52: 0.0008551905642 | AS52: 0.0008031879234 | AT52: 0.0007543143398 | AU52: 0.0007083851485 | AV52: 0.0006672859885 | AW52: 0.0006265076236 | AX52: 0.0005882337878 | AY52: 0.0005522408575 | AZ52: 0.0005171467383 | BA52: 0.0004855623853 | BB52: 0.0004558832002 | BC52: 0.0004280113459 | BD52: 0.0004018330576 | BE52: 0.000377246578 | BF52: 0.0003541561378 | BG52: 0.0003326825382 | BH52: 0.000312416299 | BI52: 0.0002934095362 | BJ52: 0.0002754041954 | BK52: 0.0002585022701 | BL52: =BL48 / BL$45 -> 0.0002432143106 | BM52: 0.0002287088998 | BN52: 0.0002146178301 | BO52: 0.0002013949306 | BP52: 0.0001889867122 | BQ52: 0.0001773429811 | BR52: 0.0001664166363 | BS52: 0.0001561634786 | BT52: 0.000146542032 | BU52: 0.000137513376 | BV52: 0.0001290409879 | BW52: 0.0001210905953 | BX52: 0.0001136300373 | BY52: 0.0001066291345 | BZ52: 0.000100059567 | CA52: 9.389475957e-05 | CB52: 8.810977438e-05 | CC52: =CC48 / CC$45 -> 8.268121008e-05 | CD52: 7.758710709e-05 | CE52: 7.280685879e-05 | CF52: 6.832112815e-05 | CG52: 6.411176954e-05 | CH52: 6.016175531e-05 | CI52: 5.645510688e-05 | CJ52: 5.297683015e-05 | CK52: 4.971285483e-05 | CL52: 4.664997752e-05 | CM52: 4.377580829e-05 | CN52: 4.107872057e-05 | CO52: 3.854780414e-05 | CP52: 3.617282095e-05 | CQ52: 3.394416373e-05 | CR52: 3.185281715e-05 | CS52: 2.989032131e-05 | CT52: 2.804873753e-05 | CU52: 2.632061626e-05 | CV52: 2.469896692e-05
I53: Gas Revenues | J53: =J49 / J$45 -> 0.001162876077 | K53: 0.001235111675 | L53: 0.001323438474 | M53: 0.0009122217354 | N53: 0.0007929631143 | O53: 0.00084855409 | P53: =P49 / P$45 -> 0.0009778710566 | Q53: 0.0008980993987 | R53: 0.001040105478 | S53: 0.00105199485 | T53: 0.001118372614 | U53: 0.001174871884 | V53: 0.001157630355 | W53: 0.001107214146 | X53: 0.001118259466 | Y53: 0.001135458496 | Z53: 0.0009079145305 | AA53: 0.0003142931292 | AB53: 0.0002972745742 | AC53: 0.0002811875392 | AD53: 0.002764037176 | AE53: 0.004778098993 | AF53: =AF49 / AF$45 -> 0.006034383352 | AG53: 0.008251998832 | AH53: 0.008149163848 | AI53: 0.008343629052 | AJ53: 0.0106845633 | AK53: 0.01018780817 | AL53: 0.01021758816 | AM53: 0.01007457512 | AN53: 0.009887631984 | AO53: 0.009465771798 | AP53: 0.009445038984 | AQ53: 0.01003772456 | AR53: 0.009863567802 | AS53: 0.01064965373 | AT53: 0.01041006198 | AU53: 0.009950029184 | AV53: 0.00846551976 | AW53: 0.007881138543 | AX53: 0.007314771842 | AY53: 0.006819038745 | AZ53: 0.007149157112 | BA53: 0.006893767769 | BB53: 0.006652857307 | BC53: 0.006455387148 | BD53: 0.00622588394 | BE53: 0.005911310669 | BF53: 0.005612769784 | BG53: 0.005127398401 | BH53: 0.003312127329 | BI53: 0.002529742807 | BJ53: 0.002413779192 | BK53: 0.002300386629 | BL53: =BL49 / BL$45 -> 0.001114272254 | BM53: 0 | BN53: 0 | BO53: 0 | BP53: 0 | BQ53: 0 | BR53: 0 | BS53: 0 | BT53: 0 | BU53: 0 | BV53: 0 | BW53: 0 | BX53: 0 | BY53: 0 | BZ53: 0 | CA53: 0 | CB53: 0 | CC53: =CC49 / CC$45 -> 0 | CD53: 0 | CE53: 0 | CF53: 0 | CG53: 0 | CH53: 0 | CI53: 0 | CJ53: 0 | CK53: 0 | CL53: 0 | CM53: 0 | CN53: 0 | CO53: 0 | CP53: 0 | CQ53: 0 | CR53: 0 | CS53: 0 | CT53: 0 | CU53: 0 | CV53: 0
A55: Domestic demand and supply, and take or pay penalties
F57: Domestic demand and supply chart
I58: Demand | J58: ='Demand & production'!J271/1000 -> 27.9 | K58: ='Demand & production'!K271/1000 -> 30.7 | L58: ='Demand & production'!L271/1000 -> 35.045 | M58: ='Demand & production'!M271/1000 -> 35.135 | N58: ='Demand & production'!N271/1000 -> 32.821 | O58: ='Demand & production'!O271/1000 -> 37.2789 | P58: ='Demand & production'!P271/1000 -> 45.686 | Q58: ='Demand & production'!Q271/1000 -> 47.9205 | R58: ='Demand & production'!R271/1000 -> 59.34 | S58: ='Demand & production'!S271/1000 -> 63.291 | T58: ='Demand & production'!T271/1000 -> 65.01876679 | U58: ='Demand & production'!U271/1000 -> 67.7711725 | V58: ='Demand & production'!V271/1000 -> 73.54894008 | W58: ='Demand & production'!W271/1000 -> 79.32670766 | X58: ='Demand & production'!X271/1000 -> 85.10447524 | Y58: ='Demand & production'!Y271/1000 -> 90.88224282 | Z58: ='Demand & production'!Z271/1000 -> 96.6600104 | AA58: ='Demand & production'!AA271/1000 -> 105.1464235 | AB58: ='Demand & production'!AB271/1000 -> 113.6328366 | AC58: ='Demand & production'!AC271/1000 -> 122.1192497 | AD58: ='Demand & production'!AD271/1000 -> 130.6056629 | AE58: ='Demand & production'!AE271/1000 -> 139.092076 | AF58: ='Demand & production'!AF271/1000 -> 151.0374816 | AG58: ='Demand & production'!AG271/1000 -> 162.9828873 | AH58: ='Demand & production'!AH271/1000 -> 174.928293 | AI58: ='Demand & production'!AI271/1000 -> 186.8736986 | AJ58: ='Demand & production'!AJ271/1000 -> 198.8191043 | AK58: ='Demand & production'!AK271/1000 -> 212.0943322 | AL58: ='Demand & production'!AL271/1000 -> 226.2559521 | AM58: ='Demand & production'!AM271/1000 -> 241.3631488 | AN58: ='Demand & production'!AN271/1000 -> 257.4790588 | AO58: ='Demand & production'!AO271/1000 -> 274.6710343 | AP58: ='Demand & production'!AP271/1000 -> 293.0109247 | AQ58: ='Demand & production'!AQ271/1000 -> 312.5753765 | AR58: ='Demand & production'!AR271/1000 -> 333.4461543 | AS58: ='Demand & production'!AS271/1000 -> 355.7104819 | AT58: ='Demand & production'!AT271/1000 -> 379.4614072 | AU58: ='Demand & production'!AU271/1000 -> 404.798191 | AV58: ='Demand & production'!AV271/1000 -> 431.8267214 | AW58: ='Demand & production'!AW271/1000 -> 460.6599573 | AX58: ='Demand & production'!AX271/1000 -> 491.4183993 | AY58: ='Demand & production'!AY271/1000 -> 491.4183993 | AZ58: ='Demand & production'!AZ271/1000 -> 491.4183993 | BA58: ='Demand & production'!BA271/1000 -> 491.4183993 | BB58: ='Demand & production'!BB271/1000 -> 491.4183993 | BC58: ='Demand & production'!BC271/1000 -> 491.4183993 | BD58: ='Demand & production'!BD271/1000 -> 491.4183993 | BE58: ='Demand & production'!BE271/1000 -> 491.4183993 | BF58: ='Demand & production'!BF271/1000 -> 491.4183993 | BG58: ='Demand & production'!BG271/1000 -> 491.4183993 | BH58: ='Demand & production'!BH271/1000 -> 491.4183993 | BI58: ='Demand & production'!BI271/1000 -> 491.4183993 | BJ58: ='Demand & production'!BJ271/1000 -> 491.4183993 | BK58: ='Demand & production'!BK271/1000 -> 491.4183993 | BL58: ='Demand & production'!BL271/1000 -> 491.4183993 | BM58: ='Demand & production'!BM271/1000 -> 491.4183993 | BN58: ='Demand & production'!BN271/1000 -> 491.4183993 | BO58: ='Demand & production'!BO271/1000 -> 491.4183993 | BP58: ='Demand & production'!BP271/1000 -> 491.4183993 | BQ58: ='Demand & production'!BQ271/1000 -> 491.4183993 | BR58: ='Demand & production'!BR271/1000 -> 491.4183993 | BS58: ='Demand & production'!BS271/1000 -> 491.4183993 | BT58: ='Demand & production'!BT271/1000 -> 491.4183993 | BU58: ='Demand & production'!BU271/1000 -> 491.4183993 | BV58: ='Demand & production'!BV271/1000 -> 491.4183993 | BW58: ='Demand & production'!BW271/1000 -> 491.4183993 | BX58: ='Demand & production'!BX271/1000 -> 491.4183993 | BY58: ='Demand & production'!BY271/1000 -> 491.4183993 | BZ58: ='Demand & production'!BZ271/1000 -> 491.4183993 | CA58: ='Demand & production'!CA271/1000 -> 491.4183993 | CB58: ='Demand & production'!CB271/1000 -> 491.4183993 | CC58: ='Demand & production'!CC271/1000 -> 491.4183993 | CD58: ='Demand & production'!CD271/1000 -> 491.4183993 | CE58: ='Demand & production'!CE271/1000 -> 491.4183993 | CF58: ='Demand & production'!CF271/1000 -> 491.4183993 | CG58: ='Demand & production'!CG271/1000 -> 491.4183993 | CH58: ='Demand & production'!CH271/1000 -> 491.4183993 | CI58: ='Demand & production'!CI271/1000 -> 491.4183993 | CJ58: ='Demand & production'!CJ271/1000 -> 491.4183993 | CK58: ='Demand & production'!CK271/1000 -> 491.4183993 | CL58: ='Demand & production'!CL271/1000 -> 491.4183993 | CM58: ='Demand & production'!CM271/1000 -> 491.4183993 | CN58: ='Demand & production'!CN271/1000 -> 491.4183993 | CO58: ='Demand & production'!CO271/1000 -> 491.4183993 | CP58: ='Demand & production'!CP271/1000 -> 491.4183993 | CQ58: ='Demand & production'!CQ271/1000 -> 491.4183993 | CR58: ='Demand & production'!CR271/1000 -> 491.4183993 | CS58: ='Demand & production'!CS271/1000 -> 491.4183993 | CT58: ='Demand & production'!CT271/1000 -> 491.4183993 | CU58: ='Demand & production'!CU271/1000 -> 491.4183993 | CV58: ='Demand & production'!CV271/1000 -> 491.4183993
I59: Onshore supply | J59: ='Demand & production'!J48/1000 -> 27.9 | K59: ='Demand & production'!K48/1000 -> 30.7 | L59: ='Demand & production'!L48/1000 -> 35.045 | M59: ='Demand & production'!M48/1000 -> 35.135 | N59: ='Demand & production'!N48/1000 -> 32.821 | O59: ='Demand & production'!O48/1000 -> 37.2789 | P59: ='Demand & production'!P48/1000 -> 45.686 | Q59: ='Demand & production'!Q48/1000 -> 47.9205 | R59: ='Demand & production'!R48/1000 -> 59.34 | S59: ='Demand & production'!S48/1000 -> 63.291 | T59: ='Demand & production'!T48/1000 -> 65.01876679 | U59: ='Demand & production'!U48/1000 -> 67.7711725 | V59: ='Demand & production'!V48/1000 -> 73.54894008 | W59: ='Demand & production'!W48/1000 -> 79.32670766 | X59: ='Demand & production'!X48/1000 -> 85.10447524 | Y59: ='Demand & production'!Y48/1000 -> 90.6135 | Z59: ='Demand & production'!Z48/1000 -> 90.6135 | AA59: ='Demand & production'!AA48/1000 -> 39.42893774 | AB59: ='Demand & production'!AB48/1000 -> 25.6595 | AC59: ='Demand & production'!AC48/1000 -> 25.6595 | AD59: ='Demand & production'!AD48/1000 -> 25.6595 | AE59: ='Demand & production'!AE48/1000 -> 25.6595 | AF59: ='Demand & production'!AF48/1000 -> 25.6595 | AG59: ='Demand & production'!AG48/1000 -> 25.6595 | AH59: ='Demand & production'!AH48/1000 -> 26.38 | AI59: ='Demand & production'!AI48/1000 -> 26.381 | AJ59: ='Demand & production'!AJ48/1000 -> 26.382 | AK59: ='Demand & production'!AK48/1000 -> 26.383 | AL59: ='Demand & production'!AL48/1000 -> 4.245 | AM59: ='Demand & production'!AM48/1000 -> 0 | AN59: ='Demand & production'!AN48/1000 -> 0 | AO59: ='Demand & production'!AO48/1000 -> 0 | AP59: ='Demand & production'!AP48/1000 -> 0 | AQ59: ='Demand & production'!AQ48/1000 -> 0 | AR59: ='Demand & production'!AR48/1000 -> 0 | AS59: ='Demand & production'!AS48/1000 -> 0 | AT59: ='Demand & production'!AT48/1000 -> 0 | AU59: ='Demand & production'!AU48/1000 -> 0 | AV59: ='Demand & production'!AV48/1000 -> 0 | AW59: ='Demand & production'!AW48/1000 -> 0 | AX59: ='Demand & production'!AX48/1000 -> 0 | AY59: ='Demand & production'!AY48/1000 -> 0 | AZ59: ='Demand & production'!AZ48/1000 -> 0 | BA59: ='Demand & production'!BA48/1000 -> 0 | BB59: ='Demand & production'!BB48/1000 -> 0 | BC59: ='Demand & production'!BC48/1000 -> 0 | BD59: ='Demand & production'!BD48/1000 -> 0 | BE59: ='Demand & production'!BE48/1000 -> 0 | BF59: ='Demand & production'!BF48/1000 -> 0 | BG59: ='Demand & production'!BG48/1000 -> 0 | BH59: ='Demand & production'!BH48/1000 -> 0 | BI59: ='Demand & production'!BI48/1000 -> 0 | BJ59: ='Demand & production'!BJ48/1000 -> 0 | BK59: ='Demand & production'!BK48/1000 -> 0 | BL59: ='Demand & production'!BL48/1000 -> 0 | BM59: ='Demand & production'!BM48/1000 -> 0 | BN59: ='Demand & production'!BN48/1000 -> 0 | BO59: ='Demand & production'!BO48/1000 -> 0 | BP59: ='Demand & production'!BP48/1000 -> 0 | BQ59: ='Demand & production'!BQ48/1000 -> 0 | BR59: ='Demand & production'!BR48/1000 -> 0 | BS59: ='Demand & production'!BS48/1000 -> 0 | BT59: ='Demand & production'!BT48/1000 -> 0 | BU59: ='Demand & production'!BU48/1000 -> 0 | BV59: ='Demand & production'!BV48/1000 -> 0 | BW59: ='Demand & production'!BW48/1000 -> 0 | BX59: ='Demand & production'!BX48/1000 -> 0 | BY59: ='Demand & production'!BY48/1000 -> 0 | BZ59: ='Demand & production'!BZ48/1000 -> 0 | CA59: ='Demand & production'!CA48/1000 -> 0 | CB59: ='Demand & production'!CB48/1000 -> 0 | CC59: ='Demand & production'!CC48/1000 -> 0 | CD59: ='Demand & production'!CD48/1000 -> 0 | CE59: ='Demand & production'!CE48/1000 -> 0 | CF59: ='Demand & production'!CF48/1000 -> 0 | CG59: ='Demand & production'!CG48/1000 -> 0 | CH59: ='Demand & production'!CH48/1000 -> 0 | CI59: ='Demand & production'!CI48/1000 -> 0 | CJ59: ='Demand & production'!CJ48/1000 -> 0 | CK59: ='Demand & production'!CK48/1000 -> 0 | CL59: ='Demand & production'!CL48/1000 -> 0 | CM59: ='Demand & production'!CM48/1000 -> 0 | CN59: ='Demand & production'!CN48/1000 -> 0 | CO59: ='Demand & production'!CO48/1000 -> 0 | CP59: ='Demand & production'!CP48/1000 -> 0 | CQ59: ='Demand & production'!CQ48/1000 -> 0 | CR59: ='Demand & production'!CR48/1000 -> 0 | CS59: ='Demand & production'!CS48/1000 -> 0 | CT59: ='Demand & production'!CT48/1000 -> 0 | CU59: ='Demand & production'!CU48/1000 -> 0 | CV59: ='Demand & production'!CV48/1000 -> 0
I60: Offshore supply | J60: =('Demand & production'!J88 + 'Demand & production'!J190)/1000 -> 0 | K60: =('Demand & production'!K88 + 'Demand & production'!K190)/1000 -> 0 | L60: =('Demand & production'!L88 + 'Demand & production'!L190)/1000 -> 0 | M60: =('Demand & production'!M88 + 'Demand & production'!M190)/1000 -> 0 | N60: =('Demand & production'!N88 + 'Demand & production'!N190)/1000 -> 0 | O60: =('Demand & production'!O88 + 'Demand & production'!O190)/1000 -> 0 | P60: =('Demand & production'!P88 + 'Demand & production'!P190)/1000 -> 0 | Q60: =('Demand & production'!Q88 + 'Demand & production'!Q190)/1000 -> 0 | R60: =('Demand & production'!R88 + 'Demand & production'!R190)/1000 -> 0 | S60: =('Demand & production'!S88 + 'Demand & production'!S190)/1000 -> 0 | T60: =('Demand & production'!T88 + 'Demand & production'!T190)/1000 -> 0 | U60: =('Demand & production'!U88 + 'Demand & production'!U190)/1000 -> 0 | V60: =('Demand & production'!V88 + 'Demand & production'!V190)/1000 -> 0 | W60: =('Demand & production'!W88 + 'Demand & production'!W190)/1000 -> 0 | X60: =('Demand & production'!X88 + 'Demand & production'!X190)/1000 -> 0 | Y60: =('Demand & production'!Y88 + 'Demand & production'!Y190)/1000 -> 0 | Z60: =('Demand & production'!Z88 + 'Demand & production'!Z190)/1000 -> 0 | AA60: =('Demand & production'!AA88 + 'Demand & production'!AA190)/1000 -> 0 | AB60: =('Demand & production'!AB88 + 'Demand & production'!AB190)/1000 -> 0 | AC60: =('Demand & production'!AC88 + 'Demand & production'!AC190)/1000 -> 0 | AD60: =('Demand & production'!AD88 + 'Demand & production'!AD190)/1000 -> 32.78654262 | AE60: =('Demand & production'!AE88 + 'Demand & production'!AE190)/1000 -> 65.57308524 | AF60: =('Demand & production'!AF88 + 'Demand & production'!AF190)/1000 -> 65.57308524 | AG60: =('Demand & production'!AG88 + 'Demand & production'!AG190)/1000 -> 65.57308524 | AH60: =('Demand & production'!AH88 + 'Demand & production'!AH190)/1000 -> 65.57308524 | AI60: =('Demand & production'!AI88 + 'Demand & production'!AI190)/1000 -> 65.57308524 | AJ60: =('Demand & production'!AJ88 + 'Demand & production'!AJ190)/1000 -> 65.57308524 | AK60: =('Demand & production'!AK88 + 'Demand & production'!AK190)/1000 -> 65.57308524 | AL60: =('Demand & production'!AL88 + 'Demand & production'!AL190)/1000 -> 65.57308524 | AM60: =('Demand & production'!AM88 + 'Demand & production'!AM190)/1000 -> 65.57308524 | AN60: =('Demand & production'!AN88 + 'Demand & production'!AN190)/1000 -> 65.57308524 | AO60: =('Demand & production'!AO88 + 'Demand & production'!AO190)/1000 -> 65.57308524 | AP60: =('Demand & production'!AP88 + 'Demand & production'!AP190)/1000 -> 65.57308524 | AQ60: =('Demand & production'!AQ88 + 'Demand & production'!AQ190)/1000 -> 65.57308524 | AR60: =('Demand & production'!AR88 + 'Demand & production'!AR190)/1000 -> 65.57308524 | AS60: =('Demand & production'!AS88 + 'Demand & production'!AS190)/1000 -> 65.57308524 | AT60: =('Demand & production'!AT88 + 'Demand & production'!AT190)/1000 -> 65.57308524 | AU60: =('Demand & production'!AU88 + 'Demand & production'!AU190)/1000 -> 65.57308524 | AV60: =('Demand & production'!AV88 + 'Demand & production'!AV190)/1000 -> 65.57308524 | AW60: =('Demand & production'!AW88 + 'Demand & production'!AW190)/1000 -> 65.57308524 | AX60: =('Demand & production'!AX88 + 'Demand & production'!AX190)/1000 -> 65.57308524 | AY60: =('Demand & production'!AY88 + 'Demand & production'!AY190)/1000 -> 65.57308524 | AZ60: =('Demand & production'!AZ88 + 'Demand & production'!AZ190)/1000 -> 65.57308524 | BA60: =('Demand & production'!BA88 + 'Demand & production'!BA190)/1000 -> 65.57308524 | BB60: =('Demand & production'!BB88 + 'Demand & production'!BB190)/1000 -> 65.57308524 | BC60: =('Demand & production'!BC88 + 'Demand & production'!BC190)/1000 -> 65.57308524 | BD60: =('Demand & production'!BD88 + 'Demand & production'!BD190)/1000 -> 65.57308524 | BE60: =('Demand & production'!BE88 + 'Demand & production'!BE190)/1000 -> 65.57308524 | BF60: =('Demand & production'!BF88 + 'Demand & production'!BF190)/1000 -> 65.57308524 | BG60: =('Demand & production'!BG88 + 'Demand & production'!BG190)/1000 -> 65.57308524 | BH60: =('Demand & production'!BH88 + 'Demand & production'!BH190)/1000 -> 65.57308524 | BI60: =('Demand & production'!BI88 + 'Demand & production'!BI190)/1000 -> 65.57308524 | BJ60: =('Demand & production'!BJ88 + 'Demand & production'!BJ190)/1000 -> 65.57308524 | BK60: =('Demand & production'!BK88 + 'Demand & production'!BK190)/1000 -> 65.57308524 | BL60: =('Demand & production'!BL88 + 'Demand & production'!BL190)/1000 -> 65.57308524 | BM60: =('Demand & production'!BM88 + 'Demand & production'!BM190)/1000 -> 0 | BN60: =('Demand & production'!BN88 + 'Demand & production'!BN190)/1000 -> 0 | BO60: =('Demand & production'!BO88 + 'Demand & production'!BO190)/1000 -> 0 | BP60: =('Demand & production'!BP88 + 'Demand & production'!BP190)/1000 -> 0 | BQ60: =('Demand & production'!BQ88 + 'Demand & production'!BQ190)/1000 -> 0 | BR60: =('Demand & production'!BR88 + 'Demand & production'!BR190)/1000 -> 0 | BS60: =('Demand & production'!BS88 + 'Demand & production'!BS190)/1000 -> 0 | BT60: =('Demand & production'!BT88 + 'Demand & production'!BT190)/1000 -> 0 | BU60: =('Demand & production'!BU88 + 'Demand & production'!BU190)/1000 -> 0 | BV60: =('Demand & production'!BV88 + 'Demand & production'!BV190)/1000 -> 0 | BW60: =('Demand & production'!BW88 + 'Demand & production'!BW190)/1000 -> 0 | BX60: =('Demand & production'!BX88 + 'Demand & production'!BX190)/1000 -> 0 | BY60: =('Demand & production'!BY88 + 'Demand & production'!BY190)/1000 -> 0 | BZ60: =('Demand & production'!BZ88 + 'Demand & production'!BZ190)/1000 -> 0 | CA60: =('Demand & production'!CA88 + 'Demand & production'!CA190)/1000 -> 0 | CB60: =('Demand & production'!CB88 + 'Demand & production'!CB190)/1000 -> 0 | CC60: =('Demand & production'!CC88 + 'Demand & production'!CC190)/1000 -> 0 | CD60: =('Demand & production'!CD88 + 'Demand & production'!CD190)/1000 -> 0 | CE60: =('Demand & production'!CE88 + 'Demand & production'!CE190)/1000 -> 0 | CF60: =('Demand & production'!CF88 + 'Demand & production'!CF190)/1000 -> 0 | CG60: =('Demand & production'!CG88 + 'Demand & production'!CG190)/1000 -> 0 | CH60: =('Demand & production'!CH88 + 'Demand & production'!CH190)/1000 -> 0 | CI60: =('Demand & production'!CI88 + 'Demand & production'!CI190)/1000 -> 0 | CJ60: =('Demand & production'!CJ88 + 'Demand & production'!CJ190)/1000 -> 0 | CK60: =('Demand & production'!CK88 + 'Demand & production'!CK190)/1000 -> 0 | CL60: =('Demand & production'!CL88 + 'Demand & production'!CL190)/1000 -> 0 | CM60: =('Demand & production'!CM88 + 'Demand & production'!CM190)/1000 -> 0 | CN60: =('Demand & production'!CN88 + 'Demand & production'!CN190)/1000 -> 0 | CO60: =('Demand & production'!CO88 + 'Demand & production'!CO190)/1000 -> 0 | CP60: =('Demand & production'!CP88 + 'Demand & production'!CP190)/1000 -> 0 | CQ60: =('Demand & production'!CQ88 + 'Demand & production'!CQ190)/1000 -> 0 | CR60: =('Demand & production'!CR88 + 'Demand & production'!CR190)/1000 -> 0 | CS60: =('Demand & production'!CS88 + 'Demand & production'!CS190)/1000 -> 0 | CT60: =('Demand & production'!CT88 + 'Demand & production'!CT190)/1000 -> 0 | CU60: =('Demand & production'!CU88 + 'Demand & production'!CU190)/1000 -> 0 | CV60: =('Demand & production'!CV88 + 'Demand & production'!CV190)/1000 -> 0
F62: Take or pay penalty chart
I63: Onshore | J63: ='Sector results'!J72 / 1000000000 -> 0 | K63: ='Sector results'!K72 / 1000000000 -> 0 | L63: ='Sector results'!L72 / 1000000000 -> 0 | M63: ='Sector results'!M72 / 1000000000 -> 0 | N63: ='Sector results'!N72 / 1000000000 -> 0 | O63: ='Sector results'!O72 / 1000000000 -> 0 | P63: ='Sector results'!P72 / 1000000000 -> 0 | Q63: ='Sector results'!Q72 / 1000000000 -> 0 | R63: ='Sector results'!R72 / 1000000000 -> 0 | S63: ='Sector results'!S72 / 1000000000 -> 0 | T63: ='Sector results'!T72 / 1000000000 -> 0.0216428155 | U63: ='Sector results'!U72 / 1000000000 -> 0.04318983586 | V63: ='Sector results'!V72 / 1000000000 -> 0.03211422808 | W63: ='Sector results'!W72 / 1000000000 -> 0.0112164703 | X63: ='Sector results'!X72 / 1000000000 -> 0.009660792516 | Y63: ='Sector results'!Y72 / 1000000000 -> 0 | Z63: ='Sector results'!Z72 / 1000000000 -> 0 | AA63: ='Sector results'!AA72 / 1000000000 -> 0 | AB63: ='Sector results'!AB72 / 1000000000 -> 0 | AC63: ='Sector results'!AC72 / 1000000000 -> 0 | AD63: ='Sector results'!AD72 / 1000000000 -> 0 | AE63: ='Sector results'!AE72 / 1000000000 -> 0 | AF63: ='Sector results'!AF72 / 1000000000 -> 0 | AG63: ='Sector results'!AG72 / 1000000000 -> 0 | AH63: ='Sector results'!AH72 / 1000000000 -> 0 | AI63: ='Sector results'!AI72 / 1000000000 -> 0 | AJ63: ='Sector results'!AJ72 / 1000000000 -> 0 | AK63: ='Sector results'!AK72 / 1000000000 -> 0 | AL63: ='Sector results'!AL72 / 1000000000 -> 0 | AM63: ='Sector results'!AM72 / 1000000000 -> 0 | AN63: ='Sector results'!AN72 / 1000000000 -> 0 | AO63: ='Sector results'!AO72 / 1000000000 -> 0 | AP63: ='Sector results'!AP72 / 1000000000 -> 0 | AQ63: ='Sector results'!AQ72 / 1000000000 -> 0 | AR63: ='Sector results'!AR72 / 1000000000 -> 0 | AS63: ='Sector results'!AS72 / 1000000000 -> 0 | AT63: ='Sector results'!AT72 / 1000000000 -> 0 | AU63: ='Sector results'!AU72 / 1000000000 -> 0 | AV63: ='Sector results'!AV72 / 1000000000 -> 0 | AW63: ='Sector results'!AW72 / 1000000000 -> 0 | AX63: ='Sector results'!AX72 / 1000000000 -> 0 | AY63: ='Sector results'!AY72 / 1000000000 -> 0 | AZ63: ='Sector results'!AZ72 / 1000000000 -> 0 | BA63: ='Sector results'!BA72 / 1000000000 -> 0 | BB63: ='Sector results'!BB72 / 1000000000 -> 0 | BC63: ='Sector results'!BC72 / 1000000000 -> 0 | BD63: ='Sector results'!BD72 / 1000000000 -> 0 | BE63: ='Sector results'!BE72 / 1000000000 -> 0 | BF63: ='Sector results'!BF72 / 1000000000 -> 0 | BG63: ='Sector results'!BG72 / 1000000000 -> 0 | BH63: ='Sector results'!BH72 / 1000000000 -> 0 | BI63: ='Sector results'!BI72 / 1000000000 -> 0 | BJ63: ='Sector results'!BJ72 / 1000000000 -> 0 | BK63: ='Sector results'!BK72 / 1000000000 -> 0 | BL63: ='Sector results'!BL72 / 1000000000 -> 0 | BM63: ='Sector results'!BM72 / 1000000000 -> 0 | BN63: ='Sector results'!BN72 / 1000000000 -> 0 | BO63: ='Sector results'!BO72 / 1000000000 -> 0 | BP63: ='Sector results'!BP72 / 1000000000 -> 0 | BQ63: ='Sector results'!BQ72 / 1000000000 -> 0 | BR63: ='Sector results'!BR72 / 1000000000 -> 0 | BS63: ='Sector results'!BS72 / 1000000000 -> 0 | BT63: ='Sector results'!BT72 / 1000000000 -> 0 | BU63: ='Sector results'!BU72 / 1000000000 -> 0 | BV63: ='Sector results'!BV72 / 1000000000 -> 0 | BW63: ='Sector results'!BW72 / 1000000000 -> 0 | BX63: ='Sector results'!BX72 / 1000000000 -> 0 | BY63: ='Sector results'!BY72 / 1000000000 -> 0 | BZ63: ='Sector results'!BZ72 / 1000000000 -> 0 | CA63: ='Sector results'!CA72 / 1000000000 -> 0 | CB63: ='Sector results'!CB72 / 1000000000 -> 0 | CC63: ='Sector results'!CC72 / 1000000000 -> 0 | CD63: ='Sector results'!CD72 / 1000000000 -> 0 | CE63: ='Sector results'!CE72 / 1000000000 -> 0 | CF63: ='Sector results'!CF72 / 1000000000 -> 0 | CG63: ='Sector results'!CG72 / 1000000000 -> 0 | CH63: ='Sector results'!CH72 / 1000000000 -> 0 | CI63: ='Sector results'!CI72 / 1000000000 -> 0 | CJ63: ='Sector results'!CJ72 / 1000000000 -> 0 | CK63: ='Sector results'!CK72 / 1000000000 -> 0 | CL63: ='Sector results'!CL72 / 1000000000 -> 0 | CM63: ='Sector results'!CM72 / 1000000000 -> 0 | CN63: ='Sector results'!CN72 / 1000000000 -> 0 | CO63: ='Sector results'!CO72 / 1000000000 -> 0 | CP63: ='Sector results'!CP72 / 1000000000 -> 0 | CQ63: ='Sector results'!CQ72 / 1000000000 -> 0 | CR63: ='Sector results'!CR72 / 1000000000 -> 0 | CS63: ='Sector results'!CS72 / 1000000000 -> 0 | CT63: ='Sector results'!CT72 / 1000000000 -> 0 | CU63: ='Sector results'!CU72 / 1000000000 -> 0 | CV63: ='Sector results'!CV72 / 1000000000 -> 0
I64: Offshore | J64: ='Sector results'!J73 / 1000000000 -> 0 | K64: ='Sector results'!K73 / 1000000000 -> 0 | L64: ='Sector results'!L73 / 1000000000 -> 0 | M64: ='Sector results'!M73 / 1000000000 -> 0 | N64: ='Sector results'!N73 / 1000000000 -> 0 | O64: ='Sector results'!O73 / 1000000000 -> 0 | P64: ='Sector results'!P73 / 1000000000 -> 0 | Q64: ='Sector results'!Q73 / 1000000000 -> 0 | R64: ='Sector results'!R73 / 1000000000 -> 0 | S64: ='Sector results'!S73 / 1000000000 -> 0 | T64: ='Sector results'!T73 / 1000000000 -> 0 | U64: ='Sector results'!U73 / 1000000000 -> 0 | V64: ='Sector results'!V73 / 1000000000 -> 0 | W64: ='Sector results'!W73 / 1000000000 -> 0 | X64: ='Sector results'!X73 / 1000000000 -> 0 | Y64: ='Sector results'!Y73 / 1000000000 -> 0 | Z64: ='Sector results'!Z73 / 1000000000 -> 0 | AA64: ='Sector results'!AA73 / 1000000000 -> 0 | AB64: ='Sector results'!AB73 / 1000000000 -> 0 | AC64: ='Sector results'!AC73 / 1000000000 -> 0 | AD64: ='Sector results'!AD73 / 1000000000 -> 0 | AE64: ='Sector results'!AE73 / 1000000000 -> 0 | AF64: ='Sector results'!AF73 / 1000000000 -> 0 | AG64: ='Sector results'!AG73 / 1000000000 -> 0 | AH64: ='Sector results'!AH73 / 1000000000 -> 0 | AI64: ='Sector results'!AI73 / 1000000000 -> 0 | AJ64: ='Sector results'!AJ73 / 1000000000 -> 0 | AK64: ='Sector results'!AK73 / 1000000000 -> 0 | AL64: ='Sector results'!AL73 / 1000000000 -> 0 | AM64: ='Sector results'!AM73 / 1000000000 -> 0 | AN64: ='Sector results'!AN73 / 1000000000 -> 0 | AO64: ='Sector results'!AO73 / 1000000000 -> 0 | AP64: ='Sector results'!AP73 / 1000000000 -> 0 | AQ64: ='Sector results'!AQ73 / 1000000000 -> 0 | AR64: ='Sector results'!AR73 / 1000000000 -> 0 | AS64: ='Sector results'!AS73 / 1000000000 -> 0 | AT64: ='Sector results'!AT73 / 1000000000 -> 0 | AU64: ='Sector results'!AU73 / 1000000000 -> 0 | AV64: ='Sector results'!AV73 / 1000000000 -> 0 | AW64: ='Sector results'!AW73 / 1000000000 -> 0 | AX64: ='Sector results'!AX73 / 1000000000 -> 0 | AY64: ='Sector results'!AY73 / 1000000000 -> 0 | AZ64: ='Sector results'!AZ73 / 1000000000 -> 0 | BA64: ='Sector results'!BA73 / 1000000000 -> 0 | BB64: ='Sector results'!BB73 / 1000000000 -> 0 | BC64: ='Sector results'!BC73 / 1000000000 -> 0 | BD64: ='Sector results'!BD73 / 1000000000 -> 0 | BE64: ='Sector results'!BE73 / 1000000000 -> 0 | BF64: ='Sector results'!BF73 / 1000000000 -> 0 | BG64: ='Sector results'!BG73 / 1000000000 -> 0 | BH64: ='Sector results'!BH73 / 1000000000 -> 0 | BI64: ='Sector results'!BI73 / 1000000000 -> 0 | BJ64: ='Sector results'!BJ73 / 1000000000 -> 0 | BK64: ='Sector results'!BK73 / 1000000000 -> 0 | BL64: ='Sector results'!BL73 / 1000000000 -> 0 | BM64: ='Sector results'!BM73 / 1000000000 -> 0 | BN64: ='Sector results'!BN73 / 1000000000 -> 0 | BO64: ='Sector results'!BO73 / 1000000000 -> 0 | BP64: ='Sector results'!BP73 / 1000000000 -> 0 | BQ64: ='Sector results'!BQ73 / 1000000000 -> 0 | BR64: ='Sector results'!BR73 / 1000000000 -> 0 | BS64: ='Sector results'!BS73 / 1000000000 -> 0 | BT64: ='Sector results'!BT73 / 1000000000 -> 0 | BU64: ='Sector results'!BU73 / 1000000000 -> 0 | BV64: ='Sector results'!BV73 / 1000000000 -> 0 | BW64: ='Sector results'!BW73 / 1000000000 -> 0 | BX64: ='Sector results'!BX73 / 1000000000 -> 0 | BY64: ='Sector results'!BY73 / 1000000000 -> 0 | BZ64: ='Sector results'!BZ73 / 1000000000 -> 0 | CA64: ='Sector results'!CA73 / 1000000000 -> 0 | CB64: ='Sector results'!CB73 / 1000000000 -> 0 | CC64: ='Sector results'!CC73 / 1000000000 -> 0 | CD64: ='Sector results'!CD73 / 1000000000 -> 0 | CE64: ='Sector results'!CE73 / 1000000000 -> 0 | CF64: ='Sector results'!CF73 / 1000000000 -> 0 | CG64: ='Sector results'!CG73 / 1000000000 -> 0 | CH64: ='Sector results'!CH73 / 1000000000 -> 0 | CI64: ='Sector results'!CI73 / 1000000000 -> 0 | CJ64: ='Sector results'!CJ73 / 1000000000 -> 0 | CK64: ='Sector results'!CK73 / 1000000000 -> 0 | CL64: ='Sector results'!CL73 / 1000000000 -> 0 | CM64: ='Sector results'!CM73 / 1000000000 -> 0 | CN64: ='Sector results'!CN73 / 1000000000 -> 0 | CO64: ='Sector results'!CO73 / 1000000000 -> 0 | CP64: ='Sector results'!CP73 / 1000000000 -> 0 | CQ64: ='Sector results'!CQ73 / 1000000000 -> 0 | CR64: ='Sector results'!CR73 / 1000000000 -> 0 | CS64: ='Sector results'!CS73 / 1000000000 -> 0 | CT64: ='Sector results'!CT73 / 1000000000 -> 0 | CU64: ='Sector results'!CU73 / 1000000000 -> 0 | CV64: ='Sector results'!CV73 / 1000000000 -> 0

Sheet Inputs
A1: Inputs
B3: Current year | C3: 2020
B5: Reserves
C7: Blocks 1 and 4 | D7: Block 2 | E7: Total
B8: 2P total (tcf) | C8: 15.0173573 | D8: 13.1482162 | E8: =SUM(C8:D8) -> 28.1655735
B9: 2P total (mmcf) | C9: =C8 * 10^6 -> 15017357.3 | D9: =D8 * 10^6 -> 13148216.2 | E9: =E8 * 10^6 -> 28165573.5 | H9: Conversion factors
H10: 1 mmcf of natural gas = | I10: 1035 | J10: mmbtu of natural gas
B11: O/w natural gas liquids (%) | C11: 0.0987097683 | D11: 0 | H11: 1 mmcf of natural gas = | I11: 2.1e-05 | J11: mmt of LNG
B12: O/w natural gas liquids (mmcf) | C12: =C9*C11 -> 1482359.86 | D12: =D9*D11 -> 0 | E12: =SUM(C12:D12) -> 1482359.86 | H12: 1 mmcf of natural gas = | I12: 167 | J12: boe of NGL
B13: O/w gas (mmcf) | C13: =C9-C12 -> 13534997.44 | D13: =D9-D12 -> 13148216.2 | E13: =SUM(C13:D13) -> 26683213.64 | H13: 1 mmbtu of LNG = | I13: 1.87e-08 | J13: mmt of LNG
B15: Acreage (km sq) | C15: 11975 | D15: 5568 | E15: -
B17: Block is part of proposed offshore project? (1 = Yes, 0 = No) | C17: 1 | D17: 1 | E17: -
B18: Block's reserves as proportion of project's overall reserves | C18: =(C8 * C17)/ ((C8 * C17) + (D8 * D17)) -> 0.5331813073 | D18: =(D8 * D17)/ ((C8 * C17) + (D8 * D17)) -> 0.4668186927 | E18: -
B20: Markets to be supplied with gas
B22: LNG export market (1 = Yes, 0 = No) | C22: 1
B23: Domestic market (1 = Yes, 0 = No) | C23: 1
B24: Regional market through pipeline (1 = Yes, 0 = No) | C24: 0
B26: Domestic market
C27: 2010 | D27: 2011 | E27: 2012 | F27: 2013 | G27: 2014 | H27: 2015 | I27: 2016 | J27: 2017 | K27: 2018 | L27: 2019 | M27: 2020 | N27: 2021 | O27: 2022 | P27: 2023 | Q27: 2024 | R27: 2025 | S27: 2026 | T27: 2027 | U27: 2028 | V27: 2029 | W27: 2030 | X27: 2031 | Y27: 2032 | Z27: 2033 | AA27: 2034 | AB27: 2035 | AC27: 2036 | AD27: 2037 | AE27: 2038 | AF27: 2039 | AG27: 2040 | AH27: 2041 | AI27: 2042 | AJ27: 2043 | AK27: 2044 | AL27: 2045 | AM27: 2046 | AN27: 2047 | AO27: 2048 | AP27: 2049 | AQ27: 2050 | AR27: 2051 | AS27: 2052 | AT27: 2053 | AU27: 2054 | AV27: 2055 | AW27: 2056 | AX27: 2057 | AY27: 2058 | AZ27: 2059 | BA27: 2060 | BB27: 2061 | BC27: 2062 | BD27: 2063 | BE27: 2064 | BF27: 2065 | BG27: 2066 | BH27: 2067 | BI27: 2068 | BJ27: 2069 | BK27: 2070 | BL27: 2071 | BM27: 2072 | BN27: 2073 | BO27: 2074 | BP27: 2075 | BQ27: 2076 | BR27: 2077 | BS27: 2078 | BT27: 2079 | BU27: 2080 | BV27: 2081 | BW27: 2082 | BX27: 2083 | BY27: 2084 | BZ27: 2085 | CA27: 2086 | CB27: 2087 | CC27: 2088 | CD27: 2089 | CE27: 2090 | CF27: 2091 | CG27: 2092 | CH27: 2093 | CI27: 2094 | CJ27: 2095 | CK27: 2096 | CL27: 2097 | CM27: 2098 | CN27: 2099 | CO27: 2100
B28: Historical domestic demand (mmcf) | C28: 27900 | D28: 30700 | E28: 35045 | F28: 35135 | G28: 32821 | H28: 37278.9 | I28: 45686 | J28: 47920.5 | K28: 59340 | L28: 63291
B30: Projected domestic demand (mmcf)
B31: 1. NGUMP 2016, base case, domestic only | M31: 67810 | N31: 151500 | O31: 161400 | P31: 199600 | Q31: 209800 | R31: 237700 | S31: 253000 | T31: 268600 | U31: 376500 | V31: 396200 | W31: 416000 | X31: 437100 | Y31: 491300 | Z31: 520100 | AA31: 542200 | AB31: 564000 | AC31: 586800 | AD31: 638400 | AE31: 704000 | AF31: 740000 | AG31: 772500 | AH31: 811900 | AI31: 864600 | AJ31: 929300 | AK31: 969800 | AL31: 1014400 | AM31: 1062500 | AN31: 1113600 | AO31: 1170000 | AP31: 1229700 | AQ31: 1294600 | AR31: 1294600 | AS31: 1294600 | AT31: 1294600 | AU31: 1294600 | AV31: 1294600 | AW31: 1294600 | AX31: 1294600 | AY31: 1294600 | AZ31: 1294600 | BA31: 1294600 | BB31: 1294600 | BC31: 1294600 | BD31: 1294600 | BE31: 1294600 | BF31: 1294600 | BG31: 1294600 | BH31: 1294600 | BI31: 1294600 | BJ31: 1294600 | BK31: 1294600 | BL31: 1294600 | BM31: 1294600 | BN31: 1294600 | BO31: 1294600 | BP31: 1294600 | BQ31: 1294600 | BR31: 1294600 | BS31: 1294600 | BT31: 1294600 | BU31: 1294600 | BV31: 1294600 | BW31: 1294600 | BX31: 1294600 | BY31: 1294600 | BZ31: 1294600 | CA31: 1294600 | CB31: 1294600 | CC31: 1294600 | CD31: 1294600 | CE31: 1294600 | CF31: 1294600 | CG31: 1294600 | CH31: 1294600 | CI31: 1294600 | CJ31: 1294600 | CK31: 1294600 | CL31: 1294600 | CM31: 1294600 | CN31: 1294600 | CO31: 1294600
B32: 2. Demierre et al 2014 | M32: 67810 | N32: 72329 | O32: 76848 | P32: 81367 | Q32: 85886 | R32: 90405 | S32: 94924 | T32: 99443 | U32: 103962 | V32: 108481 | W32: 113000 | X32: 145300 | Y32: 177600 | Z32: 209900 | AA32: 242200 | AB32: 274500 | AC32: 306800 | AD32: 339100 | AE32: 371400 | AF32: 403700 | AG32: 436000 | AH32: 487900 | AI32: 539800 | AJ32: 591700 | AK32: 643600 | AL32: 695500 | AM32: 747400 | AN32: 799300 | AO32: 851200 | AP32: 903100 | AQ32: 955000 | AR32: 955000 | AS32: 955000 | AT32: 955000 | AU32: 955000 | AV32: 955000 | AW32: 955000 | AX32: 955000 | AY32: 955000 | AZ32: 955000 | BA32: 955000 | BB32: 955000 | BC32: 955000 | BD32: 955000 | BE32: 955000 | BF32: 955000 | BG32: 955000 | BH32: 955000 | BI32: 955000 | BJ32: 955000 | BK32: 955000 | BL32: 955000 | BM32: 955000 | BN32: 955000 | BO32: 955000 | BP32: 955000 | BQ32: 955000 | BR32: 955000 | BS32: 955000 | BT32: 955000 | BU32: 955000 | BV32: 955000 | BW32: 955000 | BX32: 955000 | BY32: 955000 | BZ32: 955000 | CA32: 955000 | CB32: 955000 | CC32: 955000 | CD32: 955000 | CE32: 955000 | CF32: 955000 | CG32: 955000 | CH32: 955000 | CI32: 955000 | CJ32: 955000 | CK32: 955000 | CL32: 955000 | CM32: 955000 | CN32: 955000 | CO32: 955000
B33: 3. IEA STEPS 2019-20 | M33: 65018.76679 | N33: 67771.1725 | O33: 73548.94008 | P33: 79326.70766 | Q33: 85104.47524 | R33: 90882.24282 | S33: 96660.0104 | T33: 105146.4235 | U33: 113632.8366 | V33: 122119.2497 | W33: 130605.6629 | X33: 139092.076 | Y33: 151037.4816 | Z33: 162982.8873 | AA33: 174928.293 | AB33: 186873.6986 | AC33: 198819.1043 | AD33: 212094.3322 | AE33: 226255.9521 | AF33: 241363.1488 | AG33: 257479.0588 | AH33: 274671.0343 | AI33: 293010.9247 | AJ33: 312575.3765 | AK33: 333446.1543 | AL33: 355710.4819 | AM33: 379461.4072 | AN33: 404798.191 | AO33: 431826.7214 | AP33: 460659.9573 | AQ33: 491418.3993 | AR33: 491418.3993 | AS33: 491418.3993 | AT33: 491418.3993 | AU33: 491418.3993 | AV33: 491418.3993 | AW33: 491418.3993 | AX33: 491418.3993 | AY33: 491418.3993 | AZ33: 491418.3993 | BA33: 491418.3993 | BB33: 491418.3993 | BC33: 491418.3993 | BD33: 491418.3993 | BE33: 491418.3993 | BF33: 491418.3993 | BG33: 491418.3993 | BH33: 491418.3993 | BI33: 491418.3993 | BJ33: 491418.3993 | BK33: 491418.3993 | BL33: 491418.3993 | BM33: 491418.3993 | BN33: 491418.3993 | BO33: 491418.3993 | BP33: 491418.3993 | BQ33: 491418.3993 | BR33: 491418.3993 | BS33: 491418.3993 | BT33: 491418.3993 | BU33: 491418.3993 | BV33: 491418.3993 | BW33: 491418.3993 | BX33: 491418.3993 | BY33: 491418.3993 | BZ33: 491418.3993 | CA33: 491418.3993 | CB33: 491418.3993 | CC33: 491418.3993 | CD33: 491418.3993 | CE33: 491418.3993 | CF33: 491418.3993 | CG33: 491418.3993 | CH33: 491418.3993 | CI33: 491418.3993 | CJ33: 491418.3993 | CK33: 491418.3993 | CL33: 491418.3993 | CM33: 491418.3993 | CN33: 491418.3993 | CO33: 491418.3993
B34: 4. IEA SDS 2020 | M34: 67618.06863 | N34: 71835.17761 | O34: 79429.57748 | P34: 87254.9593 | Q34: 95311.32307 | R34: 103598.6688 | S34: 108353.4911 | T34: 115874.3801 | U34: 123073.6911 | V34: 129951.4241 | W34: 136507.5792 | X34: 141707.3731 | Y34: 149892.0799 | Z34: 157446.3992 | AA34: 164370.3309 | AB34: 170663.8751 | AC34: 174006.476 | AD34: 177553.0932 | AE34: 180797.5581 | AF34: 183683.7091 | AG34: 186149.2321 | AH34: 198578.4878 | AI34: 211837.6496 | AJ34: 225982.1307 | AK34: 241071.0443 | AL34: 257167.4504 | AM34: 274338.6197 | AN34: 292656.3145 | AO34: 312197.0889 | AP34: 333042.6083 | AQ34: 355279.991 | AR34: 355279.991 | AS34: 355279.991 | AT34: 355279.991 | AU34: 355279.991 | AV34: 355279.991 | AW34: 355279.991 | AX34: 355279.991 | AY34: 355279.991 | AZ34: 355279.991 | BA34: 355279.991 | BB34: 355279.991 | BC34: 355279.991 | BD34: 355279.991 | BE34: 355279.991 | BF34: 355279.991 | BG34: 355279.991 | BH34: 355279.991 | BI34: 355279.991 | BJ34: 355279.991 | BK34: 355279.991 | BL34: 355279.991 | BM34: 355279.991 | BN34: 355279.991 | BO34: 355279.991 | BP34: 355279.991 | BQ34: 355279.991 | BR34: 355279.991 | BS34: 355279.991 | BT34: 355279.991 | BU34: 355279.991 | BV34: 355279.991 | BW34: 355279.991 | BX34: 355279.991 | BY34: 355279.991 | BZ34: 355279.991 | CA34: 355279.991 | CB34: 355279.991 | CC34: 355279.991 | CD34: 355279.991 | CE34: 355279.991 | CF34: 355279.991 | CG34: 355279.991 | CH34: 355279.991 | CI34: 355279.991 | CJ34: 355279.991 | CK34: 355279.991 | CL34: 355279.991 | CM34: 355279.991 | CN34: 355279.991 | CO34: 355279.991
B35: Domestic demand scenario | C35: 3
B36: Domestic demand (mmcf) | C36: =IF(C27 < $C$3, C28, INDEX(Inputs!C31:C34, Inputs!$C$35)) -> 27900 | D36: =IF(D27 < $C$3, D28, INDEX(Inputs!D31:D34, Inputs!$C$35)) -> 30700 | E36: =IF(E27 < $C$3, E28, INDEX(Inputs!E31:E34, Inputs!$C$35)) -> 35045 | F36: =IF(F27 < $C$3, F28, INDEX(Inputs!F31:F34, Inputs!$C$35)) -> 35135 | G36: =IF(G27 < $C$3, G28, INDEX(Inputs!G31:G34, Inputs!$C$35)) -> 32821 | H36: =IF(H27 < $C$3, H28, INDEX(Inputs!H31:H34, Inputs!$C$35)) -> 37278.9 | I36: =IF(I27 < $C$3, I28, INDEX(Inputs!I31:I34, Inputs!$C$35)) -> 45686 | J36: =IF(J27 < $C$3, J28, INDEX(Inputs!J31:J34, Inputs!$C$35)) -> 47920.5 | K36: =IF(K27 < $C$3, K28, INDEX(Inputs!K31:K34, Inputs!$C$35)) -> 59340 | L36: =IF(L27 < $C$3, L28, INDEX(Inputs!L31:L34, Inputs!$C$35)) -> 63291 | M36: =IF(M27 < $C$3, M28, INDEX(Inputs!M31:M34, Inputs!$C$35)) -> 65018.76679 | N36: =IF(N27 < $C$3, N28, INDEX(Inputs!N31:N34, Inputs!$C$35)) -> 67771.1725 | O36: =IF(O27 < $C$3, O28, INDEX(Inputs!O31:O34, Inputs!$C$35)) -> 73548.94008 | P36: =IF(P27 < $C$3, P28, INDEX(Inputs!P31:P34, Inputs!$C$35)) -> 79326.70766 | Q36: =IF(Q27 < $C$3, Q28, INDEX(Inputs!Q31:Q34, Inputs!$C$35)) -> 85104.47524 | R36: =IF(R27 < $C$3, R28, INDEX(Inputs!R31:R34, Inputs!$C$35)) -> 90882.24282 | S36: =IF(S27 < $C$3, S28, INDEX(Inputs!S31:S34, Inputs!$C$35)) -> 96660.0104 | T36: =IF(T27 < $C$3, T28, INDEX(Inputs!T31:T34, Inputs!$C$35)) -> 105146.4235 | U36: =IF(U27 < $C$3, U28, INDEX(Inputs!U31:U34, Inputs!$C$35)) -> 113632.8366 | V36: =IF(V27 < $C$3, V28, INDEX(Inputs!V31:V34, Inputs!$C$35)) -> 122119.2497 | W36: =IF(W27 < $C$3, W28, INDEX(Inputs!W31:W34, Inputs!$C$35)) -> 130605.6629 | X36: =IF(X27 < $C$3, X28, INDEX(Inputs!X31:X34, Inputs!$C$35)) -> 139092.076 | Y36: =IF(Y27 < $C$3, Y28, INDEX(Inputs!Y31:Y34, Inputs!$C$35)) -> 151037.4816 | Z36: =IF(Z27 < $C$3, Z28, INDEX(Inputs!Z31:Z34, Inputs!$C$35)) -> 162982.8873 | AA36: =IF(AA27 < $C$3, AA28, INDEX(Inputs!AA31:AA34, Inputs!$C$35)) -> 174928.293 | AB36: =IF(AB27 < $C$3, AB28, INDEX(Inputs!AB31:AB34, Inputs!$C$35)) -> 186873.6986 | AC36: =IF(AC27 < $C$3, AC28, INDEX(Inputs!AC31:AC34, Inputs!$C$35)) -> 198819.1043 | AD36: =IF(AD27 < $C$3, AD28, INDEX(Inputs!AD31:AD34, Inputs!$C$35)) -> 212094.3322 | AE36: =IF(AE27 < $C$3, AE28, INDEX(Inputs!AE31:AE34, Inputs!$C$35)) -> 226255.9521 | AF36: =IF(AF27 < $C$3, AF28, INDEX(Inputs!AF31:AF34, Inputs!$C$35)) -> 241363.1488 | AG36: =IF(AG27 < $C$3, AG28, INDEX(Inputs!AG31:AG34, Inputs!$C$35)) -> 257479.0588 | AH36: =IF(AH27 < $C$3, AH28, INDEX(Inputs!AH31:AH34, Inputs!$C$35)) -> 274671.0343 | AI36: =IF(AI27 < $C$3, AI28, INDEX(Inputs!AI31:AI34, Inputs!$C$35)) -> 293010.9247 | AJ36: =IF(AJ27 < $C$3, AJ28, INDEX(Inputs!AJ31:AJ34, Inputs!$C$35)) -> 312575.3765 | AK36: =IF(AK27 < $C$3, AK28, INDEX(Inputs!AK31:AK34, Inputs!$C$35)) -> 333446.1543 | AL36: =IF(AL27 < $C$3, AL28, INDEX(Inputs!AL31:AL34, Inputs!$C$35)) -> 355710.4819 | AM36: =IF(AM27 < $C$3, AM28, INDEX(Inputs!AM31:AM34, Inputs!$C$35)) -> 379461.4072 | AN36: =IF(AN27 < $C$3, AN28, INDEX(Inputs!AN31:AN34, Inputs!$C$35)) -> 404798.191 | AO36: =IF(AO27 < $C$3, AO28, INDEX(Inputs!AO31:AO34, Inputs!$C$35)) -> 431826.7214 | AP36: =IF(AP27 < $C$3, AP28, INDEX(Inputs!AP31:AP34, Inputs!$C$35)) -> 460659.9573 | AQ36: =IF(AQ27 < $C$3, AQ28, INDEX(Inputs!AQ31:AQ34, Inputs!$C$35)) -> 491418.3993 | AR36: =IF(AR27 < $C$3, AR28, INDEX(Inputs!AR31:AR34, Inputs!$C$35)) -> 491418.3993 | AS36: =IF(AS27 < $C$3, AS28, INDEX(Inputs!AS31:AS34, Inputs!$C$35)) -> 491418.3993 | AT36: =IF(AT27 < $C$3, AT28, INDEX(Inputs!AT31:AT34, Inputs!$C$35)) -> 491418.3993 | AU36: =IF(AU27 < $C$3, AU28, INDEX(Inputs!AU31:AU34, Inputs!$C$35)) -> 491418.3993 | AV36: =IF(AV27 < $C$3, AV28, INDEX(Inputs!AV31:AV34, Inputs!$C$35)) -> 491418.3993 | AW36: =IF(AW27 < $C$3, AW28, INDEX(Inputs!AW31:AW34, Inputs!$C$35)) -> 491418.3993 | AX36: =IF(AX27 < $C$3, AX28, INDEX(Inputs!AX31:AX34, Inputs!$C$35)) -> 491418.3993 | AY36: =IF(AY27 < $C$3, AY28, INDEX(Inputs!AY31:AY34, Inputs!$C$35)) -> 491418.3993 | AZ36: =IF(AZ27 < $C$3, AZ28, INDEX(Inputs!AZ31:AZ34, Inputs!$C$35)) -> 491418.3993 | BA36: =IF(BA27 < $C$3, BA28, INDEX(Inputs!BA31:BA34, Inputs!$C$35)) -> 491418.3993 | BB36: =IF(BB27 < $C$3, BB28, INDEX(Inputs!BB31:BB34, Inputs!$C$35)) -> 491418.3993 | BC36: =IF(BC27 < $C$3, BC28, INDEX(Inputs!BC31:BC34, Inputs!$C$35)) -> 491418.3993 | BD36: =IF(BD27 < $C$3, BD28, INDEX(Inputs!BD31:BD34, Inputs!$C$35)) -> 491418.3993 | BE36: =IF(BE27 < $C$3, BE28, INDEX(Inputs!BE31:BE34, Inputs!$C$35)) -> 491418.3993 | BF36: =IF(BF27 < $C$3, BF28, INDEX(Inputs!BF31:BF34, Inputs!$C$35)) -> 491418.3993 | BG36: =IF(BG27 < $C$3, BG28, INDEX(Inputs!BG31:BG34, Inputs!$C$35)) -> 491418.3993 | BH36: =IF(BH27 < $C$3, BH28, INDEX(Inputs!BH31:BH34, Inputs!$C$35)) -> 491418.3993 | BI36: =IF(BI27 < $C$3, BI28, INDEX(Inputs!BI31:BI34, Inputs!$C$35)) -> 491418.3993 | BJ36: =IF(BJ27 < $C$3, BJ28, INDEX(Inputs!BJ31:BJ34, Inputs!$C$35)) -> 491418.3993 | BK36: =IF(BK27 < $C$3, BK28, INDEX(Inputs!BK31:BK34, Inputs!$C$35)) -> 491418.3993 | BL36: =IF(BL27 < $C$3, BL28, INDEX(Inputs!BL31:BL34, Inputs!$C$35)) -> 491418.3993 | BM36: =IF(BM27 < $C$3, BM28, INDEX(Inputs!BM31:BM34, Inputs!$C$35)) -> 491418.3993 | BN36: =IF(BN27 < $C$3, BN28, INDEX(Inputs!BN31:BN34, Inputs!$C$35)) -> 491418.3993 | BO36: =IF(BO27 < $C$3, BO28, INDEX(Inputs!BO31:BO34, Inputs!$C$35)) -> 491418.3993 | BP36: =IF(BP27 < $C$3, BP28, INDEX(Inputs!BP31:BP34, Inputs!$C$35)) -> 491418.3993 | BQ36: =IF(BQ27 < $C$3, BQ28, INDEX(Inputs!BQ31:BQ34, Inputs!$C$35)) -> 491418.3993 | BR36: =IF(BR27 < $C$3, BR28, INDEX(Inputs!BR31:BR34, Inputs!$C$35)) -> 491418.3993 | BS36: =IF(BS27 < $C$3, BS28, INDEX(Inputs!BS31:BS34, Inputs!$C$35)) -> 491418.3993 | BT36: =IF(BT27 < $C$3, BT28, INDEX(Inputs!BT31:BT34, Inputs!$C$35)) -> 491418.3993 | BU36: =IF(BU27 < $C$3, BU28, INDEX(Inputs!BU31:BU34, Inputs!$C$35)) -> 491418.3993 | BV36: =IF(BV27 < $C$3, BV28, INDEX(Inputs!BV31:BV34, Inputs!$C$35)) -> 491418.3993 | BW36: =IF(BW27 < $C$3, BW28, INDEX(Inputs!BW31:BW34, Inputs!$C$35)) -> 491418.3993 | BX36: =IF(BX27 < $C$3, BX28, INDEX(Inputs!BX31:BX34, Inputs!$C$35)) -> 491418.3993 | BY36: =IF(BY27 < $C$3, BY28, INDEX(Inputs!BY31:BY34, Inputs!$C$35)) -> 491418.3993 | BZ36: =IF(BZ27 < $C$3, BZ28, INDEX(Inputs!BZ31:BZ34, Inputs!$C$35)) -> 491418.3993 | CA36: =IF(CA27 < $C$3, CA28, INDEX(Inputs!CA31:CA34, Inputs!$C$35)) -> 491418.3993 | CB36: =IF(CB27 < $C$3, CB28, INDEX(Inputs!CB31:CB34, Inputs!$C$35)) -> 491418.3993 | CC36: =IF(CC27 < $C$3, CC28, INDEX(Inputs!CC31:CC34, Inputs!$C$35)) -> 491418.3993 | CD36: =IF(CD27 < $C$3, CD28, INDEX(Inputs!CD31:CD34, Inputs!$C$35)) -> 491418.3993 | CE36: =IF(CE27 < $C$3, CE28, INDEX(Inputs!CE31:CE34, Inputs!$C$35)) -> 491418.3993 | CF36: =IF(CF27 < $C$3, CF28, INDEX(Inputs!CF31:CF34, Inputs!$C$35)) -> 491418.3993 | CG36: =IF(CG27 < $C$3, CG28, INDEX(Inputs!CG31:CG34, Inputs!$C$35)) -> 491418.3993 | CH36: =IF(CH27 < $C$3, CH28, INDEX(Inputs!CH31:CH34, Inputs!$C$35)) -> 491418.3993 | CI36: =IF(CI27 < $C$3, CI28, INDEX(Inputs!CI31:CI34, Inputs!$C$35)) -> 491418.3993 | CJ36: =IF(CJ27 < $C$3, CJ28, INDEX(Inputs!CJ31:CJ34, Inputs!$C$35)) -> 491418.3993 | CK36: =IF(CK27 < $C$3, CK28, INDEX(Inputs!CK31:CK34, Inputs!$C$35)) -> 491418.3993 | CL36: =IF(CL27 < $C$3, CL28, INDEX(Inputs!CL31:CL34, Inputs!$C$35)) -> 491418.3993 | CM36: =IF(CM27 < $C$3, CM28, INDEX(Inputs!CM31:CM34, Inputs!$C$35)) -> 491418.3993 | CN36: =IF(CN27 < $C$3, CN28, INDEX(Inputs!CN31:CN34, Inputs!$C$35)) -> 491418.3993 | CO36: =IF(CO27 < $C$3, CO28, INDEX(Inputs!CO31:CO34, Inputs!$C$35)) -> 491418.3993
B38: Regional market
B39: Projected regional demand (mmcf)
B40: 1. NGUMP 2016, base case | W40: 146000 | X40: 146000 | Y40: 146000 | Z40: 146000 | AA40: 146000 | AB40: 146000 | AC40: 146000 | AD40: 146000 | AE40: 146000 | AF40: 146000 | AG40: 146000 | AH40: 146000 | AI40: 146000 | AJ40: 146000 | AK40: 146000 | AL40: 146000 | AM40: 146000 | AN40: 146000 | AO40: 146000 | AP40: 146000 | AQ40: 146000 | AR40: 146000 | AS40: 146000 | AT40: 146000 | AU40: 146000 | AV40: 146000 | AW40: 146000 | AX40: 146000 | AY40: 146000 | AZ40: 146000 | BA40: 146000 | BB40: 146000 | BC40: 146000 | BD40: 146000 | BE40: 146000 | BF40: 146000 | BG40: 146000 | BH40: 146000 | BI40: 146000 | BJ40: 146000 | BK40: 146000 | BL40: 146000 | BM40: 146000 | BN40: 146000 | BO40: 146000 | BP40: 146000 | BQ40: 146000 | BR40: 146000 | BS40: 146000 | BT40: 146000 | BU40: 146000 | BV40: 146000 | BW40: 146000 | BX40: 146000 | BY40: 146000 | BZ40: 146000 | CA40: 146000 | CB40: 146000 | CC40: 146000 | CD40: 146000 | CE40: 146000 | CF40: 146000 | CG40: 146000 | CH40: 146000 | CI40: 146000 | CJ40: 146000 | CK40: 146000 | CL40: 146000 | CM40: 146000 | CN40: 146000 | CO40: 146000
B41: 2. IEA STEPS 2019-20, Kenya | M41: 4591.207912 | N41: 4967.216582 | O41: 5343.225253 | P41: 5719.233923 | Q41: 6095.242593 | R41: 6471.251263 | S41: 7517.356805 | T41: 8563.462348 | U41: 9609.56789 | V41: 10655.67343 | W41: 11701.77898 | X41: 15748.9665 | Y41: 19796.15403 | Z41: 23843.34156 | AA41: 27890.52908 | AB41: 31937.71661 | AC41: 37913.1505 | AD41: 43888.58439 | AE41: 49864.01828 | AF41: 55839.45217 | AG41: 61814.88607 | AH41: 70516.08231 | AI41: 80442.07764 | AJ41: 91765.2774 | AK41: 104682.3551 | AL41: 119417.6684 | AM41: 136227.1562 | AN41: 155402.7835 | AO41: 177277.6134 | AP41: 202231.5913 | AQ41: 230698.1448 | AR41: 230698.1448 | AS41: 230698.1448 | AT41: 230698.1448 | AU41: 230698.1448 | AV41: 230698.1448 | AW41: 230698.1448 | AX41: 230698.1448 | AY41: 230698.1448 | AZ41: 230698.1448 | BA41: 230698.1448 | BB41: 230698.1448 | BC41: 230698.1448 | BD41: 230698.1448 | BE41: 230698.1448 | BF41: 230698.1448 | BG41: 230698.1448 | BH41: 230698.1448 | BI41: 230698.1448 | BJ41: 230698.1448 | BK41: 230698.1448 | BL41: 230698.1448 | BM41: 230698.1448 | BN41: 230698.1448 | BO41: 230698.1448 | BP41: 230698.1448 | BQ41: 230698.1448 | BR41: 230698.1448 | BS41: 230698.1448 | BT41: 230698.1448 | BU41: 230698.1448 | BV41: 230698.1448 | BW41: 230698.1448 | BX41: 230698.1448 | BY41: 230698.1448 | BZ41: 230698.1448 | CA41: 230698.1448 | CB41: 230698.1448 | CC41: 230698.1448 | CD41: 230698.1448 | CE41: 230698.1448 | CF41: 230698.1448 | CG41: 230698.1448 | CH41: 230698.1448 | CI41: 230698.1448 | CJ41: 230698.1448 | CK41: 230698.1448 | CL41: 230698.1448 | CM41: 230698.1448 | CN41: 230698.1448 | CO41: 230698.1448
B42: Regional demand scenario | C42: 2
B43: Regional pipeline start of operation | C43: 2030
B44: Regional demand that Tanzania can potentially meet (mmcf) | C44: =IF(AND($C$24 = 1, C27 >= $C$43), INDEX(Inputs!C40:C41,Inputs!$C$42), 0) -> 0 | D44: =IF(AND($C$24 = 1, D27 >= $C$43), INDEX(Inputs!D40:D41,Inputs!$C$42), 0) -> 0 | E44: =IF(AND($C$24 = 1, E27 >= $C$43), INDEX(Inputs!E40:E41,Inputs!$C$42), 0) -> 0 | F44: =IF(AND($C$24 = 1, F27 >= $C$43), INDEX(Inputs!F40:F41,Inputs!$C$42), 0) -> 0 | G44: =IF(AND($C$24 = 1, G27 >= $C$43), INDEX(Inputs!G40:G41,Inputs!$C$42), 0) -> 0 | H44: =IF(AND($C$24 = 1, H27 >= $C$43), INDEX(Inputs!H40:H41,Inputs!$C$42), 0) -> 0 | I44: =IF(AND($C$24 = 1, I27 >= $C$43), INDEX(Inputs!I40:I41,Inputs!$C$42), 0) -> 0 | J44: =IF(AND($C$24 = 1, J27 >= $C$43), INDEX(Inputs!J40:J41,Inputs!$C$42), 0) -> 0 | K44: =IF(AND($C$24 = 1, K27 >= $C$43), INDEX(Inputs!K40:K41,Inputs!$C$42), 0) -> 0 | L44: =IF(AND($C$24 = 1, L27 >= $C$43), INDEX(Inputs!L40:L41,Inputs!$C$42), 0) -> 0 | M44: =IF(AND($C$24 = 1, M27 >= $C$43), INDEX(Inputs!M40:M41,Inputs!$C$42), 0) -> 0 | N44: =IF(AND($C$24 = 1, N27 >= $C$43), INDEX(Inputs!N40:N41,Inputs!$C$42), 0) -> 0 | O44: =IF(AND($C$24 = 1, O27 >= $C$43), INDEX(Inputs!O40:O41,Inputs!$C$42), 0) -> 0 | P44: =IF(AND($C$24 = 1, P27 >= $C$43), INDEX(Inputs!P40:P41,Inputs!$C$42), 0) -> 0 | Q44: =IF(AND($C$24 = 1, Q27 >= $C$43), INDEX(Inputs!Q40:Q41,Inputs!$C$42), 0) -> 0 | R44: =IF(AND($C$24 = 1, R27 >= $C$43), INDEX(Inputs!R40:R41,Inputs!$C$42), 0) -> 0 | S44: =IF(AND($C$24 = 1, S27 >= $C$43), INDEX(Inputs!S40:S41,Inputs!$C$42), 0) -> 0 | T44: =IF(AND($C$24 = 1, T27 >= $C$43), INDEX(Inputs!T40:T41,Inputs!$C$42), 0) -> 0 | U44: =IF(AND($C$24 = 1, U27 >= $C$43), INDEX(Inputs!U40:U41,Inputs!$C$42), 0) -> 0 | V44: =IF(AND($C$24 = 1, V27 >= $C$43), INDEX(Inputs!V40:V41,Inputs!$C$42), 0) -> 0 | W44: =IF(AND($C$24 = 1, W27 >= $C$43), INDEX(Inputs!W40:W41,Inputs!$C$42), 0) -> 0 | X44: =IF(AND($C$24 = 1, X27 >= $C$43), INDEX(Inputs!X40:X41,Inputs!$C$42), 0) -> 0 | Y44: =IF(AND($C$24 = 1, Y27 >= $C$43), INDEX(Inputs!Y40:Y41,Inputs!$C$42), 0) -> 0 | Z44: =IF(AND($C$24 = 1, Z27 >= $C$43), INDEX(Inputs!Z40:Z41,Inputs!$C$42), 0) -> 0 | AA44: =IF(AND($C$24 = 1, AA27 >= $C$43), INDEX(Inputs!AA40:AA41,Inputs!$C$42), 0) -> 0 | AB44: =IF(AND($C$24 = 1, AB27 >= $C$43), INDEX(Inputs!AB40:AB41,Inputs!$C$42), 0) -> 0 | AC44: =IF(AND($C$24 = 1, AC27 >= $C$43), INDEX(Inputs!AC40:AC41,Inputs!$C$42), 0) -> 0 | AD44: =IF(AND($C$24 = 1, AD27 >= $C$43), INDEX(Inputs!AD40:AD41,Inputs!$C$42), 0) -> 0 | AE44: =IF(AND($C$24 = 1, AE27 >= $C$43), INDEX(Inputs!AE40:AE41,Inputs!$C$42), 0) -> 0 | AF44: =IF(AND($C$24 = 1, AF27 >= $C$43), INDEX(Inputs!AF40:AF41,Inputs!$C$42), 0) -> 0 | AG44: =IF(AND($C$24 = 1, AG27 >= $C$43), INDEX(Inputs!AG40:AG41,Inputs!$C$42), 0) -> 0 | AH44: =IF(AND($C$24 = 1, AH27 >= $C$43), INDEX(Inputs!AH40:AH41,Inputs!$C$42), 0) -> 0 | AI44: =IF(AND($C$24 = 1, AI27 >= $C$43), INDEX(Inputs!AI40:AI41,Inputs!$C$42), 0) -> 0 | AJ44: =IF(AND($C$24 = 1, AJ27 >= $C$43), INDEX(Inputs!AJ40:AJ41,Inputs!$C$42), 0) -> 0 | AK44: =IF(AND($C$24 = 1, AK27 >= $C$43), INDEX(Inputs!AK40:AK41,Inputs!$C$42), 0) -> 0 | AL44: =IF(AND($C$24 = 1, AL27 >= $C$43), INDEX(Inputs!AL40:AL41,Inputs!$C$42), 0) -> 0 | AM44: =IF(AND($C$24 = 1, AM27 >= $C$43), INDEX(Inputs!AM40:AM41,Inputs!$C$42), 0) -> 0 | AN44: =IF(AND($C$24 = 1, AN27 >= $C$43), INDEX(Inputs!AN40:AN41,Inputs!$C$42), 0) -> 0 | AO44: =IF(AND($C$24 = 1, AO27 >= $C$43), INDEX(Inputs!AO40:AO41,Inputs!$C$42), 0) -> 0 | AP44: =IF(AND($C$24 = 1, AP27 >= $C$43), INDEX(Inputs!AP40:AP41,Inputs!$C$42), 0) -> 0 | AQ44: =IF(AND($C$24 = 1, AQ27 >= $C$43), INDEX(Inputs!AQ40:AQ41,Inputs!$C$42), 0) -> 0 | AR44: =IF(AND($C$24 = 1, AR27 >= $C$43), INDEX(Inputs!AR40:AR41,Inputs!$C$42), 0) -> 0 | AS44: =IF(AND($C$24 = 1, AS27 >= $C$43), INDEX(Inputs!AS40:AS41,Inputs!$C$42), 0) -> 0 | AT44: =IF(AND($C$24 = 1, AT27 >= $C$43), INDEX(Inputs!AT40:AT41,Inputs!$C$42), 0) -> 0 | AU44: =IF(AND($C$24 = 1, AU27 >= $C$43), INDEX(Inputs!AU40:AU41,Inputs!$C$42), 0) -> 0 | AV44: =IF(AND($C$24 = 1, AV27 >= $C$43), INDEX(Inputs!AV40:AV41,Inputs!$C$42), 0) -> 0 | AW44: =IF(AND($C$24 = 1, AW27 >= $C$43), INDEX(Inputs!AW40:AW41,Inputs!$C$42), 0) -> 0 | AX44: =IF(AND($C$24 = 1, AX27 >= $C$43), INDEX(Inputs!AX40:AX41,Inputs!$C$42), 0) -> 0 | AY44: =IF(AND($C$24 = 1, AY27 >= $C$43), INDEX(Inputs!AY40:AY41,Inputs!$C$42), 0) -> 0 | AZ44: =IF(AND($C$24 = 1, AZ27 >= $C$43), INDEX(Inputs!AZ40:AZ41,Inputs!$C$42), 0) -> 0 | BA44: =IF(AND($C$24 = 1, BA27 >= $C$43), INDEX(Inputs!BA40:BA41,Inputs!$C$42), 0) -> 0 | BB44: =IF(AND($C$24 = 1, BB27 >= $C$43), INDEX(Inputs!BB40:BB41,Inputs!$C$42), 0) -> 0 | BC44: =IF(AND($C$24 = 1, BC27 >= $C$43), INDEX(Inputs!BC40:BC41,Inputs!$C$42), 0) -> 0 | BD44: =IF(AND($C$24 = 1, BD27 >= $C$43), INDEX(Inputs!BD40:BD41,Inputs!$C$42), 0) -> 0 | BE44: =IF(AND($C$24 = 1, BE27 >= $C$43), INDEX(Inputs!BE40:BE41,Inputs!$C$42), 0) -> 0 | BF44: =IF(AND($C$24 = 1, BF27 >= $C$43), INDEX(Inputs!BF40:BF41,Inputs!$C$42), 0) -> 0 | BG44: =IF(AND($C$24 = 1, BG27 >= $C$43), INDEX(Inputs!BG40:BG41,Inputs!$C$42), 0) -> 0 | BH44: =IF(AND($C$24 = 1, BH27 >= $C$43), INDEX(Inputs!BH40:BH41,Inputs!$C$42), 0) -> 0 | BI44: =IF(AND($C$24 = 1, BI27 >= $C$43), INDEX(Inputs!BI40:BI41,Inputs!$C$42), 0) -> 0 | BJ44: =IF(AND($C$24 = 1, BJ27 >= $C$43), INDEX(Inputs!BJ40:BJ41,Inputs!$C$42), 0) -> 0 | BK44: =IF(AND($C$24 = 1, BK27 >= $C$43), INDEX(Inputs!BK40:BK41,Inputs!$C$42), 0) -> 0 | BL44: =IF(AND($C$24 = 1, BL27 >= $C$43), INDEX(Inputs!BL40:BL41,Inputs!$C$42), 0) -> 0 | BM44: =IF(AND($C$24 = 1, BM27 >= $C$43), INDEX(Inputs!BM40:BM41,Inputs!$C$42), 0) -> 0 | BN44: =IF(AND($C$24 = 1, BN27 >= $C$43), INDEX(Inputs!BN40:BN41,Inputs!$C$42), 0) -> 0 | BO44: =IF(AND($C$24 = 1, BO27 >= $C$43), INDEX(Inputs!BO40:BO41,Inputs!$C$42), 0) -> 0 | BP44: =IF(AND($C$24 = 1, BP27 >= $C$43), INDEX(Inputs!BP40:BP41,Inputs!$C$42), 0) -> 0 | BQ44: =IF(AND($C$24 = 1, BQ27 >= $C$43), INDEX(Inputs!BQ40:BQ41,Inputs!$C$42), 0) -> 0 | BR44: =IF(AND($C$24 = 1, BR27 >= $C$43), INDEX(Inputs!BR40:BR41,Inputs!$C$42), 0) -> 0 | BS44: =IF(AND($C$24 = 1, BS27 >= $C$43), INDEX(Inputs!BS40:BS41,Inputs!$C$42), 0) -> 0 | BT44: =IF(AND($C$24 = 1, BT27 >= $C$43), INDEX(Inputs!BT40:BT41,Inputs!$C$42), 0) -> 0 | BU44: =IF(AND($C$24 = 1, BU27 >= $C$43), INDEX(Inputs!BU40:BU41,Inputs!$C$42), 0) -> 0 | BV44: =IF(AND($C$24 = 1, BV27 >= $C$43), INDEX(Inputs!BV40:BV41,Inputs!$C$42), 0) -> 0 | BW44: =IF(AND($C$24 = 1, BW27 >= $C$43), INDEX(Inputs!BW40:BW41,Inputs!$C$42), 0) -> 0 | BX44: =IF(AND($C$24 = 1, BX27 >= $C$43), INDEX(Inputs!BX40:BX41,Inputs!$C$42), 0) -> 0 | BY44: =IF(AND($C$24 = 1, BY27 >= $C$43), INDEX(Inputs!BY40:BY41,Inputs!$C$42), 0) -> 0 | BZ44: =IF(AND($C$24 = 1, BZ27 >= $C$43), INDEX(Inputs!BZ40:BZ41,Inputs!$C$42), 0) -> 0 | CA44: =IF(AND($C$24 = 1, CA27 >= $C$43), INDEX(Inputs!CA40:CA41,Inputs!$C$42), 0) -> 0 | CB44: =IF(AND($C$24 = 1, CB27 >= $C$43), INDEX(Inputs!CB40:CB41,Inputs!$C$42), 0) -> 0 | CC44: =IF(AND($C$24 = 1, CC27 >= $C$43), INDEX(Inputs!CC40:CC41,Inputs!$C$42), 0) -> 0 | CD44: =IF(AND($C$24 = 1, CD27 >= $C$43), INDEX(Inputs!CD40:CD41,Inputs!$C$42), 0) -> 0 | CE44: =IF(AND($C$24 = 1, CE27 >= $C$43), INDEX(Inputs!CE40:CE41,Inputs!$C$42), 0) -> 0 | CF44: =IF(AND($C$24 = 1, CF27 >= $C$43), INDEX(Inputs!CF40:CF41,Inputs!$C$42), 0) -> 0 | CG44: =IF(AND($C$24 = 1, CG27 >= $C$43), INDEX(Inputs!CG40:CG41,Inputs!$C$42), 0) -> 0 | CH44: =IF(AND($C$24 = 1, CH27 >= $C$43), INDEX(Inputs!CH40:CH41,Inputs!$C$42), 0) -> 0 | CI44: =IF(AND($C$24 = 1, CI27 >= $C$43), INDEX(Inputs!CI40:CI41,Inputs!$C$42), 0) -> 0 | CJ44: =IF(AND($C$24 = 1, CJ27 >= $C$43), INDEX(Inputs!CJ40:CJ41,Inputs!$C$42), 0) -> 0 | CK44: =IF(AND($C$24 = 1, CK27 >= $C$43), INDEX(Inputs!CK40:CK41,Inputs!$C$42), 0) -> 0 | CL44: =IF(AND($C$24 = 1, CL27 >= $C$43), INDEX(Inputs!CL40:CL41,Inputs!$C$42), 0) -> 0 | CM44: =IF(AND($C$24 = 1, CM27 >= $C$43), INDEX(Inputs!CM40:CM41,Inputs!$C$42), 0) -> 0 | CN44: =IF(AND($C$24 = 1, CN27 >= $C$43), INDEX(Inputs!CN40:CN41,Inputs!$C$42), 0) -> 0 | CO44: =IF(AND($C$24 = 1, CO27 >= $C$43), INDEX(Inputs!CO40:CO41,Inputs!$C$42), 0) -> 0
B46: Project timeline
B48: Exploration start | C48: 2010
B49: Final investment decision | C49: 2025
B50: Production start | C50: 2030
B52: Production capacity and allocation
B54: Blocks 1 and 4 planned production capacity
B55: Calculating possible production capacity limit based on other assumptions
B56: Maximum planned gas production for Domestic Supply Obligation (DSO) (mmcf) | C56: =MAX(C77:CO77) -> 27462.31365
B57: Maximum planned gas production for LNG (mmcf) | C57: =(SUM(C96:BU96) / I11) / (100% - $C$92) -> 370370.3704
B58: Maximum planned NGL production (mmcf) | C58: =(SUM(C56:C57)/(1 - C11)) - SUM(C56:C57) -> 43570.83954
B59: Maximum planned production (mmcf) | C59: =SUM(C56:C58) -> 441403.5236
E60: =IF('Demand & production'!F149 > 0.1, "Project not utilizing all reserves", "") -> 
B61: Production capacity limit (mmcfpa) | C61: 442000
B63: Daily production capacity of average well at plateau (mmcf) | C63: 150 | E63: =IF(OR('Demand & production'!F725 > 0.1, 'Demand & production'!F725 < -0.1), "Insufficient wells in operation - change assumptions or add more in 'Demand & Production' sheet", "") -> 
B64: Years of production of average well | C64: 10
B66: Blocks 1 and 4 Domestic Supply Obligation (DSO)
B67: DSO from offshore reserves | C67: 0.07
B68: DSO from offshore reserves (mmcf) | C68: =C13 * C67 -> 947449.8208
B69: Planned number of years of DSO production | C69: 35 | E69: =IF(AND(C71 = 0, C69 < COUNTIF(C76:CO76, ">0")), "Planned years of DSO production less than years implied by DSO schedule in Row 76", "") -> 
B71: Annual DSO is constant volume? (1 = Yes, 0 = No) | C71: 1
B72: Years it takes for DSO to reach constant volume (0 = at constant volume immediately) | C72: 1
B73: Annual DSO at constant volume (mmcf) | C73: =C68 / (C69 - (C72 / 2)) -> 27462.31365
C74: 2010 | D74: 2011 | E74: 2012 | F74: 2013 | G74: 2014 | H74: 2015 | I74: 2016 | J74: 2017 | K74: 2018 | L74: 2019 | M74: 2020 | N74: 2021 | O74: 2022 | P74: 2023 | Q74: 2024 | R74: 2025 | S74: 2026 | T74: 2027 | U74: 2028 | V74: 2029 | W74: 2030 | X74: 2031 | Y74: 2032 | Z74: 2033 | AA74: 2034 | AB74: 2035 | AC74: 2036 | AD74: 2037 | AE74: 2038 | AF74: 2039 | AG74: 2040 | AH74: 2041 | AI74: 2042 | AJ74: 2043 | AK74: 2044 | AL74: 2045 | AM74: 2046 | AN74: 2047 | AO74: 2048 | AP74: 2049 | AQ74: 2050 | AR74: 2051 | AS74: 2052 | AT74: 2053 | AU74: 2054 | AV74: 2055 | AW74: 2056 | AX74: 2057 | AY74: 2058 | AZ74: 2059 | BA74: 2060 | BB74: 2061 | BC74: 2062 | BD74: 2063 | BE74: 2064 | BF74: 2065 | BG74: 2066 | BH74: 2067 | BI74: 2068 | BJ74: 2069 | BK74: 2070 | BL74: 2071 | BM74: 2072 | BN74: 2073 | BO74: 2074 | BP74: 2075 | BQ74: 2076 | BR74: 2077 | BS74: 2078 | BT74: 2079 | BU74: 2080 | BV74: 2081 | BW74: 2082 | BX74: 2083 | BY74: 2084 | BZ74: 2085 | CA74: 2086 | CB74: 2087 | CC74: 2088 | CD74: 2089 | CE74: 2090 | CF74: 2091 | CG74: 2092 | CH74: 2093 | CI74: 2094 | CJ74: 2095 | CK74: 2096 | CL74: 2097 | CM74: 2098 | CN74: 2099 | CO74: 2100
B75: Annual DSO if constant volume (mmcf) | C75: =(IF(OR(C74 < $C$50, C74 >= ($C$50 + $C$69)), 0, IF(C74 = $C$50, $C$73 / ($C$72 + 1), IF(AND(C74 > $C$50, C74 <= $C$50 + $C$72 - 1), B75 + ($C$73 / ($C$72 + 1)), $C$73)))) -> 0 | D75: =(IF(OR(D74 < $C$50, D74 >= ($C$50 + $C$69)), 0, IF(D74 = $C$50, $C$73 / ($C$72 + 1), IF(AND(D74 > $C$50, D74 <= $C$50 + $C$72 - 1), C75 + ($C$73 / ($C$72 + 1)), $C$73)))) -> 0 | E75: 0 | F75: 0 | G75: 0 | H75: 0 | I75: 0 | J75: 0 | K75: 0 | L75: 0 | M75: 0 | N75: 0 | O75: 0 | P75: 0 | Q75: 0 | R75: 0 | S75: 0 | T75: 0 | U75: 0 | V75: 0 | W75: 13731.15682 | X75: 27462.31365 | Y75: 27462.31365 | Z75: 27462.31365 | AA75: 27462.31365 | AB75: 27462.31365 | AC75: 27462.31365 | AD75: 27462.31365 | AE75: 27462.31365 | AF75: 27462.31365 | AG75: 27462.31365 | AH75: 27462.31365 | AI75: 27462.31365 | AJ75: 27462.31365 | AK75: 27462.31365 | AL75: 27462.31365 | AM75: 27462.31365 | AN75: 27462.31365 | AO75: 27462.31365 | AP75: 27462.31365 | AQ75: 27462.31365 | AR75: 27462.31365 | AS75: 27462.31365 | AT75: 27462.31365 | AU75: 27462.31365 | AV75: 27462.31365 | AW75: 27462.31365 | AX75: 27462.31365 | AY75: 27462.31365 | AZ75: 27462.31365 | BA75: 27462.31365 | BB75: 27462.31365 | BC75: 27462.31365 | BD75: 27462.31365 | BE75: 27462.31365 | BF75: 0 | BG75: 0 | BH75: 0 | BI75: 0 | BJ75: 0 | BK75: 0 | BL75: 0 | BM75: 0 | BN75: 0 | BO75: 0 | BP75: =(IF(OR(BP74 < $C$50, BP74 >= ($C$50 + $C$69)), 0, IF(BP74 = $C$50, $C$73 / ($C$72 + 1), IF(AND(BP74 > $C$50, BP74 <= $C$50 + $C$72 - 1), BO75 + ($C$73 / ($C$72 + 1)), $C$73)))) -> 0 | BQ75: 0 | BR75: 0 | BS75: 0 | BT75: 0 | BU75: 0 | BV75: 0 | BW75: 0 | BX75: 0 | BY75: 0 | BZ75: 0 | CA75: 0 | CB75: 0 | CC75: 0 | CD75: 0 | CE75: 0 | CF75: 0 | CG75: 0 | CH75: 0 | CI75: 0 | CJ75: 0 | CK75: 0 | CL75: 0 | CM75: 0 | CN75: 0 | CO75: 0
B76: Annual DSO if variable volume (mmcf)
B77: Annual volume allocated to DSO (mmcf) | C77: =IF($C$71=1, C75, C76) -> 0 | D77: 0 | E77: 0 | F77: 0 | G77: 0 | H77: 0 | I77: 0 | J77: 0 | K77: 0 | L77: 0 | M77: 0 | N77: 0 | O77: 0 | P77: 0 | Q77: 0 | R77: 0 | S77: 0 | T77: 0 | U77: 0 | V77: 0 | W77: 13731.15682 | X77: 27462.31365 | Y77: 27462.31365 | Z77: 27462.31365 | AA77: 27462.31365 | AB77: 27462.31365 | AC77: 27462.31365 | AD77: 27462.31365 | AE77: 27462.31365 | AF77: 27462.31365 | AG77: 27462.31365 | AH77: 27462.31365 | AI77: =IF($C$71=1, AI75, AI76) -> 27462.31365 | AJ77: 27462.31365 | AK77: 27462.31365 | AL77: 27462.31365 | AM77: 27462.31365 | AN77: 27462.31365 | AO77: 27462.31365 | AP77: 27462.31365 | AQ77: 27462.31365 | AR77: 27462.31365 | AS77: 27462.31365 | AT77: 27462.31365 | AU77: 27462.31365 | AV77: 27462.31365 | AW77: 27462.31365 | AX77: 27462.31365 | AY77: 27462.31365 | AZ77: 27462.31365 | BA77: 27462.31365 | BB77: 27462.31365 | BC77: 27462.31365 | BD77: 27462.31365 | BE77: 27462.31365 | BF77: 0 | BG77: 0 | BH77: 0 | BI77: 0 | BJ77: 0 | BK77: 0 | BL77: 0 | BM77: 0 | BN77: 0 | BO77: =IF($C$71=1, BO75, BO76) -> 0 | BP77: 0 | BQ77: 0 | BR77: 0 | BS77: 0 | BT77: 0 | BU77: 0 | BV77: 0 | BW77: 0 | BX77: 0 | BY77: 0 | BZ77: 0 | CA77: 0 | CB77: 0 | CC77: 0 | CD77: 0 | CE77: 0 | CF77: 0 | CG77: 0 | CH77: 0 | CI77: 0 | CJ77: 0 | CK77: 0 | CL77: 0 | CM77: 0 | CN77: 0 | CO77: 0
C78: =IF(C77 > $C$61, 1, 0) -> 0 | D78: =IF(D77 > $C$61, 1, 0) -> 0 | E78: 0 | F78: 0 | G78: 0 | H78: 0 | I78: 0 | J78: 0 | K78: 0 | L78: 0 | M78: 0 | N78: 0 | O78: 0 | P78: 0 | Q78: 0 | R78: 0 | S78: 0 | T78: 0 | U78: 0 | V78: 0 | W78: 0 | X78: 0 | Y78: 0 | Z78: 0 | AA78: 0 | AB78: 0 | AC78: 0 | AD78: 0 | AE78: 0 | AF78: 0 | AG78: 0 | AH78: 0 | AI78: 0 | AJ78: 0 | AK78: 0 | AL78: 0 | AM78: 0 | AN78: 0 | AO78: 0 | AP78: 0 | AQ78: 0 | AR78: 0 | AS78: 0 | AT78: 0 | AU78: 0 | AV78: 0 | AW78: 0 | AX78: 0 | AY78: 0 | AZ78: 0 | BA78: 0 | BB78: 0 | BC78: 0 | BD78: 0 | BE78: 0 | BF78: 0 | BG78: 0 | BH78: 0 | BI78: 0 | BJ78: 0 | BK78: 0 | BL78: 0 | BM78: 0 | BN78: 0 | BO78: 0 | BP78: =IF(BP77 > $C$61, 1, 0) -> 0 | BQ78: 0 | BR78: 0 | BS78: 0 | BT78: 0 | BU78: 0 | BV78: 0 | BW78: 0 | BX78: 0 | BY78: 0 | BZ78: 0 | CA78: 0 | CB78: 0 | CC78: 0 | CD78: 0 | CE78: 0 | CF78: 0 | CG78: 0 | CH78: 0 | CI78: 0 | CJ78: 0 | CK78: 0 | CL78: 0 | CM78: 0 | CN78: 0 | CO78: 0
B79: Approach to untaken DSO
B80: LNG plant gas allocation diverted to DSO (1 = Yes, 0 = No) | C80: 1
B81: Years of LNG plant operation before diversion to DSO permitted | C81: 20 | E81: =IF(AND('Demand & production'!F81 > 0, 'Demand & production'!F81 < C50), "DSO processing plant operational before offshore production starts", "") -> 
B82: DSO taken at end of planned LNG production (1 = Yes, 0 = No) | C82: 0
B83: DSO diverted to LNG plant when plant capacity allows (1 = Yes, 0 = No) | C83: 0 | E83: =IF(SUM(C90:CO90) > 0, "DSO processing plant capacity less than DSO allocation", "") -> 
B85: Blocks 1 and 4 DSO processing trains capacity and timing
C86: 2010 | D86: 2011 | E86: 2012 | F86: 2013 | G86: 2014 | H86: 2015 | I86: 2016 | J86: 2017 | K86: 2018 | L86: 2019 | M86: 2020 | N86: 2021 | O86: 2022 | P86: 2023 | Q86: 2024 | R86: 2025 | S86: 2026 | T86: 2027 | U86: 2028 | V86: 2029 | W86: 2030 | X86: 2031 | Y86: 2032 | Z86: 2033 | AA86: 2034 | AB86: 2035 | AC86: 2036 | AD86: 2037 | AE86: 2038 | AF86: 2039 | AG86: 2040 | AH86: 2041 | AI86: 2042 | AJ86: 2043 | AK86: 2044 | AL86: 2045 | AM86: 2046 | AN86: 2047 | AO86: 2048 | AP86: 2049 | AQ86: 2050 | AR86: 2051 | AS86: 2052 | AT86: 2053 | AU86: 2054 | AV86: 2055 | AW86: 2056 | AX86: 2057 | AY86: 2058 | AZ86: 2059 | BA86: 2060 | BB86: 2061 | BC86: 2062 | BD86: 2063 | BE86: 2064 | BF86: 2065 | BG86: 2066 | BH86: 2067 | BI86: 2068 | BJ86: 2069 | BK86: 2070 | BL86: 2071 | BM86: 2072 | BN86: 2073 | BO86: 2074 | BP86: 2075 | BQ86: 2076 | BR86: 2077 | BS86: 2078 | BT86: 2079 | BU86: 2080 | BV86: 2081 | BW86: 2082 | BX86: 2083 | BY86: 2084 | BZ86: 2085 | CA86: 2086 | CB86: 2087 | CC86: 2088 | CD86: 2089 | CE86: 2090 | CF86: 2091 | CG86: 2092 | CH86: 2093 | CI86: 2094 | CJ86: 2095 | CK86: 2096 | CL86: 2097 | CM86: 2098 | CN86: 2099 | CO86: 2100
B87: Annual volume requiring processing, including NGLs (mmcf) | C87: =C77 / (1 - $C$11) -> 0 | D87: 0 | E87: 0 | F87: 0 | G87: 0 | H87: 0 | I87: 0 | J87: 0 | K87: 0 | L87: 0 | M87: 0 | N87: 0 | O87: 0 | P87: 0 | Q87: 0 | R87: 0 | S87: 0 | T87: 0 | U87: 0 | V87: 0 | W87: 15235.00016 | X87: 30470.00032 | Y87: 30470.00032 | Z87: 30470.00032 | AA87: 30470.00032 | AB87: 30470.00032 | AC87: 30470.00032 | AD87: 30470.00032 | AE87: 30470.00032 | AF87: 30470.00032 | AG87: 30470.00032 | AH87: 30470.00032 | AI87: =AI77 / (1 - $C$11) -> 30470.00032 | AJ87: 30470.00032 | AK87: 30470.00032 | AL87: 30470.00032 | AM87: 30470.00032 | AN87: 30470.00032 | AO87: 30470.00032 | AP87: 30470.00032 | AQ87: 30470.00032 | AR87: 30470.00032 | AS87: 30470.00032 | AT87: 30470.00032 | AU87: 30470.00032 | AV87: 30470.00032 | AW87: 30470.00032 | AX87: 30470.00032 | AY87: 30470.00032 | AZ87: 30470.00032 | BA87: 30470.00032 | BB87: 30470.00032 | BC87: 30470.00032 | BD87: 30470.00032 | BE87: 30470.00032 | BF87: 0 | BG87: 0 | BH87: 0 | BI87: 0 | BJ87: 0 | BK87: 0 | BL87: 0 | BM87: 0 | BN87: 0 | BO87: =BO77 / (1 - $C$11) -> 0 | BP87: 0 | BQ87: 0 | BR87: 0 | BS87: 0 | BT87: 0 | BU87: 0 | BV87: 0 | BW87: 0 | BX87: 0 | BY87: 0 | BZ87: 0 | CA87: 0 | CB87: 0 | CC87: 0 | CD87: 0 | CE87: 0 | CF87: 0 | CG87: 0 | CH87: 0 | CI87: 0 | CJ87: 0 | CK87: 0 | CL87: 0 | CM87: 0 | CN87: 0 | CO87: 0
B88: DSO train capacity starting operation (mmcfpa) | W88: 31000
C89: =SUM($C88:C$88) -> 0 | D89: =SUM($C88:D$88) -> 0 | E89: =SUM($C88:E$88) -> 0 | F89: =SUM($C88:F$88) -> 0 | G89: =SUM($C88:G$88) -> 0 | H89: =SUM($C88:H$88) -> 0 | I89: =SUM($C88:I$88) -> 0 | J89: =SUM($C88:J$88) -> 0 | K89: =SUM($C88:K$88) -> 0 | L89: =SUM($C88:L$88) -> 0 | M89: =SUM($C88:M$88) -> 0 | N89: =SUM($C88:N$88) -> 0 | O89: =SUM($C88:O$88) -> 0 | P89: =SUM($C88:P$88) -> 0 | Q89: =SUM($C88:Q$88) -> 0 | R89: =SUM($C88:R$88) -> 0 | S89: =SUM($C88:S$88) -> 0 | T89: =SUM($C88:T$88) -> 0 | U89: =SUM($C88:U$88) -> 0 | V89: =SUM($C88:V$88) -> 0 | W89: =SUM($C88:W$88) -> 31000 | X89: =SUM($C88:X$88) -> 31000 | Y89: =SUM($C88:Y$88) -> 31000 | Z89: =SUM($C88:Z$88) -> 31000 | AA89: =SUM($C88:AA$88) -> 31000 | AB89: =SUM($C88:AB$88) -> 31000 | AC89: =SUM($C88:AC$88) -> 31000 | AD89: =SUM($C88:AD$88) -> 31000 | AE89: =SUM($C88:AE$88) -> 31000 | AF89: =SUM($C88:AF$88) -> 31000 | AG89: =SUM($C88:AG$88) -> 31000 | AH89: =SUM($C88:AH$88) -> 31000 | AI89: =SUM($C88:AI$88) -> 31000 | AJ89: =SUM($C88:AJ$88) -> 31000 | AK89: =SUM($C88:AK$88) -> 31000 | AL89: =SUM($C88:AL$88) -> 31000 | AM89: =SUM($C88:AM$88) -> 31000 | AN89: =SUM($C88:AN$88) -> 31000 | AO89: =SUM($C88:AO$88) -> 31000 | AP89: =SUM($C88:AP$88) -> 31000 | AQ89: =SUM($C88:AQ$88) -> 31000 | AR89: =SUM($C88:AR$88) -> 31000 | AS89: =SUM($C88:AS$88) -> 31000 | AT89: =SUM($C88:AT$88) -> 31000 | AU89: =SUM($C88:AU$88) -> 31000 | AV89: =SUM($C88:AV$88) -> 31000 | AW89: =SUM($C88:AW$88) -> 31000 | AX89: =SUM($C88:AX$88) -> 31000 | AY89: =SUM($C88:AY$88) -> 31000 | AZ89: =SUM($C88:AZ$88) -> 31000 | BA89: =SUM($C88:BA$88) -> 31000 | BB89: =SUM($C88:BB$88) -> 31000 | BC89: =SUM($C88:BC$88) -> 31000 | BD89: =SUM($C88:BD$88) -> 31000 | BE89: =SUM($C88:BE$88) -> 31000 | BF89: =SUM($C88:BF$88) -> 31000 | BG89: =SUM($C88:BG$88) -> 31000 | BH89: =SUM($C88:BH$88) -> 31000 | BI89: =SUM($C88:BI$88) -> 31000 | BJ89: =SUM($C88:BJ$88) -> 31000 | BK89: =SUM($C88:BK$88) -> 31000 | BL89: =SUM($C88:BL$88) -> 31000 | BM89: =SUM($C88:BM$88) -> 31000 | BN89: =SUM($C88:BN$88) -> 31000 | BO89: =SUM($C88:BO$88) -> 31000 | BP89: =SUM($C88:BP$88) -> 31000 | BQ89: =SUM($C88:BQ$88) -> 31000 | BR89: =SUM($C88:BR$88) -> 31000 | BS89: =SUM($C88:BS$88) -> 31000 | BT89: =SUM($C88:BT$88) -> 31000 | BU89: =SUM($C88:BU$88) -> 31000 | BV89: =SUM($C88:BV$88) -> 31000 | BW89: =SUM($C88:BW$88) -> 31000 | BX89: =SUM($C88:BX$88) -> 31000 | BY89: =SUM($C88:BY$88) -> 31000 | BZ89: =SUM($C88:BZ$88) -> 31000 | CA89: =SUM($C88:CA$88) -> 31000 | CB89: =SUM($C88:CB$88) -> 31000 | CC89: =SUM($C88:CC$88) -> 31000 | CD89: =SUM($C88:CD$88) -> 31000 | CE89: =SUM($C88:CE$88) -> 31000 | CF89: =SUM($C88:CF$88) -> 31000 | CG89: =SUM($C88:CG$88) -> 31000 | CH89: =SUM($C88:CH$88) -> 31000 | CI89: =SUM($C88:CI$88) -> 31000 | CJ89: =SUM($C88:CJ$88) -> 31000 | CK89: =SUM($C88:CK$88) -> 31000 | CL89: =SUM($C88:CL$88) -> 31000 | CM89: =SUM($C88:CM$88) -> 31000 | CN89: =SUM($C88:CN$88) -> 31000 | CO89: =SUM($C88:CO$88) -> 31000
C90: =IF(C89 < C87, 1, 0) -> 0 | D90: =IF(D89 < D87, 1, 0) -> 0 | E90: 0 | F90: 0 | G90: 0 | H90: 0 | I90: 0 | J90: 0 | K90: 0 | L90: 0 | M90: 0 | N90: 0 | O90: 0 | P90: 0 | Q90: 0 | R90: 0 | S90: 0 | T90: 0 | U90: 0 | V90: 0 | W90: 0 | X90: 0 | Y90: 0 | Z90: 0 | AA90: 0 | AB90: 0 | AC90: 0 | AD90: 0 | AE90: 0 | AF90: 0 | AG90: 0 | AH90: 0 | AI90: 0 | AJ90: 0 | AK90: 0 | AL90: 0 | AM90: 0 | AN90: 0 | AO90: 0 | AP90: 0 | AQ90: 0 | AR90: 0 | AS90: 0 | AT90: 0 | AU90: 0 | AV90: 0 | AW90: 0 | AX90: 0 | AY90: 0 | AZ90: 0 | BA90: 0 | BB90: 0 | BC90: 0 | BD90: 0 | BE90: 0 | BF90: 0 | BG90: 0 | BH90: 0 | BI90: 0 | BJ90: 0 | BK90: 0 | BL90: 0 | BM90: 0 | BN90: 0 | BO90: 0 | BP90: =IF(BP89 < BP87, 1, 0) -> 0 | BQ90: 0 | BR90: 0 | BS90: 0 | BT90: 0 | BU90: 0 | BV90: 0 | BW90: 0 | BX90: 0 | BY90: 0 | BZ90: 0 | CA90: 0 | CB90: 0 | CC90: 0 | CD90: 0 | CE90: 0 | CF90: 0 | CG90: 0 | CH90: 0 | CI90: 0 | CJ90: 0 | CK90: 0 | CL90: 0 | CM90: 0 | CN90: 0 | CO90: 0
B91: Blocks 1 and 4 LNG export trains capacity and timing
B92: LNG plant processing loss (% of supply) | C92: 0.1
B93: Years it takes for LNG plant to operate at full capacity (0 = operates at full capacity immediately) | C93: 1
C95: 2010 | D95: 2011 | E95: 2012 | F95: 2013 | G95: 2014 | H95: 2015 | I95: 2016 | J95: 2017 | K95: 2018 | L95: 2019 | M95: 2020 | N95: 2021 | O95: 2022 | P95: 2023 | Q95: 2024 | R95: 2025 | S95: 2026 | T95: 2027 | U95: 2028 | V95: 2029 | W95: 2030 | X95: 2031 | Y95: 2032 | Z95: 2033 | AA95: 2034 | AB95: 2035 | AC95: 2036 | AD95: 2037 | AE95: 2038 | AF95: 2039 | AG95: 2040 | AH95: 2041 | AI95: 2042 | AJ95: 2043 | AK95: 2044 | AL95: 2045 | AM95: 2046 | AN95: 2047 | AO95: 2048 | AP95: 2049 | AQ95: 2050 | AR95: 2051 | AS95: 2052 | AT95: 2053 | AU95: 2054 | AV95: 2055 | AW95: 2056 | AX95: 2057 | AY95: 2058 | AZ95: 2059 | BA95: 2060 | BB95: 2061 | BC95: 2062 | BD95: 2063 | BE95: 2064 | BF95: 2065 | BG95: 2066 | BH95: 2067 | BI95: 2068 | BJ95: 2069 | BK95: 2070 | BL95: 2071 | BM95: 2072 | BN95: 2073 | BO95: 2074 | BP95: 2075 | BQ95: 2076 | BR95: 2077 | BS95: 2078 | BT95: 2079 | BU95: 2080 | BV95: 2081 | BW95: 2082 | BX95: 2083 | BY95: 2084 | BZ95: 2085 | CA95: 2086 | CB95: 2087 | CC95: 2088 | CD95: 2089 | CE95: 2090 | CF95: 2091 | CG95: 2092 | CH95: 2093 | CI95: 2094 | CJ95: 2095 | CK95: 2096 | CL95: 2097 | CM95: 2098 | CN95: 2099 | CO95: 2100
B96: LNG train capacity starting operation (mmtpa) | W96: 7
B98: Block 2 planned production capacity
B99: Calculating possible production capacity limit
B100: Maximum planned gas production for Domestic Supply Obligation (DSO) (mmcf) | C100: =MAX(C121:BU121) -> 38110.77159
B101: Maximum planned gas production for LNG (mmcf) | C101: =(SUM(C140:BU140) / I11) / (100% - $C$92) -> 396825.3968
B102: Maximum planned NGL production (mmcf) | C102: =(SUM(C100:C101)/(1 - D11)) - SUM(C100:C101) -> 0
B103: Maximum planned production (mmcf) | C103: =SUM(C100:C102) -> 434936.1684
E104: =IF('Demand & production'!F251 > 0.1, "Project not utilizing all reserves", "") -> 
B105: Production capacity limit (mmcfpa) | C105: 435000
B107: Daily gas production capacity of an average well at plateau (mmcf) | C107: 150 | E107: =IF(OR('Demand & production'!F1134 > 0.1, 'Demand & production'!F1134 < -0.1), "Insufficient wells in operation - change assumptions or add more in 'Demand & Production' sheet", "") -> 
B108: Average years of production of a well | C108: 10
B110: Block 2 Domestic Supply Obligation (DSO)
B111: DSO from offshore reserves | C111: 0.1
B112: DSO from offshore reserves (mmcf) | C112: =D9 * C111 -> 1314821.62
B113: Planned number of years of DSO production | C113: 35 | E113: =IF(AND(C115 = 0, C113 < COUNTIF(C120:CO120, ">0")), "Planned years of DSO production less than years implied by DSO schedule in Row 133", "") -> 
B115: Annual DSO is constant volume? (1 = Yes, 0 = No) | C115: 1
B116: Years it takes for DSO to reach constant volume (0 = at constant volume immediately) | C116: 1
B117: Annual DSO at constant volume (mmcf) | C117: =C112 / (C113 - (C116 / 2)) -> 38110.77159
C118: 2010 | D118: 2011 | E118: 2012 | F118: 2013 | G118: 2014 | H118: 2015 | I118: 2016 | J118: 2017 | K118: 2018 | L118: 2019 | M118: 2020 | N118: 2021 | O118: 2022 | P118: 2023 | Q118: 2024 | R118: 2025 | S118: 2026 | T118: 2027 | U118: 2028 | V118: 2029 | W118: 2030 | X118: 2031 | Y118: 2032 | Z118: 2033 | AA118: 2034 | AB118: 2035 | AC118: 2036 | AD118: 2037 | AE118: 2038 | AF118: 2039 | AG118: 2040 | AH118: 2041 | AI118: 2042 | AJ118: 2043 | AK118: 2044 | AL118: 2045 | AM118: 2046 | AN118: 2047 | AO118: 2048 | AP118: 2049 | AQ118: 2050 | AR118: 2051 | AS118: 2052 | AT118: 2053 | AU118: 2054 | AV118: 2055 | AW118: 2056 | AX118: 2057 | AY118: 2058 | AZ118: 2059 | BA118: 2060 | BB118: 2061 | BC118: 2062 | BD118: 2063 | BE118: 2064 | BF118: 2065 | BG118: 2066 | BH118: 2067 | BI118: 2068 | BJ118: 2069 | BK118: 2070 | BL118: 2071 | BM118: 2072 | BN118: 2073 | BO118: 2074 | BP118: 2075 | BQ118: 2076 | BR118: 2077 | BS118: 2078 | BT118: 2079 | BU118: 2080 | BV118: 2081 | BW118: 2082 | BX118: 2083 | BY118: 2084 | BZ118: 2085 | CA118: 2086 | CB118: 2087 | CC118: 2088 | CD118: 2089 | CE118: 2090 | CF118: 2091 | CG118: 2092 | CH118: 2093 | CI118: 2094 | CJ118: 2095 | CK118: 2096 | CL118: 2097 | CM118: 2098 | CN118: 2099 | CO118: 2100
B119: Annual DSO if constant volume (mmcf) | C119: =(IF(OR(C118 < $C$50, C118 >= ($C$50 + $C$113)), 0, IF(C118 = $C$50, $C$117 / ($C$116 + 1), IF(AND(C118 > $C$50, C118 <= $C$50 + $C$116 - 1), B119 + ($C$117 / ($C$116 + 1)), $C$117)))) -> 0 | D119: 0 | E119: 0 | F119: 0 | G119: 0 | H119: 0 | I119: 0 | J119: 0 | K119: 0 | L119: 0 | M119: 0 | N119: 0 | O119: 0 | P119: 0 | Q119: 0 | R119: 0 | S119: 0 | T119: 0 | U119: 0 | V119: 0 | W119: 19055.3858 | X119: 38110.77159 | Y119: 38110.77159 | Z119: 38110.77159 | AA119: 38110.77159 | AB119: 38110.77159 | AC119: 38110.77159 | AD119: 38110.77159 | AE119: 38110.77159 | AF119: 38110.77159 | AG119: 38110.77159 | AH119: 38110.77159 | AI119: =(IF(OR(AI118 < $C$50, AI118 >= ($C$50 + $C$113)), 0, IF(AI118 = $C$50, $C$117 / ($C$116 + 1), IF(AND(AI118 > $C$50, AI118 <= $C$50 + $C$116 - 1), AH119 + ($C$117 / ($C$116 + 1)), $C$117)))) -> 38110.77159 | AJ119: 38110.77159 | AK119: 38110.77159 | AL119: 38110.77159 | AM119: 38110.77159 | AN119: 38110.77159 | AO119: 38110.77159 | AP119: 38110.77159 | AQ119: 38110.77159 | AR119: 38110.77159 | AS119: 38110.77159 | AT119: 38110.77159 | AU119: 38110.77159 | AV119: 38110.77159 | AW119: 38110.77159 | AX119: 38110.77159 | AY119: 38110.77159 | AZ119: 38110.77159 | BA119: 38110.77159 | BB119: 38110.77159 | BC119: 38110.77159 | BD119: 38110.77159 | BE119: 38110.77159 | BF119: 0 | BG119: 0 | BH119: 0 | BI119: 0 | BJ119: 0 | BK119: 0 | BL119: 0 | BM119: 0 | BN119: 0 | BO119: =(IF(OR(BO118 < $C$50, BO118 >= ($C$50 + $C$113)), 0, IF(BO118 = $C$50, $C$117 / ($C$116 + 1), IF(AND(BO118 > $C$50, BO118 <= $C$50 + $C$116 - 1), BN119 + ($C$117 / ($C$116 + 1)), $C$117)))) -> 0 | BP119: 0 | BQ119: 0 | BR119: 0 | BS119: 0 | BT119: 0 | BU119: 0 | BV119: 0 | BW119: 0 | BX119: 0 | BY119: 0 | BZ119: 0 | CA119: 0 | CB119: 0 | CC119: 0 | CD119: 0 | CE119: 0 | CF119: 0 | CG119: 0 | CH119: 0 | CI119: 0 | CJ119: 0 | CK119: 0 | CL119: 0 | CM119: 0 | CN119: 0 | CO119: 0
B120: Annual DSO if variable volume (mmcf)
B121: Annual volume allocated to DSO (mmcf) | C121: =IF($C$115=1, C119, C120) -> 0 | D121: 0 | E121: 0 | F121: 0 | G121: 0 | H121: 0 | I121: 0 | J121: 0 | K121: 0 | L121: 0 | M121: 0 | N121: 0 | O121: 0 | P121: 0 | Q121: 0 | R121: 0 | S121: 0 | T121: 0 | U121: 0 | V121: 0 | W121: 19055.3858 | X121: 38110.77159 | Y121: 38110.77159 | Z121: 38110.77159 | AA121: 38110.77159 | AB121: 38110.77159 | AC121: 38110.77159 | AD121: 38110.77159 | AE121: 38110.77159 | AF121: 38110.77159 | AG121: 38110.77159 | AH121: 38110.77159 | AI121: =IF($C$115=1, AI119, AI120) -> 38110.77159 | AJ121: 38110.77159 | AK121: 38110.77159 | AL121: 38110.77159 | AM121: 38110.77159 | AN121: 38110.77159 | AO121: 38110.77159 | AP121: 38110.77159 | AQ121: 38110.77159 | AR121: 38110.77159 | AS121: 38110.77159 | AT121: 38110.77159 | AU121: 38110.77159 | AV121: 38110.77159 | AW121: 38110.77159 | AX121: 38110.77159 | AY121: 38110.77159 | AZ121: 38110.77159 | BA121: 38110.77159 | BB121: 38110.77159 | BC121: 38110.77159 | BD121: 38110.77159 | BE121: 38110.77159 | BF121: 0 | BG121: 0 | BH121: 0 | BI121: 0 | BJ121: 0 | BK121: 0 | BL121: 0 | BM121: 0 | BN121: 0 | BO121: =IF($C$115=1, BO119, BO120) -> 0 | BP121: 0 | BQ121: 0 | BR121: 0 | BS121: 0 | BT121: 0 | BU121: 0 | BV121: 0 | BW121: 0 | BX121: 0 | BY121: 0 | BZ121: 0 | CA121: 0 | CB121: 0 | CC121: 0 | CD121: 0 | CE121: 0 | CF121: 0 | CG121: 0 | CH121: 0 | CI121: 0 | CJ121: 0 | CK121: 0 | CL121: 0 | CM121: 0 | CN121: 0 | CO121: 0
C122: =IF(C121 > $C$105, 1, 0) -> 0 | D122: =IF(D121 > $C$105, 1, 0) -> 0 | E122: 0 | F122: 0 | G122: 0 | H122: 0 | I122: 0 | J122: 0 | K122: 0 | L122: 0 | M122: 0 | N122: 0 | O122: 0 | P122: 0 | Q122: 0 | R122: 0 | S122: 0 | T122: 0 | U122: 0 | V122: 0 | W122: 0 | X122: 0 | Y122: 0 | Z122: 0 | AA122: 0 | AB122: 0 | AC122: 0 | AD122: 0 | AE122: 0 | AF122: 0 | AG122: 0 | AH122: 0 | AI122: 0 | AJ122: 0 | AK122: 0 | AL122: 0 | AM122: 0 | AN122: 0 | AO122: 0 | AP122: 0 | AQ122: 0 | AR122: 0 | AS122: 0 | AT122: 0 | AU122: 0 | AV122: 0 | AW122: 0 | AX122: 0 | AY122: 0 | AZ122: 0 | BA122: 0 | BB122: 0 | BC122: 0 | BD122: 0 | BE122: 0 | BF122: 0 | BG122: 0 | BH122: 0 | BI122: 0 | BJ122: 0 | BK122: 0 | BL122: 0 | BM122: 0 | BN122: 0 | BO122: 0 | BP122: =IF(BP121 > $C$105, 1, 0) -> 0 | BQ122: 0 | BR122: 0 | BS122: 0 | BT122: 0 | BU122: 0 | BV122: 0 | BW122: 0 | BX122: 0 | BY122: 0 | BZ122: 0 | CA122: 0 | CB122: 0 | CC122: 0 | CD122: 0 | CE122: 0 | CF122: 0 | CG122: 0 | CH122: 0 | CI122: 0 | CJ122: 0 | CK122: 0 | CL122: 0 | CM122: 0 | CN122: 0 | CO122: 0
B123: Approach to untaken DSO
B124: LNG plant gas allocation diverted to DSO (1 = Yes, 0 = No) | C124: 1
B125: Years of LNG plant operation before diversion to DSO permitted | C125: 20 | E125: =IF(AND('Demand & production'!F183 > 0, 'Demand & production'!F183 < C50), "DSO processing plant operational before offshore production starts", "") -> 
B126: DSO taken at end of planned LNG production (1 = Yes, 0 = No) | C126: 0
B127: DSO diverted to LNG plant when plant capacity allows (1 = Yes, 0 = No) | C127: 0 | E127: =IF(SUM(C134:CO134) > 0, "DSO processing plant capacity less than DSO allocation", "") -> 
B129: Block 2 DSO processing trains capacity and timing
C130: 2010 | D130: 2011 | E130: 2012 | F130: 2013 | G130: 2014 | H130: 2015 | I130: 2016 | J130: 2017 | K130: 2018 | L130: 2019 | M130: 2020 | N130: 2021 | O130: 2022 | P130: 2023 | Q130: 2024 | R130: 2025 | S130: 2026 | T130: 2027 | U130: 2028 | V130: 2029 | W130: 2030 | X130: 2031 | Y130: 2032 | Z130: 2033 | AA130: 2034 | AB130: 2035 | AC130: 2036 | AD130: 2037 | AE130: 2038 | AF130: 2039 | AG130: 2040 | AH130: 2041 | AI130: 2042 | AJ130: 2043 | AK130: 2044 | AL130: 2045 | AM130: 2046 | AN130: 2047 | AO130: 2048 | AP130: 2049 | AQ130: 2050 | AR130: 2051 | AS130: 2052 | AT130: 2053 | AU130: 2054 | AV130: 2055 | AW130: 2056 | AX130: 2057 | AY130: 2058 | AZ130: 2059 | BA130: 2060 | BB130: 2061 | BC130: 2062 | BD130: 2063 | BE130: 2064 | BF130: 2065 | BG130: 2066 | BH130: 2067 | BI130: 2068 | BJ130: 2069 | BK130: 2070 | BL130: 2071 | BM130: 2072 | BN130: 2073 | BO130: 2074 | BP130: 2075 | BQ130: 2076 | BR130: 2077 | BS130: 2078 | BT130: 2079 | BU130: 2080 | BV130: 2081 | BW130: 2082 | BX130: 2083 | BY130: 2084 | BZ130: 2085 | CA130: 2086 | CB130: 2087 | CC130: 2088 | CD130: 2089 | CE130: 2090 | CF130: 2091 | CG130: 2092 | CH130: 2093 | CI130: 2094 | CJ130: 2095 | CK130: 2096 | CL130: 2097 | CM130: 2098 | CN130: 2099 | CO130: 2100
B131: Annual volume requiring processing, including NGLs (mmcf) | C131: =C121 / (1 - $D$11) -> 0 | D131: =D121 / (1 - $D$11) -> 0 | E131: 0 | F131: 0 | G131: 0 | H131: 0 | I131: 0 | J131: 0 | K131: 0 | L131: 0 | M131: 0 | N131: 0 | O131: 0 | P131: 0 | Q131: 0 | R131: 0 | S131: 0 | T131: 0 | U131: 0 | V131: 0 | W131: 19055.3858 | X131: 38110.77159 | Y131: 38110.77159 | Z131: 38110.77159 | AA131: 38110.77159 | AB131: 38110.77159 | AC131: 38110.77159 | AD131: 38110.77159 | AE131: 38110.77159 | AF131: 38110.77159 | AG131: 38110.77159 | AH131: 38110.77159 | AI131: 38110.77159 | AJ131: 38110.77159 | AK131: 38110.77159 | AL131: 38110.77159 | AM131: 38110.77159 | AN131: 38110.77159 | AO131: 38110.77159 | AP131: 38110.77159 | AQ131: 38110.77159 | AR131: 38110.77159 | AS131: 38110.77159 | AT131: 38110.77159 | AU131: 38110.77159 | AV131: 38110.77159 | AW131: 38110.77159 | AX131: 38110.77159 | AY131: 38110.77159 | AZ131: 38110.77159 | BA131: 38110.77159 | BB131: 38110.77159 | BC131: 38110.77159 | BD131: 38110.77159 | BE131: 38110.77159 | BF131: 0 | BG131: 0 | BH131: 0 | BI131: 0 | BJ131: 0 | BK131: 0 | BL131: 0 | BM131: 0 | BN131: 0 | BO131: 0 | BP131: =BP121 / (1 - $D$11) -> 0 | BQ131: 0 | BR131: 0 | BS131: 0 | BT131: 0 | BU131: 0 | BV131: 0 | BW131: 0 | BX131: 0 | BY131: 0 | BZ131: 0 | CA131: 0 | CB131: 0 | CC131: 0 | CD131: 0 | CE131: 0 | CF131: 0 | CG131: 0 | CH131: 0 | CI131: 0 | CJ131: 0 | CK131: 0 | CL131: 0 | CM131: 0 | CN131: 0 | CO131: 0
B132: DSO train capacity starting operation (mmcfpa) | W132: 39000
C133: =SUM($C$132:C132) -> 0 | D133: =SUM($C$132:D132) -> 0 | E133: =SUM($C$132:E132) -> 0 | F133: =SUM($C$132:F132) -> 0 | G133: =SUM($C$132:G132) -> 0 | H133: =SUM($C$132:H132) -> 0 | I133: =SUM($C$132:I132) -> 0 | J133: =SUM($C$132:J132) -> 0 | K133: =SUM($C$132:K132) -> 0 | L133: =SUM($C$132:L132) -> 0 | M133: =SUM($C$132:M132) -> 0 | N133: =SUM($C$132:N132) -> 0 | O133: =SUM($C$132:O132) -> 0 | P133: =SUM($C$132:P132) -> 0 | Q133: =SUM($C$132:Q132) -> 0 | R133: =SUM($C$132:R132) -> 0 | S133: =SUM($C$132:S132) -> 0 | T133: =SUM($C$132:T132) -> 0 | U133: =SUM($C$132:U132) -> 0 | V133: =SUM($C$132:V132) -> 0 | W133: =SUM($C$132:W132) -> 39000 | X133: =SUM($C$132:X132) -> 39000 | Y133: =SUM($C$132:Y132) -> 39000 | Z133: =SUM($C$132:Z132) -> 39000 | AA133: =SUM($C$132:AA132) -> 39000 | AB133: =SUM($C$132:AB132) -> 39000 | AC133: =SUM($C$132:AC132) -> 39000 | AD133: =SUM($C$132:AD132) -> 39000 | AE133: =SUM($C$132:AE132) -> 39000 | AF133: =SUM($C$132:AF132) -> 39000 | AG133: =SUM($C$132:AG132) -> 39000 | AH133: =SUM($C$132:AH132) -> 39000 | AI133: =SUM($C$132:AI132) -> 39000 | AJ133: =SUM($C$132:AJ132) -> 39000 | AK133: =SUM($C$132:AK132) -> 39000 | AL133: =SUM($C$132:AL132) -> 39000 | AM133: =SUM($C$132:AM132) -> 39000 | AN133: =SUM($C$132:AN132) -> 39000 | AO133: =SUM($C$132:AO132) -> 39000 | AP133: =SUM($C$132:AP132) -> 39000 | AQ133: =SUM($C$132:AQ132) -> 39000 | AR133: =SUM($C$132:AR132) -> 39000 | AS133: =SUM($C$132:AS132) -> 39000 | AT133: =SUM($C$132:AT132) -> 39000 | AU133: =SUM($C$132:AU132) -> 39000 | AV133: =SUM($C$132:AV132) -> 39000 | AW133: =SUM($C$132:AW132) -> 39000 | AX133: =SUM($C$132:AX132) -> 39000 | AY133: =SUM($C$132:AY132) -> 39000 | AZ133: =SUM($C$132:AZ132) -> 39000 | BA133: =SUM($C$132:BA132) -> 39000 | BB133: =SUM($C$132:BB132) -> 39000 | BC133: =SUM($C$132:BC132) -> 39000 | BD133: =SUM($C$132:BD132) -> 39000 | BE133: =SUM($C$132:BE132) -> 39000 | BF133: =SUM($C$132:BF132) -> 39000 | BG133: =SUM($C$132:BG132) -> 39000 | BH133: =SUM($C$132:BH132) -> 39000 | BI133: =SUM($C$132:BI132) -> 39000 | BJ133: =SUM($C$132:BJ132) -> 39000 | BK133: =SUM($C$132:BK132) -> 39000 | BL133: =SUM($C$132:BL132) -> 39000 | BM133: =SUM($C$132:BM132) -> 39000 | BN133: =SUM($C$132:BN132) -> 39000 | BO133: =SUM($C$132:BO132) -> 39000 | BP133: =SUM($C$132:BP132) -> 39000 | BQ133: =SUM($C$132:BQ132) -> 39000 | BR133: =SUM($C$132:BR132) -> 39000 | BS133: =SUM($C$132:BS132) -> 39000 | BT133: =SUM($C$132:BT132) -> 39000 | BU133: =SUM($C$132:BU132) -> 39000 | BV133: =SUM($C$132:BV132) -> 39000 | BW133: =SUM($C$132:BW132) -> 39000 | BX133: =SUM($C$132:BX132) -> 39000 | BY133: =SUM($C$132:BY132) -> 39000 | BZ133: =SUM($C$132:BZ132) -> 39000 | CA133: =SUM($C$132:CA132) -> 39000 | CB133: =SUM($C$132:CB132) -> 39000 | CC133: =SUM($C$132:CC132) -> 39000 | CD133: =SUM($C$132:CD132) -> 39000 | CE133: =SUM($C$132:CE132) -> 39000 | CF133: =SUM($C$132:CF132) -> 39000 | CG133: =SUM($C$132:CG132) -> 39000 | CH133: =SUM($C$132:CH132) -> 39000 | CI133: =SUM($C$132:CI132) -> 39000 | CJ133: =SUM($C$132:CJ132) -> 39000 | CK133: =SUM($C$132:CK132) -> 39000 | CL133: =SUM($C$132:CL132) -> 39000 | CM133: =SUM($C$132:CM132) -> 39000 | CN133: =SUM($C$132:CN132) -> 39000 | CO133: =SUM($C$132:CO132) -> 39000
C134: =IF(C133 < C131, 1, 0) -> 0 | D134: =IF(D133 < D131, 1, 0) -> 0 | E134: 0 | F134: 0 | G134: 0 | H134: 0 | I134: 0 | J134: 0 | K134: 0 | L134: 0 | M134: 0 | N134: 0 | O134: 0 | P134: 0 | Q134: 0 | R134: 0 | S134: 0 | T134: 0 | U134: 0 | V134: 0 | W134: 0 | X134: 0 | Y134: 0 | Z134: 0 | AA134: 0 | AB134: 0 | AC134: 0 | AD134: 0 | AE134: 0 | AF134: 0 | AG134: 0 | AH134: 0 | AI134: 0 | AJ134: 0 | AK134: 0 | AL134: 0 | AM134: 0 | AN134: 0 | AO134: 0 | AP134: 0 | AQ134: 0 | AR134: 0 | AS134: 0 | AT134: 0 | AU134: 0 | AV134: 0 | AW134: 0 | AX134: 0 | AY134: 0 | AZ134: 0 | BA134: 0 | BB134: 0 | BC134: 0 | BD134: 0 | BE134: 0 | BF134: 0 | BG134: 0 | BH134: 0 | BI134: 0 | BJ134: 0 | BK134: 0 | BL134: 0 | BM134: 0 | BN134: 0 | BO134: 0 | BP134: =IF(BP133 < BP131, 1, 0) -> 0 | BQ134: 0 | BR134: 0 | BS134: 0 | BT134: 0 | BU134: 0 | BV134: 0 | BW134: 0 | BX134: 0 | BY134: 0 | BZ134: 0 | CA134: 0 | CB134: 0 | CC134: 0 | CD134: 0 | CE134: 0 | CF134: 0 | CG134: 0 | CH134: 0 | CI134: 0 | CJ134: 0 | CK134: 0 | CL134: 0 | CM134: 0 | CN134: 0 | CO134: 0
B135: Block 2 LNG export trains capacity and timing
B136: LNG plant processing loss (% of supply) | C136: 0.1
B137: Years it takes for LNG plant to operate at full capacity (0 = operates at full capacity immediately) | C137: 1
C139: 2010 | D139: 2011 | E139: 2012 | F139: 2013 | G139: 2014 | H139: 2015 | I139: 2016 | J139: 2017 | K139: 2018 | L139: 2019 | M139: 2020 | N139: 2021 | O139: 2022 | P139: 2023 | Q139: 2024 | R139: 2025 | S139: 2026 | T139: 2027 | U139: 2028 | V139: 2029 | W139: 2030 | X139: 2031 | Y139: 2032 | Z139: 2033 | AA139: 2034 | AB139: 2035 | AC139: 2036 | AD139: 2037 | AE139: 2038 | AF139: 2039 | AG139: 2040 | AH139: 2041 | AI139: 2042 | AJ139: 2043 | AK139: 2044 | AL139: 2045 | AM139: 2046 | AN139: 2047 | AO139: 2048 | AP139: 2049 | AQ139: 2050 | AR139: 2051 | AS139: 2052 | AT139: 2053 | AU139: 2054 | AV139: 2055 | AW139: 2056 | AX139: 2057 | AY139: 2058 | AZ139: 2059 | BA139: 2060 | BB139: 2061 | BC139: 2062 | BD139: 2063 | BE139: 2064 | BF139: 2065 | BG139: 2066 | BH139: 2067 | BI139: 2068 | BJ139: 2069 | BK139: 2070 | BL139: 2071 | BM139: 2072 | BN139: 2073 | BO139: 2074 | BP139: 2075 | BQ139: 2076 | BR139: 2077 | BS139: 2078 | BT139: 2079 | BU139: 2080 | BV139: 2081 | BW139: 2082 | BX139: 2083 | BY139: 2084 | BZ139: 2085 | CA139: 2086 | CB139: 2087 | CC139: 2088 | CD139: 2089 | CE139: 2090 | CF139: 2091 | CG139: 2092 | CH139: 2093 | CI139: 2094 | CJ139: 2095 | CK139: 2096 | CL139: 2097 | CM139: 2098 | CN139: 2099 | CO139: 2100
B140: LNG train capacity starting operation (mmtpa) | W140: 7.5
B142: Domestic supply obligation contract
B144: Take or pay coverage (% of DSO under take or pay contract) | C144: 1
B145: Number of offshore production years until take or pay penalty not paid | C145: 100
B146: Number of offshore production years until take or pay penalty restarts | C146: 100
B147: Number of offshore production years until gas price renegotiated | C147: 100
B148: Number of years until DSO price returns to initial level | C148: 0
B150: Costs
B152: Exploration capital expenditure ($ m) | C152: Total | D152: Expenditure profile | N152: Investment Profile
D153: 2010 | E153: 2011 | F153: 2012 | G153: 2013 | H153: 2014 | I153: 2015 | J153: 2016 | K153: 2017 | L153: 2018 | M153: 2019 | N153: 2020 | O153: 2021 | P153: 2022 | Q153: 2023 | R153: 2024 | S153: 2025 | T153: 2026 | U153: 2027 | V153: 2028 | W153: 2029 | X153: 2030 | Y153: 2031 | Z153: 2032 | AA153: 2033 | AB153: 2034 | AC153: 2035 | AD153: 2036 | AE153: 2037 | AF153: 2038 | AG153: 2039 | AH153: 2040 | AI153: 2041 | AJ153: 2042 | AK153: 2043 | AL153: 2044 | AM153: 2045 | AN153: 2046 | AO153: 2047 | AP153: 2048 | AQ153: 2049 | AR153: 2050 | AS153: 2051 | AT153: 2052 | AU153: 2053 | AV153: 2054 | AW153: 2055 | AX153: 2056 | AY153: 2057 | AZ153: 2058 | BA153: 2059 | BB153: 2060 | BC153: 2061 | BD153: 2062 | BE153: 2063 | BF153: 2064 | BG153: 2065 | BH153: 2066 | BI153: 2067 | BJ153: 2068 | BK153: 2069 | BL153: 2070 | BM153: 2071 | BN153: 2072 | BO153: 2073 | BP153: 2074 | BQ153: 2075 | BR153: 2076 | BS153: 2077 | BT153: 2078 | BU153: 2079 | BV153: 2080 | BW153: 2081 | BX153: 2082 | BY153: 2083 | BZ153: 2084 | CA153: 2085 | CB153: 2086 | CC153: 2087 | CD153: 2088 | CE153: 2089 | CF153: 2090 | CG153: 2091 | CH153: 2092 | CI153: 2093 | CJ153: 2094 | CK153: 2095 | CL153: 2096 | CM153: 2097 | CN153: 2098 | CO153: 2099 | CP153: 2100
B154: Blocks 1 and 4 | C154: 1800 | D154: 0.25 | E154: 0.25 | F154: 0.15 | G154: 0.15 | H154: 0.1 | I154: 0.05 | J154: 0.05
B155: Block 2 | C155: 1500 | D155: 0.25 | E155: 0.25 | F155: 0.15 | G155: 0.15 | H155: 0.1 | I155: 0.05 | J155: 0.05
B157: Development capital expenditure for facilities and pipelines | C157: Unit cost | D157: Expenditure profile
D158: 2010 | E158: 2011 | F158: 2012 | G158: 2013 | H158: 2014 | I158: 2015 | J158: 2016 | K158: 2017 | L158: 2018 | M158: 2019 | N158: 2020 | O158: 2021 | P158: 2022 | Q158: 2023 | R158: 2024 | S158: 2025 | T158: 2026 | U158: 2027 | V158: 2028 | W158: 2029 | X158: 2030 | Y158: 2031 | Z158: 2032 | AA158: 2033 | AB158: 2034 | AC158: 2035 | AD158: 2036 | AE158: 2037 | AF158: 2038 | AG158: 2039 | AH158: 2040 | AI158: 2041 | AJ158: 2042 | AK158: 2043 | AL158: 2044 | AM158: 2045 | AN158: 2046 | AO158: 2047 | AP158: 2048 | AQ158: 2049 | AR158: 2050 | AS158: 2051 | AT158: 2052 | AU158: 2053 | AV158: 2054 | AW158: 2055 | AX158: 2056 | AY158: 2057 | AZ158: 2058 | BA158: 2059 | BB158: 2060 | BC158: 2061 | BD158: 2062 | BE158: 2063 | BF158: 2064 | BG158: 2065 | BH158: 2066 | BI158: 2067 | BJ158: 2068 | BK158: 2069 | BL158: 2070 | BM158: 2071 | BN158: 2072 | BO158: 2073 | BP158: 2074 | BQ158: 2075 | BR158: 2076 | BS158: 2077 | BT158: 2078 | BU158: 2079 | BV158: 2080 | BW158: 2081 | BX158: 2082 | BY158: 2083 | BZ158: 2084 | CA158: 2085 | CB158: 2086 | CC158: 2087 | CD158: 2088 | CE158: 2089 | CF158: 2090 | CG158: 2091 | CH158: 2092 | CI158: 2093 | CJ158: 2094 | CK158: 2095 | CL158: 2096 | CM158: 2097 | CN158: 2098 | CO158: 2099 | CP158: 2100
B159: Blocks 1 and 4 offshore facilities ($ / mmcf) | C159: 147.8284091 | T159: 0.0863546034 | U159: 0.1479054913 | V159: 0.2531124792 | W159: 0.3827702009 | X159: 0.1298572252
B160: Block 2 offshore facilities ($ / mmcf) | C160: 180.3358647 | T160: 0.0863546034 | U160: 0.1479054913 | V160: 0.2531124792 | W160: 0.3827702009 | X160: 0.1298572252
B162: Blocks 1 and 4 LNG plant facilities ($ / mmtpa)
B163: Block 2 LNG plant facilities ($ / mmtpa)
B165: Blocks 1 and 4 DSO plant facilities ($ / mmcf)
B166: Block 2 DSO plant facilities ($ / mmcf)
B168: Development capital expenditure for wells | C168: Unit cost | E168: Development capex per well
B169: Blocks 1 and 4 wells ($ / mmcf) | C169: 441.6686283 | F169: Total capex ($) | G169: Wells constructed | H169: Cost per well ($)
B170: Block 2 wells ($ / mmcf) | C170: 464.7074652 | E170: Blocks 1 and 4 | F170: =$C$169 * $C$9 -> 6632695599 | G170: ='Demand & production'!I793 -> 28 | H170: =F170/G170 -> 236881985.7
B171: Frequency of well drilling program (years) | C171: 10 | E171: Block 2 | F171: =$C$170 * $D$9 -> 6110074222 | G171: ='Demand & production'!I1238 -> 25 | H171: =F171/G171 -> 244402968.9
B172: Number of rigs per project | C172: 2
B174: Development capital expenditure for trains | C174: Unit cost | D174: Expenditure in years before start of train operation | I174: Start up year
D175: -5 | E175: -4 | F175: -3 | G175: -2 | H175: -1 | I175: 0
B176: Blocks 1 and 4 LNG trains ($ / mmtpa) | C176: 1000000000 | D176: 0.07914243608 | E176: 0.1316282863 | F176: 0.2037467568 | G176: 0.2484715851 | H176: 0.2424113587 | I176: 0.09459957708
B177: Block 2 LNG trains ($ / mmtpa) | C177: 1000000000 | D177: 0.07914243608 | E177: 0.1316282863 | F177: 0.2037467568 | G177: 0.2484715851 | H177: 0.2424113587 | I177: 0.09459957708
B179: Blocks 1 and 4 DSO processing trains ($ / mmcfpa) | C179: 2737 | D179: 0.07914243608 | E179: 0.1316282863 | F179: 0.2037467568 | G179: 0.2484715851 | H179: 0.2424113587 | I179: 0.09459957708
B180: Block 2 DSO processing trains ($ / mmcfpa) | C180: 2737 | D180: 0.07914243608 | E180: 0.1316282863 | F180: 0.2037467568 | G180: 0.2484715851 | H180: 0.2424113587 | I180: 0.09459957708
B182: Replacement capital expenditure (% of development capital expenditure per year of operation) | C182: 0.01
B184: Operating expenditure ($ / mmbtu)
B185: Blocks 1 and 4 | C185: 0.6
B186: Block 2 | C186: 0.6
B187: Blocks 1 and 4 DSO processing plant | C187: 0.1
B188: Block 2 DSO processing plant | C188: 0.1
B189: Blocks 1 and 4 LNG plant | C189: 0.5
B190: Block 2 LNG plant | C190: 0.5
B192: LNG shipping costs ($ / mmbtu) | C192: 1
B194: Decommissioning cost (% of total development capital expenditure) | C194: 0.1
B196: Local content
B197: Capital expenditure sourced locally | C197: 0.05
B198: Operating expenditure sourced locally | C198: 0.3
B200: Commercial structure
B202: Offshore project value chain segmentation | C202: Segmented
B204: Fiscal regime
B206: Blocks 1 and 4 fiscal regime | C206: 3 | E206: 1 | F206: 2 | G206: 3 | H206: 4 | I206: 5 | J206: 6 | K206: 7 | L206: 8
C207: =INDEX(E207:L207,C206) -> 2012 Block 2 Addendum | E207: 2004 MPSA | F207: 2010 MPSA Addendum | G207: 2012 Block 2 Addendum | H207: 2013 MPSA | I207: 2013 MPSA & 2016-17 reforms | J207: Offshore regime 6 | K207: Offshore regime 7 | L207: Offshore regime 8
B208: Signature Bonus ($) | C208: =INDEX(E208:L208,$C$206) -> 0 | E208: 0 | F208: 0 | G208: 0 | H208: 2500000 | I208: 2500000 | J208: 2500000 | K208: 2500000 | L208: 2500000
B209: Surface Rent under Development License ($ / km sq) | C209: =INDEX(E209:L209,$C$206) -> 200 | E209: 200 | F209: 200 | G209: 200 | H209: 500 | I209: 500 | J209: 200 | K209: 200 | L209: 200
B210: Training Fee ($) | C210: =INDEX(E210:L210,$C$206) -> 150000 | E210: 150000 | F210: 150000 | G210: 150000 | H210: 500000 | I210: 500000 | J210: 500000 | K210: 500000 | L210: 500000
B211: Production Bonus ($) | C211: =INDEX(E211:L211,$C$206) -> 0 | E211: 0 | F211: 0 | G211: 0 | H211: 5000000 | I211: 5000000 | J211: 5000000 | K211: 5000000 | L211: 5000000
B212: Service Levy | C212: =INDEX(E212:L212,$C$206) -> 0.003 | E212: 0.003 | F212: 0.003 | G212: 0.003 | H212: 0.003 | I212: 0.003 | J212: 0.003 | K212: 0.003 | L212: 0.003
B213: Royalty
B214: Rate | C214: =INDEX(E214:L214,$C$206) -> 0.05 | E214: 0.05 | F214: 0.05 | G214: 0.05 | H214: 0.075 | I214: 0.075 | J214: 0.05 | K214: 0.05 | L214: 0.05
B215: Govt Pays Royalty (1 = Y, 0 = N) | C215: =INDEX(E215:L215,$C$206) -> 1 | E215: 1 | F215: 1 | G215: 1 | H215: 0 | I215: 0 | J215: 1 | K215: 1 | L215: 1
B216: Govt Payment Arrangement (1 = Rate of 0%, 2 = From Govt Profit Share) | C216: =INDEX(E216:L216,$C$206) -> 2 | E216: 2 | F216: 2 | G216: 2 | H216: 2 | I216: 2 | J216: 2 | K216: 2 | L216: 2
B217: Production Share
B218: Cost Gas Limit | C218: =INDEX(E218:L218,$C$206) -> 0.7 | E218: 0.7 | F218: 0.7 | G218: 0.7 | H218: 0.5 | I218: 0.5 | J218: 0.7 | K218: 0.7 | L218: 0.7
B219: Surface Rent Cost Recoverable for Cost Gas (1 = Y, 0 = N) | C219: =INDEX(E219:L219,$C$206) -> 1 | E219: 1 | F219: 1 | G219: 1 | H219: 0 | I219: 0 | J219: 0 | K219: 0 | L219: 0
B220: Debt Financing Cost Recoverable for Cost Gas (1 = Y, 0 = N) | C220: =INDEX(E220:L220,$C$206) -> 0 | E220: 0 | F220: 0 | G220: 0 | H220: 0 | I220: 0 | J220: 0 | K220: 0 | L220: 0
B221: Profit Share Thresholds: Maximum Daily Production Rate
B222: Tier 1 | C222: =INDEX(E222:L222,$C$206) -> 0 | E222: 0 | F222: 249.99 | G222: 0 | H222: 0 | I222: 0 | J222: 0 | K222: 0 | L222: 0
B223: Tier 2 | C223: 299.99 | E223: 0 | F223: 499.99 | G223: 299.99 | H223: 149.99 | I223: 149.99 | J223: 299.99 | K223: 299.99 | L223: 299.99
B224: Tier 3 | C224: 599.99 | E224: 279.99 | F224: 749.99 | G224: 599.99 | H224: 299.99 | I224: 299.99 | J224: 599.99 | K224: 599.99 | L224: 599.99
B225: Tier 4 | C225: 899.99 | E225: 559.99 | F225: 999.99 | G225: 899.99 | H225: 449.99 | I225: 449.99 | J225: 899.99 | K225: 899.99 | L225: 899.99
B226: Tier 5 | C226: 1199.99 | E226: 839.99 | F226: 1249.99 | G226: 1199.99 | H226: 599.99 | I226: 599.99 | J226: 1199.99 | K226: 1199.99 | L226: 1199.99
B227: Tier 6 | C227: 1499.99 | E227: 1119.99 | F227: 1499.99 | G227: 1499.99 | H227: 749.99 | I227: 749.99 | J227: 1499.99 | K227: 1499.99 | L227: 1499.99
B228: Government Share of Production Tier
B229: Tranche 1 | C229: =INDEX(E229:L229,$C$206) -> 0 | E229: 0 | F229: 0.5 | G229: 0 | H229: 0 | I229: 0 | J229: 0 | K229: 0 | L229: 0
B230: Tranche 2 | C230: 0.3 | E230: 0 | F230: 0.55 | G230: 0.3 | H230: 0.6 | I230: 0.6 | J230: 0.3 | K230: 0.3 | L230: 0.3
B231: Tranche 3 | C231: 0.35 | E231: 0.5 | F231: 0.6 | G231: 0.35 | H231: 0.65 | I231: 0.65 | J231: 0.35 | K231: 0.35 | L231: 0.35
B232: Tranche 4 | C232: 0.375 | E232: 0.55 | F232: 0.65 | G232: 0.375 | H232: 0.7 | I232: 0.7 | J232: 0.375 | K232: 0.375 | L232: 0.375
B233: Tranche 5 | C233: 0.4 | E233: 0.6 | F233: 0.7 | G233: 0.4 | H233: 0.75 | I233: 0.75 | J233: 0.4 | K233: 0.4 | L233: 0.4
B234: Tranche 6 | C234: 0.45 | E234: 0.65 | F234: 0.75 | G234: 0.45 | H234: 0.8 | I234: 0.8 | J234: 0.45 | K234: 0.45 | L234: 0.45
B235: Tranche 7 | C235: 0.5 | E235: 0.7 | F235: 0.8 | G235: 0.5 | H235: 0.85 | I235: 0.85 | J235: 0.5 | K235: 0.5 | L235: 0.5
B236: Additional Profits Tax
B237: Applied (1 = Y, 0 = N) | C237: =INDEX(E237:L237,$C$206) -> 0 | E237: 0 | F237: 0 | G237: 0 | H237: 1 | I237: 1 | J237: 0 | K237: 0 | L237: 0
B238: Surface Rent Deductible for APT (1 = Y, 0 = N) | C238: =INDEX(E238:L238,$C$206) -> 0 | E238: 0 | F238: 0 | G238: 0 | H238: 0 | I238: 0 | J238: 0 | K238: 0 | L238: 0
B239: First Cash Flow Threshold | C239: =INDEX(E239:L239,$C$206) -> 0.2 | E239: 0.2 | F239: 0.2 | G239: 0.2 | H239: 0.2 | I239: 0.2 | J239: 0.2 | K239: 0.2 | L239: 0.2
B240: First Cash Flow Rate | C240: 0.25 | E240: 0.25 | F240: 0.25 | G240: 0.25 | H240: 0.25 | I240: 0.25 | J240: 0.25 | K240: 0.25 | L240: 0.25
B241: Second Cash Flow Threshold | C241: 0.3 | E241: 0.3 | F241: 0.3 | G241: 0.3 | H241: 0.3 | I241: 0.3 | J241: 0.3 | K241: 0.3 | L241: 0.3
B242: Second Cash Flow Rate | C242: 0.35 | E242: 0.35 | F242: 0.35 | G242: 0.35 | H242: 0.35 | I242: 0.35 | J242: 0.35 | K242: 0.35 | L242: 0.35
B243: Corporate Income Tax
B244: Rate | C244: =INDEX(E244:L244,$C$206) -> 0.3 | E244: 0.3 | F244: 0.3 | G244: 0.3 | H244: 0.3 | I244: 0.3 | J244: 0.3 | K244: 0.3 | L244: 0.3
... 195 more rows

Sheet Demand & production
A1: Demand & production
F4: Constant | G4: Unit | H4: Total | J4: 2010 | K4: =J4 + 1 -> 2011 | L4: =K4 + 1 -> 2012 | M4: 2013 | N4: 2014 | O4: 2015 | P4: 2016 | Q4: 2017 | R4: 2018 | S4: 2019 | T4: 2020 | U4: 2021 | V4: 2022 | W4: 2023 | X4: 2024 | Y4: 2025 | Z4: 2026 | AA4: 2027 | AB4: 2028 | AC4: 2029 | AD4: 2030 | AE4: 2031 | AF4: 2032 | AG4: 2033 | AH4: 2034 | AI4: 2035 | AJ4: 2036 | AK4: 2037 | AL4: 2038 | AM4: 2039 | AN4: 2040 | AO4: 2041 | AP4: 2042 | AQ4: 2043 | AR4: 2044 | AS4: 2045 | AT4: 2046 | AU4: 2047 | AV4: 2048 | AW4: 2049 | AX4: 2050 | AY4: 2051 | AZ4: 2052 | BA4: 2053 | BB4: 2054 | BC4: 2055 | BD4: 2056 | BE4: 2057 | BF4: 2058 | BG4: 2059 | BH4: 2060 | BI4: 2061 | BJ4: 2062 | BK4: 2063 | BL4: 2064 | BM4: 2065 | BN4: 2066 | BO4: 2067 | BP4: 2068 | BQ4: 2069 | BR4: 2070 | BS4: 2071 | BT4: 2072 | BU4: 2073 | BV4: 2074 | BW4: 2075 | BX4: =BW4 + 1 -> 2076 | BY4: 2077 | BZ4: 2078 | CA4: 2079 | CB4: 2080 | CC4: 2081 | CD4: 2082 | CE4: 2083 | CF4: 2084 | CG4: 2085 | CH4: 2086 | CI4: 2087 | CJ4: 2088 | CK4: 2089 | CL4: 2090 | CM4: 2091 | CN4: 2092 | CO4: 2093 | CP4: 2094 | CQ4: 2095 | CR4: 2096 | CS4: 2097 | CT4: 2098 | CU4: 2099 | CV4: 2100
A5: Domestic and regional demand for gas
E7: Domestic demand | G7: mmcf | H7: =SUM(J7:CB7) -> 21875990.55 | J7: =Inputs!C36 -> 27900 | K7: =Inputs!D36 -> 30700 | L7: =Inputs!E36 -> 35045 | M7: =Inputs!F36 -> 35135 | N7: =Inputs!G36 -> 32821 | O7: =Inputs!H36 -> 37278.9 | P7: =Inputs!I36 -> 45686 | Q7: =Inputs!J36 -> 47920.5 | R7: =Inputs!K36 -> 59340 | S7: =Inputs!L36 -> 63291 | T7: =Inputs!M36 -> 65018.76679 | U7: =Inputs!N36 -> 67771.1725 | V7: =Inputs!O36 -> 73548.94008 | W7: =Inputs!P36 -> 79326.70766 | X7: =Inputs!Q36 -> 85104.47524 | Y7: =Inputs!R36 -> 90882.24282 | Z7: =Inputs!S36 -> 96660.0104 | AA7: =Inputs!T36 -> 105146.4235 | AB7: =Inputs!U36 -> 113632.8366 | AC7: =Inputs!V36 -> 122119.2497 | AD7: =Inputs!W36 -> 130605.6629 | AE7: =Inputs!X36 -> 139092.076 | AF7: =Inputs!Y36 -> 151037.4816 | AG7: =Inputs!Z36 -> 162982.8873 | AH7: =Inputs!AA36 -> 174928.293 | AI7: =Inputs!AB36 -> 186873.6986 | AJ7: =Inputs!AC36 -> 198819.1043 | AK7: =Inputs!AD36 -> 212094.3322 | AL7: =Inputs!AE36 -> 226255.9521 | AM7: =Inputs!AF36 -> 241363.1488 | AN7: =Inputs!AG36 -> 257479.0588 | AO7: =Inputs!AH36 -> 274671.0343 | AP7: =Inputs!AI36 -> 293010.9247 | AQ7: =Inputs!AJ36 -> 312575.3765 | AR7: =Inputs!AK36 -> 333446.1543 | AS7: =Inputs!AL36 -> 355710.4819 | AT7: =Inputs!AM36 -> 379461.4072 | AU7: =Inputs!AN36 -> 404798.191 | AV7: =Inputs!AO36 -> 431826.7214 | AW7: =Inputs!AP36 -> 460659.9573 | AX7: =Inputs!AQ36 -> 491418.3993 | AY7: =Inputs!AR36 -> 491418.3993 | AZ7: =Inputs!AS36 -> 491418.3993 | BA7: =Inputs!AT36 -> 491418.3993 | BB7: =Inputs!AU36 -> 491418.3993 | BC7: =Inputs!AV36 -> 491418.3993 | BD7: =Inputs!AW36 -> 491418.3993 | BE7: =Inputs!AX36 -> 491418.3993 | BF7: =Inputs!AY36 -> 491418.3993 | BG7: =Inputs!AZ36 -> 491418.3993 | BH7: =Inputs!BA36 -> 491418.3993 | BI7: =Inputs!BB36 -> 491418.3993 | BJ7: =Inputs!BC36 -> 491418.3993 | BK7: =Inputs!BD36 -> 491418.3993 | BL7: =Inputs!BE36 -> 491418.3993 | BM7: =Inputs!BF36 -> 491418.3993 | BN7: =Inputs!BG36 -> 491418.3993 | BO7: =Inputs!BH36 -> 491418.3993 | BP7: =Inputs!BI36 -> 491418.3993 | BQ7: =Inputs!BJ36 -> 491418.3993 | BR7: =Inputs!BK36 -> 491418.3993 | BS7: =Inputs!BL36 -> 491418.3993 | BT7: =Inputs!BM36 -> 491418.3993 | BU7: =Inputs!BN36 -> 491418.3993 | BV7: =Inputs!BO36 -> 491418.3993 | BW7: =Inputs!BP36 -> 491418.3993 | BX7: =Inputs!BQ36 -> 491418.3993 | BY7: =Inputs!BR36 -> 491418.3993 | BZ7: =Inputs!BS36 -> 491418.3993 | CA7: =Inputs!BT36 -> 491418.3993 | CB7: =Inputs!BU36 -> 491418.3993 | CC7: =Inputs!BV36 -> 491418.3993 | CD7: =Inputs!BW36 -> 491418.3993 | CE7: =Inputs!BX36 -> 491418.3993 | CF7: =Inputs!BY36 -> 491418.3993 | CG7: =Inputs!BZ36 -> 491418.3993 | CH7: =Inputs!CA36 -> 491418.3993 | CI7: =Inputs!CB36 -> 491418.3993 | CJ7: =Inputs!CC36 -> 491418.3993 | CK7: =Inputs!CD36 -> 491418.3993 | CL7: =Inputs!CE36 -> 491418.3993 | CM7: =Inputs!CF36 -> 491418.3993 | CN7: =Inputs!CG36 -> 491418.3993 | CO7: =Inputs!CH36 -> 491418.3993 | CP7: =Inputs!CI36 -> 491418.3993 | CQ7: =Inputs!CJ36 -> 491418.3993 | CR7: =Inputs!CK36 -> 491418.3993 | CS7: =Inputs!CL36 -> 491418.3993 | CT7: =Inputs!CM36 -> 491418.3993 | CU7: =Inputs!CN36 -> 491418.3993 | CV7: =Inputs!CO36 -> 491418.3993
E8: Regional demand that Tanzania can potentially meet | G8: mmcf | H8: =SUM(J8:CV8) -> 0 | J8: =Inputs!C44 -> 0 | K8: =Inputs!D44 -> 0 | L8: =Inputs!E44 -> 0 | M8: =Inputs!F44 -> 0 | N8: =Inputs!G44 -> 0 | O8: =Inputs!H44 -> 0 | P8: =Inputs!I44 -> 0 | Q8: =Inputs!J44 -> 0 | R8: =Inputs!K44 -> 0 | S8: =Inputs!L44 -> 0 | T8: =Inputs!M44 -> 0 | U8: =Inputs!N44 -> 0 | V8: =Inputs!O44 -> 0 | W8: =Inputs!P44 -> 0 | X8: =Inputs!Q44 -> 0 | Y8: =Inputs!R44 -> 0 | Z8: =Inputs!S44 -> 0 | AA8: =Inputs!T44 -> 0 | AB8: =Inputs!U44 -> 0 | AC8: =Inputs!V44 -> 0 | AD8: =Inputs!W44 -> 0 | AE8: =Inputs!X44 -> 0 | AF8: =Inputs!Y44 -> 0 | AG8: =Inputs!Z44 -> 0 | AH8: =Inputs!AA44 -> 0 | AI8: =Inputs!AB44 -> 0 | AJ8: =Inputs!AC44 -> 0 | AK8: =Inputs!AD44 -> 0 | AL8: =Inputs!AE44 -> 0 | AM8: =Inputs!AF44 -> 0 | AN8: =Inputs!AG44 -> 0 | AO8: =Inputs!AH44 -> 0 | AP8: =Inputs!AI44 -> 0 | AQ8: =Inputs!AJ44 -> 0 | AR8: =Inputs!AK44 -> 0 | AS8: =Inputs!AL44 -> 0 | AT8: =Inputs!AM44 -> 0 | AU8: =Inputs!AN44 -> 0 | AV8: =Inputs!AO44 -> 0 | AW8: =Inputs!AP44 -> 0 | AX8: =Inputs!AQ44 -> 0 | AY8: =Inputs!AR44 -> 0 | AZ8: =Inputs!AS44 -> 0 | BA8: =Inputs!AT44 -> 0 | BB8: =Inputs!AU44 -> 0 | BC8: =Inputs!AV44 -> 0 | BD8: =Inputs!AW44 -> 0 | BE8: =Inputs!AX44 -> 0 | BF8: =Inputs!AY44 -> 0 | BG8: =Inputs!AZ44 -> 0 | BH8: =Inputs!BA44 -> 0 | BI8: =Inputs!BB44 -> 0 | BJ8: =Inputs!BC44 -> 0 | BK8: =Inputs!BD44 -> 0 | BL8: =Inputs!BE44 -> 0 | BM8: =Inputs!BF44 -> 0 | BN8: =Inputs!BG44 -> 0 | BO8: =Inputs!BH44 -> 0 | BP8: =Inputs!BI44 -> 0 | BQ8: =Inputs!BJ44 -> 0 | BR8: =Inputs!BK44 -> 0 | BS8: =Inputs!BL44 -> 0 | BT8: =Inputs!BM44 -> 0 | BU8: =Inputs!BN44 -> 0 | BV8: =Inputs!BO44 -> 0 | BW8: =Inputs!BP44 -> 0 | BX8: =Inputs!BQ44 -> 0 | BY8: =Inputs!BR44 -> 0 | BZ8: =Inputs!BS44 -> 0 | CA8: =Inputs!BT44 -> 0 | CB8: =Inputs!BU44 -> 0 | CC8: =Inputs!BV44 -> 0 | CD8: =Inputs!BW44 -> 0 | CE8: =Inputs!BX44 -> 0 | CF8: =Inputs!BY44 -> 0 | CG8: =Inputs!BZ44 -> 0 | CH8: =Inputs!CA44 -> 0 | CI8: =Inputs!CB44 -> 0 | CJ8: =Inputs!CC44 -> 0 | CK8: =Inputs!CD44 -> 0 | CL8: =Inputs!CE44 -> 0 | CM8: =Inputs!CF44 -> 0 | CN8: =Inputs!CG44 -> 0 | CO8: =Inputs!CH44 -> 0 | CP8: =Inputs!CI44 -> 0 | CQ8: =Inputs!CJ44 -> 0 | CR8: =Inputs!CK44 -> 0 | CS8: =Inputs!CL44 -> 0 | CT8: =Inputs!CM44 -> 0 | CU8: =Inputs!CN44 -> 0 | CV8: =Inputs!CO44 -> 0
A10: LNG plant demand for gas
C12: Blocks 1 and 4
E13: Gas reserves allocated to LNG plant | F13: =Inputs!C13 * (1 - Inputs!C67) -> 12587547.62
E14: LNG plant start up | F14: =SUMPRODUCT(J14:CV14,$J$4:$CV$4) -> 2030 | J14: =1 * AND(Inputs!C96 <> 0, SUM(Inputs!$B96:'Inputs'!B96) = 0) -> 0 | K14: =1 * AND(Inputs!D96 <> 0, SUM(Inputs!$B96:'Inputs'!C96) = 0) -> 0 | L14: =1 * AND(Inputs!E96 <> 0, SUM(Inputs!$B96:'Inputs'!D96) = 0) -> 0 | M14: =1 * AND(Inputs!F96 <> 0, SUM(Inputs!$B96:'Inputs'!E96) = 0) -> 0 | N14: =1 * AND(Inputs!G96 <> 0, SUM(Inputs!$B96:'Inputs'!F96) = 0) -> 0 | O14: =1 * AND(Inputs!H96 <> 0, SUM(Inputs!$B96:'Inputs'!G96) = 0) -> 0 | P14: =1 * AND(Inputs!I96 <> 0, SUM(Inputs!$B96:'Inputs'!H96) = 0) -> 0 | Q14: =1 * AND(Inputs!J96 <> 0, SUM(Inputs!$B96:'Inputs'!I96) = 0) -> 0 | R14: =1 * AND(Inputs!K96 <> 0, SUM(Inputs!$B96:'Inputs'!J96) = 0) -> 0 | S14: =1 * AND(Inputs!L96 <> 0, SUM(Inputs!$B96:'Inputs'!K96) = 0) -> 0 | T14: =1 * AND(Inputs!M96 <> 0, SUM(Inputs!$B96:'Inputs'!L96) = 0) -> 0 | U14: =1 * AND(Inputs!N96 <> 0, SUM(Inputs!$B96:'Inputs'!M96) = 0) -> 0 | V14: =1 * AND(Inputs!O96 <> 0, SUM(Inputs!$B96:'Inputs'!N96) = 0) -> 0 | W14: =1 * AND(Inputs!P96 <> 0, SUM(Inputs!$B96:'Inputs'!O96) = 0) -> 0 | X14: =1 * AND(Inputs!Q96 <> 0, SUM(Inputs!$B96:'Inputs'!P96) = 0) -> 0 | Y14: =1 * AND(Inputs!R96 <> 0, SUM(Inputs!$B96:'Inputs'!Q96) = 0) -> 0 | Z14: =1 * AND(Inputs!S96 <> 0, SUM(Inputs!$B96:'Inputs'!R96) = 0) -> 0 | AA14: =1 * AND(Inputs!T96 <> 0, SUM(Inputs!$B96:'Inputs'!S96) = 0) -> 0 | AB14: =1 * AND(Inputs!U96 <> 0, SUM(Inputs!$B96:'Inputs'!T96) = 0) -> 0 | AC14: =1 * AND(Inputs!V96 <> 0, SUM(Inputs!$B96:'Inputs'!U96) = 0) -> 0 | AD14: =1 * AND(Inputs!W96 <> 0, SUM(Inputs!$B96:'Inputs'!V96) = 0) -> 1 | AE14: =1 * AND(Inputs!X96 <> 0, SUM(Inputs!$B96:'Inputs'!W96) = 0) -> 0 | AF14: =1 * AND(Inputs!Y96 <> 0, SUM(Inputs!$B96:'Inputs'!X96) = 0) -> 0 | AG14: =1 * AND(Inputs!Z96 <> 0, SUM(Inputs!$B96:'Inputs'!Y96) = 0) -> 0 | AH14: =1 * AND(Inputs!AA96 <> 0, SUM(Inputs!$B96:'Inputs'!Z96) = 0) -> 0 | AI14: =1 * AND(Inputs!AB96 <> 0, SUM(Inputs!$B96:'Inputs'!AA96) = 0) -> 0 | AJ14: =1 * AND(Inputs!AC96 <> 0, SUM(Inputs!$B96:'Inputs'!AB96) = 0) -> 0 | AK14: =1 * AND(Inputs!AD96 <> 0, SUM(Inputs!$B96:'Inputs'!AC96) = 0) -> 0 | AL14: =1 * AND(Inputs!AE96 <> 0, SUM(Inputs!$B96:'Inputs'!AD96) = 0) -> 0 | AM14: =1 * AND(Inputs!AF96 <> 0, SUM(Inputs!$B96:'Inputs'!AE96) = 0) -> 0 | AN14: =1 * AND(Inputs!AG96 <> 0, SUM(Inputs!$B96:'Inputs'!AF96) = 0) -> 0 | AO14: =1 * AND(Inputs!AH96 <> 0, SUM(Inputs!$B96:'Inputs'!AG96) = 0) -> 0 | AP14: =1 * AND(Inputs!AI96 <> 0, SUM(Inputs!$B96:'Inputs'!AH96) = 0) -> 0 | AQ14: =1 * AND(Inputs!AJ96 <> 0, SUM(Inputs!$B96:'Inputs'!AI96) = 0) -> 0 | AR14: =1 * AND(Inputs!AK96 <> 0, SUM(Inputs!$B96:'Inputs'!AJ96) = 0) -> 0 | AS14: =1 * AND(Inputs!AL96 <> 0, SUM(Inputs!$B96:'Inputs'!AK96) = 0) -> 0 | AT14: =1 * AND(Inputs!AM96 <> 0, SUM(Inputs!$B96:'Inputs'!AL96) = 0) -> 0 | AU14: =1 * AND(Inputs!AN96 <> 0, SUM(Inputs!$B96:'Inputs'!AM96) = 0) -> 0 | AV14: =1 * AND(Inputs!AO96 <> 0, SUM(Inputs!$B96:'Inputs'!AN96) = 0) -> 0 | AW14: =1 * AND(Inputs!AP96 <> 0, SUM(Inputs!$B96:'Inputs'!AO96) = 0) -> 0 | AX14: =1 * AND(Inputs!AQ96 <> 0, SUM(Inputs!$B96:'Inputs'!AP96) = 0) -> 0 | AY14: =1 * AND(Inputs!AR96 <> 0, SUM(Inputs!$B96:'Inputs'!AQ96) = 0) -> 0 | AZ14: =1 * AND(Inputs!AS96 <> 0, SUM(Inputs!$B96:'Inputs'!AR96) = 0) -> 0 | BA14: =1 * AND(Inputs!AT96 <> 0, SUM(Inputs!$B96:'Inputs'!AS96) = 0) -> 0 | BB14: =1 * AND(Inputs!AU96 <> 0, SUM(Inputs!$B96:'Inputs'!AT96) = 0) -> 0 | BC14: =1 * AND(Inputs!AV96 <> 0, SUM(Inputs!$B96:'Inputs'!AU96) = 0) -> 0 | BD14: =1 * AND(Inputs!AW96 <> 0, SUM(Inputs!$B96:'Inputs'!AV96) = 0) -> 0 | BE14: =1 * AND(Inputs!AX96 <> 0, SUM(Inputs!$B96:'Inputs'!AW96) = 0) -> 0 | BF14: =1 * AND(Inputs!AY96 <> 0, SUM(Inputs!$B96:'Inputs'!AX96) = 0) -> 0 | BG14: =1 * AND(Inputs!AZ96 <> 0, SUM(Inputs!$B96:'Inputs'!AY96) = 0) -> 0 | BH14: =1 * AND(Inputs!BA96 <> 0, SUM(Inputs!$B96:'Inputs'!AZ96) = 0) -> 0 | BI14: =1 * AND(Inputs!BB96 <> 0, SUM(Inputs!$B96:'Inputs'!BA96) = 0) -> 0 | BJ14: =1 * AND(Inputs!BC96 <> 0, SUM(Inputs!$B96:'Inputs'!BB96) = 0) -> 0 | BK14: =1 * AND(Inputs!BD96 <> 0, SUM(Inputs!$B96:'Inputs'!BC96) = 0) -> 0 | BL14: =1 * AND(Inputs!BE96 <> 0, SUM(Inputs!$B96:'Inputs'!BD96) = 0) -> 0 | BM14: =1 * AND(Inputs!BF96 <> 0, SUM(Inputs!$B96:'Inputs'!BE96) = 0) -> 0 | BN14: =1 * AND(Inputs!BG96 <> 0, SUM(Inputs!$B96:'Inputs'!BF96) = 0) -> 0 | BO14: =1 * AND(Inputs!BH96 <> 0, SUM(Inputs!$B96:'Inputs'!BG96) = 0) -> 0 | BP14: =1 * AND(Inputs!BI96 <> 0, SUM(Inputs!$B96:'Inputs'!BH96) = 0) -> 0 | BQ14: =1 * AND(Inputs!BJ96 <> 0, SUM(Inputs!$B96:'Inputs'!BI96) = 0) -> 0 | BR14: =1 * AND(Inputs!BK96 <> 0, SUM(Inputs!$B96:'Inputs'!BJ96) = 0) -> 0 | BS14: =1 * AND(Inputs!BL96 <> 0, SUM(Inputs!$B96:'Inputs'!BK96) = 0) -> 0 | BT14: =1 * AND(Inputs!BM96 <> 0, SUM(Inputs!$B96:'Inputs'!BL96) = 0) -> 0 | BU14: =1 * AND(Inputs!BN96 <> 0, SUM(Inputs!$B96:'Inputs'!BM96) = 0) -> 0 | BV14: =1 * AND(Inputs!BO96 <> 0, SUM(Inputs!$B96:'Inputs'!BN96) = 0) -> 0 | BW14: =1 * AND(Inputs!BP96 <> 0, SUM(Inputs!$B96:'Inputs'!BO96) = 0) -> 0 | BX14: =1 * AND(Inputs!BQ96 <> 0, SUM(Inputs!$B96:'Inputs'!BP96) = 0) -> 0 | BY14: =1 * AND(Inputs!BR96 <> 0, SUM(Inputs!$B96:'Inputs'!BQ96) = 0) -> 0 | BZ14: =1 * AND(Inputs!BS96 <> 0, SUM(Inputs!$B96:'Inputs'!BR96) = 0) -> 0 | CA14: =1 * AND(Inputs!BT96 <> 0, SUM(Inputs!$B96:'Inputs'!BS96) = 0) -> 0 | CB14: =1 * AND(Inputs!BU96 <> 0, SUM(Inputs!$B96:'Inputs'!BT96) = 0) -> 0 | CC14: =1 * AND(Inputs!BV96 <> 0, SUM(Inputs!$B96:'Inputs'!BU96) = 0) -> 0 | CD14: =1 * AND(Inputs!BW96 <> 0, SUM(Inputs!$B96:'Inputs'!BV96) = 0) -> 0 | CE14: =1 * AND(Inputs!BX96 <> 0, SUM(Inputs!$B96:'Inputs'!BW96) = 0) -> 0 | CF14: =1 * AND(Inputs!BY96 <> 0, SUM(Inputs!$B96:'Inputs'!BX96) = 0) -> 0 | CG14: =1 * AND(Inputs!BZ96 <> 0, SUM(Inputs!$B96:'Inputs'!BY96) = 0) -> 0 | CH14: =1 * AND(Inputs!CA96 <> 0, SUM(Inputs!$B96:'Inputs'!BZ96) = 0) -> 0 | CI14: =1 * AND(Inputs!CB96 <> 0, SUM(Inputs!$B96:'Inputs'!CA96) = 0) -> 0 | CJ14: =1 * AND(Inputs!CC96 <> 0, SUM(Inputs!$B96:'Inputs'!CB96) = 0) -> 0 | CK14: =1 * AND(Inputs!CD96 <> 0, SUM(Inputs!$B96:'Inputs'!CC96) = 0) -> 0 | CL14: =1 * AND(Inputs!CE96 <> 0, SUM(Inputs!$B96:'Inputs'!CD96) = 0) -> 0 | CM14: =1 * AND(Inputs!CF96 <> 0, SUM(Inputs!$B96:'Inputs'!CE96) = 0) -> 0 | CN14: =1 * AND(Inputs!CG96 <> 0, SUM(Inputs!$B96:'Inputs'!CF96) = 0) -> 0 | CO14: =1 * AND(Inputs!CH96 <> 0, SUM(Inputs!$B96:'Inputs'!CG96) = 0) -> 0 | CP14: =1 * AND(Inputs!CI96 <> 0, SUM(Inputs!$B96:'Inputs'!CH96) = 0) -> 0 | CQ14: =1 * AND(Inputs!CJ96 <> 0, SUM(Inputs!$B96:'Inputs'!CI96) = 0) -> 0 | CR14: =1 * AND(Inputs!CK96 <> 0, SUM(Inputs!$B96:'Inputs'!CJ96) = 0) -> 0 | CS14: =1 * AND(Inputs!CL96 <> 0, SUM(Inputs!$B96:'Inputs'!CK96) = 0) -> 0 | CT14: =1 * AND(Inputs!CM96 <> 0, SUM(Inputs!$B96:'Inputs'!CL96) = 0) -> 0 | CU14: =1 * AND(Inputs!CN96 <> 0, SUM(Inputs!$B96:'Inputs'!CM96) = 0) -> 0 | CV14: =1 * AND(Inputs!CO96 <> 0, SUM(Inputs!$B96:'Inputs'!CN96) = 0) -> 0
E15: LNG plant initial capacity | F15: =LOOKUP(F14, Inputs!C95:CP95, Inputs!C96:CP96) -> 7 | G15: mmtpa
E16: Years it takes for LNG plant to operate at full capacity | F16: =Inputs!C93 -> 1 | G16: years
E17: Train capacity starting operation | G17: mmtpa | J17: =Inputs!C96 -> 0 | K17: =Inputs!D96 -> 0 | L17: =Inputs!E96 -> 0 | M17: =Inputs!F96 -> 0 | N17: =Inputs!G96 -> 0 | O17: =Inputs!H96 -> 0 | P17: =Inputs!I96 -> 0 | Q17: =Inputs!J96 -> 0 | R17: =Inputs!K96 -> 0 | S17: =Inputs!L96 -> 0 | T17: =Inputs!M96 -> 0 | U17: =Inputs!N96 -> 0 | V17: =Inputs!O96 -> 0 | W17: =Inputs!P96 -> 0 | X17: =Inputs!Q96 -> 0 | Y17: =Inputs!R96 -> 0 | Z17: =Inputs!S96 -> 0 | AA17: =Inputs!T96 -> 0 | AB17: =Inputs!U96 -> 0 | AC17: =Inputs!V96 -> 0 | AD17: =Inputs!W96 -> 7 | AE17: =Inputs!X96 -> 0 | AF17: =Inputs!Y96 -> 0 | AG17: =Inputs!Z96 -> 0 | AH17: =Inputs!AA96 -> 0 | AI17: =Inputs!AB96 -> 0 | AJ17: =Inputs!AC96 -> 0 | AK17: =Inputs!AD96 -> 0 | AL17: =Inputs!AE96 -> 0 | AM17: =Inputs!AF96 -> 0 | AN17: =Inputs!AG96 -> 0 | AO17: =Inputs!AH96 -> 0 | AP17: =Inputs!AI96 -> 0 | AQ17: =Inputs!AJ96 -> 0 | AR17: =Inputs!AK96 -> 0 | AS17: =Inputs!AL96 -> 0 | AT17: =Inputs!AM96 -> 0 | AU17: =Inputs!AN96 -> 0 | AV17: =Inputs!AO96 -> 0 | AW17: =Inputs!AP96 -> 0 | AX17: =Inputs!AQ96 -> 0 | AY17: =Inputs!AR96 -> 0 | AZ17: =Inputs!AS96 -> 0 | BA17: =Inputs!AT96 -> 0 | BB17: =Inputs!AU96 -> 0 | BC17: =Inputs!AV96 -> 0 | BD17: =Inputs!AW96 -> 0 | BE17: =Inputs!AX96 -> 0 | BF17: =Inputs!AY96 -> 0 | BG17: =Inputs!AZ96 -> 0 | BH17: =Inputs!BA96 -> 0 | BI17: =Inputs!BB96 -> 0 | BJ17: =Inputs!BC96 -> 0 | BK17: =Inputs!BD96 -> 0 | BL17: =Inputs!BE96 -> 0 | BM17: =Inputs!BF96 -> 0 | BN17: =Inputs!BG96 -> 0 | BO17: =Inputs!BH96 -> 0 | BP17: =Inputs!BI96 -> 0 | BQ17: =Inputs!BJ96 -> 0 | BR17: =Inputs!BK96 -> 0 | BS17: =Inputs!BL96 -> 0 | BT17: =Inputs!BM96 -> 0 | BU17: =Inputs!BN96 -> 0 | BV17: =Inputs!BO96 -> 0 | BW17: =Inputs!BP96 -> 0 | BX17: =Inputs!BQ96 -> 0 | BY17: =Inputs!BR96 -> 0 | BZ17: =Inputs!BS96 -> 0 | CA17: =Inputs!BT96 -> 0 | CB17: =Inputs!BU96 -> 0 | CC17: =Inputs!BV96 -> 0 | CD17: =Inputs!BW96 -> 0 | CE17: =Inputs!BX96 -> 0 | CF17: =Inputs!BY96 -> 0 | CG17: =Inputs!BZ96 -> 0 | CH17: =Inputs!CA96 -> 0 | CI17: =Inputs!CB96 -> 0 | CJ17: =Inputs!CC96 -> 0 | CK17: =Inputs!CD96 -> 0 | CL17: =Inputs!CE96 -> 0 | CM17: =Inputs!CF96 -> 0 | CN17: =Inputs!CG96 -> 0 | CO17: =Inputs!CH96 -> 0 | CP17: =Inputs!CI96 -> 0 | CQ17: =Inputs!CJ96 -> 0 | CR17: =Inputs!CK96 -> 0 | CS17: =Inputs!CL96 -> 0 | CT17: =Inputs!CM96 -> 0 | CU17: =Inputs!CN96 -> 0 | CV17: =Inputs!CO96 -> 0
E18: Train capacity in operation | G18: mmt | J18: =(IF(J4 = $F$14, $F$15 / ($F$16 + 1), IF(AND(J4 > $F$14, J4 <= $F$14 + $F$16 - 1), I18 + ($F$15 / ($F$16 + 1)), SUM($J$17:J17)))) -> 0 | K18: =(IF(K4 = $F$14, $F$15 / ($F$16 + 1), IF(AND(K4 > $F$14, K4 <= $F$14 + $F$16 - 1), J18 + ($F$15 / ($F$16 + 1)), SUM($J$17:K17)))) -> 0 | L18: =(IF(L4 = $F$14, $F$15 / ($F$16 + 1), IF(AND(L4 > $F$14, L4 <= $F$14 + $F$16 - 1), K18 + ($F$15 / ($F$16 + 1)), SUM($J$17:L17)))) -> 0 | M18: =(IF(M4 = $F$14, $F$15 / ($F$16 + 1), IF(AND(M4 > $F$14, M4 <= $F$14 + $F$16 - 1), L18 + ($F$15 / ($F$16 + 1)), SUM($J$17:M17)))) -> 0 | N18: =(IF(N4 = $F$14, $F$15 / ($F$16 + 1), IF(AND(N4 > $F$14, N4 <= $F$14 + $F$16 - 1), M18 + ($F$15 / ($F$16 + 1)), SUM($J$17:N17)))) -> 0 | O18: =(IF(O4 = $F$14, $F$15 / ($F$16 + 1), IF(AND(O4 > $F$14, O4 <= $F$14 + $F$16 - 1), N18 + ($F$15 / ($F$16 + 1)), SUM($J$17:O17)))) -> 0 | P18: =(IF(P4 = $F$14, $F$15 / ($F$16 + 1), IF(AND(P4 > $F$14, P4 <= $F$14 + $F$16 - 1), O18 + ($F$15 / ($F$16 + 1)), SUM($J$17:P17)))) -> 0 | Q18: =(IF(Q4 = $F$14, $F$15 / ($F$16 + 1), IF(AND(Q4 > $F$14, Q4 <= $F$14 + $F$16 - 1), P18 + ($F$15 / ($F$16 + 1)), SUM($J$17:Q17)))) -> 0 | R18: =(IF(R4 = $F$14, $F$15 / ($F$16 + 1), IF(AND(R4 > $F$14, R4 <= $F$14 + $F$16 - 1), Q18 + ($F$15 / ($F$16 + 1)), SUM($J$17:R17)))) -> 0 | S18: =(IF(S4 = $F$14, $F$15 / ($F$16 + 1), IF(AND(S4 > $F$14, S4 <= $F$14 + $F$16 - 1), R18 + ($F$15 / ($F$16 + 1)), SUM($J$17:S17)))) -> 0 | T18: =(IF(T4 = $F$14, $F$15 / ($F$16 + 1), IF(AND(T4 > $F$14, T4 <= $F$14 + $F$16 - 1), S18 + ($F$15 / ($F$16 + 1)), SUM($J$17:T17)))) -> 0 | U18: =(IF(U4 = $F$14, $F$15 / ($F$16 + 1), IF(AND(U4 > $F$14, U4 <= $F$14 + $F$16 - 1), T18 + ($F$15 / ($F$16 + 1)), SUM($J$17:U17)))) -> 0 | V18: =(IF(V4 = $F$14, $F$15 / ($F$16 + 1), IF(AND(V4 > $F$14, V4 <= $F$14 + $F$16 - 1), U18 + ($F$15 / ($F$16 + 1)), SUM($J$17:V17)))) -> 0 | W18: =(IF(W4 = $F$14, $F$15 / ($F$16 + 1), IF(AND(W4 > $F$14, W4 <= $F$14 + $F$16 - 1), V18 + ($F$15 / ($F$16 + 1)), SUM($J$17:W17)))) -> 0 | X18: =(IF(X4 = $F$14, $F$15 / ($F$16 + 1), IF(AND(X4 > $F$14, X4 <= $F$14 + $F$16 - 1), W18 + ($F$15 / ($F$16 + 1)), SUM($J$17:X17)))) -> 0 | Y18: =(IF(Y4 = $F$14, $F$15 / ($F$16 + 1), IF(AND(Y4 > $F$14, Y4 <= $F$14 + $F$16 - 1), X18 + ($F$15 / ($F$16 + 1)), SUM($J$17:Y17)))) -> 0 | Z18: =(IF(Z4 = $F$14, $F$15 / ($F$16 + 1), IF(AND(Z4 > $F$14, Z4 <= $F$14 + $F$16 - 1), Y18 + ($F$15 / ($F$16 + 1)), SUM($J$17:Z17)))) -> 0 | AA18: =(IF(AA4 = $F$14, $F$15 / ($F$16 + 1), IF(AND(AA4 > $F$14, AA4 <= $F$14 + $F$16 - 1), Z18 + ($F$15 / ($F$16 + 1)), SUM($J$17:AA17)))) -> 0 | AB18: =(IF(AB4 = $F$14, $F$15 / ($F$16 + 1), IF(AND(AB4 > $F$14, AB4 <= $F$14 + $F$16 - 1), AA18 + ($F$15 / ($F$16 + 1)), SUM($J$17:AB17)))) -> 0 | AC18: =(IF(AC4 = $F$14, $F$15 / ($F$16 + 1), IF(AND(AC4 > $F$14, AC4 <= $F$14 + $F$16 - 1), AB18 + ($F$15 / ($F$16 + 1)), SUM($J$17:AC17)))) -> 0 | AD18: =(IF(AD4 = $F$14, $F$15 / ($F$16 + 1), IF(AND(AD4 > $F$14, AD4 <= $F$14 + $F$16 - 1), AC18 + ($F$15 / ($F$16 + 1)), SUM($J$17:AD17)))) -> 3.5 | AE18: =(IF(AE4 = $F$14, $F$15 / ($F$16 + 1), IF(AND(AE4 > $F$14, AE4 <= $F$14 + $F$16 - 1), AD18 + ($F$15 / ($F$16 + 1)), SUM($J$17:AE17)))) -> 7 | AF18: =(IF(AF4 = $F$14, $F$15 / ($F$16 + 1), IF(AND(AF4 > $F$14, AF4 <= $F$14 + $F$16 - 1), AE18 + ($F$15 / ($F$16 + 1)), SUM($J$17:AF17)))) -> 7 | AG18: =(IF(AG4 = $F$14, $F$15 / ($F$16 + 1), IF(AND(AG4 > $F$14, AG4 <= $F$14 + $F$16 - 1), AF18 + ($F$15 / ($F$16 + 1)), SUM($J$17:AG17)))) -> 7 | AH18: =(IF(AH4 = $F$14, $F$15 / ($F$16 + 1), IF(AND(AH4 > $F$14, AH4 <= $F$14 + $F$16 - 1), AG18 + ($F$15 / ($F$16 + 1)), SUM($J$17:AH17)))) -> 7 | AI18: =(IF(AI4 = $F$14, $F$15 / ($F$16 + 1), IF(AND(AI4 > $F$14, AI4 <= $F$14 + $F$16 - 1), AH18 + ($F$15 / ($F$16 + 1)), SUM($J$17:AI17)))) -> 7 | AJ18: =(IF(AJ4 = $F$14, $F$15 / ($F$16 + 1), IF(AND(AJ4 > $F$14, AJ4 <= $F$14 + $F$16 - 1), AI18 + ($F$15 / ($F$16 + 1)), SUM($J$17:AJ17)))) -> 7 | AK18: =(IF(AK4 = $F$14, $F$15 / ($F$16 + 1), IF(AND(AK4 > $F$14, AK4 <= $F$14 + $F$16 - 1), AJ18 + ($F$15 / ($F$16 + 1)), SUM($J$17:AK17)))) -> 7 | AL18: =(IF(AL4 = $F$14, $F$15 / ($F$16 + 1), IF(AND(AL4 > $F$14, AL4 <= $F$14 + $F$16 - 1), AK18 + ($F$15 / ($F$16 + 1)), SUM($J$17:AL17)))) -> 7 | AM18: =(IF(AM4 = $F$14, $F$15 / ($F$16 + 1), IF(AND(AM4 > $F$14, AM4 <= $F$14 + $F$16 - 1), AL18 + ($F$15 / ($F$16 + 1)), SUM($J$17:AM17)))) -> 7 | AN18: =(IF(AN4 = $F$14, $F$15 / ($F$16 + 1), IF(AND(AN4 > $F$14, AN4 <= $F$14 + $F$16 - 1), AM18 + ($F$15 / ($F$16 + 1)), SUM($J$17:AN17)))) -> 7 | AO18: =(IF(AO4 = $F$14, $F$15 / ($F$16 + 1), IF(AND(AO4 > $F$14, AO4 <= $F$14 + $F$16 - 1), AN18 + ($F$15 / ($F$16 + 1)), SUM($J$17:AO17)))) -> 7 | AP18: =(IF(AP4 = $F$14, $F$15 / ($F$16 + 1), IF(AND(AP4 > $F$14, AP4 <= $F$14 + $F$16 - 1), AO18 + ($F$15 / ($F$16 + 1)), SUM($J$17:AP17)))) -> 7 | AQ18: =(IF(AQ4 = $F$14, $F$15 / ($F$16 + 1), IF(AND(AQ4 > $F$14, AQ4 <= $F$14 + $F$16 - 1), AP18 + ($F$15 / ($F$16 + 1)), SUM($J$17:AQ17)))) -> 7 | AR18: =(IF(AR4 = $F$14, $F$15 / ($F$16 + 1), IF(AND(AR4 > $F$14, AR4 <= $F$14 + $F$16 - 1), AQ18 + ($F$15 / ($F$16 + 1)), SUM($J$17:AR17)))) -> 7 | AS18: =(IF(AS4 = $F$14, $F$15 / ($F$16 + 1), IF(AND(AS4 > $F$14, AS4 <= $F$14 + $F$16 - 1), AR18 + ($F$15 / ($F$16 + 1)), SUM($J$17:AS17)))) -> 7 | AT18: =(IF(AT4 = $F$14, $F$15 / ($F$16 + 1), IF(AND(AT4 > $F$14, AT4 <= $F$14 + $F$16 - 1), AS18 + ($F$15 / ($F$16 + 1)), SUM($J$17:AT17)))) -> 7 | AU18: =(IF(AU4 = $F$14, $F$15 / ($F$16 + 1), IF(AND(AU4 > $F$14, AU4 <= $F$14 + $F$16 - 1), AT18 + ($F$15 / ($F$16 + 1)), SUM($J$17:AU17)))) -> 7 | AV18: =(IF(AV4 = $F$14, $F$15 / ($F$16 + 1), IF(AND(AV4 > $F$14, AV4 <= $F$14 + $F$16 - 1), AU18 + ($F$15 / ($F$16 + 1)), SUM($J$17:AV17)))) -> 7 | AW18: =(IF(AW4 = $F$14, $F$15 / ($F$16 + 1), IF(AND(AW4 > $F$14, AW4 <= $F$14 + $F$16 - 1), AV18 + ($F$15 / ($F$16 + 1)), SUM($J$17:AW17)))) -> 7 | AX18: =(IF(AX4 = $F$14, $F$15 / ($F$16 + 1), IF(AND(AX4 > $F$14, AX4 <= $F$14 + $F$16 - 1), AW18 + ($F$15 / ($F$16 + 1)), SUM($J$17:AX17)))) -> 7 | AY18: =(IF(AY4 = $F$14, $F$15 / ($F$16 + 1), IF(AND(AY4 > $F$14, AY4 <= $F$14 + $F$16 - 1), AX18 + ($F$15 / ($F$16 + 1)), SUM($J$17:AY17)))) -> 7 | AZ18: =(IF(AZ4 = $F$14, $F$15 / ($F$16 + 1), IF(AND(AZ4 > $F$14, AZ4 <= $F$14 + $F$16 - 1), AY18 + ($F$15 / ($F$16 + 1)), SUM($J$17:AZ17)))) -> 7 | BA18: =(IF(BA4 = $F$14, $F$15 / ($F$16 + 1), IF(AND(BA4 > $F$14, BA4 <= $F$14 + $F$16 - 1), AZ18 + ($F$15 / ($F$16 + 1)), SUM($J$17:BA17)))) -> 7 | BB18: =(IF(BB4 = $F$14, $F$15 / ($F$16 + 1), IF(AND(BB4 > $F$14, BB4 <= $F$14 + $F$16 - 1), BA18 + ($F$15 / ($F$16 + 1)), SUM($J$17:BB17)))) -> 7 | BC18: =(IF(BC4 = $F$14, $F$15 / ($F$16 + 1), IF(AND(BC4 > $F$14, BC4 <= $F$14 + $F$16 - 1), BB18 + ($F$15 / ($F$16 + 1)), SUM($J$17:BC17)))) -> 7 | BD18: =(IF(BD4 = $F$14, $F$15 / ($F$16 + 1), IF(AND(BD4 > $F$14, BD4 <= $F$14 + $F$16 - 1), BC18 + ($F$15 / ($F$16 + 1)), SUM($J$17:BD17)))) -> 7 | BE18: =(IF(BE4 = $F$14, $F$15 / ($F$16 + 1), IF(AND(BE4 > $F$14, BE4 <= $F$14 + $F$16 - 1), BD18 + ($F$15 / ($F$16 + 1)), SUM($J$17:BE17)))) -> 7 | BF18: =(IF(BF4 = $F$14, $F$15 / ($F$16 + 1), IF(AND(BF4 > $F$14, BF4 <= $F$14 + $F$16 - 1), BE18 + ($F$15 / ($F$16 + 1)), SUM($J$17:BF17)))) -> 7 | BG18: =(IF(BG4 = $F$14, $F$15 / ($F$16 + 1), IF(AND(BG4 > $F$14, BG4 <= $F$14 + $F$16 - 1), BF18 + ($F$15 / ($F$16 + 1)), SUM($J$17:BG17)))) -> 7 | BH18: =(IF(BH4 = $F$14, $F$15 / ($F$16 + 1), IF(AND(BH4 > $F$14, BH4 <= $F$14 + $F$16 - 1), BG18 + ($F$15 / ($F$16 + 1)), SUM($J$17:BH17)))) -> 7 | BI18: =(IF(BI4 = $F$14, $F$15 / ($F$16 + 1), IF(AND(BI4 > $F$14, BI4 <= $F$14 + $F$16 - 1), BH18 + ($F$15 / ($F$16 + 1)), SUM($J$17:BI17)))) -> 7 | BJ18: =(IF(BJ4 = $F$14, $F$15 / ($F$16 + 1), IF(AND(BJ4 > $F$14, BJ4 <= $F$14 + $F$16 - 1), BI18 + ($F$15 / ($F$16 + 1)), SUM($J$17:BJ17)))) -> 7 | BK18: =(IF(BK4 = $F$14, $F$15 / ($F$16 + 1), IF(AND(BK4 > $F$14, BK4 <= $F$14 + $F$16 - 1), BJ18 + ($F$15 / ($F$16 + 1)), SUM($J$17:BK17)))) -> 7 | BL18: =(IF(BL4 = $F$14, $F$15 / ($F$16 + 1), IF(AND(BL4 > $F$14, BL4 <= $F$14 + $F$16 - 1), BK18 + ($F$15 / ($F$16 + 1)), SUM($J$17:BL17)))) -> 7 | BM18: =(IF(BM4 = $F$14, $F$15 / ($F$16 + 1), IF(AND(BM4 > $F$14, BM4 <= $F$14 + $F$16 - 1), BL18 + ($F$15 / ($F$16 + 1)), SUM($J$17:BM17)))) -> 7 | BN18: =(IF(BN4 = $F$14, $F$15 / ($F$16 + 1), IF(AND(BN4 > $F$14, BN4 <= $F$14 + $F$16 - 1), BM18 + ($F$15 / ($F$16 + 1)), SUM($J$17:BN17)))) -> 7 | BO18: =(IF(BO4 = $F$14, $F$15 / ($F$16 + 1), IF(AND(BO4 > $F$14, BO4 <= $F$14 + $F$16 - 1), BN18 + ($F$15 / ($F$16 + 1)), SUM($J$17:BO17)))) -> 7 | BP18: =(IF(BP4 = $F$14, $F$15 / ($F$16 + 1), IF(AND(BP4 > $F$14, BP4 <= $F$14 + $F$16 - 1), BO18 + ($F$15 / ($F$16 + 1)), SUM($J$17:BP17)))) -> 7 | BQ18: =(IF(BQ4 = $F$14, $F$15 / ($F$16 + 1), IF(AND(BQ4 > $F$14, BQ4 <= $F$14 + $F$16 - 1), BP18 + ($F$15 / ($F$16 + 1)), SUM($J$17:BQ17)))) -> 7 | BR18: =(IF(BR4 = $F$14, $F$15 / ($F$16 + 1), IF(AND(BR4 > $F$14, BR4 <= $F$14 + $F$16 - 1), BQ18 + ($F$15 / ($F$16 + 1)), SUM($J$17:BR17)))) -> 7 | BS18: =(IF(BS4 = $F$14, $F$15 / ($F$16 + 1), IF(AND(BS4 > $F$14, BS4 <= $F$14 + $F$16 - 1), BR18 + ($F$15 / ($F$16 + 1)), SUM($J$17:BS17)))) -> 7 | BT18: =(IF(BT4 = $F$14, $F$15 / ($F$16 + 1), IF(AND(BT4 > $F$14, BT4 <= $F$14 + $F$16 - 1), BS18 + ($F$15 / ($F$16 + 1)), SUM($J$17:BT17)))) -> 7 | BU18: =(IF(BU4 = $F$14, $F$15 / ($F$16 + 1), IF(AND(BU4 > $F$14, BU4 <= $F$14 + $F$16 - 1), BT18 + ($F$15 / ($F$16 + 1)), SUM($J$17:BU17)))) -> 7 | BV18: =(IF(BV4 = $F$14, $F$15 / ($F$16 + 1), IF(AND(BV4 > $F$14, BV4 <= $F$14 + $F$16 - 1), BU18 + ($F$15 / ($F$16 + 1)), SUM($J$17:BV17)))) -> 7 | BW18: =(IF(BW4 = $F$14, $F$15 / ($F$16 + 1), IF(AND(BW4 > $F$14, BW4 <= $F$14 + $F$16 - 1), BV18 + ($F$15 / ($F$16 + 1)), SUM($J$17:BW17)))) -> 7 | BX18: =(IF(BX4 = $F$14, $F$15 / ($F$16 + 1), IF(AND(BX4 > $F$14, BX4 <= $F$14 + $F$16 - 1), BW18 + ($F$15 / ($F$16 + 1)), SUM($J$17:BX17)))) -> 7 | BY18: =(IF(BY4 = $F$14, $F$15 / ($F$16 + 1), IF(AND(BY4 > $F$14, BY4 <= $F$14 + $F$16 - 1), BX18 + ($F$15 / ($F$16 + 1)), SUM($J$17:BY17)))) -> 7 | BZ18: =(IF(BZ4 = $F$14, $F$15 / ($F$16 + 1), IF(AND(BZ4 > $F$14, BZ4 <= $F$14 + $F$16 - 1), BY18 + ($F$15 / ($F$16 + 1)), SUM($J$17:BZ17)))) -> 7 | CA18: =(IF(CA4 = $F$14, $F$15 / ($F$16 + 1), IF(AND(CA4 > $F$14, CA4 <= $F$14 + $F$16 - 1), BZ18 + ($F$15 / ($F$16 + 1)), SUM($J$17:CA17)))) -> 7 | CB18: =(IF(CB4 = $F$14, $F$15 / ($F$16 + 1), IF(AND(CB4 > $F$14, CB4 <= $F$14 + $F$16 - 1), CA18 + ($F$15 / ($F$16 + 1)), SUM($J$17:CB17)))) -> 7 | CC18: =(IF(CC4 = $F$14, $F$15 / ($F$16 + 1), IF(AND(CC4 > $F$14, CC4 <= $F$14 + $F$16 - 1), CB18 + ($F$15 / ($F$16 + 1)), SUM($J$17:CC17)))) -> 7 | CD18: =(IF(CD4 = $F$14, $F$15 / ($F$16 + 1), IF(AND(CD4 > $F$14, CD4 <= $F$14 + $F$16 - 1), CC18 + ($F$15 / ($F$16 + 1)), SUM($J$17:CD17)))) -> 7 | CE18: =(IF(CE4 = $F$14, $F$15 / ($F$16 + 1), IF(AND(CE4 > $F$14, CE4 <= $F$14 + $F$16 - 1), CD18 + ($F$15 / ($F$16 + 1)), SUM($J$17:CE17)))) -> 7 | CF18: =(IF(CF4 = $F$14, $F$15 / ($F$16 + 1), IF(AND(CF4 > $F$14, CF4 <= $F$14 + $F$16 - 1), CE18 + ($F$15 / ($F$16 + 1)), SUM($J$17:CF17)))) -> 7 | CG18: =(IF(CG4 = $F$14, $F$15 / ($F$16 + 1), IF(AND(CG4 > $F$14, CG4 <= $F$14 + $F$16 - 1), CF18 + ($F$15 / ($F$16 + 1)), SUM($J$17:CG17)))) -> 7 | CH18: =(IF(CH4 = $F$14, $F$15 / ($F$16 + 1), IF(AND(CH4 > $F$14, CH4 <= $F$14 + $F$16 - 1), CG18 + ($F$15 / ($F$16 + 1)), SUM($J$17:CH17)))) -> 7 | CI18: =(IF(CI4 = $F$14, $F$15 / ($F$16 + 1), IF(AND(CI4 > $F$14, CI4 <= $F$14 + $F$16 - 1), CH18 + ($F$15 / ($F$16 + 1)), SUM($J$17:CI17)))) -> 7 | CJ18: =(IF(CJ4 = $F$14, $F$15 / ($F$16 + 1), IF(AND(CJ4 > $F$14, CJ4 <= $F$14 + $F$16 - 1), CI18 + ($F$15 / ($F$16 + 1)), SUM($J$17:CJ17)))) -> 7 | CK18: =(IF(CK4 = $F$14, $F$15 / ($F$16 + 1), IF(AND(CK4 > $F$14, CK4 <= $F$14 + $F$16 - 1), CJ18 + ($F$15 / ($F$16 + 1)), SUM($J$17:CK17)))) -> 7 | CL18: =(IF(CL4 = $F$14, $F$15 / ($F$16 + 1), IF(AND(CL4 > $F$14, CL4 <= $F$14 + $F$16 - 1), CK18 + ($F$15 / ($F$16 + 1)), SUM($J$17:CL17)))) -> 7 | CM18: =(IF(CM4 = $F$14, $F$15 / ($F$16 + 1), IF(AND(CM4 > $F$14, CM4 <= $F$14 + $F$16 - 1), CL18 + ($F$15 / ($F$16 + 1)), SUM($J$17:CM17)))) -> 7 | CN18: =(IF(CN4 = $F$14, $F$15 / ($F$16 + 1), IF(AND(CN4 > $F$14, CN4 <= $F$14 + $F$16 - 1), CM18 + ($F$15 / ($F$16 + 1)), SUM($J$17:CN17)))) -> 7 | CO18: =(IF(CO4 = $F$14, $F$15 / ($F$16 + 1), IF(AND(CO4 > $F$14, CO4 <= $F$14 + $F$16 - 1), CN18 + ($F$15 / ($F$16 + 1)), SUM($J$17:CO17)))) -> 7 | CP18: =(IF(CP4 = $F$14, $F$15 / ($F$16 + 1), IF(AND(CP4 > $F$14, CP4 <= $F$14 + $F$16 - 1), CO18 + ($F$15 / ($F$16 + 1)), SUM($J$17:CP17)))) -> 7 | CQ18: =(IF(CQ4 = $F$14, $F$15 / ($F$16 + 1), IF(AND(CQ4 > $F$14, CQ4 <= $F$14 + $F$16 - 1), CP18 + ($F$15 / ($F$16 + 1)), SUM($J$17:CQ17)))) -> 7 | CR18: =(IF(CR4 = $F$14, $F$15 / ($F$16 + 1), IF(AND(CR4 > $F$14, CR4 <= $F$14 + $F$16 - 1), CQ18 + ($F$15 / ($F$16 + 1)), SUM($J$17:CR17)))) -> 7 | CS18: =(IF(CS4 = $F$14, $F$15 / ($F$16 + 1), IF(AND(CS4 > $F$14, CS4 <= $F$14 + $F$16 - 1), CR18 + ($F$15 / ($F$16 + 1)), SUM($J$17:CS17)))) -> 7 | CT18: =(IF(CT4 = $F$14, $F$15 / ($F$16 + 1), IF(AND(CT4 > $F$14, CT4 <= $F$14 + $F$16 - 1), CS18 + ($F$15 / ($F$16 + 1)), SUM($J$17:CT17)))) -> 7 | CU18: =(IF(CU4 = $F$14, $F$15 / ($F$16 + 1), IF(AND(CU4 > $F$14, CU4 <= $F$14 + $F$16 - 1), CT18 + ($F$15 / ($F$16 + 1)), SUM($J$17:CU17)))) -> 7 | CV18: =(IF(CV4 = $F$14, $F$15 / ($F$16 + 1), IF(AND(CV4 > $F$14, CV4 <= $F$14 + $F$16 - 1), CU18 + ($F$15 / ($F$16 + 1)), SUM($J$17:CV17)))) -> 7
E19: Processing loss | F19: =Inputs!C92 -> 0.1
E20: Gas needed for LNG trains to operate at full capacity | G20: mmcf | J20: =(J18 / Inputs!$I$11) / (100% - $F$19) -> 0 | K20: =(K18 / Inputs!$I$11) / (100% - $F$19) -> 0 | L20: =(L18 / Inputs!$I$11) / (100% - $F$19) -> 0 | M20: =(M18 / Inputs!$I$11) / (100% - $F$19) -> 0 | N20: =(N18 / Inputs!$I$11) / (100% - $F$19) -> 0 | O20: =(O18 / Inputs!$I$11) / (100% - $F$19) -> 0 | P20: =(P18 / Inputs!$I$11) / (100% - $F$19) -> 0 | Q20: =(Q18 / Inputs!$I$11) / (100% - $F$19) -> 0 | R20: =(R18 / Inputs!$I$11) / (100% - $F$19) -> 0 | S20: =(S18 / Inputs!$I$11) / (100% - $F$19) -> 0 | T20: =(T18 / Inputs!$I$11) / (100% - $F$19) -> 0 | U20: =(U18 / Inputs!$I$11) / (100% - $F$19) -> 0 | V20: =(V18 / Inputs!$I$11) / (100% - $F$19) -> 0 | W20: =(W18 / Inputs!$I$11) / (100% - $F$19) -> 0 | X20: =(X18 / Inputs!$I$11) / (100% - $F$19) -> 0 | Y20: =(Y18 / Inputs!$I$11) / (100% - $F$19) -> 0 | Z20: =(Z18 / Inputs!$I$11) / (100% - $F$19) -> 0 | AA20: =(AA18 / Inputs!$I$11) / (100% - $F$19) -> 0 | AB20: =(AB18 / Inputs!$I$11) / (100% - $F$19) -> 0 | AC20: =(AC18 / Inputs!$I$11) / (100% - $F$19) -> 0 | AD20: =(AD18 / Inputs!$I$11) / (100% - $F$19) -> 185185.1852 | AE20: =(AE18 / Inputs!$I$11) / (100% - $F$19) -> 370370.3704 | AF20: =(AF18 / Inputs!$I$11) / (100% - $F$19) -> 370370.3704 | AG20: =(AG18 / Inputs!$I$11) / (100% - $F$19) -> 370370.3704 | AH20: =(AH18 / Inputs!$I$11) / (100% - $F$19) -> 370370.3704 | AI20: =(AI18 / Inputs!$I$11) / (100% - $F$19) -> 370370.3704 | AJ20: =(AJ18 / Inputs!$I$11) / (100% - $F$19) -> 370370.3704 | AK20: =(AK18 / Inputs!$I$11) / (100% - $F$19) -> 370370.3704 | AL20: =(AL18 / Inputs!$I$11) / (100% - $F$19) -> 370370.3704 | AM20: =(AM18 / Inputs!$I$11) / (100% - $F$19) -> 370370.3704 | AN20: =(AN18 / Inputs!$I$11) / (100% - $F$19) -> 370370.3704 | AO20: =(AO18 / Inputs!$I$11) / (100% - $F$19) -> 370370.3704 | AP20: =(AP18 / Inputs!$I$11) / (100% - $F$19) -> 370370.3704 | AQ20: =(AQ18 / Inputs!$I$11) / (100% - $F$19) -> 370370.3704 | AR20: =(AR18 / Inputs!$I$11) / (100% - $F$19) -> 370370.3704 | AS20: =(AS18 / Inputs!$I$11) / (100% - $F$19) -> 370370.3704 | AT20: =(AT18 / Inputs!$I$11) / (100% - $F$19) -> 370370.3704 | AU20: =(AU18 / Inputs!$I$11) / (100% - $F$19) -> 370370.3704 | AV20: =(AV18 / Inputs!$I$11) / (100% - $F$19) -> 370370.3704 | AW20: =(AW18 / Inputs!$I$11) / (100% - $F$19) -> 370370.3704 | AX20: =(AX18 / Inputs!$I$11) / (100% - $F$19) -> 370370.3704 | AY20: =(AY18 / Inputs!$I$11) / (100% - $F$19) -> 370370.3704 | AZ20: =(AZ18 / Inputs!$I$11) / (100% - $F$19) -> 370370.3704 | BA20: =(BA18 / Inputs!$I$11) / (100% - $F$19) -> 370370.3704 | BB20: =(BB18 / Inputs!$I$11) / (100% - $F$19) -> 370370.3704 | BC20: =(BC18 / Inputs!$I$11) / (100% - $F$19) -> 370370.3704 | BD20: =(BD18 / Inputs!$I$11) / (100% - $F$19) -> 370370.3704 | BE20: =(BE18 / Inputs!$I$11) / (100% - $F$19) -> 370370.3704 | BF20: =(BF18 / Inputs!$I$11) / (100% - $F$19) -> 370370.3704 | BG20: =(BG18 / Inputs!$I$11) / (100% - $F$19) -> 370370.3704 | BH20: =(BH18 / Inputs!$I$11) / (100% - $F$19) -> 370370.3704 | BI20: =(BI18 / Inputs!$I$11) / (100% - $F$19) -> 370370.3704 | BJ20: =(BJ18 / Inputs!$I$11) / (100% - $F$19) -> 370370.3704 | BK20: =(BK18 / Inputs!$I$11) / (100% - $F$19) -> 370370.3704 | BL20: =(BL18 / Inputs!$I$11) / (100% - $F$19) -> 370370.3704 | BM20: =(BM18 / Inputs!$I$11) / (100% - $F$19) -> 370370.3704 | BN20: =(BN18 / Inputs!$I$11) / (100% - $F$19) -> 370370.3704 | BO20: =(BO18 / Inputs!$I$11) / (100% - $F$19) -> 370370.3704 | BP20: =(BP18 / Inputs!$I$11) / (100% - $F$19) -> 370370.3704 | BQ20: =(BQ18 / Inputs!$I$11) / (100% - $F$19) -> 370370.3704 | BR20: =(BR18 / Inputs!$I$11) / (100% - $F$19) -> 370370.3704 | BS20: =(BS18 / Inputs!$I$11) / (100% - $F$19) -> 370370.3704 | BT20: =(BT18 / Inputs!$I$11) / (100% - $F$19) -> 370370.3704 | BU20: =(BU18 / Inputs!$I$11) / (100% - $F$19) -> 370370.3704 | BV20: =(BV18 / Inputs!$I$11) / (100% - $F$19) -> 370370.3704 | BW20: =(BW18 / Inputs!$I$11) / (100% - $F$19) -> 370370.3704 | BX20: =(BX18 / Inputs!$I$11) / (100% - $F$19) -> 370370.3704 | BY20: =(BY18 / Inputs!$I$11) / (100% - $F$19) -> 370370.3704 | BZ20: =(BZ18 / Inputs!$I$11) / (100% - $F$19) -> 370370.3704 | CA20: =(CA18 / Inputs!$I$11) / (100% - $F$19) -> 370370.3704 | CB20: =(CB18 / Inputs!$I$11) / (100% - $F$19) -> 370370.3704 | CC20: =(CC18 / Inputs!$I$11) / (100% - $F$19) -> 370370.3704 | CD20: =(CD18 / Inputs!$I$11) / (100% - $F$19) -> 370370.3704 | CE20: =(CE18 / Inputs!$I$11) / (100% - $F$19) -> 370370.3704 | CF20: =(CF18 / Inputs!$I$11) / (100% - $F$19) -> 370370.3704 | CG20: =(CG18 / Inputs!$I$11) / (100% - $F$19) -> 370370.3704 | CH20: =(CH18 / Inputs!$I$11) / (100% - $F$19) -> 370370.3704 | CI20: =(CI18 / Inputs!$I$11) / (100% - $F$19) -> 370370.3704 | CJ20: =(CJ18 / Inputs!$I$11) / (100% - $F$19) -> 370370.3704 | CK20: =(CK18 / Inputs!$I$11) / (100% - $F$19) -> 370370.3704 | CL20: =(CL18 / Inputs!$I$11) / (100% - $F$19) -> 370370.3704 | CM20: =(CM18 / Inputs!$I$11) / (100% - $F$19) -> 370370.3704 | CN20: =(CN18 / Inputs!$I$11) / (100% - $F$19) -> 370370.3704 | CO20: =(CO18 / Inputs!$I$11) / (100% - $F$19) -> 370370.3704 | CP20: =(CP18 / Inputs!$I$11) / (100% - $F$19) -> 370370.3704 | CQ20: =(CQ18 / Inputs!$I$11) / (100% - $F$19) -> 370370.3704 | CR20: =(CR18 / Inputs!$I$11) / (100% - $F$19) -> 370370.3704 | CS20: =(CS18 / Inputs!$I$11) / (100% - $F$19) -> 370370.3704 | CT20: =(CT18 / Inputs!$I$11) / (100% - $F$19) -> 370370.3704 | CU20: =(CU18 / Inputs!$I$11) / (100% - $F$19) -> 370370.3704 | CV20: =(CV18 / Inputs!$I$11) / (100% - $F$19) -> 370370.3704
E21: Remaining gas reserves allocated to LNG plant | I21: =F13 -> 12587547.62 | J21: =MAX(I21 - J20, 0) -> 12587547.62 | K21: =MAX(J21 - K20, 0) -> 12587547.62 | L21: 12587547.62 | M21: 12587547.62 | N21: 12587547.62 | O21: 12587547.62 | P21: 12587547.62 | Q21: 12587547.62 | R21: 12587547.62 | S21: 12587547.62 | T21: 12587547.62 | U21: 12587547.62 | V21: 12587547.62 | W21: 12587547.62 | X21: 12587547.62 | Y21: 12587547.62 | Z21: 12587547.62 | AA21: 12587547.62 | AB21: 12587547.62 | AC21: 12587547.62 | AD21: 12402362.43 | AE21: 12031992.06 | AF21: 11661621.69 | AG21: 11291251.32 | AH21: 10920880.95 | AI21: 10550510.58 | AJ21: 10180140.21 | AK21: 9809769.842 | AL21: 9439399.471 | AM21: 9069029.101 | AN21: 8698658.731 | AO21: 8328288.36 | AP21: 7957917.99 | AQ21: 7587547.62 | AR21: 7217177.249 | AS21: 6846806.879 | AT21: 6476436.508 | AU21: 6106066.138 | AV21: 5735695.768 | AW21: 5365325.397 | AX21: 4994955.027 | AY21: 4624584.657 | AZ21: 4254214.286 | BA21: 3883843.916 | BB21: 3513473.545 | BC21: 3143103.175 | BD21: 2772732.805 | BE21: 2402362.434 | BF21: 2031992.064 | BG21: 1661621.694 | BH21: 1291251.323 | BI21: 920880.9529 | BJ21: 550510.5825 | BK21: 180140.2122 | BL21: 0 | BM21: 0 | BN21: 0 | BO21: 0 | BP21: 0 | BQ21: 0 | BR21: 0 | BS21: 0 | BT21: 0 | BU21: 0 | BV21: 0 | BW21: =MAX(BV21 - BW20, 0) -> 0 | BX21: 0 | BY21: 0 | BZ21: 0 | CA21: 0 | CB21: 0 | CC21: 0 | CD21: 0 | CE21: 0 | CF21: 0 | CG21: 0 | CH21: 0 | CI21: 0 | CJ21: 0 | CK21: 0 | CL21: 0 | CM21: 0 | CN21: 0 | CO21: 0 | CP21: 0 | CQ21: 0 | CR21: 0 | CS21: 0 | CT21: 0 | CU21: 0 | CV21: 0
E22: Final year of planned production | F22: =SUMPRODUCT(J22:CV22,$J$4:$CV$4) -> 2063 | J22: =AND(J21 > 0, K21 = 0) * 1 -> 0 | K22: =AND(K21 > 0, L21 = 0) * 1 -> 0 | L22: 0 | M22: 0 | N22: 0 | O22: 0 | P22: 0 | Q22: 0 | R22: 0 | S22: 0 | T22: 0 | U22: 0 | V22: 0 | W22: 0 | X22: 0 | Y22: 0 | Z22: 0 | AA22: 0 | AB22: 0 | AC22: 0 | AD22: 0 | AE22: 0 | AF22: 0 | AG22: 0 | AH22: 0 | AI22: 0 | AJ22: 0 | AK22: 0 | AL22: 0 | AM22: 0 | AN22: 0 | AO22: 0 | AP22: 0 | AQ22: 0 | AR22: 0 | AS22: 0 | AT22: 0 | AU22: 0 | AV22: 0 | AW22: 0 | AX22: 0 | AY22: 0 | AZ22: 0 | BA22: 0 | BB22: 0 | BC22: 0 | BD22: 0 | BE22: 0 | BF22: 0 | BG22: 0 | BH22: 0 | BI22: 0 | BJ22: 0 | BK22: 1 | BL22: 0 | BM22: 0 | BN22: 0 | BO22: 0 | BP22: 0 | BQ22: 0 | BR22: 0 | BS22: 0 | BT22: 0 | BU22: 0 | BV22: 0 | BW22: =AND(BW21 > 0, BX21 = 0) * 1 -> 0 | BX22: 0 | BY22: 0 | BZ22: 0 | CA22: 0 | CB22: 0 | CC22: 0 | CD22: 0 | CE22: 0 | CF22: 0 | CG22: 0 | CH22: 0 | CI22: 0 | CJ22: 0 | CK22: 0 | CL22: 0 | CM22: 0 | CN22: 0 | CO22: 0 | CP22: 0 | CQ22: 0 | CR22: 0 | CS22: 0 | CT22: 0 | CU22: 0 | CV22: 0
C24: Block 2
E25: Gas reserves allocated to LNG plant | F25: =Inputs!D13 * (1 - Inputs!C111) -> 11833394.58
E26: LNG plant start up | F26: =SUMPRODUCT(J26:CV26,$J$4:$CV$4) -> 2030 | J26: =1 * AND(Inputs!C140 <> 0, SUM(Inputs!$B140:'Inputs'!B140) = 0) -> 0 | K26: =1 * AND(Inputs!D140 <> 0, SUM(Inputs!$B140:'Inputs'!C140) = 0) -> 0 | L26: =1 * AND(Inputs!E140 <> 0, SUM(Inputs!$B140:'Inputs'!D140) = 0) -> 0 | M26: =1 * AND(Inputs!F140 <> 0, SUM(Inputs!$B140:'Inputs'!E140) = 0) -> 0 | N26: =1 * AND(Inputs!G140 <> 0, SUM(Inputs!$B140:'Inputs'!F140) = 0) -> 0 | O26: =1 * AND(Inputs!H140 <> 0, SUM(Inputs!$B140:'Inputs'!G140) = 0) -> 0 | P26: =1 * AND(Inputs!I140 <> 0, SUM(Inputs!$B140:'Inputs'!H140) = 0) -> 0 | Q26: =1 * AND(Inputs!J140 <> 0, SUM(Inputs!$B140:'Inputs'!I140) = 0) -> 0 | R26: =1 * AND(Inputs!K140 <> 0, SUM(Inputs!$B140:'Inputs'!J140) = 0) -> 0 | S26: =1 * AND(Inputs!L140 <> 0, SUM(Inputs!$B140:'Inputs'!K140) = 0) -> 0 | T26: =1 * AND(Inputs!M140 <> 0, SUM(Inputs!$B140:'Inputs'!L140) = 0) -> 0 | U26: =1 * AND(Inputs!N140 <> 0, SUM(Inputs!$B140:'Inputs'!M140) = 0) -> 0 | V26: =1 * AND(Inputs!O140 <> 0, SUM(Inputs!$B140:'Inputs'!N140) = 0) -> 0 | W26: =1 * AND(Inputs!P140 <> 0, SUM(Inputs!$B140:'Inputs'!O140) = 0) -> 0 | X26: =1 * AND(Inputs!Q140 <> 0, SUM(Inputs!$B140:'Inputs'!P140) = 0) -> 0 | Y26: =1 * AND(Inputs!R140 <> 0, SUM(Inputs!$B140:'Inputs'!Q140) = 0) -> 0 | Z26: =1 * AND(Inputs!S140 <> 0, SUM(Inputs!$B140:'Inputs'!R140) = 0) -> 0 | AA26: =1 * AND(Inputs!T140 <> 0, SUM(Inputs!$B140:'Inputs'!S140) = 0) -> 0 | AB26: =1 * AND(Inputs!U140 <> 0, SUM(Inputs!$B140:'Inputs'!T140) = 0) -> 0 | AC26: =1 * AND(Inputs!V140 <> 0, SUM(Inputs!$B140:'Inputs'!U140) = 0) -> 0 | AD26: =1 * AND(Inputs!W140 <> 0, SUM(Inputs!$B140:'Inputs'!V140) = 0) -> 1 | AE26: =1 * AND(Inputs!X140 <> 0, SUM(Inputs!$B140:'Inputs'!W140) = 0) -> 0 | AF26: =1 * AND(Inputs!Y140 <> 0, SUM(Inputs!$B140:'Inputs'!X140) = 0) -> 0 | AG26: =1 * AND(Inputs!Z140 <> 0, SUM(Inputs!$B140:'Inputs'!Y140) = 0) -> 0 | AH26: =1 * AND(Inputs!AA140 <> 0, SUM(Inputs!$B140:'Inputs'!Z140) = 0) -> 0 | AI26: =1 * AND(Inputs!AB140 <> 0, SUM(Inputs!$B140:'Inputs'!AA140) = 0) -> 0 | AJ26: =1 * AND(Inputs!AC140 <> 0, SUM(Inputs!$B140:'Inputs'!AB140) = 0) -> 0 | AK26: =1 * AND(Inputs!AD140 <> 0, SUM(Inputs!$B140:'Inputs'!AC140) = 0) -> 0 | AL26: =1 * AND(Inputs!AE140 <> 0, SUM(Inputs!$B140:'Inputs'!AD140) = 0) -> 0 | AM26: =1 * AND(Inputs!AF140 <> 0, SUM(Inputs!$B140:'Inputs'!AE140) = 0) -> 0 | AN26: =1 * AND(Inputs!AG140 <> 0, SUM(Inputs!$B140:'Inputs'!AF140) = 0) -> 0 | AO26: =1 * AND(Inputs!AH140 <> 0, SUM(Inputs!$B140:'Inputs'!AG140) = 0) -> 0 | AP26: =1 * AND(Inputs!AI140 <> 0, SUM(Inputs!$B140:'Inputs'!AH140) = 0) -> 0 | AQ26: =1 * AND(Inputs!AJ140 <> 0, SUM(Inputs!$B140:'Inputs'!AI140) = 0) -> 0 | AR26: =1 * AND(Inputs!AK140 <> 0, SUM(Inputs!$B140:'Inputs'!AJ140) = 0) -> 0 | AS26: =1 * AND(Inputs!AL140 <> 0, SUM(Inputs!$B140:'Inputs'!AK140) = 0) -> 0 | AT26: =1 * AND(Inputs!AM140 <> 0, SUM(Inputs!$B140:'Inputs'!AL140) = 0) -> 0 | AU26: =1 * AND(Inputs!AN140 <> 0, SUM(Inputs!$B140:'Inputs'!AM140) = 0) -> 0 | AV26: =1 * AND(Inputs!AO140 <> 0, SUM(Inputs!$B140:'Inputs'!AN140) = 0) -> 0 | AW26: =1 * AND(Inputs!AP140 <> 0, SUM(Inputs!$B140:'Inputs'!AO140) = 0) -> 0 | AX26: =1 * AND(Inputs!AQ140 <> 0, SUM(Inputs!$B140:'Inputs'!AP140) = 0) -> 0 | AY26: =1 * AND(Inputs!AR140 <> 0, SUM(Inputs!$B140:'Inputs'!AQ140) = 0) -> 0 | AZ26: =1 * AND(Inputs!AS140 <> 0, SUM(Inputs!$B140:'Inputs'!AR140) = 0) -> 0 | BA26: =1 * AND(Inputs!AT140 <> 0, SUM(Inputs!$B140:'Inputs'!AS140) = 0) -> 0 | BB26: =1 * AND(Inputs!AU140 <> 0, SUM(Inputs!$B140:'Inputs'!AT140) = 0) -> 0 | BC26: =1 * AND(Inputs!AV140 <> 0, SUM(Inputs!$B140:'Inputs'!AU140) = 0) -> 0 | BD26: =1 * AND(Inputs!AW140 <> 0, SUM(Inputs!$B140:'Inputs'!AV140) = 0) -> 0 | BE26: =1 * AND(Inputs!AX140 <> 0, SUM(Inputs!$B140:'Inputs'!AW140) = 0) -> 0 | BF26: =1 * AND(Inputs!AY140 <> 0, SUM(Inputs!$B140:'Inputs'!AX140) = 0) -> 0 | BG26: =1 * AND(Inputs!AZ140 <> 0, SUM(Inputs!$B140:'Inputs'!AY140) = 0) -> 0 | BH26: =1 * AND(Inputs!BA140 <> 0, SUM(Inputs!$B140:'Inputs'!AZ140) = 0) -> 0 | BI26: =1 * AND(Inputs!BB140 <> 0, SUM(Inputs!$B140:'Inputs'!BA140) = 0) -> 0 | BJ26: =1 * AND(Inputs!BC140 <> 0, SUM(Inputs!$B140:'Inputs'!BB140) = 0) -> 0 | BK26: =1 * AND(Inputs!BD140 <> 0, SUM(Inputs!$B140:'Inputs'!BC140) = 0) -> 0 | BL26: =1 * AND(Inputs!BE140 <> 0, SUM(Inputs!$B140:'Inputs'!BD140) = 0) -> 0 | BM26: =1 * AND(Inputs!BF140 <> 0, SUM(Inputs!$B140:'Inputs'!BE140) = 0) -> 0 | BN26: =1 * AND(Inputs!BG140 <> 0, SUM(Inputs!$B140:'Inputs'!BF140) = 0) -> 0 | BO26: =1 * AND(Inputs!BH140 <> 0, SUM(Inputs!$B140:'Inputs'!BG140) = 0) -> 0 | BP26: =1 * AND(Inputs!BI140 <> 0, SUM(Inputs!$B140:'Inputs'!BH140) = 0) -> 0 | BQ26: =1 * AND(Inputs!BJ140 <> 0, SUM(Inputs!$B140:'Inputs'!BI140) = 0) -> 0 | BR26: =1 * AND(Inputs!BK140 <> 0, SUM(Inputs!$B140:'Inputs'!BJ140) = 0) -> 0 | BS26: =1 * AND(Inputs!BL140 <> 0, SUM(Inputs!$B140:'Inputs'!BK140) = 0) -> 0 | BT26: =1 * AND(Inputs!BM140 <> 0, SUM(Inputs!$B140:'Inputs'!BL140) = 0) -> 0 | BU26: =1 * AND(Inputs!BN140 <> 0, SUM(Inputs!$B140:'Inputs'!BM140) = 0) -> 0 | BV26: =1 * AND(Inputs!BO140 <> 0, SUM(Inputs!$B140:'Inputs'!BN140) = 0) -> 0 | BW26: =1 * AND(Inputs!BP140 <> 0, SUM(Inputs!$B140:'Inputs'!BO140) = 0) -> 0 | BX26: =1 * AND(Inputs!BQ140 <> 0, SUM(Inputs!$B140:'Inputs'!BP140) = 0) -> 0 | BY26: =1 * AND(Inputs!BR140 <> 0, SUM(Inputs!$B140:'Inputs'!BQ140) = 0) -> 0 | BZ26: =1 * AND(Inputs!BS140 <> 0, SUM(Inputs!$B140:'Inputs'!BR140) = 0) -> 0 | CA26: =1 * AND(Inputs!BT140 <> 0, SUM(Inputs!$B140:'Inputs'!BS140) = 0) -> 0 | CB26: =1 * AND(Inputs!BU140 <> 0, SUM(Inputs!$B140:'Inputs'!BT140) = 0) -> 0 | CC26: =1 * AND(Inputs!BV140 <> 0, SUM(Inputs!$B140:'Inputs'!BU140) = 0) -> 0 | CD26: =1 * AND(Inputs!BW140 <> 0, SUM(Inputs!$B140:'Inputs'!BV140) = 0) -> 0 | CE26: =1 * AND(Inputs!BX140 <> 0, SUM(Inputs!$B140:'Inputs'!BW140) = 0) -> 0 | CF26: =1 * AND(Inputs!BY140 <> 0, SUM(Inputs!$B140:'Inputs'!BX140) = 0) -> 0 | CG26: =1 * AND(Inputs!BZ140 <> 0, SUM(Inputs!$B140:'Inputs'!BY140) = 0) -> 0 | CH26: =1 * AND(Inputs!CA140 <> 0, SUM(Inputs!$B140:'Inputs'!BZ140) = 0) -> 0 | CI26: =1 * AND(Inputs!CB140 <> 0, SUM(Inputs!$B140:'Inputs'!CA140) = 0) -> 0 | CJ26: =1 * AND(Inputs!CC140 <> 0, SUM(Inputs!$B140:'Inputs'!CB140) = 0) -> 0 | CK26: =1 * AND(Inputs!CD140 <> 0, SUM(Inputs!$B140:'Inputs'!CC140) = 0) -> 0 | CL26: =1 * AND(Inputs!CE140 <> 0, SUM(Inputs!$B140:'Inputs'!CD140) = 0) -> 0 | CM26: =1 * AND(Inputs!CF140 <> 0, SUM(Inputs!$B140:'Inputs'!CE140) = 0) -> 0 | CN26: =1 * AND(Inputs!CG140 <> 0, SUM(Inputs!$B140:'Inputs'!CF140) = 0) -> 0 | CO26: =1 * AND(Inputs!CH140 <> 0, SUM(Inputs!$B140:'Inputs'!CG140) = 0) -> 0 | CP26: =1 * AND(Inputs!CI140 <> 0, SUM(Inputs!$B140:'Inputs'!CH140) = 0) -> 0 | CQ26: =1 * AND(Inputs!CJ140 <> 0, SUM(Inputs!$B140:'Inputs'!CI140) = 0) -> 0 | CR26: =1 * AND(Inputs!CK140 <> 0, SUM(Inputs!$B140:'Inputs'!CJ140) = 0) -> 0 | CS26: =1 * AND(Inputs!CL140 <> 0, SUM(Inputs!$B140:'Inputs'!CK140) = 0) -> 0 | CT26: =1 * AND(Inputs!CM140 <> 0, SUM(Inputs!$B140:'Inputs'!CL140) = 0) -> 0 | CU26: =1 * AND(Inputs!CN140 <> 0, SUM(Inputs!$B140:'Inputs'!CM140) = 0) -> 0 | CV26: =1 * AND(Inputs!CO140 <> 0, SUM(Inputs!$B140:'Inputs'!CN140) = 0) -> 0
E27: LNG plant initial capacity | F27: =LOOKUP(F26, Inputs!C139:CV139, Inputs!C140:CV140) -> 7.5 | G27: mmtpa
E28: Years it takes for LNG plant to operate at full capacity | F28: =Inputs!C137 -> 1 | G28: years
E29: Train capacity starting operation | G29: mmtpa | J29: =Inputs!C140 -> 0 | K29: =Inputs!D140 -> 0 | L29: =Inputs!E140 -> 0 | M29: =Inputs!F140 -> 0 | N29: =Inputs!G140 -> 0 | O29: =Inputs!H140 -> 0 | P29: =Inputs!I140 -> 0 | Q29: =Inputs!J140 -> 0 | R29: =Inputs!K140 -> 0 | S29: =Inputs!L140 -> 0 | T29: =Inputs!M140 -> 0 | U29: =Inputs!N140 -> 0 | V29: =Inputs!O140 -> 0 | W29: =Inputs!P140 -> 0 | X29: =Inputs!Q140 -> 0 | Y29: =Inputs!R140 -> 0 | Z29: =Inputs!S140 -> 0 | AA29: =Inputs!T140 -> 0 | AB29: =Inputs!U140 -> 0 | AC29: =Inputs!V140 -> 0 | AD29: =Inputs!W140 -> 7.5 | AE29: =Inputs!X140 -> 0 | AF29: =Inputs!Y140 -> 0 | AG29: =Inputs!Z140 -> 0 | AH29: =Inputs!AA140 -> 0 | AI29: =Inputs!AB140 -> 0 | AJ29: =Inputs!AC140 -> 0 | AK29: =Inputs!AD140 -> 0 | AL29: =Inputs!AE140 -> 0 | AM29: =Inputs!AF140 -> 0 | AN29: =Inputs!AG140 -> 0 | AO29: =Inputs!AH140 -> 0 | AP29: =Inputs!AI140 -> 0 | AQ29: =Inputs!AJ140 -> 0 | AR29: =Inputs!AK140 -> 0 | AS29: =Inputs!AL140 -> 0 | AT29: =Inputs!AM140 -> 0 | AU29: =Inputs!AN140 -> 0 | AV29: =Inputs!AO140 -> 0 | AW29: =Inputs!AP140 -> 0 | AX29: =Inputs!AQ140 -> 0 | AY29: =Inputs!AR140 -> 0 | AZ29: =Inputs!AS140 -> 0 | BA29: =Inputs!AT140 -> 0 | BB29: =Inputs!AU140 -> 0 | BC29: =Inputs!AV140 -> 0 | BD29: =Inputs!AW140 -> 0 | BE29: =Inputs!AX140 -> 0 | BF29: =Inputs!AY140 -> 0 | BG29: =Inputs!AZ140 -> 0 | BH29: =Inputs!BA140 -> 0 | BI29: =Inputs!BB140 -> 0 | BJ29: =Inputs!BC140 -> 0 | BK29: =Inputs!BD140 -> 0 | BL29: =Inputs!BE140 -> 0 | BM29: =Inputs!BF140 -> 0 | BN29: =Inputs!BG140 -> 0 | BO29: =Inputs!BH140 -> 0 | BP29: =Inputs!BI140 -> 0 | BQ29: =Inputs!BJ140 -> 0 | BR29: =Inputs!BK140 -> 0 | BS29: =Inputs!BL140 -> 0 | BT29: =Inputs!BM140 -> 0 | BU29: =Inputs!BN140 -> 0 | BV29: =Inputs!BO140 -> 0 | BW29: =Inputs!BP140 -> 0 | BX29: =Inputs!BQ140 -> 0 | BY29: =Inputs!BR140 -> 0 | BZ29: =Inputs!BS140 -> 0 | CA29: =Inputs!BT140 -> 0 | CB29: =Inputs!BU140 -> 0 | CC29: =Inputs!BV140 -> 0 | CD29: =Inputs!BW140 -> 0 | CE29: =Inputs!BX140 -> 0 | CF29: =Inputs!BY140 -> 0 | CG29: =Inputs!BZ140 -> 0 | CH29: =Inputs!CA140 -> 0 | CI29: =Inputs!CB140 -> 0 | CJ29: =Inputs!CC140 -> 0 | CK29: =Inputs!CD140 -> 0 | CL29: =Inputs!CE140 -> 0 | CM29: =Inputs!CF140 -> 0 | CN29: =Inputs!CG140 -> 0 | CO29: =Inputs!CH140 -> 0 | CP29: =Inputs!CI140 -> 0 | CQ29: =Inputs!CJ140 -> 0 | CR29: =Inputs!CK140 -> 0 | CS29: =Inputs!CL140 -> 0 | CT29: =Inputs!CM140 -> 0 | CU29: =Inputs!CN140 -> 0 | CV29: =Inputs!CO140 -> 0
E30: Train capacity in operation | G30: mmt | J30: =(IF(J4 = $F$26, $F$27 / ($F$28 + 1), IF(AND(J4 > $F$26, J4 <= $F$26 + $F$28 - 1), I30 + ($F$27 / ($F$28 + 1)), SUM($J$29:J29)))) -> 0 | K30: =(IF(K4 = $F$26, $F$27 / ($F$28 + 1), IF(AND(K4 > $F$26, K4 <= $F$26 + $F$28 - 1), J30 + ($F$27 / ($F$28 + 1)), SUM($J$29:K29)))) -> 0 | L30: =(IF(L4 = $F$26, $F$27 / ($F$28 + 1), IF(AND(L4 > $F$26, L4 <= $F$26 + $F$28 - 1), K30 + ($F$27 / ($F$28 + 1)), SUM($J$29:L29)))) -> 0 | M30: =(IF(M4 = $F$26, $F$27 / ($F$28 + 1), IF(AND(M4 > $F$26, M4 <= $F$26 + $F$28 - 1), L30 + ($F$27 / ($F$28 + 1)), SUM($J$29:M29)))) -> 0 | N30: =(IF(N4 = $F$26, $F$27 / ($F$28 + 1), IF(AND(N4 > $F$26, N4 <= $F$26 + $F$28 - 1), M30 + ($F$27 / ($F$28 + 1)), SUM($J$29:N29)))) -> 0 | O30: =(IF(O4 = $F$26, $F$27 / ($F$28 + 1), IF(AND(O4 > $F$26, O4 <= $F$26 + $F$28 - 1), N30 + ($F$27 / ($F$28 + 1)), SUM($J$29:O29)))) -> 0 | P30: =(IF(P4 = $F$26, $F$27 / ($F$28 + 1), IF(AND(P4 > $F$26, P4 <= $F$26 + $F$28 - 1), O30 + ($F$27 / ($F$28 + 1)), SUM($J$29:P29)))) -> 0 | Q30: =(IF(Q4 = $F$26, $F$27 / ($F$28 + 1), IF(AND(Q4 > $F$26, Q4 <= $F$26 + $F$28 - 1), P30 + ($F$27 / ($F$28 + 1)), SUM($J$29:Q29)))) -> 0 | R30: =(IF(R4 = $F$26, $F$27 / ($F$28 + 1), IF(AND(R4 > $F$26, R4 <= $F$26 + $F$28 - 1), Q30 + ($F$27 / ($F$28 + 1)), SUM($J$29:R29)))) -> 0 | S30: =(IF(S4 = $F$26, $F$27 / ($F$28 + 1), IF(AND(S4 > $F$26, S4 <= $F$26 + $F$28 - 1), R30 + ($F$27 / ($F$28 + 1)), SUM($J$29:S29)))) -> 0 | T30: =(IF(T4 = $F$26, $F$27 / ($F$28 + 1), IF(AND(T4 > $F$26, T4 <= $F$26 + $F$28 - 1), S30 + ($F$27 / ($F$28 + 1)), SUM($J$29:T29)))) -> 0 | U30: =(IF(U4 = $F$26, $F$27 / ($F$28 + 1), IF(AND(U4 > $F$26, U4 <= $F$26 + $F$28 - 1), T30 + ($F$27 / ($F$28 + 1)), SUM($J$29:U29)))) -> 0 | V30: =(IF(V4 = $F$26, $F$27 / ($F$28 + 1), IF(AND(V4 > $F$26, V4 <= $F$26 + $F$28 - 1), U30 + ($F$27 / ($F$28 + 1)), SUM($J$29:V29)))) -> 0 | W30: =(IF(W4 = $F$26, $F$27 / ($F$28 + 1), IF(AND(W4 > $F$26, W4 <= $F$26 + $F$28 - 1), V30 + ($F$27 / ($F$28 + 1)), SUM($J$29:W29)))) -> 0 | X30: =(IF(X4 = $F$26, $F$27 / ($F$28 + 1), IF(AND(X4 > $F$26, X4 <= $F$26 + $F$28 - 1), W30 + ($F$27 / ($F$28 + 1)), SUM($J$29:X29)))) -> 0 | Y30: =(IF(Y4 = $F$26, $F$27 / ($F$28 + 1), IF(AND(Y4 > $F$26, Y4 <= $F$26 + $F$28 - 1), X30 + ($F$27 / ($F$28 + 1)), SUM($J$29:Y29)))) -> 0 | Z30: =(IF(Z4 = $F$26, $F$27 / ($F$28 + 1), IF(AND(Z4 > $F$26, Z4 <= $F$26 + $F$28 - 1), Y30 + ($F$27 / ($F$28 + 1)), SUM($J$29:Z29)))) -> 0 | AA30: =(IF(AA4 = $F$26, $F$27 / ($F$28 + 1), IF(AND(AA4 > $F$26, AA4 <= $F$26 + $F$28 - 1), Z30 + ($F$27 / ($F$28 + 1)), SUM($J$29:AA29)))) -> 0 | AB30: =(IF(AB4 = $F$26, $F$27 / ($F$28 + 1), IF(AND(AB4 > $F$26, AB4 <= $F$26 + $F$28 - 1), AA30 + ($F$27 / ($F$28 + 1)), SUM($J$29:AB29)))) -> 0 | AC30: =(IF(AC4 = $F$26, $F$27 / ($F$28 + 1), IF(AND(AC4 > $F$26, AC4 <= $F$26 + $F$28 - 1), AB30 + ($F$27 / ($F$28 + 1)), SUM($J$29:AC29)))) -> 0 | AD30: =(IF(AD4 = $F$26, $F$27 / ($F$28 + 1), IF(AND(AD4 > $F$26, AD4 <= $F$26 + $F$28 - 1), AC30 + ($F$27 / ($F$28 + 1)), SUM($J$29:AD29)))) -> 3.75 | AE30: =(IF(AE4 = $F$26, $F$27 / ($F$28 + 1), IF(AND(AE4 > $F$26, AE4 <= $F$26 + $F$28 - 1), AD30 + ($F$27 / ($F$28 + 1)), SUM($J$29:AE29)))) -> 7.5 | AF30: =(IF(AF4 = $F$26, $F$27 / ($F$28 + 1), IF(AND(AF4 > $F$26, AF4 <= $F$26 + $F$28 - 1), AE30 + ($F$27 / ($F$28 + 1)), SUM($J$29:AF29)))) -> 7.5 | AG30: =(IF(AG4 = $F$26, $F$27 / ($F$28 + 1), IF(AND(AG4 > $F$26, AG4 <= $F$26 + $F$28 - 1), AF30 + ($F$27 / ($F$28 + 1)), SUM($J$29:AG29)))) -> 7.5 | AH30: =(IF(AH4 = $F$26, $F$27 / ($F$28 + 1), IF(AND(AH4 > $F$26, AH4 <= $F$26 + $F$28 - 1), AG30 + ($F$27 / ($F$28 + 1)), SUM($J$29:AH29)))) -> 7.5 | AI30: =(IF(AI4 = $F$26, $F$27 / ($F$28 + 1), IF(AND(AI4 > $F$26, AI4 <= $F$26 + $F$28 - 1), AH30 + ($F$27 / ($F$28 + 1)), SUM($J$29:AI29)))) -> 7.5 | AJ30: =(IF(AJ4 = $F$26, $F$27 / ($F$28 + 1), IF(AND(AJ4 > $F$26, AJ4 <= $F$26 + $F$28 - 1), AI30 + ($F$27 / ($F$28 + 1)), SUM($J$29:AJ29)))) -> 7.5 | AK30: =(IF(AK4 = $F$26, $F$27 / ($F$28 + 1), IF(AND(AK4 > $F$26, AK4 <= $F$26 + $F$28 - 1), AJ30 + ($F$27 / ($F$28 + 1)), SUM($J$29:AK29)))) -> 7.5 | AL30: =(IF(AL4 = $F$26, $F$27 / ($F$28 + 1), IF(AND(AL4 > $F$26, AL4 <= $F$26 + $F$28 - 1), AK30 + ($F$27 / ($F$28 + 1)), SUM($J$29:AL29)))) -> 7.5 | AM30: =(IF(AM4 = $F$26, $F$27 / ($F$28 + 1), IF(AND(AM4 > $F$26, AM4 <= $F$26 + $F$28 - 1), AL30 + ($F$27 / ($F$28 + 1)), SUM($J$29:AM29)))) -> 7.5 | AN30: =(IF(AN4 = $F$26, $F$27 / ($F$28 + 1), IF(AND(AN4 > $F$26, AN4 <= $F$26 + $F$28 - 1), AM30 + ($F$27 / ($F$28 + 1)), SUM($J$29:AN29)))) -> 7.5 | AO30: =(IF(AO4 = $F$26, $F$27 / ($F$28 + 1), IF(AND(AO4 > $F$26, AO4 <= $F$26 + $F$28 - 1), AN30 + ($F$27 / ($F$28 + 1)), SUM($J$29:AO29)))) -> 7.5 | AP30: =(IF(AP4 = $F$26, $F$27 / ($F$28 + 1), IF(AND(AP4 > $F$26, AP4 <= $F$26 + $F$28 - 1), AO30 + ($F$27 / ($F$28 + 1)), SUM($J$29:AP29)))) -> 7.5 | AQ30: =(IF(AQ4 = $F$26, $F$27 / ($F$28 + 1), IF(AND(AQ4 > $F$26, AQ4 <= $F$26 + $F$28 - 1), AP30 + ($F$27 / ($F$28 + 1)), SUM($J$29:AQ29)))) -> 7.5 | AR30: =(IF(AR4 = $F$26, $F$27 / ($F$28 + 1), IF(AND(AR4 > $F$26, AR4 <= $F$26 + $F$28 - 1), AQ30 + ($F$27 / ($F$28 + 1)), SUM($J$29:AR29)))) -> 7.5 | AS30: =(IF(AS4 = $F$26, $F$27 / ($F$28 + 1), IF(AND(AS4 > $F$26, AS4 <= $F$26 + $F$28 - 1), AR30 + ($F$27 / ($F$28 + 1)), SUM($J$29:AS29)))) -> 7.5 | AT30: =(IF(AT4 = $F$26, $F$27 / ($F$28 + 1), IF(AND(AT4 > $F$26, AT4 <= $F$26 + $F$28 - 1), AS30 + ($F$27 / ($F$28 + 1)), SUM($J$29:AT29)))) -> 7.5 | AU30: =(IF(AU4 = $F$26, $F$27 / ($F$28 + 1), IF(AND(AU4 > $F$26, AU4 <= $F$26 + $F$28 - 1), AT30 + ($F$27 / ($F$28 + 1)), SUM($J$29:AU29)))) -> 7.5 | AV30: =(IF(AV4 = $F$26, $F$27 / ($F$28 + 1), IF(AND(AV4 > $F$26, AV4 <= $F$26 + $F$28 - 1), AU30 + ($F$27 / ($F$28 + 1)), SUM($J$29:AV29)))) -> 7.5 | AW30: =(IF(AW4 = $F$26, $F$27 / ($F$28 + 1), IF(AND(AW4 > $F$26, AW4 <= $F$26 + $F$28 - 1), AV30 + ($F$27 / ($F$28 + 1)), SUM($J$29:AW29)))) -> 7.5 | AX30: =(IF(AX4 = $F$26, $F$27 / ($F$28 + 1), IF(AND(AX4 > $F$26, AX4 <= $F$26 + $F$28 - 1), AW30 + ($F$27 / ($F$28 + 1)), SUM($J$29:AX29)))) -> 7.5 | AY30: =(IF(AY4 = $F$26, $F$27 / ($F$28 + 1), IF(AND(AY4 > $F$26, AY4 <= $F$26 + $F$28 - 1), AX30 + ($F$27 / ($F$28 + 1)), SUM($J$29:AY29)))) -> 7.5 | AZ30: =(IF(AZ4 = $F$26, $F$27 / ($F$28 + 1), IF(AND(AZ4 > $F$26, AZ4 <= $F$26 + $F$28 - 1), AY30 + ($F$27 / ($F$28 + 1)), SUM($J$29:AZ29)))) -> 7.5 | BA30: =(IF(BA4 = $F$26, $F$27 / ($F$28 + 1), IF(AND(BA4 > $F$26, BA4 <= $F$26 + $F$28 - 1), AZ30 + ($F$27 / ($F$28 + 1)), SUM($J$29:BA29)))) -> 7.5 | BB30: =(IF(BB4 = $F$26, $F$27 / ($F$28 + 1), IF(AND(BB4 > $F$26, BB4 <= $F$26 + $F$28 - 1), BA30 + ($F$27 / ($F$28 + 1)), SUM($J$29:BB29)))) -> 7.5 | BC30: =(IF(BC4 = $F$26, $F$27 / ($F$28 + 1), IF(AND(BC4 > $F$26, BC4 <= $F$26 + $F$28 - 1), BB30 + ($F$27 / ($F$28 + 1)), SUM($J$29:BC29)))) -> 7.5 | BD30: =(IF(BD4 = $F$26, $F$27 / ($F$28 + 1), IF(AND(BD4 > $F$26, BD4 <= $F$26 + $F$28 - 1), BC30 + ($F$27 / ($F$28 + 1)), SUM($J$29:BD29)))) -> 7.5 | BE30: =(IF(BE4 = $F$26, $F$27 / ($F$28 + 1), IF(AND(BE4 > $F$26, BE4 <= $F$26 + $F$28 - 1), BD30 + ($F$27 / ($F$28 + 1)), SUM($J$29:BE29)))) -> 7.5 | BF30: =(IF(BF4 = $F$26, $F$27 / ($F$28 + 1), IF(AND(BF4 > $F$26, BF4 <= $F$26 + $F$28 - 1), BE30 + ($F$27 / ($F$28 + 1)), SUM($J$29:BF29)))) -> 7.5 | BG30: =(IF(BG4 = $F$26, $F$27 / ($F$28 + 1), IF(AND(BG4 > $F$26, BG4 <= $F$26 + $F$28 - 1), BF30 + ($F$27 / ($F$28 + 1)), SUM($J$29:BG29)))) -> 7.5 | BH30: =(IF(BH4 = $F$26, $F$27 / ($F$28 + 1), IF(AND(BH4 > $F$26, BH4 <= $F$26 + $F$28 - 1), BG30 + ($F$27 / ($F$28 + 1)), SUM($J$29:BH29)))) -> 7.5 | BI30: =(IF(BI4 = $F$26, $F$27 / ($F$28 + 1), IF(AND(BI4 > $F$26, BI4 <= $F$26 + $F$28 - 1), BH30 + ($F$27 / ($F$28 + 1)), SUM($J$29:BI29)))) -> 7.5 | BJ30: =(IF(BJ4 = $F$26, $F$27 / ($F$28 + 1), IF(AND(BJ4 > $F$26, BJ4 <= $F$26 + $F$28 - 1), BI30 + ($F$27 / ($F$28 + 1)), SUM($J$29:BJ29)))) -> 7.5 | BK30: =(IF(BK4 = $F$26, $F$27 / ($F$28 + 1), IF(AND(BK4 > $F$26, BK4 <= $F$26 + $F$28 - 1), BJ30 + ($F$27 / ($F$28 + 1)), SUM($J$29:BK29)))) -> 7.5 | BL30: =(IF(BL4 = $F$26, $F$27 / ($F$28 + 1), IF(AND(BL4 > $F$26, BL4 <= $F$26 + $F$28 - 1), BK30 + ($F$27 / ($F$28 + 1)), SUM($J$29:BL29)))) -> 7.5 | BM30: =(IF(BM4 = $F$26, $F$27 / ($F$28 + 1), IF(AND(BM4 > $F$26, BM4 <= $F$26 + $F$28 - 1), BL30 + ($F$27 / ($F$28 + 1)), SUM($J$29:BM29)))) -> 7.5 | BN30: =(IF(BN4 = $F$26, $F$27 / ($F$28 + 1), IF(AND(BN4 > $F$26, BN4 <= $F$26 + $F$28 - 1), BM30 + ($F$27 / ($F$28 + 1)), SUM($J$29:BN29)))) -> 7.5 | BO30: =(IF(BO4 = $F$26, $F$27 / ($F$28 + 1), IF(AND(BO4 > $F$26, BO4 <= $F$26 + $F$28 - 1), BN30 + ($F$27 / ($F$28 + 1)), SUM($J$29:BO29)))) -> 7.5 | BP30: =(IF(BP4 = $F$26, $F$27 / ($F$28 + 1), IF(AND(BP4 > $F$26, BP4 <= $F$26 + $F$28 - 1), BO30 + ($F$27 / ($F$28 + 1)), SUM($J$29:BP29)))) -> 7.5 | BQ30: =(IF(BQ4 = $F$26, $F$27 / ($F$28 + 1), IF(AND(BQ4 > $F$26, BQ4 <= $F$26 + $F$28 - 1), BP30 + ($F$27 / ($F$28 + 1)), SUM($J$29:BQ29)))) -> 7.5 | BR30: =(IF(BR4 = $F$26, $F$27 / ($F$28 + 1), IF(AND(BR4 > $F$26, BR4 <= $F$26 + $F$28 - 1), BQ30 + ($F$27 / ($F$28 + 1)), SUM($J$29:BR29)))) -> 7.5 | BS30: =(IF(BS4 = $F$26, $F$27 / ($F$28 + 1), IF(AND(BS4 > $F$26, BS4 <= $F$26 + $F$28 - 1), BR30 + ($F$27 / ($F$28 + 1)), SUM($J$29:BS29)))) -> 7.5 | BT30: =(IF(BT4 = $F$26, $F$27 / ($F$28 + 1), IF(AND(BT4 > $F$26, BT4 <= $F$26 + $F$28 - 1), BS30 + ($F$27 / ($F$28 + 1)), SUM($J$29:BT29)))) -> 7.5 | BU30: =(IF(BU4 = $F$26, $F$27 / ($F$28 + 1), IF(AND(BU4 > $F$26, BU4 <= $F$26 + $F$28 - 1), BT30 + ($F$27 / ($F$28 + 1)), SUM($J$29:BU29)))) -> 7.5 | BV30: =(IF(BV4 = $F$26, $F$27 / ($F$28 + 1), IF(AND(BV4 > $F$26, BV4 <= $F$26 + $F$28 - 1), BU30 + ($F$27 / ($F$28 + 1)), SUM($J$29:BV29)))) -> 7.5 | BW30: =(IF(BW4 = $F$26, $F$27 / ($F$28 + 1), IF(AND(BW4 > $F$26, BW4 <= $F$26 + $F$28 - 1), BV30 + ($F$27 / ($F$28 + 1)), SUM($J$29:BW29)))) -> 7.5 | BX30: =(IF(BX4 = $F$26, $F$27 / ($F$28 + 1), IF(AND(BX4 > $F$26, BX4 <= $F$26 + $F$28 - 1), BW30 + ($F$27 / ($F$28 + 1)), SUM($J$29:BX29)))) -> 7.5 | BY30: =(IF(BY4 = $F$26, $F$27 / ($F$28 + 1), IF(AND(BY4 > $F$26, BY4 <= $F$26 + $F$28 - 1), BX30 + ($F$27 / ($F$28 + 1)), SUM($J$29:BY29)))) -> 7.5 | BZ30: =(IF(BZ4 = $F$26, $F$27 / ($F$28 + 1), IF(AND(BZ4 > $F$26, BZ4 <= $F$26 + $F$28 - 1), BY30 + ($F$27 / ($F$28 + 1)), SUM($J$29:BZ29)))) -> 7.5 | CA30: =(IF(CA4 = $F$26, $F$27 / ($F$28 + 1), IF(AND(CA4 > $F$26, CA4 <= $F$26 + $F$28 - 1), BZ30 + ($F$27 / ($F$28 + 1)), SUM($J$29:CA29)))) -> 7.5 | CB30: =(IF(CB4 = $F$26, $F$27 / ($F$28 + 1), IF(AND(CB4 > $F$26, CB4 <= $F$26 + $F$28 - 1), CA30 + ($F$27 / ($F$28 + 1)), SUM($J$29:CB29)))) -> 7.5 | CC30: =(IF(CC4 = $F$26, $F$27 / ($F$28 + 1), IF(AND(CC4 > $F$26, CC4 <= $F$26 + $F$28 - 1), CB30 + ($F$27 / ($F$28 + 1)), SUM($J$29:CC29)))) -> 7.5 | CD30: =(IF(CD4 = $F$26, $F$27 / ($F$28 + 1), IF(AND(CD4 > $F$26, CD4 <= $F$26 + $F$28 - 1), CC30 + ($F$27 / ($F$28 + 1)), SUM($J$29:CD29)))) -> 7.5 | CE30: =(IF(CE4 = $F$26, $F$27 / ($F$28 + 1), IF(AND(CE4 > $F$26, CE4 <= $F$26 + $F$28 - 1), CD30 + ($F$27 / ($F$28 + 1)), SUM($J$29:CE29)))) -> 7.5 | CF30: =(IF(CF4 = $F$26, $F$27 / ($F$28 + 1), IF(AND(CF4 > $F$26, CF4 <= $F$26 + $F$28 - 1), CE30 + ($F$27 / ($F$28 + 1)), SUM($J$29:CF29)))) -> 7.5 | CG30: =(IF(CG4 = $F$26, $F$27 / ($F$28 + 1), IF(AND(CG4 > $F$26, CG4 <= $F$26 + $F$28 - 1), CF30 + ($F$27 / ($F$28 + 1)), SUM($J$29:CG29)))) -> 7.5 | CH30: =(IF(CH4 = $F$26, $F$27 / ($F$28 + 1), IF(AND(CH4 > $F$26, CH4 <= $F$26 + $F$28 - 1), CG30 + ($F$27 / ($F$28 + 1)), SUM($J$29:CH29)))) -> 7.5 | CI30: =(IF(CI4 = $F$26, $F$27 / ($F$28 + 1), IF(AND(CI4 > $F$26, CI4 <= $F$26 + $F$28 - 1), CH30 + ($F$27 / ($F$28 + 1)), SUM($J$29:CI29)))) -> 7.5 | CJ30: =(IF(CJ4 = $F$26, $F$27 / ($F$28 + 1), IF(AND(CJ4 > $F$26, CJ4 <= $F$26 + $F$28 - 1), CI30 + ($F$27 / ($F$28 + 1)), SUM($J$29:CJ29)))) -> 7.5 | CK30: =(IF(CK4 = $F$26, $F$27 / ($F$28 + 1), IF(AND(CK4 > $F$26, CK4 <= $F$26 + $F$28 - 1), CJ30 + ($F$27 / ($F$28 + 1)), SUM($J$29:CK29)))) -> 7.5 | CL30: =(IF(CL4 = $F$26, $F$27 / ($F$28 + 1), IF(AND(CL4 > $F$26, CL4 <= $F$26 + $F$28 - 1), CK30 + ($F$27 / ($F$28 + 1)), SUM($J$29:CL29)))) -> 7.5 | CM30: =(IF(CM4 = $F$26, $F$27 / ($F$28 + 1), IF(AND(CM4 > $F$26, CM4 <= $F$26 + $F$28 - 1), CL30 + ($F$27 / ($F$28 + 1)), SUM($J$29:CM29)))) -> 7.5 | CN30: =(IF(CN4 = $F$26, $F$27 / ($F$28 + 1), IF(AND(CN4 > $F$26, CN4 <= $F$26 + $F$28 - 1), CM30 + ($F$27 / ($F$28 + 1)), SUM($J$29:CN29)))) -> 7.5 | CO30: =(IF(CO4 = $F$26, $F$27 / ($F$28 + 1), IF(AND(CO4 > $F$26, CO4 <= $F$26 + $F$28 - 1), CN30 + ($F$27 / ($F$28 + 1)), SUM($J$29:CO29)))) -> 7.5 | CP30: =(IF(CP4 = $F$26, $F$27 / ($F$28 + 1), IF(AND(CP4 > $F$26, CP4 <= $F$26 + $F$28 - 1), CO30 + ($F$27 / ($F$28 + 1)), SUM($J$29:CP29)))) -> 7.5 | CQ30: =(IF(CQ4 = $F$26, $F$27 / ($F$28 + 1), IF(AND(CQ4 > $F$26, CQ4 <= $F$26 + $F$28 - 1), CP30 + ($F$27 / ($F$28 + 1)), SUM($J$29:CQ29)))) -> 7.5 | CR30: =(IF(CR4 = $F$26, $F$27 / ($F$28 + 1), IF(AND(CR4 > $F$26, CR4 <= $F$26 + $F$28 - 1), CQ30 + ($F$27 / ($F$28 + 1)), SUM($J$29:CR29)))) -> 7.5 | CS30: =(IF(CS4 = $F$26, $F$27 / ($F$28 + 1), IF(AND(CS4 > $F$26, CS4 <= $F$26 + $F$28 - 1), CR30 + ($F$27 / ($F$28 + 1)), SUM($J$29:CS29)))) -> 7.5 | CT30: =(IF(CT4 = $F$26, $F$27 / ($F$28 + 1), IF(AND(CT4 > $F$26, CT4 <= $F$26 + $F$28 - 1), CS30 + ($F$27 / ($F$28 + 1)), SUM($J$29:CT29)))) -> 7.5 | CU30: =(IF(CU4 = $F$26, $F$27 / ($F$28 + 1), IF(AND(CU4 > $F$26, CU4 <= $F$26 + $F$28 - 1), CT30 + ($F$27 / ($F$28 + 1)), SUM($J$29:CU29)))) -> 7.5 | CV30: =(IF(CV4 = $F$26, $F$27 / ($F$28 + 1), IF(AND(CV4 > $F$26, CV4 <= $F$26 + $F$28 - 1), CU30 + ($F$27 / ($F$28 + 1)), SUM($J$29:CV29)))) -> 7.5
E31: Processing loss | F31: =Inputs!C136 -> 0.1
E32: Gas needed for LNG trains to operate at full capacity | G32: mmcf | J32: =(J30 / Inputs!$I$11) / (100% - $F$31) -> 0 | K32: =(K30 / Inputs!$I$11) / (100% - $F$31) -> 0 | L32: =(L30 / Inputs!$I$11) / (100% - $F$31) -> 0 | M32: =(M30 / Inputs!$I$11) / (100% - $F$31) -> 0 | N32: =(N30 / Inputs!$I$11) / (100% - $F$31) -> 0 | O32: =(O30 / Inputs!$I$11) / (100% - $F$31) -> 0 | P32: =(P30 / Inputs!$I$11) / (100% - $F$31) -> 0 | Q32: =(Q30 / Inputs!$I$11) / (100% - $F$31) -> 0 | R32: =(R30 / Inputs!$I$11) / (100% - $F$31) -> 0 | S32: =(S30 / Inputs!$I$11) / (100% - $F$31) -> 0 | T32: =(T30 / Inputs!$I$11) / (100% - $F$31) -> 0 | U32: =(U30 / Inputs!$I$11) / (100% - $F$31) -> 0 | V32: =(V30 / Inputs!$I$11) / (100% - $F$31) -> 0 | W32: =(W30 / Inputs!$I$11) / (100% - $F$31) -> 0 | X32: =(X30 / Inputs!$I$11) / (100% - $F$31) -> 0 | Y32: =(Y30 / Inputs!$I$11) / (100% - $F$31) -> 0 | Z32: =(Z30 / Inputs!$I$11) / (100% - $F$31) -> 0 | AA32: =(AA30 / Inputs!$I$11) / (100% - $F$31) -> 0 | AB32: =(AB30 / Inputs!$I$11) / (100% - $F$31) -> 0 | AC32: =(AC30 / Inputs!$I$11) / (100% - $F$31) -> 0 | AD32: =(AD30 / Inputs!$I$11) / (100% - $F$31) -> 198412.6984 | AE32: =(AE30 / Inputs!$I$11) / (100% - $F$31) -> 396825.3968 | AF32: =(AF30 / Inputs!$I$11) / (100% - $F$31) -> 396825.3968 | AG32: =(AG30 / Inputs!$I$11) / (100% - $F$31) -> 396825.3968 | AH32: =(AH30 / Inputs!$I$11) / (100% - $F$31) -> 396825.3968 | AI32: =(AI30 / Inputs!$I$11) / (100% - $F$31) -> 396825.3968 | AJ32: =(AJ30 / Inputs!$I$11) / (100% - $F$31) -> 396825.3968 | AK32: =(AK30 / Inputs!$I$11) / (100% - $F$31) -> 396825.3968 | AL32: =(AL30 / Inputs!$I$11) / (100% - $F$31) -> 396825.3968 | AM32: =(AM30 / Inputs!$I$11) / (100% - $F$31) -> 396825.3968 | AN32: =(AN30 / Inputs!$I$11) / (100% - $F$31) -> 396825.3968 | AO32: =(AO30 / Inputs!$I$11) / (100% - $F$31) -> 396825.3968 | AP32: =(AP30 / Inputs!$I$11) / (100% - $F$31) -> 396825.3968 | AQ32: =(AQ30 / Inputs!$I$11) / (100% - $F$31) -> 396825.3968 | AR32: =(AR30 / Inputs!$I$11) / (100% - $F$31) -> 396825.3968 | AS32: =(AS30 / Inputs!$I$11) / (100% - $F$31) -> 396825.3968 | AT32: =(AT30 / Inputs!$I$11) / (100% - $F$31) -> 396825.3968 | AU32: =(AU30 / Inputs!$I$11) / (100% - $F$31) -> 396825.3968 | AV32: =(AV30 / Inputs!$I$11) / (100% - $F$31) -> 396825.3968 | AW32: =(AW30 / Inputs!$I$11) / (100% - $F$31) -> 396825.3968 | AX32: =(AX30 / Inputs!$I$11) / (100% - $F$31) -> 396825.3968 | AY32: =(AY30 / Inputs!$I$11) / (100% - $F$31) -> 396825.3968 | AZ32: =(AZ30 / Inputs!$I$11) / (100% - $F$31) -> 396825.3968 | BA32: =(BA30 / Inputs!$I$11) / (100% - $F$31) -> 396825.3968 | BB32: =(BB30 / Inputs!$I$11) / (100% - $F$31) -> 396825.3968 | BC32: =(BC30 / Inputs!$I$11) / (100% - $F$31) -> 396825.3968 | BD32: =(BD30 / Inputs!$I$11) / (100% - $F$31) -> 396825.3968 | BE32: =(BE30 / Inputs!$I$11) / (100% - $F$31) -> 396825.3968 | BF32: =(BF30 / Inputs!$I$11) / (100% - $F$31) -> 396825.3968 | BG32: =(BG30 / Inputs!$I$11) / (100% - $F$31) -> 396825.3968 | BH32: =(BH30 / Inputs!$I$11) / (100% - $F$31) -> 396825.3968 | BI32: =(BI30 / Inputs!$I$11) / (100% - $F$31) -> 396825.3968 | BJ32: =(BJ30 / Inputs!$I$11) / (100% - $F$31) -> 396825.3968 | BK32: =(BK30 / Inputs!$I$11) / (100% - $F$31) -> 396825.3968 | BL32: =(BL30 / Inputs!$I$11) / (100% - $F$31) -> 396825.3968 | BM32: =(BM30 / Inputs!$I$11) / (100% - $F$31) -> 396825.3968 | BN32: =(BN30 / Inputs!$I$11) / (100% - $F$31) -> 396825.3968 | BO32: =(BO30 / Inputs!$I$11) / (100% - $F$31) -> 396825.3968 | BP32: =(BP30 / Inputs!$I$11) / (100% - $F$31) -> 396825.3968 | BQ32: =(BQ30 / Inputs!$I$11) / (100% - $F$31) -> 396825.3968 | BR32: =(BR30 / Inputs!$I$11) / (100% - $F$31) -> 396825.3968 | BS32: =(BS30 / Inputs!$I$11) / (100% - $F$31) -> 396825.3968 | BT32: =(BT30 / Inputs!$I$11) / (100% - $F$31) -> 396825.3968 | BU32: =(BU30 / Inputs!$I$11) / (100% - $F$31) -> 396825.3968 | BV32: =(BV30 / Inputs!$I$11) / (100% - $F$31) -> 396825.3968 | BW32: =(BW30 / Inputs!$I$11) / (100% - $F$31) -> 396825.3968 | BX32: =(BX30 / Inputs!$I$11) / (100% - $F$31) -> 396825.3968 | BY32: =(BY30 / Inputs!$I$11) / (100% - $F$31) -> 396825.3968 | BZ32: =(BZ30 / Inputs!$I$11) / (100% - $F$31) -> 396825.3968 | CA32: =(CA30 / Inputs!$I$11) / (100% - $F$31) -> 396825.3968 | CB32: =(CB30 / Inputs!$I$11) / (100% - $F$31) -> 396825.3968 | CC32: =(CC30 / Inputs!$I$11) / (100% - $F$31) -> 396825.3968 | CD32: =(CD30 / Inputs!$I$11) / (100% - $F$31) -> 396825.3968 | CE32: =(CE30 / Inputs!$I$11) / (100% - $F$31) -> 396825.3968 | CF32: =(CF30 / Inputs!$I$11) / (100% - $F$31) -> 396825.3968 | CG32: =(CG30 / Inputs!$I$11) / (100% - $F$31) -> 396825.3968 | CH32: =(CH30 / Inputs!$I$11) / (100% - $F$31) -> 396825.3968 | CI32: =(CI30 / Inputs!$I$11) / (100% - $F$31) -> 396825.3968 | CJ32: =(CJ30 / Inputs!$I$11) / (100% - $F$31) -> 396825.3968 | CK32: =(CK30 / Inputs!$I$11) / (100% - $F$31) -> 396825.3968 | CL32: =(CL30 / Inputs!$I$11) / (100% - $F$31) -> 396825.3968 | CM32: =(CM30 / Inputs!$I$11) / (100% - $F$31) -> 396825.3968 | CN32: =(CN30 / Inputs!$I$11) / (100% - $F$31) -> 396825.3968 | CO32: =(CO30 / Inputs!$I$11) / (100% - $F$31) -> 396825.3968 | CP32: =(CP30 / Inputs!$I$11) / (100% - $F$31) -> 396825.3968 | CQ32: =(CQ30 / Inputs!$I$11) / (100% - $F$31) -> 396825.3968 | CR32: =(CR30 / Inputs!$I$11) / (100% - $F$31) -> 396825.3968 | CS32: =(CS30 / Inputs!$I$11) / (100% - $F$31) -> 396825.3968 | CT32: =(CT30 / Inputs!$I$11) / (100% - $F$31) -> 396825.3968 | CU32: =(CU30 / Inputs!$I$11) / (100% - $F$31) -> 396825.3968 | CV32: =(CV30 / Inputs!$I$11) / (100% - $F$31) -> 396825.3968
E33: Remaining gas reserves allocated to LNG plant | I33: =F25 -> 11833394.58 | J33: =MAX(I33 - J32, 0) -> 11833394.58 | K33: =MAX(J33 - K32, 0) -> 11833394.58 | L33: =MAX(K33 - L32, 0) -> 11833394.58 | M33: =MAX(L33 - M32, 0) -> 11833394.58 | N33: =MAX(M33 - N32, 0) -> 11833394.58 | O33: =MAX(N33 - O32, 0) -> 11833394.58 | P33: =MAX(O33 - P32, 0) -> 11833394.58 | Q33: =MAX(P33 - Q32, 0) -> 11833394.58 | R33: =MAX(Q33 - R32, 0) -> 11833394.58 | S33: =MAX(R33 - S32, 0) -> 11833394.58 | T33: =MAX(S33 - T32, 0) -> 11833394.58 | U33: =MAX(T33 - U32, 0) -> 11833394.58 | V33: =MAX(U33 - V32, 0) -> 11833394.58 | W33: =MAX(V33 - W32, 0) -> 11833394.58 | X33: =MAX(W33 - X32, 0) -> 11833394.58 | Y33: =MAX(X33 - Y32, 0) -> 11833394.58 | Z33: =MAX(Y33 - Z32, 0) -> 11833394.58 | AA33: =MAX(Z33 - AA32, 0) -> 11833394.58 | AB33: =MAX(AA33 - AB32, 0) -> 11833394.58 | AC33: =MAX(AB33 - AC32, 0) -> 11833394.58 | AD33: =MAX(AC33 - AD32, 0) -> 11634981.88 | AE33: =MAX(AD33 - AE32, 0) -> 11238156.48 | AF33: =MAX(AE33 - AF32, 0) -> 10841331.09 | AG33: =MAX(AF33 - AG32, 0) -> 10444505.69 | AH33: =MAX(AG33 - AH32, 0) -> 10047680.29 | AI33: =MAX(AH33 - AI32, 0) -> 9650854.897 | AJ33: =MAX(AI33 - AJ32, 0) -> 9254029.501 | AK33: =MAX(AJ33 - AK32, 0) -> 8857204.104 | AL33: =MAX(AK33 - AL32, 0) -> 8460378.707 | AM33: =MAX(AL33 - AM32, 0) -> 8063553.31 | AN33: =MAX(AM33 - AN32, 0) -> 7666727.913 | AO33: =MAX(AN33 - AO32, 0) -> 7269902.517 | AP33: =MAX(AO33 - AP32, 0) -> 6873077.12 | AQ33: =MAX(AP33 - AQ32, 0) -> 6476251.723 | AR33: =MAX(AQ33 - AR32, 0) -> 6079426.326 | AS33: =MAX(AR33 - AS32, 0) -> 5682600.929 | AT33: =MAX(AS33 - AT32, 0) -> 5285775.532 | AU33: =MAX(AT33 - AU32, 0) -> 4888950.136 | AV33: =MAX(AU33 - AV32, 0) -> 4492124.739 | AW33: =MAX(AV33 - AW32, 0) -> 4095299.342 | AX33: =MAX(AW33 - AX32, 0) -> 3698473.945 | AY33: =MAX(AX33 - AY32, 0) -> 3301648.548 | AZ33: =MAX(AY33 - AZ32, 0) -> 2904823.151 | BA33: =MAX(AZ33 - BA32, 0) -> 2507997.755 | BB33: =MAX(BA33 - BB32, 0) -> 2111172.358 | BC33: =MAX(BB33 - BC32, 0) -> 1714346.961 | BD33: =MAX(BC33 - BD32, 0) -> 1317521.564 | BE33: =MAX(BD33 - BE32, 0) -> 920696.1673 | BF33: =MAX(BE33 - BF32, 0) -> 523870.7705 | BG33: =MAX(BF33 - BG32, 0) -> 127045.3737 | BH33: =MAX(BG33 - BH32, 0) -> 0 | BI33: =MAX(BH33 - BI32, 0) -> 0 | BJ33: =MAX(BI33 - BJ32, 0) -> 0 | BK33: =MAX(BJ33 - BK32, 0) -> 0 | BL33: =MAX(BK33 - BL32, 0) -> 0 | BM33: =MAX(BL33 - BM32, 0) -> 0 | BN33: =MAX(BM33 - BN32, 0) -> 0 | BO33: =MAX(BN33 - BO32, 0) -> 0 | BP33: =MAX(BO33 - BP32, 0) -> 0 | BQ33: =MAX(BP33 - BQ32, 0) -> 0 | BR33: =MAX(BQ33 - BR32, 0) -> 0 | BS33: =MAX(BR33 - BS32, 0) -> 0 | BT33: =MAX(BS33 - BT32, 0) -> 0 | BU33: =MAX(BT33 - BU32, 0) -> 0 | BV33: =MAX(BU33 - BV32, 0) -> 0 | BW33: =MAX(BV33 - BW32, 0) -> 0 | BX33: =MAX(BW33 - BX32, 0) -> 0 | BY33: =MAX(BX33 - BY32, 0) -> 0 | BZ33: =MAX(BY33 - BZ32, 0) -> 0 | CA33: =MAX(BZ33 - CA32, 0) -> 0 | CB33: =MAX(CA33 - CB32, 0) -> 0 | CC33: =MAX(CB33 - CC32, 0) -> 0 | CD33: =MAX(CC33 - CD32, 0) -> 0 | CE33: =MAX(CD33 - CE32, 0) -> 0 | CF33: =MAX(CE33 - CF32, 0) -> 0 | CG33: =MAX(CF33 - CG32, 0) -> 0 | CH33: =MAX(CG33 - CH32, 0) -> 0 | CI33: =MAX(CH33 - CI32, 0) -> 0 | CJ33: =MAX(CI33 - CJ32, 0) -> 0 | CK33: =MAX(CJ33 - CK32, 0) -> 0 | CL33: =MAX(CK33 - CL32, 0) -> 0 | CM33: =MAX(CL33 - CM32, 0) -> 0 | CN33: =MAX(CM33 - CN32, 0) -> 0 | CO33: =MAX(CN33 - CO32, 0) -> 0 | CP33: =MAX(CO33 - CP32, 0) -> 0 | CQ33: =MAX(CP33 - CQ32, 0) -> 0 | CR33: =MAX(CQ33 - CR32, 0) -> 0 | CS33: =MAX(CR33 - CS32, 0) -> 0 | CT33: =MAX(CS33 - CT32, 0) -> 0 | CU33: =MAX(CT33 - CU32, 0) -> 0 | CV33: =MAX(CU33 - CV32, 0) -> 0
E34: Final year of planned production | F34: =SUMPRODUCT(J34:CV34,$J$4:$CV$4) -> 2059 | J34: =AND(J33 > 0, K33 = 0) * 1 -> 0 | K34: =AND(K33 > 0, L33 = 0) * 1 -> 0 | L34: =AND(L33 > 0, M33 = 0) * 1 -> 0 | M34: =AND(M33 > 0, N33 = 0) * 1 -> 0 | N34: =AND(N33 > 0, O33 = 0) * 1 -> 0 | O34: =AND(O33 > 0, P33 = 0) * 1 -> 0 | P34: =AND(P33 > 0, Q33 = 0) * 1 -> 0 | Q34: =AND(Q33 > 0, R33 = 0) * 1 -> 0 | R34: =AND(R33 > 0, S33 = 0) * 1 -> 0 | S34: =AND(S33 > 0, T33 = 0) * 1 -> 0 | T34: =AND(T33 > 0, U33 = 0) * 1 -> 0 | U34: =AND(U33 > 0, V33 = 0) * 1 -> 0 | V34: =AND(V33 > 0, W33 = 0) * 1 -> 0 | W34: =AND(W33 > 0, X33 = 0) * 1 -> 0 | X34: =AND(X33 > 0, Y33 = 0) * 1 -> 0 | Y34: =AND(Y33 > 0, Z33 = 0) * 1 -> 0 | Z34: =AND(Z33 > 0, AA33 = 0) * 1 -> 0 | AA34: =AND(AA33 > 0, AB33 = 0) * 1 -> 0 | AB34: =AND(AB33 > 0, AC33 = 0) * 1 -> 0 | AC34: =AND(AC33 > 0, AD33 = 0) * 1 -> 0 | AD34: =AND(AD33 > 0, AE33 = 0) * 1 -> 0 | AE34: =AND(AE33 > 0, AF33 = 0) * 1 -> 0 | AF34: =AND(AF33 > 0, AG33 = 0) * 1 -> 0 | AG34: =AND(AG33 > 0, AH33 = 0) * 1 -> 0 | AH34: =AND(AH33 > 0, AI33 = 0) * 1 -> 0 | AI34: =AND(AI33 > 0, AJ33 = 0) * 1 -> 0 | AJ34: =AND(AJ33 > 0, AK33 = 0) * 1 -> 0 | AK34: =AND(AK33 > 0, AL33 = 0) * 1 -> 0 | AL34: =AND(AL33 > 0, AM33 = 0) * 1 -> 0 | AM34: =AND(AM33 > 0, AN33 = 0) * 1 -> 0 | AN34: =AND(AN33 > 0, AO33 = 0) * 1 -> 0 | AO34: =AND(AO33 > 0, AP33 = 0) * 1 -> 0 | AP34: =AND(AP33 > 0, AQ33 = 0) * 1 -> 0 | AQ34: =AND(AQ33 > 0, AR33 = 0) * 1 -> 0 | AR34: =AND(AR33 > 0, AS33 = 0) * 1 -> 0 | AS34: =AND(AS33 > 0, AT33 = 0) * 1 -> 0 | AT34: =AND(AT33 > 0, AU33 = 0) * 1 -> 0 | AU34: =AND(AU33 > 0, AV33 = 0) * 1 -> 0 | AV34: =AND(AV33 > 0, AW33 = 0) * 1 -> 0 | AW34: =AND(AW33 > 0, AX33 = 0) * 1 -> 0 | AX34: =AND(AX33 > 0, AY33 = 0) * 1 -> 0 | AY34: =AND(AY33 > 0, AZ33 = 0) * 1 -> 0 | AZ34: =AND(AZ33 > 0, BA33 = 0) * 1 -> 0 | BA34: =AND(BA33 > 0, BB33 = 0) * 1 -> 0 | BB34: =AND(BB33 > 0, BC33 = 0) * 1 -> 0 | BC34: =AND(BC33 > 0, BD33 = 0) * 1 -> 0 | BD34: =AND(BD33 > 0, BE33 = 0) * 1 -> 0 | BE34: =AND(BE33 > 0, BF33 = 0) * 1 -> 0 | BF34: =AND(BF33 > 0, BG33 = 0) * 1 -> 0 | BG34: =AND(BG33 > 0, BH33 = 0) * 1 -> 1 | BH34: =AND(BH33 > 0, BI33 = 0) * 1 -> 0 | BI34: =AND(BI33 > 0, BJ33 = 0) * 1 -> 0 | BJ34: =AND(BJ33 > 0, BK33 = 0) * 1 -> 0 | BK34: =AND(BK33 > 0, BL33 = 0) * 1 -> 0 | BL34: =AND(BL33 > 0, BM33 = 0) * 1 -> 0 | BM34: =AND(BM33 > 0, BN33 = 0) * 1 -> 0 | BN34: =AND(BN33 > 0, BO33 = 0) * 1 -> 0 | BO34: =AND(BO33 > 0, BP33 = 0) * 1 -> 0 | BP34: =AND(BP33 > 0, BQ33 = 0) * 1 -> 0 | BQ34: =AND(BQ33 > 0, BR33 = 0) * 1 -> 0 | BR34: =AND(BR33 > 0, BS33 = 0) * 1 -> 0 | BS34: =AND(BS33 > 0, BT33 = 0) * 1 -> 0 | BT34: =AND(BT33 > 0, BU33 = 0) * 1 -> 0 | BU34: =AND(BU33 > 0, BV33 = 0) * 1 -> 0 | BV34: =AND(BV33 > 0, BW33 = 0) * 1 -> 0 | BW34: =AND(BW33 > 0, BX33 = 0) * 1 -> 0 | BX34: =AND(BX33 > 0, BY33 = 0) * 1 -> 0 | BY34: =AND(BY33 > 0, BZ33 = 0) * 1 -> 0 | BZ34: =AND(BZ33 > 0, CA33 = 0) * 1 -> 0 | CA34: =AND(CA33 > 0, CB33 = 0) * 1 -> 0 | CB34: =AND(CB33 > 0, CC33 = 0) * 1 -> 0 | CC34: =AND(CC33 > 0, CD33 = 0) * 1 -> 0 | CD34: =AND(CD33 > 0, CE33 = 0) * 1 -> 0 | CE34: =AND(CE33 > 0, CF33 = 0) * 1 -> 0 | CF34: =AND(CF33 > 0, CG33 = 0) * 1 -> 0 | CG34: =AND(CG33 > 0, CH33 = 0) * 1 -> 0 | CH34: =AND(CH33 > 0, CI33 = 0) * 1 -> 0 | CI34: =AND(CI33 > 0, CJ33 = 0) * 1 -> 0 | CJ34: =AND(CJ33 > 0, CK33 = 0) * 1 -> 0 | CK34: =AND(CK33 > 0, CL33 = 0) * 1 -> 0 | CL34: =AND(CL33 > 0, CM33 = 0) * 1 -> 0 | CM34: =AND(CM33 > 0, CN33 = 0) * 1 -> 0 | CN34: =AND(CN33 > 0, CO33 = 0) * 1 -> 0 | CO34: =AND(CO33 > 0, CP33 = 0) * 1 -> 0 | CP34: =AND(CP33 > 0, CQ33 = 0) * 1 -> 0 | CQ34: =AND(CQ33 > 0, CR33 = 0) * 1 -> 0 | CR34: =AND(CR33 > 0, CS33 = 0) * 1 -> 0 | CS34: =AND(CS33 > 0, CT33 = 0) * 1 -> 0 | CT34: =AND(CT33 > 0, CU33 = 0) * 1 -> 0 | CU34: =AND(CU33 > 0, CV33 = 0) * 1 -> 0 | CV34: 0
A36: Onshore supply of gas
E38: Historical supply to domestic market | G38: mmcf | H38: =SUM(J38:CV38) -> 415117.4 | J38: =Inputs!C381 -> 27900 | K38: =Inputs!D381 -> 30700 | L38: =Inputs!E381 -> 35045 | M38: =Inputs!F381 -> 35135 | N38: =Inputs!G381 -> 32821 | O38: =Inputs!H381 -> 37278.9 | P38: =Inputs!I381 -> 45686 | Q38: =Inputs!J381 -> 47920.5 | R38: =Inputs!K381 -> 59340 | S38: =Inputs!L381 -> 63291 | T38: =Inputs!M381 -> 0 | U38: =Inputs!N381 -> 0 | V38: =Inputs!O381 -> 0 | W38: =Inputs!P381 -> 0 | X38: =Inputs!Q381 -> 0 | Y38: =Inputs!R381 -> 0 | Z38: =Inputs!S381 -> 0 | AA38: =Inputs!T381 -> 0 | AB38: =Inputs!U381 -> 0 | AC38: =Inputs!V381 -> 0 | AD38: =Inputs!W381 -> 0 | AE38: =Inputs!X381 -> 0 | AF38: =Inputs!Y381 -> 0 | AG38: =Inputs!Z381 -> 0 | AH38: =Inputs!AA381 -> 0 | AI38: =Inputs!AB381 -> 0 | AJ38: =Inputs!AC381 -> 0 | AK38: =Inputs!AD381 -> 0 | AL38: =Inputs!AE381 -> 0 | AM38: =Inputs!AF381 -> 0 | AN38: =Inputs!AG381 -> 0 | AO38: =Inputs!AH381 -> 0 | AP38: =Inputs!AI381 -> 0 | AQ38: =Inputs!AJ381 -> 0 | AR38: =Inputs!AK381 -> 0 | AS38: =Inputs!AL381 -> 0 | AT38: =Inputs!AM381 -> 0 | AU38: =Inputs!AN381 -> 0 | AV38: =Inputs!AO381 -> 0 | AW38: =Inputs!AP381 -> 0 | AX38: =Inputs!AQ381 -> 0 | AY38: =Inputs!AR381 -> 0 | AZ38: =Inputs!AS381 -> 0 | BA38: =Inputs!AT381 -> 0 | BB38: =Inputs!AU381 -> 0 | BC38: =Inputs!AV381 -> 0 | BD38: =Inputs!AW381 -> 0 | BE38: =Inputs!AX381 -> 0 | BF38: =Inputs!AY381 -> 0 | BG38: =Inputs!AZ381 -> 0 | BH38: =Inputs!BA381 -> 0 | BI38: =Inputs!BB381 -> 0 | BJ38: =Inputs!BC381 -> 0 | BK38: =Inputs!BD381 -> 0 | BL38: =Inputs!BE381 -> 0 | BM38: =Inputs!BF381 -> 0 | BN38: =Inputs!BG381 -> 0 | BO38: =Inputs!BH381 -> 0 | BP38: =Inputs!BI381 -> 0 | BQ38: =Inputs!BJ381 -> 0 | BR38: =Inputs!BK381 -> 0 | BS38: =Inputs!BL381 -> 0 | BT38: =Inputs!BM381 -> 0 | BU38: =Inputs!BN381 -> 0 | BV38: =Inputs!BO381 -> 0 | BW38: =Inputs!BP381 -> 0 | BX38: =Inputs!BQ381 -> 0 | BY38: =Inputs!BR381 -> 0 | BZ38: =Inputs!BS381 -> 0 | CA38: =Inputs!BT381 -> 0 | CB38: =Inputs!BU381 -> 0 | CC38: =Inputs!BV381 -> 0 | CD38: =Inputs!BW381 -> 0 | CE38: =Inputs!BX381 -> 0 | CF38: =Inputs!BY381 -> 0 | CG38: =Inputs!BZ381 -> 0 | CH38: =Inputs!CA381 -> 0 | CI38: =Inputs!CB381 -> 0 | CJ38: =Inputs!CC381 -> 0 | CK38: =Inputs!CD381 -> 0 | CL38: =Inputs!CE381 -> 0 | CM38: =Inputs!CF381 -> 0 | CN38: =Inputs!CG381 -> 0 | CO38: =Inputs!CH381 -> 0 | CP38: =Inputs!CI381 -> 0 | CQ38: =Inputs!CJ381 -> 0 | CR38: =Inputs!CK381 -> 0 | CS38: =Inputs!CL381 -> 0 | CT38: =Inputs!CM381 -> 0 | CU38: =Inputs!CN381 -> 0 | CV38: =Inputs!CO381 -> 0
E40: Current year | F40: =Inputs!C3 -> 2020
E41: Planned supply | F41: =MAX(J41:CV41) -> 90613.5 | G41: mmcf | H41: =SUM(J41:CV41) -> 855154 | J41: =IF(J4 >= $F$40, Inputs!C456, 0) -> 0 | K41: =IF(K4 >= $F$40, Inputs!D456, 0) -> 0 | L41: =IF(L4 >= $F$40, Inputs!E456, 0) -> 0 | M41: =IF(M4 >= $F$40, Inputs!F456, 0) -> 0 | N41: =IF(N4 >= $F$40, Inputs!G456, 0) -> 0 | O41: =IF(O4 >= $F$40, Inputs!H456, 0) -> 0 | P41: =IF(P4 >= $F$40, Inputs!I456, 0) -> 0 | Q41: =IF(Q4 >= $F$40, Inputs!J456, 0) -> 0 | R41: =IF(R4 >= $F$40, Inputs!K456, 0) -> 0 | S41: =IF(S4 >= $F$40, Inputs!L456, 0) -> 0 | T41: =IF(T4 >= $F$40, Inputs!M456, 0) -> 70246.5 | U41: =IF(U4 >= $F$40, Inputs!N456, 0) -> 78203.5 | V41: =IF(V4 >= $F$40, Inputs!O456, 0) -> 81306 | W41: =IF(W4 >= $F$40, Inputs!P456, 0) -> 82036 | X41: =IF(X4 >= $F$40, Inputs!Q456, 0) -> 87438 | Y41: =IF(Y4 >= $F$40, Inputs!R456, 0) -> 90613.5 | Z41: =IF(Z4 >= $F$40, Inputs!S456, 0) -> 75923 | AA41: =IF(AA4 >= $F$40, Inputs!T456, 0) -> 25659.5 | AB41: =IF(AB4 >= $F$40, Inputs!U456, 0) -> 25659.5 | AC41: =IF(AC4 >= $F$40, Inputs!V456, 0) -> 25659.5 | AD41: =IF(AD4 >= $F$40, Inputs!W456, 0) -> 25659.5 | AE41: =IF(AE4 >= $F$40, Inputs!X456, 0) -> 25659.5 | AF41: =IF(AF4 >= $F$40, Inputs!Y456, 0) -> 25659.5 | AG41: =IF(AG4 >= $F$40, Inputs!Z456, 0) -> 25659.5 | AH41: =IF(AH4 >= $F$40, Inputs!AA456, 0) -> 26380 | AI41: =IF(AI4 >= $F$40, Inputs!AB456, 0) -> 26381 | AJ41: =IF(AJ4 >= $F$40, Inputs!AC456, 0) -> 26382 | AK41: =IF(AK4 >= $F$40, Inputs!AD456, 0) -> 26383 | AL41: =IF(AL4 >= $F$40, Inputs!AE456, 0) -> 4245 | AM41: =IF(AM4 >= $F$40, Inputs!AF456, 0) -> 0 | AN41: =IF(AN4 >= $F$40, Inputs!AG456, 0) -> 0 | AO41: =IF(AO4 >= $F$40, Inputs!AH456, 0) -> 0 | AP41: =IF(AP4 >= $F$40, Inputs!AI456, 0) -> 0 | AQ41: =IF(AQ4 >= $F$40, Inputs!AJ456, 0) -> 0 | AR41: =IF(AR4 >= $F$40, Inputs!AK456, 0) -> 0 | AS41: =IF(AS4 >= $F$40, Inputs!AL456, 0) -> 0 | AT41: =IF(AT4 >= $F$40, Inputs!AM456, 0) -> 0 | AU41: =IF(AU4 >= $F$40, Inputs!AN456, 0) -> 0 | AV41: =IF(AV4 >= $F$40, Inputs!AO456, 0) -> 0 | AW41: =IF(AW4 >= $F$40, Inputs!AP456, 0) -> 0 | AX41: =IF(AX4 >= $F$40, Inputs!AQ456, 0) -> 0 | AY41: =IF(AY4 >= $F$40, Inputs!AR456, 0) -> 0 | AZ41: =IF(AZ4 >= $F$40, Inputs!AS456, 0) -> 0 | BA41: =IF(BA4 >= $F$40, Inputs!AT456, 0) -> 0 | BB41: =IF(BB4 >= $F$40, Inputs!AU456, 0) -> 0 | BC41: =IF(BC4 >= $F$40, Inputs!AV456, 0) -> 0 | BD41: =IF(BD4 >= $F$40, Inputs!AW456, 0) -> 0 | BE41: =IF(BE4 >= $F$40, Inputs!AX456, 0) -> 0 | BF41: =IF(BF4 >= $F$40, Inputs!AY456, 0) -> 0 | BG41: =IF(BG4 >= $F$40, Inputs!AZ456, 0) -> 0 | BH41: =IF(BH4 >= $F$40, Inputs!BA456, 0) -> 0 | BI41: =IF(BI4 >= $F$40, Inputs!BB456, 0) -> 0 | BJ41: =IF(BJ4 >= $F$40, Inputs!BC456, 0) -> 0 | BK41: =IF(BK4 >= $F$40, Inputs!BD456, 0) -> 0 | BL41: =IF(BL4 >= $F$40, Inputs!BE456, 0) -> 0 | BM41: =IF(BM4 >= $F$40, Inputs!BF456, 0) -> 0 | BN41: =IF(BN4 >= $F$40, Inputs!BG456, 0) -> 0 | BO41: =IF(BO4 >= $F$40, Inputs!BH456, 0) -> 0 | BP41: =IF(BP4 >= $F$40, Inputs!BI456, 0) -> 0 | BQ41: =IF(BQ4 >= $F$40, Inputs!BJ456, 0) -> 0 | BR41: =IF(BR4 >= $F$40, Inputs!BK456, 0) -> 0 | BS41: =IF(BS4 >= $F$40, Inputs!BL456, 0) -> 0 | BT41: =IF(BT4 >= $F$40, Inputs!BM456, 0) -> 0 | BU41: =IF(BU4 >= $F$40, Inputs!BN456, 0) -> 0 | BV41: =IF(BV4 >= $F$40, Inputs!BO456, 0) -> 0 | BW41: =IF(BW4 >= $F$40, Inputs!BP456, 0) -> 0 | BX41: =IF(BX4 >= $F$40, Inputs!BQ456, 0) -> 0 | BY41: =IF(BY4 >= $F$40, Inputs!BR456, 0) -> 0 | BZ41: =IF(BZ4 >= $F$40, Inputs!BS456, 0) -> 0 | CA41: =IF(CA4 >= $F$40, Inputs!BT456, 0) -> 0 | CB41: =IF(CB4 >= $F$40, Inputs!BU456, 0) -> 0 | CC41: =IF(CC4 >= $F$40, Inputs!BV456, 0) -> 0 | CD41: =IF(CD4 >= $F$40, Inputs!BW456, 0) -> 0 | CE41: =IF(CE4 >= $F$40, Inputs!BX456, 0) -> 0 | CF41: =IF(CF4 >= $F$40, Inputs!BY456, 0) -> 0 | CG41: =IF(CG4 >= $F$40, Inputs!BZ456, 0) -> 0 | CH41: =IF(CH4 >= $F$40, Inputs!CA456, 0) -> 0 | CI41: =IF(CI4 >= $F$40, Inputs!CB456, 0) -> 0 | CJ41: =IF(CJ4 >= $F$40, Inputs!CC456, 0) -> 0 | CK41: =IF(CK4 >= $F$40, Inputs!CD456, 0) -> 0 | CL41: =IF(CL4 >= $F$40, Inputs!CE456, 0) -> 0 | CM41: =IF(CM4 >= $F$40, Inputs!CF456, 0) -> 0 | CN41: =IF(CN4 >= $F$40, Inputs!CG456, 0) -> 0 | CO41: =IF(CO4 >= $F$40, Inputs!CH456, 0) -> 0 | CP41: =IF(CP4 >= $F$40, Inputs!CI456, 0) -> 0 | CQ41: =IF(CQ4 >= $F$40, Inputs!CJ456, 0) -> 0 | CR41: =IF(CR4 >= $F$40, Inputs!CK456, 0) -> 0 | CS41: =IF(CS4 >= $F$40, Inputs!CL456, 0) -> 0 | CT41: =IF(CT4 >= $F$40, Inputs!CM456, 0) -> 0 | CU41: =IF(CU4 >= $F$40, Inputs!CN456, 0) -> 0 | CV41: =IF(CV4 >= $F$40, Inputs!CO456, 0) -> 0
E42: O/w under take or pay contract | F42: =MAX(J42:CV42) -> 90613.5 | G42: mmcf | H42: =SUM(J42:CV42) -> 855154 | J42: =J41 * Inputs!$C$144 -> 0 | K42: =K41 * Inputs!$C$144 -> 0 | L42: =L41 * Inputs!$C$144 -> 0 | M42: =M41 * Inputs!$C$144 -> 0 | N42: =N41 * Inputs!$C$144 -> 0 | O42: =O41 * Inputs!$C$144 -> 0 | P42: =P41 * Inputs!$C$144 -> 0 | Q42: =Q41 * Inputs!$C$144 -> 0 | R42: =R41 * Inputs!$C$144 -> 0 | S42: =S41 * Inputs!$C$144 -> 0 | T42: =T41 * Inputs!$C$144 -> 70246.5 | U42: =U41 * Inputs!$C$144 -> 78203.5 | V42: =V41 * Inputs!$C$144 -> 81306 | W42: =W41 * Inputs!$C$144 -> 82036 | X42: =X41 * Inputs!$C$144 -> 87438 | Y42: =Y41 * Inputs!$C$144 -> 90613.5 | Z42: =Z41 * Inputs!$C$144 -> 75923 | AA42: =AA41 * Inputs!$C$144 -> 25659.5 | AB42: =AB41 * Inputs!$C$144 -> 25659.5 | AC42: =AC41 * Inputs!$C$144 -> 25659.5 | AD42: =AD41 * Inputs!$C$144 -> 25659.5 | AE42: =AE41 * Inputs!$C$144 -> 25659.5 | AF42: =AF41 * Inputs!$C$144 -> 25659.5 | AG42: =AG41 * Inputs!$C$144 -> 25659.5 | AH42: =AH41 * Inputs!$C$144 -> 26380 | AI42: =AI41 * Inputs!$C$144 -> 26381 | AJ42: =AJ41 * Inputs!$C$144 -> 26382 | AK42: =AK41 * Inputs!$C$144 -> 26383 | AL42: =AL41 * Inputs!$C$144 -> 4245 | AM42: =AM41 * Inputs!$C$144 -> 0 | AN42: =AN41 * Inputs!$C$144 -> 0 | AO42: =AO41 * Inputs!$C$144 -> 0 | AP42: =AP41 * Inputs!$C$144 -> 0 | AQ42: =AQ41 * Inputs!$C$144 -> 0 | AR42: =AR41 * Inputs!$C$144 -> 0 | AS42: =AS41 * Inputs!$C$144 -> 0 | AT42: =AT41 * Inputs!$C$144 -> 0 | AU42: =AU41 * Inputs!$C$144 -> 0 | AV42: =AV41 * Inputs!$C$144 -> 0 | AW42: =AW41 * Inputs!$C$144 -> 0 | AX42: =AX41 * Inputs!$C$144 -> 0 | AY42: =AY41 * Inputs!$C$144 -> 0 | AZ42: =AZ41 * Inputs!$C$144 -> 0 | BA42: =BA41 * Inputs!$C$144 -> 0 | BB42: =BB41 * Inputs!$C$144 -> 0 | BC42: =BC41 * Inputs!$C$144 -> 0 | BD42: =BD41 * Inputs!$C$144 -> 0 | BE42: =BE41 * Inputs!$C$144 -> 0 | BF42: =BF41 * Inputs!$C$144 -> 0 | BG42: =BG41 * Inputs!$C$144 -> 0 | BH42: =BH41 * Inputs!$C$144 -> 0 | BI42: =BI41 * Inputs!$C$144 -> 0 | BJ42: =BJ41 * Inputs!$C$144 -> 0 | BK42: =BK41 * Inputs!$C$144 -> 0 | BL42: =BL41 * Inputs!$C$144 -> 0 | BM42: =BM41 * Inputs!$C$144 -> 0 | BN42: =BN41 * Inputs!$C$144 -> 0 | BO42: =BO41 * Inputs!$C$144 -> 0 | BP42: =BP41 * Inputs!$C$144 -> 0 | BQ42: =BQ41 * Inputs!$C$144 -> 0 | BR42: =BR41 * Inputs!$C$144 -> 0 | BS42: =BS41 * Inputs!$C$144 -> 0 | BT42: =BT41 * Inputs!$C$144 -> 0 | BU42: =BU41 * Inputs!$C$144 -> 0 | BV42: =BV41 * Inputs!$C$144 -> 0 | BW42: =BW41 * Inputs!$C$144 -> 0 | BX42: =BX41 * Inputs!$C$144 -> 0 | BY42: =BY41 * Inputs!$C$144 -> 0 | BZ42: =BZ41 * Inputs!$C$144 -> 0 | CA42: =CA41 * Inputs!$C$144 -> 0 | CB42: =CB41 * Inputs!$C$144 -> 0 | CC42: =CC41 * Inputs!$C$144 -> 0 | CD42: =CD41 * Inputs!$C$144 -> 0 | CE42: =CE41 * Inputs!$C$144 -> 0 | CF42: =CF41 * Inputs!$C$144 -> 0 | CG42: =CG41 * Inputs!$C$144 -> 0 | CH42: =CH41 * Inputs!$C$144 -> 0 | CI42: =CI41 * Inputs!$C$144 -> 0 | CJ42: =CJ41 * Inputs!$C$144 -> 0 | CK42: =CK41 * Inputs!$C$144 -> 0 | CL42: =CL41 * Inputs!$C$144 -> 0 | CM42: =CM41 * Inputs!$C$144 -> 0 | CN42: =CN41 * Inputs!$C$144 -> 0 | CO42: =CO41 * Inputs!$C$144 -> 0 | CP42: =CP41 * Inputs!$C$144 -> 0 | CQ42: =CQ41 * Inputs!$C$144 -> 0 | CR42: =CR41 * Inputs!$C$144 -> 0 | CS42: =CS41 * Inputs!$C$144 -> 0 | CT42: =CT41 * Inputs!$C$144 -> 0 | CU42: =CU41 * Inputs!$C$144 -> 0 | CV42: =CV41 * Inputs!$C$144 -> 0
E44: Unused reserves from previously planned supply | G44: mmcf | H44: =SUM(J44:CV44) -> 141120.6408 | J44: =I52 -> 0 | K44: =J52 -> 0 | L44: 0 | M44: 0 | N44: 0 | O44: 0 | P44: 0 | Q44: 0 | R44: 0 | S44: 0 | T44: 0 | U44: 5227.733213 | V44: 15660.06071 | W44: 23417.12064 | X44: 26126.41298 | Y44: 28459.93774 | Z44: 28459.93774 | AA44: 13769.43774 | AB44: 0 | AC44: 0 | AD44: 0 | AE44: 0 | AF44: 0 | AG44: 0 | AH44: 0 | AI44: 0 | AJ44: 0 | AK44: 0 | AL44: 0 | AM44: 0 | AN44: 0 | AO44: 0 | AP44: 0 | AQ44: 0 | AR44: 0 | AS44: 0 | AT44: 0 | AU44: 0 | AV44: 0 | AW44: 0 | AX44: 0 | AY44: 0 | AZ44: 0 | BA44: 0 | BB44: 0 | BC44: 0 | BD44: 0 | BE44: 0 | BF44: 0 | BG44: 0 | BH44: 0 | BI44: 0 | BJ44: 0 | BK44: 0 | BL44: 0 | BM44: 0 | BN44: 0 | BO44: 0 | BP44: 0 | BQ44: 0 | BR44: 0 | BS44: 0 | BT44: 0 | BU44: 0 | BV44: 0 | BW44: =BV52 -> 0 | BX44: 0 | BY44: 0 | BZ44: 0 | CA44: 0 | CB44: =CA52 -> 0 | CC44: =CB52 -> 0 | CD44: 0 | CE44: =CD52 -> 0 | CF44: 0 | CG44: =CF52 -> 0 | CH44: 0 | CI44: =CH52 -> 0 | CJ44: 0 | CK44: =CJ52 -> 0 | CL44: 0 | CM44: =CL52 -> 0 | CN44: 0 | CO44: =CN52 -> 0 | CP44: 0 | CQ44: =CP52 -> 0 | CR44: 0 | CS44: =CR52 -> 0 | CT44: 0 | CU44: =CT52 -> 0 | CV44: 0
E46: Available supply | G46: mmcf | H46: =SUM(J46:CV46) -> 909902.171 | J46: =MIN(J41 + J44, $F$41) -> 0 | K46: =MIN(K41 + K44, $F$41) -> 0 | L46: 0 | M46: 0 | N46: 0 | O46: 0 | P46: 0 | Q46: 0 | R46: 0 | S46: 0 | T46: 70246.5 | U46: 83431.23321 | V46: 90613.5 | W46: 90613.5 | X46: 90613.5 | Y46: 90613.5 | Z46: 90613.5 | AA46: 39428.93774 | AB46: 25659.5 | AC46: 25659.5 | AD46: 25659.5 | AE46: 25659.5 | AF46: 25659.5 | AG46: 25659.5 | AH46: 26380 | AI46: 26381 | AJ46: 26382 | AK46: 26383 | AL46: 4245 | AM46: 0 | AN46: 0 | AO46: 0 | AP46: 0 | AQ46: 0 | AR46: 0 | AS46: 0 | AT46: 0 | AU46: 0 | AV46: 0 | AW46: 0 | AX46: 0 | AY46: 0 | AZ46: 0 | BA46: 0 | BB46: 0 | BC46: 0 | BD46: 0 | BE46: 0 | BF46: 0 | BG46: 0 | BH46: 0 | BI46: 0 | BJ46: 0 | BK46: 0 | BL46: 0 | BM46: 0 | BN46: 0 | BO46: 0 | BP46: 0 | BQ46: 0 | BR46: 0 | BS46: 0 | BT46: 0 | BU46: 0 | BV46: 0 | BW46: =MIN(BW41 + BW44, $F$41) -> 0 | BX46: 0 | BY46: 0 | BZ46: 0 | CA46: 0 | CB46: =MIN(CB41 + CB44, $F$41) -> 0 | CC46: =MIN(CC41 + CC44, $F$41) -> 0 | CD46: 0 | CE46: 0 | CF46: 0 | CG46: 0 | CH46: 0 | CI46: 0 | CJ46: 0 | CK46: 0 | CL46: 0 | CM46: 0 | CN46: 0 | CO46: 0 | CP46: 0 | CQ46: 0 | CR46: 0 | CS46: 0 | CT46: 0 | CU46: 0 | CV46: 0
E48: Supplied to domestic market | G48: mmcf | H48: =SUM(J48:CV48) -> 1270271.4 | J48: =IF(J4 < $F$40, J38, MIN(J46, J7)) -> 27900 | K48: 30700 | L48: 35045 | M48: 35135 | N48: 32821 | O48: 37278.9 | P48: 45686 | Q48: 47920.5 | R48: 59340 | S48: 63291 | T48: 65018.76679 | U48: 67771.1725 | V48: 73548.94008 | W48: 79326.70766 | X48: 85104.47524 | Y48: 90613.5 | Z48: 90613.5 | AA48: 39428.93774 | AB48: 25659.5 | AC48: 25659.5 | AD48: 25659.5 | AE48: 25659.5 | AF48: 25659.5 | AG48: 25659.5 | AH48: 26380 | AI48: 26381 | AJ48: 26382 | AK48: 26383 | AL48: 4245 | AM48: 0 | AN48: 0 | AO48: 0 | AP48: =IF(AP4 < $F$40, AP38, MIN(AP46, AP7)) -> 0 | AQ48: 0 | AR48: 0 | AS48: 0 | AT48: 0 | AU48: 0 | AV48: 0 | AW48: 0 | AX48: 0 | AY48: 0 | AZ48: 0 | BA48: 0 | BB48: 0 | BC48: 0 | BD48: 0 | BE48: 0 | BF48: 0 | BG48: 0 | BH48: 0 | BI48: 0 | BJ48: 0 | BK48: 0 | BL48: 0 | BM48: 0 | BN48: 0 | BO48: 0 | BP48: 0 | BQ48: 0 | BR48: 0 | BS48: 0 | BT48: 0 | BU48: 0 | BV48: =IF(BV4 < $F$40, BV38, MIN(BV46, BV7)) -> 0 | BW48: 0 | BX48: 0 | BY48: 0 | BZ48: 0 | CA48: 0 | CB48: 0 | CC48: 0 | CD48: 0 | CE48: 0 | CF48: 0 | CG48: 0 | CH48: 0 | CI48: 0 | CJ48: 0 | CK48: 0 | CL48: 0 | CM48: 0 | CN48: 0 | CO48: 0 | CP48: 0 | CQ48: 0 | CR48: 0 | CS48: 0 | CT48: 0 | CU48: 0 | CV48: 0
E49: Supplied to regional market | G49: mmcf | H49: =SUM(J49:CV49) -> 0 | J49: =IF(J4 < $F$40, 0, MIN(J46 - J48, J8)) -> 0 | K49: 0 | L49: 0 | M49: 0 | N49: 0 | O49: 0 | P49: 0 | Q49: 0 | R49: 0 | S49: 0 | T49: 0 | U49: 0 | V49: 0 | W49: 0 | X49: 0 | Y49: 0 | Z49: 0 | AA49: 0 | AB49: 0 | AC49: 0 | AD49: 0 | AE49: 0 | AF49: 0 | AG49: 0 | AH49: 0 | AI49: 0 | AJ49: 0 | AK49: 0 | AL49: 0 | AM49: 0 | AN49: 0 | AO49: 0 | AP49: =IF(AP4 < $F$40, 0, MIN(AP46 - AP48, AP8)) -> 0 | AQ49: 0 | AR49: 0 | AS49: 0 | AT49: 0 | AU49: 0 | AV49: 0 | AW49: 0 | AX49: 0 | AY49: 0 | AZ49: 0 | BA49: 0 | BB49: 0 | BC49: 0 | BD49: 0 | BE49: 0 | BF49: 0 | BG49: 0 | BH49: 0 | BI49: 0 | BJ49: 0 | BK49: 0 | BL49: 0 | BM49: 0 | BN49: 0 | BO49: 0 | BP49: 0 | BQ49: 0 | BR49: 0 | BS49: 0 | BT49: 0 | BU49: 0 | BV49: =IF(BV4 < $F$40, 0, MIN(BV46 - BV48, BV8)) -> 0 | BW49: 0 | BX49: 0 | BY49: 0 | BZ49: 0 | CA49: 0 | CB49: 0 | CC49: 0 | CD49: 0 | CE49: 0 | CF49: 0 | CG49: 0 | CH49: 0 | CI49: 0 | CJ49: 0 | CK49: 0 | CL49: 0 | CM49: 0 | CN49: 0 | CO49: 0 | CP49: 0 | CQ49: 0 | CR49: 0 | CS49: 0 | CT49: 0 | CU49: 0 | CV49: 0
E50: Total production | G50: mmcf | H50: =SUM(J50:CV50) -> 1270271.4 | J50: =SUM(J48:J49) -> 27900 | K50: =SUM(K48:K49) -> 30700 | L50: 35045 | M50: 35135 | N50: 32821 | O50: 37278.9 | P50: 45686 | Q50: 47920.5 | R50: 59340 | S50: 63291 | T50: 65018.76679 | U50: 67771.1725 | V50: 73548.94008 | W50: 79326.70766 | X50: 85104.47524 | Y50: 90613.5 | Z50: 90613.5 | AA50: 39428.93774 | AB50: 25659.5 | AC50: 25659.5 | AD50: 25659.5 | AE50: 25659.5 | AF50: 25659.5 | AG50: 25659.5 | AH50: 26380 | AI50: 26381 | AJ50: 26382 | AK50: 26383 | AL50: 4245 | AM50: 0 | AN50: 0 | AO50: 0 | AP50: 0 | AQ50: 0 | AR50: 0 | AS50: 0 | AT50: 0 | AU50: 0 | AV50: 0 | AW50: 0 | AX50: 0 | AY50: 0 | AZ50: 0 | BA50: 0 | BB50: 0 | BC50: 0 | BD50: 0 | BE50: 0 | BF50: 0 | BG50: 0 | BH50: 0 | BI50: 0 | BJ50: 0 | BK50: 0 | BL50: 0 | BM50: 0 | BN50: 0 | BO50: 0 | BP50: 0 | BQ50: 0 | BR50: 0 | BS50: 0 | BT50: 0 | BU50: 0 | BV50: 0 | BW50: =SUM(BW48:BW49) -> 0 | BX50: 0 | BY50: 0 | BZ50: 0 | CA50: 0 | CB50: =SUM(CB48:CB49) -> 0 | CC50: =SUM(CC48:CC49) -> 0 | CD50: 0 | CE50: 0 | CF50: 0 | CG50: 0 | CH50: 0 | CI50: 0 | CJ50: 0 | CK50: 0 | CL50: 0 | CM50: 0 | CN50: 0 | CO50: 0 | CP50: 0 | CQ50: 0 | CR50: 0 | CS50: 0 | CT50: 0 | CU50: 0 | CV50: 0
E52: Unused reserves from planned supply | G52: mmcf | H52: =SUM(J52:CV52) -> 141120.6408 | I52: 0 | J52: =IF(J4 < $F$40, 0, J44 - (J50 - J41)) -> 0 | K52: 0 | L52: 0 | M52: 0 | N52: 0 | O52: 0 | P52: 0 | Q52: 0 | R52: 0 | S52: 0 | T52: 5227.733213 | U52: 15660.06071 | V52: 23417.12064 | W52: 26126.41298 | X52: 28459.93774 | Y52: 28459.93774 | Z52: 13769.43774 | AA52: 0 | AB52: 0 | AC52: 0 | AD52: 0 | AE52: 0 | AF52: 0 | AG52: 0 | AH52: 0 | AI52: 0 | AJ52: 0 | AK52: 0 | AL52: 0 | AM52: 0 | AN52: 0 | AO52: 0 | AP52: =IF(AP4 < $F$40, 0, AP44 - (AP50 - AP41)) -> 0 | AQ52: 0 | AR52: 0 | AS52: 0 | AT52: 0 | AU52: 0 | AV52: 0 | AW52: 0 | AX52: 0 | AY52: 0 | AZ52: 0 | BA52: 0 | BB52: 0 | BC52: 0 | BD52: 0 | BE52: 0 | BF52: 0 | BG52: 0 | BH52: 0 | BI52: 0 | BJ52: 0 | BK52: 0 | BL52: 0 | BM52: 0 | BN52: 0 | BO52: 0 | BP52: 0 | BQ52: 0 | BR52: 0 | BS52: 0 | BT52: 0 | BU52: 0 | BV52: =IF(BV4 < $F$40, 0, BV44 - (BV50 - BV41)) -> 0 | BW52: 0 | BX52: 0 | BY52: 0 | BZ52: 0 | CA52: 0 | CB52: 0 | CC52: 0 | CD52: 0 | CE52: 0 | CF52: 0 | CG52: 0 | CH52: 0 | CI52: 0 | CJ52: 0 | CK52: 0 | CL52: 0 | CM52: 0 | CN52: 0 | CO52: 0 | CP52: 0 | CQ52: 0 | CR52: 0 | CS52: 0 | CT52: 0 | CU52: 0 | CV52: 0
E53: Unused reserves from planned supply at end of LNG production phase | F53: =LOOKUP(MAX(F318, F322), J4:CV4, J52:CV52) -> 0 | G53: mmcf | H53: =SUM(J53:CV53) -> 0
E55: Unused supply under take or pay contract | G55: mmcf | H55: =SUM(J55:CV55) -> 28459.93774 | J55: =MAX(J42 - J50, 0) -> 0 | K55: 0 | L55: 0 | M55: 0 | N55: 0 | O55: 0 | P55: 0 | Q55: 0 | R55: 0 | S55: 0 | T55: 5227.733213 | U55: 10432.3275 | V55: 7757.059922 | W55: 2709.292342 | X55: 2333.524762 | Y55: 0 | Z55: 0 | AA55: 0 | AB55: 0 | AC55: 0 | AD55: 0 | AE55: 0 | AF55: 0 | AG55: 0 | AH55: 0 | AI55: 0 | AJ55: 0 | AK55: 0 | AL55: 0 | AM55: 0 | AN55: 0 | AO55: 0 | AP55: =MAX(AP42 - AP50, 0) -> 0 | AQ55: 0 | AR55: 0 | AS55: 0 | AT55: 0 | AU55: 0 | AV55: 0 | AW55: 0 | AX55: 0 | AY55: 0 | AZ55: 0 | BA55: 0 | BB55: 0 | BC55: 0 | BD55: 0 | BE55: 0 | BF55: 0 | BG55: 0 | BH55: 0 | BI55: 0 | BJ55: 0 | BK55: 0 | BL55: 0 | BM55: 0 | BN55: 0 | BO55: 0 | BP55: 0 | BQ55: 0 | BR55: 0 | BS55: 0 | BT55: 0 | BU55: 0 | BV55: =MAX(BV42 - BV50, 0) -> 0 | BW55: 0 | BX55: 0 | BY55: 0 | BZ55: 0 | CA55: 0 | CB55: 0 | CC55: 0 | CD55: 0 | CE55: 0 | CF55: 0 | CG55: 0 | CH55: 0 | CI55: 0 | CJ55: 0 | CK55: 0 | CL55: 0 | CM55: 0 | CN55: 0 | CO55: 0 | CP55: 0 | CQ55: 0 | CR55: 0 | CS55: 0 | CT55: 0 | CU55: 0 | CV55: 0
A57: Offshore reserves and production
E59: Offshore production start | F59: =Inputs!C50 -> 2030
C61: Blocks 1 and 4
D62: Reserves
E63: Total raw gas reserves | F63: =Inputs!C9 -> 15017357.3 | G63: mmcf
E64: Gas reserves as % of total reserves | F64: =1 - Inputs!C11 -> 0.9012902317
E65: Initial gas reserves | F65: =F63 * F64 -> 13534997.44 | G65: mmcf
E66: NGL reserves as % of total reserves | F66: =1 - F64 -> 0.0987097683
E67: Initial NGL reserves | F67: =F63 * F66 -> 1482359.86 | G67: mmcf
E69: Raw gas reserves allocated to DSO plant | F69: =F63 * Inputs!C67 -> 1051215.011 | G69: mmcf
E70: O/w gas | F70: =F69 * F64 -> 947449.8208 | G70: mmcf
E71: O/w NGL | F71: =F69 * F66 -> 103765.1902 | G71: mmcf
E73: Raw gas reserves allocated to LNG plant | F73: =F63 * (1 - Inputs!C67) -> 13966142.29 | G73: mmcf
E74: O/w gas | F74: =F73 * F64 -> 12587547.62 | G74: mmcf
E75: O/w NGL | F75: =F73 * F66 -> 1378594.669 | G75: mmcf
D77: Production capacity
E78: Offshore raw gas production capacity limit | F78: =Inputs!$C$61 -> 442000 | G78: mmcf | J78: =$F$78 -> 442000 | K78: =$F$78 -> 442000 | L78: 442000 | M78: 442000 | N78: 442000 | O78: 442000 | P78: 442000 | Q78: 442000 | R78: 442000 | S78: 442000 | T78: 442000 | U78: 442000 | V78: 442000 | W78: 442000 | X78: 442000 | Y78: 442000 | Z78: 442000 | AA78: 442000 | AB78: 442000 | AC78: 442000 | AD78: 442000 | AE78: 442000 | AF78: 442000 | AG78: 442000 | AH78: 442000 | AI78: 442000 | AJ78: 442000 | AK78: 442000 | AL78: 442000 | AM78: 442000 | AN78: 442000 | AO78: 442000 | AP78: 442000 | AQ78: 442000 | AR78: 442000 | AS78: 442000 | AT78: 442000 | AU78: 442000 | AV78: 442000 | AW78: 442000 | AX78: 442000 | AY78: 442000 | AZ78: 442000 | BA78: 442000 | BB78: 442000 | BC78: 442000 | BD78: 442000 | BE78: 442000 | BF78: 442000 | BG78: 442000 | BH78: 442000 | BI78: 442000 | BJ78: 442000 | BK78: 442000 | BL78: 442000 | BM78: 442000 | BN78: 442000 | BO78: 442000 | BP78: 442000 | BQ78: 442000 | BR78: 442000 | BS78: 442000 | BT78: 442000 | BU78: 442000 | BV78: 442000 | BW78: =$F$78 -> 442000 | BX78: 442000 | BY78: 442000 | BZ78: 442000 | CA78: 442000 | CB78: 442000 | CC78: 442000 | CD78: 442000 | CE78: 442000 | CF78: 442000 | CG78: 442000 | CH78: 442000 | CI78: 442000 | CJ78: 442000 | CK78: 442000 | CL78: 442000 | CM78: 442000 | CN78: 442000 | CO78: 442000 | CP78: 442000 | CQ78: 442000 | CR78: 442000 | CS78: 442000 | CT78: 442000 | CU78: 442000 | CV78: 442000
E79: Gas produced at this capacity limit | G79: mmcf | J79: =J78 * $F$64 -> 398370.2824 | K79: =K78 * $F$64 -> 398370.2824 | L79: 398370.2824 | M79: 398370.2824 | N79: 398370.2824 | O79: 398370.2824 | P79: 398370.2824 | Q79: 398370.2824 | R79: 398370.2824 | S79: 398370.2824 | T79: 398370.2824 | U79: 398370.2824 | V79: 398370.2824 | W79: 398370.2824 | X79: 398370.2824 | Y79: 398370.2824 | Z79: 398370.2824 | AA79: 398370.2824 | AB79: 398370.2824 | AC79: 398370.2824 | AD79: 398370.2824 | AE79: 398370.2824 | AF79: 398370.2824 | AG79: 398370.2824 | AH79: 398370.2824 | AI79: 398370.2824 | AJ79: 398370.2824 | AK79: 398370.2824 | AL79: 398370.2824 | AM79: 398370.2824 | AN79: 398370.2824 | AO79: 398370.2824 | AP79: 398370.2824 | AQ79: 398370.2824 | AR79: 398370.2824 | AS79: 398370.2824 | AT79: 398370.2824 | AU79: 398370.2824 | AV79: 398370.2824 | AW79: 398370.2824 | AX79: 398370.2824 | AY79: 398370.2824 | AZ79: 398370.2824 | BA79: 398370.2824 | BB79: 398370.2824 | BC79: 398370.2824 | BD79: 398370.2824 | BE79: 398370.2824 | BF79: 398370.2824 | BG79: 398370.2824 | BH79: 398370.2824 | BI79: 398370.2824 | BJ79: 398370.2824 | BK79: 398370.2824 | BL79: 398370.2824 | BM79: 398370.2824 | BN79: 398370.2824 | BO79: 398370.2824 | BP79: 398370.2824 | BQ79: 398370.2824 | BR79: 398370.2824 | BS79: 398370.2824 | BT79: 398370.2824 | BU79: 398370.2824 | BV79: 398370.2824 | BW79: =BW78 * $F$64 -> 398370.2824 | BX79: 398370.2824 | BY79: 398370.2824 | BZ79: 398370.2824 | CA79: 398370.2824 | CB79: 398370.2824 | CC79: 398370.2824 | CD79: 398370.2824 | CE79: 398370.2824 | CF79: 398370.2824 | CG79: 398370.2824 | CH79: 398370.2824 | CI79: 398370.2824 | CJ79: 398370.2824 | CK79: 398370.2824 | CL79: 398370.2824 | CM79: 398370.2824 | CN79: 398370.2824 | CO79: 398370.2824 | CP79: 398370.2824 | CQ79: 398370.2824 | CR79: 398370.2824 | CS79: 398370.2824 | CT79: 398370.2824 | CU79: 398370.2824 | CV79: 398370.2824
E81: DSO plant start up | F81: =SUMPRODUCT(J81:CV81,$J$4:$CV$4) -> 2030 | J81: =1 * AND(Inputs!C88 <> 0, SUM(Inputs!$B88:'Inputs'!B88) = 0) -> 0 | K81: =1 * AND(Inputs!D88 <> 0, SUM(Inputs!$B88:'Inputs'!C88) = 0) -> 0 | L81: =1 * AND(Inputs!E88 <> 0, SUM(Inputs!$B88:'Inputs'!D88) = 0) -> 0 | M81: =1 * AND(Inputs!F88 <> 0, SUM(Inputs!$B88:'Inputs'!E88) = 0) -> 0 | N81: =1 * AND(Inputs!G88 <> 0, SUM(Inputs!$B88:'Inputs'!F88) = 0) -> 0 | O81: =1 * AND(Inputs!H88 <> 0, SUM(Inputs!$B88:'Inputs'!G88) = 0) -> 0 | P81: =1 * AND(Inputs!I88 <> 0, SUM(Inputs!$B88:'Inputs'!H88) = 0) -> 0 | Q81: =1 * AND(Inputs!J88 <> 0, SUM(Inputs!$B88:'Inputs'!I88) = 0) -> 0 | R81: =1 * AND(Inputs!K88 <> 0, SUM(Inputs!$B88:'Inputs'!J88) = 0) -> 0 | S81: =1 * AND(Inputs!L88 <> 0, SUM(Inputs!$B88:'Inputs'!K88) = 0) -> 0 | T81: =1 * AND(Inputs!M88 <> 0, SUM(Inputs!$B88:'Inputs'!L88) = 0) -> 0 | U81: =1 * AND(Inputs!N88 <> 0, SUM(Inputs!$B88:'Inputs'!M88) = 0) -> 0 | V81: =1 * AND(Inputs!O88 <> 0, SUM(Inputs!$B88:'Inputs'!N88) = 0) -> 0 | W81: =1 * AND(Inputs!P88 <> 0, SUM(Inputs!$B88:'Inputs'!O88) = 0) -> 0 | X81: =1 * AND(Inputs!Q88 <> 0, SUM(Inputs!$B88:'Inputs'!P88) = 0) -> 0 | Y81: =1 * AND(Inputs!R88 <> 0, SUM(Inputs!$B88:'Inputs'!Q88) = 0) -> 0 | Z81: =1 * AND(Inputs!S88 <> 0, SUM(Inputs!$B88:'Inputs'!R88) = 0) -> 0 | AA81: =1 * AND(Inputs!T88 <> 0, SUM(Inputs!$B88:'Inputs'!S88) = 0) -> 0 | AB81: =1 * AND(Inputs!U88 <> 0, SUM(Inputs!$B88:'Inputs'!T88) = 0) -> 0 | AC81: =1 * AND(Inputs!V88 <> 0, SUM(Inputs!$B88:'Inputs'!U88) = 0) -> 0 | AD81: =1 * AND(Inputs!W88 <> 0, SUM(Inputs!$B88:'Inputs'!V88) = 0) -> 1 | AE81: =1 * AND(Inputs!X88 <> 0, SUM(Inputs!$B88:'Inputs'!W88) = 0) -> 0 | AF81: =1 * AND(Inputs!Y88 <> 0, SUM(Inputs!$B88:'Inputs'!X88) = 0) -> 0 | AG81: =1 * AND(Inputs!Z88 <> 0, SUM(Inputs!$B88:'Inputs'!Y88) = 0) -> 0 | AH81: =1 * AND(Inputs!AA88 <> 0, SUM(Inputs!$B88:'Inputs'!Z88) = 0) -> 0 | AI81: =1 * AND(Inputs!AB88 <> 0, SUM(Inputs!$B88:'Inputs'!AA88) = 0) -> 0 | AJ81: =1 * AND(Inputs!AC88 <> 0, SUM(Inputs!$B88:'Inputs'!AB88) = 0) -> 0 | AK81: =1 * AND(Inputs!AD88 <> 0, SUM(Inputs!$B88:'Inputs'!AC88) = 0) -> 0 | AL81: =1 * AND(Inputs!AE88 <> 0, SUM(Inputs!$B88:'Inputs'!AD88) = 0) -> 0 | AM81: =1 * AND(Inputs!AF88 <> 0, SUM(Inputs!$B88:'Inputs'!AE88) = 0) -> 0 | AN81: =1 * AND(Inputs!AG88 <> 0, SUM(Inputs!$B88:'Inputs'!AF88) = 0) -> 0 | AO81: =1 * AND(Inputs!AH88 <> 0, SUM(Inputs!$B88:'Inputs'!AG88) = 0) -> 0 | AP81: =1 * AND(Inputs!AI88 <> 0, SUM(Inputs!$B88:'Inputs'!AH88) = 0) -> 0 | AQ81: =1 * AND(Inputs!AJ88 <> 0, SUM(Inputs!$B88:'Inputs'!AI88) = 0) -> 0 | AR81: =1 * AND(Inputs!AK88 <> 0, SUM(Inputs!$B88:'Inputs'!AJ88) = 0) -> 0 | AS81: =1 * AND(Inputs!AL88 <> 0, SUM(Inputs!$B88:'Inputs'!AK88) = 0) -> 0 | AT81: =1 * AND(Inputs!AM88 <> 0, SUM(Inputs!$B88:'Inputs'!AL88) = 0) -> 0 | AU81: =1 * AND(Inputs!AN88 <> 0, SUM(Inputs!$B88:'Inputs'!AM88) = 0) -> 0 | AV81: =1 * AND(Inputs!AO88 <> 0, SUM(Inputs!$B88:'Inputs'!AN88) = 0) -> 0 | AW81: =1 * AND(Inputs!AP88 <> 0, SUM(Inputs!$B88:'Inputs'!AO88) = 0) -> 0 | AX81: =1 * AND(Inputs!AQ88 <> 0, SUM(Inputs!$B88:'Inputs'!AP88) = 0) -> 0 | AY81: =1 * AND(Inputs!AR88 <> 0, SUM(Inputs!$B88:'Inputs'!AQ88) = 0) -> 0 | AZ81: =1 * AND(Inputs!AS88 <> 0, SUM(Inputs!$B88:'Inputs'!AR88) = 0) -> 0 | BA81: =1 * AND(Inputs!AT88 <> 0, SUM(Inputs!$B88:'Inputs'!AS88) = 0) -> 0 | BB81: =1 * AND(Inputs!AU88 <> 0, SUM(Inputs!$B88:'Inputs'!AT88) = 0) -> 0 | BC81: =1 * AND(Inputs!AV88 <> 0, SUM(Inputs!$B88:'Inputs'!AU88) = 0) -> 0 | BD81: =1 * AND(Inputs!AW88 <> 0, SUM(Inputs!$B88:'Inputs'!AV88) = 0) -> 0 | BE81: =1 * AND(Inputs!AX88 <> 0, SUM(Inputs!$B88:'Inputs'!AW88) = 0) -> 0 | BF81: =1 * AND(Inputs!AY88 <> 0, SUM(Inputs!$B88:'Inputs'!AX88) = 0) -> 0 | BG81: =1 * AND(Inputs!AZ88 <> 0, SUM(Inputs!$B88:'Inputs'!AY88) = 0) -> 0 | BH81: =1 * AND(Inputs!BA88 <> 0, SUM(Inputs!$B88:'Inputs'!AZ88) = 0) -> 0 | BI81: =1 * AND(Inputs!BB88 <> 0, SUM(Inputs!$B88:'Inputs'!BA88) = 0) -> 0 | BJ81: =1 * AND(Inputs!BC88 <> 0, SUM(Inputs!$B88:'Inputs'!BB88) = 0) -> 0 | BK81: =1 * AND(Inputs!BD88 <> 0, SUM(Inputs!$B88:'Inputs'!BC88) = 0) -> 0 | BL81: =1 * AND(Inputs!BE88 <> 0, SUM(Inputs!$B88:'Inputs'!BD88) = 0) -> 0 | BM81: =1 * AND(Inputs!BF88 <> 0, SUM(Inputs!$B88:'Inputs'!BE88) = 0) -> 0 | BN81: =1 * AND(Inputs!BG88 <> 0, SUM(Inputs!$B88:'Inputs'!BF88) = 0) -> 0 | BO81: =1 * AND(Inputs!BH88 <> 0, SUM(Inputs!$B88:'Inputs'!BG88) = 0) -> 0 | BP81: =1 * AND(Inputs!BI88 <> 0, SUM(Inputs!$B88:'Inputs'!BH88) = 0) -> 0 | BQ81: =1 * AND(Inputs!BJ88 <> 0, SUM(Inputs!$B88:'Inputs'!BI88) = 0) -> 0 | BR81: =1 * AND(Inputs!BK88 <> 0, SUM(Inputs!$B88:'Inputs'!BJ88) = 0) -> 0 | BS81: =1 * AND(Inputs!BL88 <> 0, SUM(Inputs!$B88:'Inputs'!BK88) = 0) -> 0 | BT81: =1 * AND(Inputs!BM88 <> 0, SUM(Inputs!$B88:'Inputs'!BL88) = 0) -> 0 | BU81: =1 * AND(Inputs!BN88 <> 0, SUM(Inputs!$B88:'Inputs'!BM88) = 0) -> 0 | BV81: =1 * AND(Inputs!BO88 <> 0, SUM(Inputs!$B88:'Inputs'!BN88) = 0) -> 0 | BW81: =1 * AND(Inputs!BP88 <> 0, SUM(Inputs!$B88:'Inputs'!BO88) = 0) -> 0 | BX81: =1 * AND(Inputs!BQ88 <> 0, SUM(Inputs!$B88:'Inputs'!BP88) = 0) -> 0 | BY81: =1 * AND(Inputs!BR88 <> 0, SUM(Inputs!$B88:'Inputs'!BQ88) = 0) -> 0 | BZ81: =1 * AND(Inputs!BS88 <> 0, SUM(Inputs!$B88:'Inputs'!BR88) = 0) -> 0 | CA81: =1 * AND(Inputs!BT88 <> 0, SUM(Inputs!$B88:'Inputs'!BS88) = 0) -> 0 | CB81: =1 * AND(Inputs!BU88 <> 0, SUM(Inputs!$B88:'Inputs'!BT88) = 0) -> 0 | CC81: =1 * AND(Inputs!BV88 <> 0, SUM(Inputs!$B88:'Inputs'!BU88) = 0) -> 0 | CD81: =1 * AND(Inputs!BW88 <> 0, SUM(Inputs!$B88:'Inputs'!BV88) = 0) -> 0 | CE81: =1 * AND(Inputs!BX88 <> 0, SUM(Inputs!$B88:'Inputs'!BW88) = 0) -> 0 | CF81: =1 * AND(Inputs!BY88 <> 0, SUM(Inputs!$B88:'Inputs'!BX88) = 0) -> 0 | CG81: =1 * AND(Inputs!BZ88 <> 0, SUM(Inputs!$B88:'Inputs'!BY88) = 0) -> 0 | CH81: =1 * AND(Inputs!CA88 <> 0, SUM(Inputs!$B88:'Inputs'!BZ88) = 0) -> 0 | CI81: =1 * AND(Inputs!CB88 <> 0, SUM(Inputs!$B88:'Inputs'!CA88) = 0) -> 0 | CJ81: =1 * AND(Inputs!CC88 <> 0, SUM(Inputs!$B88:'Inputs'!CB88) = 0) -> 0 | CK81: =1 * AND(Inputs!CD88 <> 0, SUM(Inputs!$B88:'Inputs'!CC88) = 0) -> 0 | CL81: =1 * AND(Inputs!CE88 <> 0, SUM(Inputs!$B88:'Inputs'!CD88) = 0) -> 0 | CM81: =1 * AND(Inputs!CF88 <> 0, SUM(Inputs!$B88:'Inputs'!CE88) = 0) -> 0 | CN81: =1 * AND(Inputs!CG88 <> 0, SUM(Inputs!$B88:'Inputs'!CF88) = 0) -> 0 | CO81: =1 * AND(Inputs!CH88 <> 0, SUM(Inputs!$B88:'Inputs'!CG88) = 0) -> 0 | CP81: =1 * AND(Inputs!CI88 <> 0, SUM(Inputs!$B88:'Inputs'!CH88) = 0) -> 0 | CQ81: =1 * AND(Inputs!CJ88 <> 0, SUM(Inputs!$B88:'Inputs'!CI88) = 0) -> 0 | CR81: =1 * AND(Inputs!CK88 <> 0, SUM(Inputs!$B88:'Inputs'!CJ88) = 0) -> 0 | CS81: =1 * AND(Inputs!CL88 <> 0, SUM(Inputs!$B88:'Inputs'!CK88) = 0) -> 0 | CT81: =1 * AND(Inputs!CM88 <> 0, SUM(Inputs!$B88:'Inputs'!CL88) = 0) -> 0 | CU81: =1 * AND(Inputs!CN88 <> 0, SUM(Inputs!$B88:'Inputs'!CM88) = 0) -> 0 | CV81: =1 * AND(Inputs!CO88 <> 0, SUM(Inputs!$B88:'Inputs'!CN88) = 0) -> 0
E82: DSO plant raw gas capacity limit | G82: mmcf | J82: =SUM(Inputs!$C$88:'Inputs'!C88) -> 0 | K82: =SUM(Inputs!$C$88:'Inputs'!D88) -> 0 | L82: =SUM(Inputs!$C$88:'Inputs'!E88) -> 0 | M82: =SUM(Inputs!$C$88:'Inputs'!F88) -> 0 | N82: =SUM(Inputs!$C$88:'Inputs'!G88) -> 0 | O82: =SUM(Inputs!$C$88:'Inputs'!H88) -> 0 | P82: =SUM(Inputs!$C$88:'Inputs'!I88) -> 0 | Q82: =SUM(Inputs!$C$88:'Inputs'!J88) -> 0 | R82: =SUM(Inputs!$C$88:'Inputs'!K88) -> 0 | S82: =SUM(Inputs!$C$88:'Inputs'!L88) -> 0 | T82: =SUM(Inputs!$C$88:'Inputs'!M88) -> 0 | U82: =SUM(Inputs!$C$88:'Inputs'!N88) -> 0 | V82: =SUM(Inputs!$C$88:'Inputs'!O88) -> 0 | W82: =SUM(Inputs!$C$88:'Inputs'!P88) -> 0 | X82: =SUM(Inputs!$C$88:'Inputs'!Q88) -> 0 | Y82: =SUM(Inputs!$C$88:'Inputs'!R88) -> 0 | Z82: =SUM(Inputs!$C$88:'Inputs'!S88) -> 0 | AA82: =SUM(Inputs!$C$88:'Inputs'!T88) -> 0 | AB82: =SUM(Inputs!$C$88:'Inputs'!U88) -> 0 | AC82: =SUM(Inputs!$C$88:'Inputs'!V88) -> 0 | AD82: =SUM(Inputs!$C$88:'Inputs'!W88) -> 31000 | AE82: =SUM(Inputs!$C$88:'Inputs'!X88) -> 31000 | AF82: =SUM(Inputs!$C$88:'Inputs'!Y88) -> 31000 | AG82: =SUM(Inputs!$C$88:'Inputs'!Z88) -> 31000 | AH82: =SUM(Inputs!$C$88:'Inputs'!AA88) -> 31000 | AI82: =SUM(Inputs!$C$88:'Inputs'!AB88) -> 31000 | AJ82: =SUM(Inputs!$C$88:'Inputs'!AC88) -> 31000 | AK82: =SUM(Inputs!$C$88:'Inputs'!AD88) -> 31000 | AL82: =SUM(Inputs!$C$88:'Inputs'!AE88) -> 31000 | AM82: =SUM(Inputs!$C$88:'Inputs'!AF88) -> 31000 | AN82: =SUM(Inputs!$C$88:'Inputs'!AG88) -> 31000 | AO82: =SUM(Inputs!$C$88:'Inputs'!AH88) -> 31000 | AP82: =SUM(Inputs!$C$88:'Inputs'!AI88) -> 31000 | AQ82: =SUM(Inputs!$C$88:'Inputs'!AJ88) -> 31000 | AR82: =SUM(Inputs!$C$88:'Inputs'!AK88) -> 31000 | AS82: =SUM(Inputs!$C$88:'Inputs'!AL88) -> 31000 | AT82: =SUM(Inputs!$C$88:'Inputs'!AM88) -> 31000 | AU82: =SUM(Inputs!$C$88:'Inputs'!AN88) -> 31000 | AV82: =SUM(Inputs!$C$88:'Inputs'!AO88) -> 31000 | AW82: =SUM(Inputs!$C$88:'Inputs'!AP88) -> 31000 | AX82: =SUM(Inputs!$C$88:'Inputs'!AQ88) -> 31000 | AY82: =SUM(Inputs!$C$88:'Inputs'!AR88) -> 31000 | AZ82: =SUM(Inputs!$C$88:'Inputs'!AS88) -> 31000 | BA82: =SUM(Inputs!$C$88:'Inputs'!AT88) -> 31000 | BB82: =SUM(Inputs!$C$88:'Inputs'!AU88) -> 31000 | BC82: =SUM(Inputs!$C$88:'Inputs'!AV88) -> 31000 | BD82: =SUM(Inputs!$C$88:'Inputs'!AW88) -> 31000 | BE82: =SUM(Inputs!$C$88:'Inputs'!AX88) -> 31000 | BF82: =SUM(Inputs!$C$88:'Inputs'!AY88) -> 31000 | BG82: =SUM(Inputs!$C$88:'Inputs'!AZ88) -> 31000 | BH82: =SUM(Inputs!$C$88:'Inputs'!BA88) -> 31000 | BI82: =SUM(Inputs!$C$88:'Inputs'!BB88) -> 31000 | BJ82: =SUM(Inputs!$C$88:'Inputs'!BC88) -> 31000 | BK82: =SUM(Inputs!$C$88:'Inputs'!BD88) -> 31000 | BL82: =SUM(Inputs!$C$88:'Inputs'!BE88) -> 31000 | BM82: =SUM(Inputs!$C$88:'Inputs'!BF88) -> 31000 | BN82: =SUM(Inputs!$C$88:'Inputs'!BG88) -> 31000 | BO82: =SUM(Inputs!$C$88:'Inputs'!BH88) -> 31000 | BP82: =SUM(Inputs!$C$88:'Inputs'!BI88) -> 31000 | BQ82: =SUM(Inputs!$C$88:'Inputs'!BJ88) -> 31000 | BR82: =SUM(Inputs!$C$88:'Inputs'!BK88) -> 31000 | BS82: =SUM(Inputs!$C$88:'Inputs'!BL88) -> 31000 | BT82: =SUM(Inputs!$C$88:'Inputs'!BM88) -> 31000 | BU82: =SUM(Inputs!$C$88:'Inputs'!BN88) -> 31000 | BV82: =SUM(Inputs!$C$88:'Inputs'!BO88) -> 31000 | BW82: =SUM(Inputs!$C$88:'Inputs'!BP88) -> 31000 | BX82: =SUM(Inputs!$C$88:'Inputs'!BQ88) -> 31000 | BY82: =SUM(Inputs!$C$88:'Inputs'!BR88) -> 31000 | BZ82: =SUM(Inputs!$C$88:'Inputs'!BS88) -> 31000 | CA82: =SUM(Inputs!$C$88:'Inputs'!BT88) -> 31000 | CB82: =SUM(Inputs!$C$88:'Inputs'!BU88) -> 31000 | CC82: =SUM(Inputs!$C$88:'Inputs'!BV88) -> 31000 | CD82: =SUM(Inputs!$C$88:'Inputs'!BW88) -> 31000 | CE82: =SUM(Inputs!$C$88:'Inputs'!BX88) -> 31000 | CF82: =SUM(Inputs!$C$88:'Inputs'!BY88) -> 31000 | CG82: =SUM(Inputs!$C$88:'Inputs'!BZ88) -> 31000 | CH82: =SUM(Inputs!$C$88:'Inputs'!CA88) -> 31000 | CI82: =SUM(Inputs!$C$88:'Inputs'!CB88) -> 31000 | CJ82: =SUM(Inputs!$C$88:'Inputs'!CC88) -> 31000 | CK82: =SUM(Inputs!$C$88:'Inputs'!CD88) -> 31000 | CL82: =SUM(Inputs!$C$88:'Inputs'!CE88) -> 31000 | CM82: =SUM(Inputs!$C$88:'Inputs'!CF88) -> 31000 | CN82: =SUM(Inputs!$C$88:'Inputs'!CG88) -> 31000 | CO82: =SUM(Inputs!$C$88:'Inputs'!CH88) -> 31000 | CP82: =SUM(Inputs!$C$88:'Inputs'!CI88) -> 31000 | CQ82: =SUM(Inputs!$C$88:'Inputs'!CJ88) -> 31000 | CR82: =SUM(Inputs!$C$88:'Inputs'!CK88) -> 31000 | CS82: =SUM(Inputs!$C$88:'Inputs'!CL88) -> 31000 | CT82: =SUM(Inputs!$C$88:'Inputs'!CM88) -> 31000 | CU82: =SUM(Inputs!$C$88:'Inputs'!CN88) -> 31000 | CV82: =SUM(Inputs!$C$88:'Inputs'!CO88) -> 31000
